Workbook

Sheet GUIA PARA PREENCHIMENTO
A1: GUIA PARA PREENCHIMENTO
A3: 1 - Preencher apenas as guias azuis:
A5: 2 - Recomendamos preencher somente as células com fundo azul claro. As demais possuem fórmulas e sugerimos não alterá-las.

Sheet MODELO PROPOSTA
B2: MODELO DA PROPOSTA COMPLETA
B4: .
B5: I – FORMALIZAÇÃO
B7: PREGÃO ELETRÔNICO N. 106/2023
B8: OBJETO: Prestação de serviços continuados por alocação de postos de trabalho na área de operação de elevadores, pelo período de trinta meses.
B9: LICITANTE: _____________________________________________________
B10: CNPJ: ________________________________________________________
B11: ENDEREÇO COMPLETO: _________________________________________
B12: TELEFONE:_____________________________________________________
B13: E-MAIL: ________________________________________________________
B15: Apresentamos nossa proposta para o item único da presente licitação, de acordo com as disposições do Edital.
B16: Decorre do conteúdo da presente proposta a explicitação do seguinte PREÇO DE JULGAMENTO (GLOBAL) PARA O ITEM PARA O PERÍODO DE 30 MESES:
B17: =Resumo!H83 -> 9355711.83
B18: =Extenso_Valor(B17) -> nove milhões, trezentos e cinquenta e cinco mil, setecentos e onze reais e oitenta e três centavos
B20: (por extenso)
B22: No valor proposto estão incluídos todos os custos e todas as despesas, diretas e indiretas, para a execução dos serviços objeto da licitação, em conformidade com as especificações e demais condições e exigências constantes do Edital.
B23: Informamos que eventuais rubricas dispostas em Acordo ou Convenção Coletiva de Trabalho que não se relacionem ao custo direto da venda do serviço, tais como “Participação nos Resultados” e “Abono substitutivo de Participação nos Resultados”, serão consideradas nos custos indiretos da proposta.
B24: O prazo de validade da presente proposta é de ______ (por extenso) dias. (observado o disposto no Título 11 do Edital).
B26: Convenção coletiva de trabalho ou a norma coletiva a que estamos obrigados:
B27: Data-Base:
B28: Número do Registro SRT:
B29: Regime de tributação da empresa:
B30: Empresa é beneficiada pela desoneração da folha de pagamento instituída pela Lei n. 12.546, de 2001, alterada pela Lei n. 13.161, de 2015?
B31: Empresa adere ao PAT (Programa de Alimentação do Trabalhador)?
B32: (Se adere ao PAT): Os valores do auxílio-alimentação apresentados na presente proposta correspondem somente aos efetivamente pagos pela empresa aos empregados?
B34: DECLARAÇÕES
B36: A SEREM PRESTADAS SOMENTE NA HIPÓTESE DE LICITANTE MICROEMPRESA OU EMPRESA DE PEQUENO PORTE, EM CONFORMIDADE COM OS ARTIGOS 17, 18, 30 E 31 DA LEI COMPLEMENTAR N. 123, de 2006, E O ACÓRDÃO TCU 2798/2010-PLENÁRIO
B37: Declaramos que:
B38: a) em se tratando dos serviços vedados descritos no artigo 17 da Lei Complementar n. 123, de 2006, notadamente os descritos no inciso XII (cessão ou locação de mão de obra), ressalvados os serviços listados nos parágrafos 5o-B a 5o-E do artigo 18 da referida Lei, a proposta apresentada não contempla qualquer benefício tributário referente ao SIMPLES NACIONAL, conforme os subitens 5.7 e 5.8 do Edital;
B39: b) na hipótese de contratação desta Microempresa ou Empresa de Pequeno Porte inscrita no SIMPLES NACIONAL e executora de atividade vedada, ficamos sujeitos à exclusão obrigatória no SIMPLES NACIONAL a contar do mês seguinte ao da contratação, em consequência do que dispõem o artigo 17, inciso XII e o artigo 31, inciso II da Lei Complementar n, 123, de 2006, devendo entregar à Câmara dos Deputados, à título de comprovação, cópia de ofício – com comprovante de entrega e recebimento, que comunique a assinatura do contrato de prestação de serviços mediante cessão de mão de obra e encaminhado pela contratada à Receita Federal do Brasil até o último dia útil do mês subsequente ao da contratação, consoante artigo 30, § 1º, inciso II da Lei Complementar n. 123, de 2006.
B42: A SEREM PRESTADAS SOMENTE NA HIPÓTESE DE LICITANTE BENEFICIADA PELA DESONERAÇÃO DA FOLHA DE PAGAMENTO INSTITUÍDA PELA LEI N. 12.546, DE 2011, ALTERADA PELA LEI N. 13.161, DE 2015.
B44: Declaramos, sob as penas da Lei, que:
B45: a) recolhemos a contribuição previdenciária incidente sobre o valor da receita bruta, em substituição às contribuições previdenciárias incidentes sobre a folha de pagamento, previstas nos incisos I e III do caput do artigo 22 da Lei n. 8.212, de 24 de julho de 1991, na forma do caput do artigo 7º (ou 8º) da Lei n. 12.546, de 14 de dezembro de 2011, alterada pela Lei n. 13.161, de 31 de agosto de 2015;
B46: b) temos ciência que nossa manifestação, conforme alínea “a” anterior, será remetida à Receita Federal do Brasil e que, em caso de constatação de falsidade, estará sujeita às sanções administrativas cabíveis, sem prejuízo do encaminhamento dos documentos ao Ministério Público para apuração de eventual responsabilidade criminal desta declarante.
B49: A SEREM PRESTADAS SOMENTE PARA A LICITANTE QUE SEJA A ATUAL TITULAR DO CONTRATO QUE SERÁ SUCEDIDO PELA CONTRATAÇÃO DECORRENTE DO PREGÃO EM EPÍGRAFE, NA HIPÓTESE DE HAVER SALÁRIO(S) PRATICADO(S) NO CONTRATO VIGENTE SUPERIOR(ES) AOS MÍNIMOS FIXADOS NO EDITAL E QUE TENHA OPTADO POR TOMAR COMO BASE EM SEUS LANCES E NA PRESENTE PROPOSTA DE PREÇOS SALÁRIO(S) FIXADO(S) NESTE EDITAL:
B51: Declaramos que:
B52: a) estamos cientes de que deveremos apresentar à Câmara dos Deputados, no prazo improrrogável de 60 (sessenta) dias, contado da data de início da vigência do contrato, a convenção ou o acordo coletivo de trabalho, entabulado com a participação do sindicato dos trabalhadores, em que se autoriza a redução salarial, na forma do art. 7°, VI, da Constituição Federal, considerado, ainda, o disposto no subitem 10.11.2.1 Título 10 do Anexo n. 6 do Edital;
B53: b) estamos cientes de que, na hipótese de não cumprirmos o disposto no teor da declaração da alínea anterior (“a”) e não logrado êxito na contratação de remanescente, sendo necessária a realização de nova licitação, caso participemos do certame, deveremos tomar como base em nossos lances e em nossa proposta de preços o(s) salário(s) maior(es), absorvendo ou acrescentando eventual diferença no BDI, sob pena de desclassificação.
B55: É OBRIGATÓRIA A COMPROVAÇÃO A QUE SE REFERE O SUBITEM 5.9.4 DO TÍTULO 5 DO EDITAL.
B57: DADOS PARA ASSINATURA DO CONTRATO
B58: Nome do signatário
B59: Cargo
B60: Qualificação (naturalidade e domicílio)
B61: OBS.: O signatário deve possuir poderes de administração estabelecidos em contrato social e/ou possuir procuração com poderes para assinar contratos em nome da empresa. A documentação comprobatória deverá ser encaminhada quando da assinatura do contrato.
B64: Brasília, de de 2023.
B66: Assinatura do representante legal da empresa
B69: Nome do representante legal da empresa

Sheet Remunerações
B1: QUADRO DE REMUNERAÇÕES
C3: ITEM | D3: POSTO DE TRABALHO | E3: QUANTIDADE | F3: SALÁRIO | G3: ADICIONAL DE PERICULOSIDADE | H3: ADICIONAL DE INSALUBRIDADE | I3: ADICIONAL NOTURNO | J3: OUTROS | K3: SALÁRIO COM ADICIONAIS
D4: POSTO DE TRABALHO - EQUIPE DE TRABALHO
C5: 1 | D5: =HLOOKUP($C5,'Dados Gerais'!$D$5:$L$68,6) -> ENCARREGADO GERAL | E5: =HLOOKUP($C5,'Dados Gerais'!$D$5:$L$68,10) -> 1 | F5: =HLOOKUP($C5,'Dados Gerais'!$D$5:$L$68,8) -> 4346.172991 | G5: =HLOOKUP($C5,'Dados Gerais'!$D$5:$L$68,26) -> 0 | H5: =HLOOKUP($C5,'Dados Gerais'!$D$5:$L$68,31) -> 0 | I5: =HLOOKUP($C5,'Dados Gerais'!$D$5:$L$68,46) -> 0 | J5: =HLOOKUP($C5,'Dados Gerais'!$D$5:$L$68,33) -> 0 | K5: =SUM(F5:J5) -> 4346.172991
C6: 2 | D6: =HLOOKUP($C6,'Dados Gerais'!$D$5:$L$68,6) -> ASCENSORISTA | E6: =HLOOKUP($C6,'Dados Gerais'!$D$5:$L$68,10) -> 37 | F6: =HLOOKUP($C6,'Dados Gerais'!$D$5:$L$68,8) -> 1937.74 | G6: =HLOOKUP($C6,'Dados Gerais'!$D$5:$L$68,26) -> 0 | H6: =HLOOKUP($C6,'Dados Gerais'!$D$5:$L$68,31) -> 0 | I6: =HLOOKUP($C6,'Dados Gerais'!$D$5:$L$68,46) -> 0 | J6: =HLOOKUP($C6,'Dados Gerais'!$D$5:$L$68,33) -> 0 | K6: =SUM(F6:J6) -> 1937.74
C7: 3 | D7: =HLOOKUP($C7,'Dados Gerais'!$D$5:$L$68,6) -> TELEFONISTA DE FLUXO DE ELEVADORES | E7: =HLOOKUP($C7,'Dados Gerais'!$D$5:$L$68,10) -> 7 | F7: =HLOOKUP($C7,'Dados Gerais'!$D$5:$L$68,8) -> 2035 | G7: =HLOOKUP($C7,'Dados Gerais'!$D$5:$L$68,26) -> 0 | H7: =HLOOKUP($C7,'Dados Gerais'!$D$5:$L$68,31) -> 0 | I7: =HLOOKUP($C7,'Dados Gerais'!$D$5:$L$68,46) -> 0 | J7: =HLOOKUP($C7,'Dados Gerais'!$D$5:$L$68,33) -> 0 | K7: 2035
C8: 4 | D8: =HLOOKUP($C8,'Dados Gerais'!$D$5:$L$68,6) -> RECEPCIONISTA DE FLUXO DE PESSOAS | E8: =HLOOKUP($C8,'Dados Gerais'!$D$5:$L$68,10) -> 7 | F8: =HLOOKUP($C8,'Dados Gerais'!$D$5:$L$68,8) -> 2319.94 | G8: =HLOOKUP($C8,'Dados Gerais'!$D$5:$L$68,26) -> 0 | H8: =HLOOKUP($C8,'Dados Gerais'!$D$5:$L$68,31) -> 0 | I8: =HLOOKUP($C8,'Dados Gerais'!$D$5:$L$68,46) -> 0 | J8: =HLOOKUP($C8,'Dados Gerais'!$D$5:$L$68,33) -> 0 | K8: =SUM(F8:J8) -> 2319.94
D15: TOTAL DE POSTOS | E15: =SUM(E5:E14) -> 52

Sheet Resumo
B3: RESUMO - TOTAIS MENSAIS - FATURA ORDINÁRIA (SEM O 13º E SEM OS ITENS SOB DEMANDA)
C6: ITEM | D6: POSTO DE TRABALHO | E6: QUANTIDADE | F6: PREÇO UNIT (SEM O 13º) | G6: DESTAQUE DO 13º | H6: PREÇO POR EMPREGADO | I6: PREÇO TOTAL (MENSAL)
C7: 1 | D7: =HLOOKUP(C7,'Dados Gerais'!$D$5:$BK$10,6) -> ENCARREGADO GERAL | E7: =HLOOKUP(C7,'Dados Gerais'!$D$5:$BK$14,10) -> 1 | F7: ='1'!$E$116 -> 10167.86684 | G7: 0 | H7: =G7+F7 -> 10167.86684 | I7: =H7*E7 -> 10167.86684
C8: 2 | D8: =HLOOKUP(C8,'Dados Gerais'!$D$5:$BK$10,6) -> ASCENSORISTA | E8: =HLOOKUP(C8,'Dados Gerais'!$D$5:$BK$14,10) -> 37 | F8: ='2'!$E$116 -> 5462.555833 | G8: 0 | H8: 5462.555833 | I8: 202114.5658
C9: 3 | D9: =HLOOKUP(C9,'Dados Gerais'!$D$5:$BK$10,6) -> TELEFONISTA DE FLUXO DE ELEVADORES | E9: =HLOOKUP(C9,'Dados Gerais'!$D$5:$BK$14,10) -> 7 | F9: ='3'!$E$115 -> 5652.581726 | G9: 0 | H9: 5652.581726 | I9: 39568.07208
C10: 4 | D10: =HLOOKUP(C10,'Dados Gerais'!$D$5:$BK$10,6) -> RECEPCIONISTA DE FLUXO DE PESSOAS | E10: =HLOOKUP(C10,'Dados Gerais'!$D$5:$BK$14,10) -> 7 | F10: ='4'!$E$115 -> 6209.252323 | G10: 0 | H10: =G10+F10 -> 6209.252323 | I10: =H10*E10 -> 43464.76626
D12: TOTAL MENSAL - SALÁRIOS | I12: =SUM(I7:I11) -> 295315.271
B15: RESUMO - TOTAIS MENSAIS - DESTAQUE DO 13º SALÁRIO
C18: ITEM | D18: POSTO DE TRABALHO | E18: QUANTIDADE | F18: PREÇO UNIT (SEM O 13º) | G18: DESTAQUE DO 13º | H18: PREÇO POR EMPREGADO | I18: PREÇO TOTAL (MENSAL)
C19: 1 | D19: =HLOOKUP(C19,'Dados Gerais'!$D$5:$BK$10,6) -> ENCARREGADO GERAL | E19: =HLOOKUP(C19,'Dados Gerais'!$D$5:$BK$14,10) -> 1 | F19: 0 | G19: =G31 -> 651.52 | H19: =G19+F19 -> 651.52 | I19: =H19*E19 -> 651.52
C20: 2 | D20: =HLOOKUP(C20,'Dados Gerais'!$D$5:$BK$10,6) -> ASCENSORISTA | E20: =HLOOKUP(C20,'Dados Gerais'!$D$5:$BK$14,10) -> 37 | F20: 0 | G20: =G32 -> 290.48 | H20: =G20+F20 -> 290.48 | I20: 10747.76
C21: 3 | D21: =HLOOKUP(C21,'Dados Gerais'!$D$5:$BK$10,6) -> TELEFONISTA DE FLUXO DE ELEVADORES | E21: =HLOOKUP(C21,'Dados Gerais'!$D$5:$BK$14,10) -> 7 | F21: 0 | G21: =G33 -> 289.64 | H21: 289.64 | I21: 2027.48
C22: 4 | D22: =HLOOKUP(C22,'Dados Gerais'!$D$5:$BK$10,6) -> RECEPCIONISTA DE FLUXO DE PESSOAS | E22: =HLOOKUP(C22,'Dados Gerais'!$D$5:$BK$14,10) -> 7 | F22: 0 | G22: =G34 -> 330.2 | H22: =G22+F22 -> 330.2 | I22: =H22*E22 -> 2311.4
D24: TOTAL MENSAL - DESTAQUE DO 13º | I24: =SUM(I19:I23) -> 15738.16
B27: RESUMO - TOTAIS MENSAIS - FATURA ORDINÁRIA TOTAL
C30: ITEM | D30: POSTO DE TRABALHO | E30: QUANTIDADE | F30: PREÇO UNIT (SEM O 13º) | G30: DESTAQUE DO 13º | H30: PREÇO POR EMPREGADO | I30: PREÇO TOTAL (MENSAL)
C31: 1 | D31: =HLOOKUP(C31,'Dados Gerais'!$D$5:$BK$10,6) -> ENCARREGADO GERAL | E31: =HLOOKUP(C31,'Dados Gerais'!$D$5:$BK$14,10) -> 1 | F31: =F7 -> 10167.86684 | G31: ='1'!$E$117 -> 651.52 | H31: =G31+F31 -> 10819.38684 | I31: =H31*E31 -> 10819.38684 | K31: =I31/$I$36 -> 0.03478304933 | L31: =$I$49*K31 -> 27.95270193
C32: 2 | D32: =HLOOKUP(C32,'Dados Gerais'!$D$5:$BK$10,6) -> ASCENSORISTA | E32: =HLOOKUP(C32,'Dados Gerais'!$D$5:$BK$14,10) -> 37 | F32: =F8 -> 5462.555833 | G32: ='2'!$E$117 -> 290.48 | H32: 5753.035833 | I32: 212862.3258 | K32: =I32/$I$36 -> 0.6843272075 | L32: =$I$49*K32 -> 549.9458738
C33: 3 | D33: =HLOOKUP(C33,'Dados Gerais'!$D$5:$BK$10,6) -> TELEFONISTA DE FLUXO DE ELEVADORES | E33: =HLOOKUP(C33,'Dados Gerais'!$D$5:$BK$14,10) -> 7 | F33: =F9 -> 5652.581726 | G33: ='3'!$E$116 -> 289.64 | H33: 5942.221726 | I33: 41595.55208 | K33: =I33/$I$36 -> 0.1337247815 | L33: =$I$49*K33 -> 107.4652461
C34: 4 | D34: =HLOOKUP(C34,'Dados Gerais'!$D$5:$BK$10,6) -> RECEPCIONISTA DE FLUXO DE PESSOAS | E34: =HLOOKUP(C34,'Dados Gerais'!$D$5:$BK$14,10) -> 7 | F34: =F10 -> 6209.252323 | G34: ='4'!$E$116 -> 330.2 | H34: =G34+F34 -> 6539.452323 | I34: =H34*E34 -> 45776.16626 | K34: =I34/$I$36 -> 0.1471649617 | L34: =$I$49*K34 -> 118.2661782
D36: TOTAL MENSAL - SALÁRIOS | I36: =SUM(I31:I35) -> 311053.431
C38: ITEM | D38: DESCRIÇÃO | I38: PREÇO TOTAL (MENSAL)
C39: EQUIP | D39: EQUIPAMENTOS NÃO RELACIONADOS DIRETAMENTE A UM POSTO DE TRABALHO | I39: ='Não Rel - Depr'!M62 -> 0
C40: HEXTRA | D40: HORAS EXTRAS | I40: ='Não Rel - Depr'!M62 -> 0
C41: HNOT | D41: ADICIONAL DE HORAS NOTURNAS (SOB DEMANDA) | I41: 0
C42: SREP | D42: SISTEMA DE REGISTRO ELETRÔNICO DE PRESENÇA - SREP | I42: =SREP!$M$46 -> 803.63
C43: EPI - N.REL | D43: EQUIPAMENTOS DE PROTEÇÃO INDIVIDUAL NÃO RELACIONADOS DIRETAMENTE A UM POSTO DE TRABALHO | I43: ='Não Rel - EPI'!K34 -> 0
C44: EQUIP - N.REL | D44: EQUIPAMENTOS NÃO RELACIONADAS DIRETAMENTE A UM POSTO DE TRABALHO | I44: ='Não Rel - Depr'!M63 -> 0
C45: MAT | D45: MATERIAIS NÃO RELACIONADOS DIRETAMENTE A UM POSTO DE TRABALHO | I45: ='Não Rel - Mat Consumo'!L56 -> 0
C46: MAT CONS DURAVEL | D46: MATERIAIS DE CONSUMO DURÁVEL NÃO RELACIONADOS DIRETAMENTE A UM POSTO DE TRABALHO | I46: ='Não Rel - Mat Cons Durável'!M37 -> 0
C47: EQ SOB DEMANDA | D47: SERVIÇOS NÃO RELACIONADOS DIRETAMENTE A UM POSTO DE TRABALHO | I47: ='Não Rel - Serviços'!K10 -> 0
D49: TOTAL MENSAL | I49: =SUM(I39:I48) -> 803.63 | K49: =(I49+I36)*12 -> 3742284.732
D51: TOTAL MENSAL - ITENS ORDINÁRIOS
D52: DESCRIÇÃO | H52: VALOR
D53: Postos de Trabalho - Inclusive 13º Salário | H53: =I36 -> 311053.431
D54: Adicional de Horas Noturnas | H54: =I41 -> 0
D55: Sistema de Registro Eletrônico de Presença - SREP | H55: =I42 -> 803.63
D56: Equipamentos de Proteção Individual não relacionados diretamente a um posto de trabalho | H56: =I43 -> 0
D57: Equipamentos não relacionadas diretamente a um posto de trabalho | H57: =I44 -> 0
D58: Materiais de consumo não relacionados diretamente a um posto de trabalho | H58: =$I$45 -> 0
D59: Materiais de consumo duráveis não relacionados diretamente a um posto de trabalho | H59: =$I$46 -> 0
G61: TOTAL MENSAL DA CONTRATAÇÃO | H61: =SUM(H53:H60) -> 311857.061 | K61: =Extenso_Valor(H61) -> trezentos e onze mil, oitocentos e cinquenta e sete reais e seis centavos
D63: TOTAL ANUAL - ITENS ORDINÁRIOS
G65: 12 x TOTAL MENSAL | H65: =H61*12 -> 3742284.732 | K65: =Extenso_Valor(H65) -> três milhões, setecentos e quarenta e dois mil, duzentos e oitenta e quatro reais e setenta e três centavos
D67: TOTAL MENSAL - ITENS SOB DEMANDA
D68: DESCRIÇÃO | H68: VALOR
D69: Serviços não relacionados diretamente a um posto de trabalho - AQUISIÇÃO SOB DEMANDA | H69: =I47 -> 0
G71: TOTAL MENSAL DA CONTRATAÇÃO | H71: =SUM(H69:H70) -> 0
D73: TOTAL ANUAL - ITENS SOB DEMANDA
G75: 12 x TOTAL MENSAL | H75: =H71*12 -> 0
D77: TOTAL ANUAL DA CONTRATAÇÃO
H79: =H75+H65 -> 3742284.732 | K79: =Extenso_Valor(H79) -> três milhões, setecentos e quarenta e dois mil, duzentos e oitenta e quatro reais e setenta e três centavos
D81: TOTAL GLOBAL DA CONTRATAÇÃO (30 MESES)
H83: =H79/12*30 -> 9355711.83
H88: =H61+H71 -> 311857.061 | K88: =Extenso_Valor(H88) -> trezentos e onze mil, oitocentos e cinquenta e sete reais e seis centavos

Sheet 1
B2: PLANILHA DE ESTIMATIVA DE CUSTOS
B5: 1 | D5: =HLOOKUP($B$5,'Dados Gerais'!$D$5:$BK$20,6) -> ENCARREGADO GERAL | E5: QUANTIDADE | F5: =HLOOKUP($B$5,'Dados Gerais'!$D$5:$BK$20,10) -> 1
B6: CCT | D6: =HLOOKUP($B$5,'Dados Gerais'!$D$5:$BK$20,15) -> SEAC/DF X SINDISERVIÇOS/DF 2023/2023 Nº DF000037/2023 | E6: DATA-BASE | F6: =HLOOKUP($B$5,'Dados Gerais'!$D$5:$BK$20,16) -> 2023-01-01
B8: MÓDULO 1 - COMPOSIÇÃO DA REMUNERAÇÃO | F8: Valor
C9: A | D9: Salário-Base | F9: =HLOOKUP($B$5,'Dados Gerais'!$D$5:$BK$20,8) -> 4346.172991
C10: B | D10: Adicional de Periculosidade | F10: =HLOOKUP($B$5,'Dados Gerais'!$D$5:$BK$37,25) -> 0
C11: C | D11: Adicional de Insalubridade | F11: =HLOOKUP($B$5,'Dados Gerais'!$D$5:$BK$37,31) -> 0
C12: D | D12: Adicional Noturno | F12: =HLOOKUP($B$5,'Dados Gerais'!$D$5:$BK$50,46) -> 0 | H12: * Nota 1 - O Módulo 1 refere-se ao valor mensal devido ao empregado pela prestação do serviço no período de 12 meses.
C13: E | D13: Adicional de Hora Extra | F13: =HLOOKUP($B$5,'Dados Gerais'!$D$5:$BK$67,63) -> 0 | H13: * Nota 2 - O adicional de hora extra no feriado trabalhado foi suprimido pela Lei 13.467/17
C14: F | D14: Outros (especificar) | F14: =HLOOKUP($B$5,'Dados Gerais'!$D$5:$BK$59,33) -> 0 | H14: * Nota 3 - ART. 7º, § 2º, DA LEI Nº 605/49.Sendo mensalista o obreiro, o adicional noturno pago de forma fixa já é considerado integrado para os efeitos do pagamento do repouso semanal remunerado, nos termos do art. 7º, § 2º, da Lei nº 605/49.
D16: TOTAL DA REMUNERAÇÃO | F16: =SUM(F9:F14) -> 4346.172991
B18: MÓDULO 2 - ENCARGOS E BENEFÍCIOS ANUAIS, MENSAIS E DIÁRIOS | E18: Percentuais | F18: Valor
B19: Submódulo 2.1 - 13º Salário e Adicional de Férias
C20: A | D20: 13º Salário - Calculado no Módulo 7 - Destacado | E20: 0 | F20: =ROUND(E20*F$16,2) -> 0
C21: B | D21: Adicional de Férias | E21: ='Encargos Sociais'!E31 -> 0.0303030303 | F21: =ROUND(E21*F$16,2) -> 131.7 | H21: * Nota 1 - Provisiona-se, mensalmente, o proporcional a 1/12 dos valores referentes a gratificação natalina, férias e adicional de férias.
H22: * Nota 2 - O adicional de férias contido no Submódulo 2.1 corresponde a 1/3 da remuneração que, por sua vez, é dividida por 12 contome Nota 1.
B23: Submódulo 2.2 - Encargos Previdenciários (GPS), Fundo de Garantia por Tempo de Serviço (FGTS) e Outras Contribuições
C24: A | D24: ='Encargos Sociais'!D14 -> INSS (art. 22, inciso I, Lei nº 8.212/91) | E24: ='Encargos Sociais'!E14 -> 0.2 | F24: =ROUND(E24*($F$16+$F$41+$F$73),2) -> 992.01
C25: B | D25: ='Encargos Sociais'!D15 -> Salário Educação (art. 3º, inciso I, Decreto nº 87.043/82) | E25: ='Encargos Sociais'!E15 -> 0.025 | F25: =ROUND(E25*($F$16+$F$41+$F$73),2) -> 124
C26: C | D26: ='Encargos Sociais'!D16 -> SAT/RAT (art. 22, II, Lei 8.212/91 e Anexo V, Decreto 6.042/07) - Enquadramento 7820-5/00 | E26: ='Encargos Sociais'!E16 -> 0.02 | F26: 99.2
C27: D | D27: ='Encargos Sociais'!D17 -> SESC ou SESI (art. 30, Lei nº 8.036/90 e art. 1º, Lei 8.154/90) | E27: ='Encargos Sociais'!E17 -> 0.015 | F27: 74.4
C28: E | D28: ='Encargos Sociais'!D18 -> SENAI ou SENAC (Decreto nº 2.318/86) | E28: ='Encargos Sociais'!E18 -> 0.01 | F28: 49.6
C29: F | D29: ='Encargos Sociais'!D19 -> SEBRAE (§ 3º, art. 8º, Lei 8.029/90, alterada pela Lei nº 8.154/90) | E29: ='Encargos Sociais'!E19 -> 0.006 | F29: 29.76
C30: G | D30: ='Encargos Sociais'!D20 -> INCRA (art. 1º, I, Decreto Lei 1.146/70 e Lei 7.787, de 30/06/89) | E30: ='Encargos Sociais'!E20 -> 0.002 | F30: 9.92 | H30: * Nota 1 - Os percentuais dos encargos previdenciários, do FGTS e demais contribuições são estabelecidos por legislação vigente.
C31: H | D31: ='Encargos Sociais'!D21 -> FGTS (Lei Complementar nº 110/01 e art. 30, Lei nº 8.036/90) | E31: ='Encargos Sociais'!E21 -> 0.08 | F31: 396.8 | H31: * Nota 2 - O SAT, a depender do grau de risco do serviço, irá variar entre 1%, para risco leve, de 2%, para risco médio, e de 3% para risco grave.
C32: I | D32: ='Encargos Sociais'!D22 -> SECONCI (Convenções Coletivas de Trabalho da construção) | E32: ='Encargos Sociais'!E22 -> 0 | F32: 0 | H32: * Nota 3 - Os percentuais do Submódulo 2.2 incidem sobre o Módulo 1 e o Submódulo 2.1.
B34: Submódulo 2.3 - Benefícios Mensais e Diários
C35: A | D35: Auxílio Transporte | F35: =HLOOKUP($B$5,'Dados Gerais'!$D$5:$BK$93,82) -> 56.42
C36: B | D36: Auxílio Alimentação | F36: =HLOOKUP($B$5,'Dados Gerais'!$D$5:$BK$93,89) -> 891
C37: C | D37: Assistência Médica e Familiar | F37: =HLOOKUP($B$5,'Dados Gerais'!$D$5:$BK$101,97) -> 0
C38: D | D38: Outros (Seguro de vida e auxílio funeral e auxílio odontológico) | F38: =HLOOKUP($B$5,'Dados Gerais'!$D$5:$BK$118,114) -> 0 | H38: * Nota 1 - O valor informado deverá ser o custo real do benefício (descontado o valor eventualmente pago pelo empregado).
H39: * Nota 2 - Observar a previsão dos benefícios contidos em Acordos, Convenções e Dissídios Coletivos de Trabalho e o disposto no art. 6º da IN 5/2017
D40: QUADRO-RESUMO DO MÓDULO 2
D41: 2.1 - 13º Salário, Férias e Adicional de Férias - 13º Destacado - Calculado no Módulo 7 | E41: =SUM(E20:E21) -> 0.0303030303 | F41: =F20+F21 -> 131.7
D42: 2.2 - Encargos Previdenciários (GPS), Fundo de Garantia por Tempo de Serviço (FGTS) e Contribuições | E42: =SUM(E24:E32) -> 0.358 | F42: =SUM(F24:F32) -> 1775.69
D43: 2.3 - Benefícios Mensais e Diários | F43: =SUM(F35:F38) -> 947.42
D45: TOTAL DOS ENCARGOS E BENEFÍCIOS | F45: =SUM(F41:F43) -> 2854.81
B47: MÓDULO 3 - PREVISÃO PARA RESCISÃO | E47: Percentuais | F47: Valor
C48: A | D48: ='Encargos Sociais'!D36 -> Aviso Prévio Indenizado (Art. 7º, inciso XXI, da CF/1988 e arts. 477, 487, §1º, e 491 da CLT) | E48: ='Encargos Sociais'!E36 -> 0.008333333333 | F48: =ROUND(E48*$F$16,2) -> 36.22
C49: B | D49: ='Encargos Sociais'!D37 -> Incidência do FGTS sobre o Aviso Prévio Indenizado (Súmula 305 TST) | E49: ='Encargos Sociais'!E37 -> 0.0006666666667 | F49: 2.9 | H49: * Nota 1 - Adotou-se os parâmetros do estudo do STF (http://www.stf.jus.br/arquivo/cms/sobrestfestudosci/anexo/encargos_sociais_03102007.pdf), onde 5% do pessoal é demitido pelo empregador no decurso do contrato (para estes, considerou-se o aviso prévio indenizado). Desprezou-se as demissões por justa causa e os pedidos de demissão.
C50: C | D50: ='Encargos Sociais'!D38 -> Multa do FGTS e Contribuição Social sobre o Aviso Prévio Indenizado (Art. 18, §1º, da Lei 8.036/1990 e art. 1º da LC nº 110/2001) | E50: ='Encargos Sociais'!E38 -> 0.007717066667 | F50: 33.54 | H50: * Nota 2 - No cálculo do percentual, considerou-se 36 dias, correspondendo à metade da duração média dos contratos (2 anos)
C51: D | D51: ='Encargos Sociais'!D39 -> Aviso Prévio Trabalhado (Art. 488, parágrafo único, CLT) | E51: ='Encargos Sociais'!E39 -> 0.01203703704 | F51: 52.32 | H51: * Nota 3 - Incide sobre a Remuneração + 13º salário (1/12) + Férias (1/12) + Adicional de Férias (1/36) x 50% multa (40% para o empregado e 10% de contribuição social) x 8% FGTS
C52: E | D52: ='Encargos Sociais'!D40 -> Incidência de GPS, FGTS e outras contribuições sobre o Aviso Prévio Trabalhado | E52: ='Encargos Sociais'!E40 -> 0.004309259259 | F52: 18.73 | H52: * Nota 4 - Os 95% restantes do cálculo, a um prazo médio de contrato de 4 anos. Assim, calcula-se 7 dias para o 1º ano de contrato e mais 3 dias para os 3 anos seguintes.
C53: F | D53: ='Encargos Sociais'!D41 -> Multa do FGTS e Contribuição Social sobre o Aviso Prévio Trabalhado | E53: ='Encargos Sociais'!E41 -> 0.03050515556 | F53: 132.58
D55: TOTAL DE PREVISÃO PARA RESCISÃO | F55: =SUM(F48:F53) -> 276.29
B57: MÓDULO 4 - CUSTO DO PROFISSIONAL AUSENTE | E57: Percentuais | F57: Valor
B58: Submódulo 4.1 - Ausências Legais
C59: A | D59: ='Encargos Sociais'!D25 -> Férias (Arts. 129 e 130, inc. I, da CLT) | E59: ='Encargos Sociais'!E25 -> 0.09090909091 | F59: =ROUND(E59*$F$16,2) -> 395.11 | H59: * Nota 1 - As alíneas “A” a “F” referem-se somente ao custo que será pago ao profissional ausente.
C60: B | D60: ='Encargos Sociais'!D26 -> Ausências Legais (Arts. 131 e 473 da CLT) | E60: ='Encargos Sociais'!E26 -> 0.007936507937 | F60: 34.49 | H60: * Nota 2 - Adotou-se a estimativa do SINAPI de 2 dias por ano.
C61: C | D61: ='Encargos Sociais'!D27 -> Licença-Paternidade (Art. 7º, XIX, e art. 10, §1º, do ADCT, CF/1988 e Art. 1º, II, da Lei 11.770/2008) | E61: ='Encargos Sociais'!E27 -> 0.0008277777778 | F61: 3.6 | H61: * Nota 3 - Utilizada a proporção de 50% para homens, 5 dias de afastamento, e a probabilidade de um trabalhador requerer a Licença Paternidade em 5,22%, conforme SINAPI (citando dados da PNAD 2015)
C62: D | D62: ='Encargos Sociais'!D28 -> Ausência por Acidente de Trabalho (Art. 131, III, da CLT) | E62: ='Encargos Sociais'!E28 -> 0.0008541666667 | F62: 3.71 | H62: * Nota 4 - Utilzada a estatística de 1,96% dos contribuintes beneficiados com a emissão do auxílio, conforme Anuário Estatístico da Previdência Social. Afastamento de 15 dias a cargo da empresa.
C63: E | D63: ='Encargos Sociais'!D29 -> Afastamento Maternidade (Art. 71 da Lei nº 8.213/1991) | E63: ='Encargos Sociais'!E29 -> 0.003292592593 | F63: 14.31 | H63: * Nota 5 - Utilizada a proporção de 50% para mulheres, 180 dias de afastamento, e a probabilidade de uma trabalhadora requerer a Licença Maternidade em 4,91%, conforme SINAPI (citando dados do IBGE 2016)
C64: F | D64: ='Encargos Sociais'!D30 -> Auxílio Enfermidade - Doença (Art. 59 da Lei nº 8.213/1991) | E64: ='Encargos Sociais'!E30 -> 0.007122222222 | F64: 30.95 | H64: * Nota 6 - Utilizada a estatística de 3,37% dos contribuintes beneficiados com o auxílio, conforme Anuário Estatístico da Previdência Social de 2015 (acrescidos de 2 dias ao ano, para os quais o trabalhador nem requer o benefício da Previdência - conforme SINAPI)
B66: Submódulo 4.2 - Intrajornada
C67: A | D67: Intervalo para repouso ou alimentação | E67: ='Encargos Sociais'!E33 -> 0 | F67: =ROUND(E67*$F$16,2) -> 0
D69: QUADRO-RESUMO DO MÓDULO 4 | F69: Valor
D70: 4.1 - Ausências Legais | E70: =SUM(E59:E64) -> 0.1109423581 | F70: =ROUND(E70*$F$16,2) -> 482.17
D71: 4.2 - Intrajornada | E71: =E67 -> 0 | F71: =ROUND(E71*$F$16,2) -> 0
D73: TOTAL DE PREVISÃO PARA RESCISÃO E INTERVALO INTRAJORNADA | F73: =SUM(F70:F71) -> 482.17
B75: MÓDULO 5 - INSUMOS DIVERSOS | F75: Valor
C76: A | D76: Uniformes - aquisição | F76: =ROUND(HLOOKUP($B$5,Uniformes!L4:EA56,3)/12,2) -> 125.05
C77: B | D77: Materiais de consumo relacionados ao posto - aquisição | F77: =ROUND(HLOOKUP(B5,'Mat Cons'!I11:DX13,3)/12,2) -> 0
C78: C | D78: Materiais permanentes relacionados ao posto - remuneração da sua depreciação / manutenção | F78: =HLOOKUP(B5,'Mat Perm'!Q11:EF13,3) -> 0
C79: D | D79: Equipamentos relacionados ao posto - remuneração da sua depreciação / manutenção | F79: =HLOOKUP(B5,'Equip Rel'!Q11:EF13,3) -> 0
C80: E | D80: Equipamentos de Proteção Individual - EPI - aquisição | F80: =ROUND(HLOOKUP(B5,EPI!J4:DY6,3)/12,2) -> 0
D82: TOTAL DE INSUMOS DIVERSOS | F82: =SUM(F76:F81) -> 125.05 | H82: * Nota - Valores mensais por empregado
B84: MÓDULO 6 - CUSTOS INDIRETOS, TRIBUTOS E LUCRO - BDI | E84: Percentuais | F84: Valor
C85: A | D85: Custos Indiretos | E85: =BDI!E6 -> 0.0401
C86: A.1 | D86: Administração Central | E86: =BDI!E7 -> 0.0347
C87: A.2 | D87: Seguros, Garantias e Riscos | E87: =BDI!E8 -> 0.0054
C88: B | D88: Lucro | E88: =BDI!E10 -> 0.0533
C89: C | D89: Tributos | E89: =SUM(E90:E91) -> 0.124
C90: C.1 | D90: Tributos Federais (COFINS, PIS e CPRB) | E90: =BDI!E18 -> 0.074
C91: C.2 | D91: Tributos Distritais (ISS) | E91: =BDI!E23 -> 0.05 | H91: * Nota - Utilizou-se o indicado pelo Sindicato da Arquitetura e da Engenharia (Sinaenco, 2008, p. 22), que adota um percentual redutor de 20% no cálculo dos custos tributários relativos às contribuições PIS e COFINS
C92: D | D92: Despesas Financeiras | E92: =BDI!E13 -> 0.005639499547
D94: TOTAL DE BDI | E94: =BDI!E26 -> 0.2577 | F94: =E94*E102 -> 2083.373844
D96: QUADRO-RESUMO DO CUSTO MENSAL POR EMPREGADO - SEM O 13º | E96: Valor
D97: Módulo 1 - Composição da Remuneração | E97: =F16 -> 4346.172991
D98: Módulo 2 - Encargos e Benefícios Anuais, Mensais e Diários | E98: =F45 -> 2854.81
D99: Módulo 3 - Provisão para Rescisão | E99: =F55 -> 276.29
D100: Módulo 4 - Custo de Reposição do Profissional Ausente | E100: =F73 -> 482.17
D101: Módulo 5 - Insumos Diversos | E101: =F82 -> 125.05
D102: SUBTOTAL (A+B+C+D+E) | E102: =SUM(E97:E101) -> 8084.492991
D103: Módulo 6 - Custos Indiretos, Tributos e Lucro | E103: =F94 -> 2083.373844
D105: TOTAL DO POSTO | E105: =SUM(E102:E103) -> 10167.86684
B107: MÓDULO 7 - DESTAQUE DO MÓDULO 2 - 13º SALÁRIO | E107: Percentuais | F107: Valor
C108: A | D108: 13º Salário | E108: ='Encargos Sociais'!E32 -> 0.08333333333 | F108: =ROUND(E108*F$16,2) -> 362.18
C109: B | D109: Encargos Sociais sobre o 13º Salário - Taxa calculada no SUBMÓDULO 2.2 | E109: =SUM($E$24:$E$32) -> 0.358 | F109: =ROUND(E109*$F$108,2) -> 129.66 | H109: * Nota 1 - Provisiona-se, mensalmente, o proporcional a 1/12 dos valores referentes a gratificação natalina e adicional de férias.
C110: C | D110: Reincidência de férias sobre o 13º Salário | E110: =E59 -> 0.09090909091 | F110: =ROUND(E110*$F$108,2) -> 32.93
C111: D | D111: BDI sobre o 13º Salário - Taxa calculada no MÓDULO 6 | E111: =E94 -> 0.2577 | F111: =ROUND(E111*($F$108+$F$109),2) -> 126.75
D113: TOTAL DO DESTAQUE DO 13º SALÁRIO | F113: =SUM(F108:F111) -> 651.52
D115: QUADRO-RESUMO DO CUSTO MENSAL POR EMPREGADO | E115: Valor
D116: Custo total - sem o 13º Salário | E116: =E105 -> 10167.86684
D117: Destaque do 13º Salário (valor mensal) | E117: =F113 -> 651.52
D119: TOTAL DO POSTO | E119: =E116+E117 -> 10819.38684

Sheet 2
B2: PLANILHA DE ESTIMATIVA DE CUSTOS
B5: 2 | D5: =HLOOKUP($B$5,'Dados Gerais'!$D$5:$BK$20,6) -> ASCENSORISTA | E5: QUANTIDADE | F5: =HLOOKUP($B$5,'Dados Gerais'!$D$5:$BK$20,10) -> 37
B6: CCT | D6: =HLOOKUP($B$5,'Dados Gerais'!$D$5:$BK$20,15) -> SEAC/DF X SINDISERVIÇOS/DF 2023/2023 Nº DF000037/2023 | E6: DATA-BASE | F6: =HLOOKUP($B$5,'Dados Gerais'!$D$5:$BK$20,16) -> 2023-01-01
B8: MÓDULO 1 - COMPOSIÇÃO DA REMUNERAÇÃO | F8: Valor
C9: A | D9: Salário-Base | F9: =HLOOKUP($B$5,'Dados Gerais'!$D$5:$BK$20,8) -> 1937.74
C10: B | D10: Adicional de Periculosidade | F10: =HLOOKUP($B$5,'Dados Gerais'!$D$5:$BK$37,25) -> 0
C11: C | D11: Adicional de Insalubridade | F11: =HLOOKUP($B$5,'Dados Gerais'!$D$5:$BK$37,31) -> 0
C12: D | D12: Adicional Noturno | F12: =HLOOKUP($B$5,'Dados Gerais'!$D$5:$BK$50,46) -> 0 | H12: * Nota 1 - O Módulo 1 refere-se ao valor mensal devido ao empregado pela prestação do serviço no período de 12 meses.
C13: E | D13: Adicional de Hora Extra | F13: =HLOOKUP($B$5,'Dados Gerais'!$D$5:$BK$67,63) -> 0 | H13: * Nota 2 - O adicional de hora extra no feriado trabalhado foi suprimido pela Lei 13.467/17
C14: F | D14: Outros (especificar) | F14: =HLOOKUP($B$5,'Dados Gerais'!$D$5:$BK$59,33) -> 0 | H14: * Nota 3 - ART. 7º, § 2º, DA LEI Nº 605/49.Sendo mensalista o obreiro, o adicional noturno pago de forma fixa já é considerado integrado para os efeitos do pagamento do repouso semanal remunerado, nos termos do art. 7º, § 2º, da Lei nº 605/49.
D16: TOTAL DA REMUNERAÇÃO | F16: =SUM(F9:F14) -> 1937.74
B18: MÓDULO 2 - ENCARGOS E BENEFÍCIOS ANUAIS, MENSAIS E DIÁRIOS | E18: Percentuais | F18: Valor
B19: Submódulo 2.1 - 13º Salário e Adicional de Férias
C20: A | D20: 13º Salário - Calculado no Módulo 7 - Destacado | E20: 0 | F20: =ROUND(E20*F$16,2) -> 0
C21: B | D21: Adicional de Férias | E21: ='Encargos Sociais'!E31 -> 0.0303030303 | F21: =ROUND(E21*F$16,2) -> 58.72 | H21: * Nota 1 - Provisiona-se, mensalmente, o proporcional a 1/12 dos valores referentes a gratificação natalina, férias e adicional de férias.
H22: * Nota 2 - O adicional de férias contido no Submódulo 2.1 corresponde a 1/3 da remuneração que, por sua vez, é dividida por 12 contome Nota 1.
B23: Submódulo 2.2 - Encargos Previdenciários (GPS), Fundo de Garantia por Tempo de Serviço (FGTS) e Outras Contribuições
C24: A | D24: ='Encargos Sociais'!D14 -> INSS (art. 22, inciso I, Lei nº 8.212/91) | E24: ='Encargos Sociais'!E14 -> 0.2 | F24: =ROUND(E24*($F$16+$F$41+$F$73),2) -> 442.29
C25: B | D25: ='Encargos Sociais'!D15 -> Salário Educação (art. 3º, inciso I, Decreto nº 87.043/82) | E25: ='Encargos Sociais'!E15 -> 0.025 | F25: =ROUND(E25*($F$16+$F$41+$F$73),2) -> 55.29
C26: C | D26: ='Encargos Sociais'!D16 -> SAT/RAT (art. 22, II, Lei 8.212/91 e Anexo V, Decreto 6.042/07) - Enquadramento 7820-5/00 | E26: ='Encargos Sociais'!E16 -> 0.02 | F26: 44.23
C27: D | D27: ='Encargos Sociais'!D17 -> SESC ou SESI (art. 30, Lei nº 8.036/90 e art. 1º, Lei 8.154/90) | E27: ='Encargos Sociais'!E17 -> 0.015 | F27: 33.17
C28: E | D28: ='Encargos Sociais'!D18 -> SENAI ou SENAC (Decreto nº 2.318/86) | E28: ='Encargos Sociais'!E18 -> 0.01 | F28: 22.11
C29: F | D29: ='Encargos Sociais'!D19 -> SEBRAE (§ 3º, art. 8º, Lei 8.029/90, alterada pela Lei nº 8.154/90) | E29: ='Encargos Sociais'!E19 -> 0.006 | F29: 13.27
C30: G | D30: ='Encargos Sociais'!D20 -> INCRA (art. 1º, I, Decreto Lei 1.146/70 e Lei 7.787, de 30/06/89) | E30: ='Encargos Sociais'!E20 -> 0.002 | F30: 4.42 | H30: * Nota 1 - Os percentuais dos encargos previdenciários, do FGTS e demais contribuições são estabelecidos por legislação vigente.
C31: H | D31: ='Encargos Sociais'!D21 -> FGTS (Lei Complementar nº 110/01 e art. 30, Lei nº 8.036/90) | E31: ='Encargos Sociais'!E21 -> 0.08 | F31: 176.92 | H31: * Nota 2 - O SAT, a depender do grau de risco do serviço, irá variar entre 1%, para risco leve, de 2%, para risco médio, e de 3% para risco grave.
C32: I | D32: ='Encargos Sociais'!D22 -> SECONCI (Convenções Coletivas de Trabalho da construção) | E32: ='Encargos Sociais'!E22 -> 0 | F32: 0 | H32: * Nota 3 - Os percentuais do Submódulo 2.2 incidem sobre o Módulo 1 e o Submódulo 2.1.
B34: Submódulo 2.3 - Benefícios Mensais e Diários
C35: A | D35: Auxílio Transporte | F35: =HLOOKUP($B$5,'Dados Gerais'!$D$5:$BK$93,82) -> 200.93
C36: B | D36: Auxílio Alimentação | F36: =HLOOKUP($B$5,'Dados Gerais'!$D$5:$BK$93,89) -> 891
C37: C | D37: Assistência Médica e Familiar | F37: =HLOOKUP($B$5,'Dados Gerais'!$D$5:$BK$101,97) -> 0
C38: D | D38: Outros (Seguro de vida e auxílio funeral e auxílio odontológico) | F38: =HLOOKUP($B$5,'Dados Gerais'!$D$5:$BK$118,114) -> 0 | H38: * Nota 1 - O valor informado deverá ser o custo real do benefício (descontado o valor eventualmente pago pelo empregado).
H39: * Nota 2 - Observar a previsão dos benefícios contidos em Acordos, Convenções e Dissídios Coletivos de Trabalho e o disposto no art. 6º da IN 5/2017
D40: QUADRO-RESUMO DO MÓDULO 2
D41: 2.1 - 13º Salário, Férias e Adicional de Férias - 13º Destacado - Calculado no Módulo 7 | E41: =SUM(E20:E21) -> 0.0303030303 | F41: =F20+F21 -> 58.72
D42: 2.2 - Encargos Previdenciários (GPS), Fundo de Garantia por Tempo de Serviço (FGTS) e Contribuições | E42: =SUM(E24:E32) -> 0.358 | F42: =SUM(F24:F32) -> 791.7
D43: 2.3 - Benefícios Mensais e Diários | F43: =SUM(F35:F38) -> 1091.93
D45: TOTAL DOS ENCARGOS E BENEFÍCIOS | F45: =SUM(F41:F43) -> 1942.35
B47: MÓDULO 3 - PREVISÃO PARA RESCISÃO | E47: Percentuais | F47: Valor
C48: A | D48: ='Encargos Sociais'!D36 -> Aviso Prévio Indenizado (Art. 7º, inciso XXI, da CF/1988 e arts. 477, 487, §1º, e 491 da CLT) | E48: ='Encargos Sociais'!E36 -> 0.008333333333 | F48: =ROUND(E48*$F$16,2) -> 16.15
C49: B | D49: ='Encargos Sociais'!D37 -> Incidência do FGTS sobre o Aviso Prévio Indenizado (Súmula 305 TST) | E49: ='Encargos Sociais'!E37 -> 0.0006666666667 | F49: 1.29 | H49: * Nota 1 - Adotou-se os parâmetros do estudo do STF (http://www.stf.jus.br/arquivo/cms/sobrestfestudosci/anexo/encargos_sociais_03102007.pdf), onde 5% do pessoal é demitido pelo empregador no decurso do contrato (para estes, considerou-se o aviso prévio indenizado). Desprezou-se as demissões por justa causa e os pedidos de demissão.
C50: C | D50: ='Encargos Sociais'!D38 -> Multa do FGTS e Contribuição Social sobre o Aviso Prévio Indenizado (Art. 18, §1º, da Lei 8.036/1990 e art. 1º da LC nº 110/2001) | E50: ='Encargos Sociais'!E38 -> 0.007717066667 | F50: 14.95 | H50: * Nota 2 - No cálculo do percentual, considerou-se 36 dias, correspondendo à metade da duração média dos contratos (2 anos)
C51: D | D51: ='Encargos Sociais'!D39 -> Aviso Prévio Trabalhado (Art. 488, parágrafo único, CLT) | E51: ='Encargos Sociais'!E39 -> 0.01203703704 | F51: 23.32 | H51: * Nota 3 - Incide sobre a Remuneração + 13º salário (1/12) + Férias (1/12) + Adicional de Férias (1/36) x 50% multa (40% para o empregado e 10% de contribuição social) x 8% FGTS
C52: E | D52: ='Encargos Sociais'!D40 -> Incidência de GPS, FGTS e outras contribuições sobre o Aviso Prévio Trabalhado | E52: ='Encargos Sociais'!E40 -> 0.004309259259 | F52: 8.35 | H52: * Nota 4 - Os 95% restantes do cálculo, a um prazo médio de contrato de 4 anos. Assim, calcula-se 7 dias para o 1º ano de contrato e mais 3 dias para os 3 anos seguintes.
C53: F | D53: ='Encargos Sociais'!D41 -> Multa do FGTS e Contribuição Social sobre o Aviso Prévio Trabalhado | E53: ='Encargos Sociais'!E41 -> 0.03050515556 | F53: 59.11
D55: TOTAL DE PREVISÃO PARA RESCISÃO | F55: =SUM(F48:F53) -> 123.17
B57: MÓDULO 4 - CUSTO DO PROFISSIONAL AUSENTE | E57: Percentuais | F57: Valor
B58: Submódulo 4.1 - Ausências Legais
C59: A | D59: ='Encargos Sociais'!D25 -> Férias (Arts. 129 e 130, inc. I, da CLT) | E59: ='Encargos Sociais'!E25 -> 0.09090909091 | F59: =ROUND(E59*$F$16,2) -> 176.16 | H59: * Nota 1 - As alíneas “A” a “F” referem-se somente ao custo que será pago ao profissional ausente.
C60: B | D60: ='Encargos Sociais'!D26 -> Ausências Legais (Arts. 131 e 473 da CLT) | E60: ='Encargos Sociais'!E26 -> 0.007936507937 | F60: 15.38 | H60: * Nota 2 - Adotou-se a estimativa do SINAPI de 2 dias por ano.
C61: C | D61: ='Encargos Sociais'!D27 -> Licença-Paternidade (Art. 7º, XIX, e art. 10, §1º, do ADCT, CF/1988 e Art. 1º, II, da Lei 11.770/2008) | E61: ='Encargos Sociais'!E27 -> 0.0008277777778 | F61: 1.6 | H61: * Nota 3 - Utilizada a proporção de 50% para homens, 5 dias de afastamento, e a probabilidade de um trabalhador requerer a Licença Paternidade em 5,22%, conforme SINAPI (citando dados da PNAD 2015)
C62: D | D62: ='Encargos Sociais'!D28 -> Ausência por Acidente de Trabalho (Art. 131, III, da CLT) | E62: ='Encargos Sociais'!E28 -> 0.0008541666667 | F62: 1.66 | H62: * Nota 4 - Utilzada a estatística de 1,96% dos contribuintes beneficiados com a emissão do auxílio, conforme Anuário Estatístico da Previdência Social. Afastamento de 15 dias a cargo da empresa.
C63: E | D63: ='Encargos Sociais'!D29 -> Afastamento Maternidade (Art. 71 da Lei nº 8.213/1991) | E63: ='Encargos Sociais'!E29 -> 0.003292592593 | F63: 6.38 | H63: * Nota 5 - Utilizada a proporção de 50% para mulheres, 180 dias de afastamento, e a probabilidade de uma trabalhadora requerer a Licença Maternidade em 4,91%, conforme SINAPI (citando dados do IBGE 2016)
C64: F | D64: ='Encargos Sociais'!D30 -> Auxílio Enfermidade - Doença (Art. 59 da Lei nº 8.213/1991) | E64: ='Encargos Sociais'!E30 -> 0.007122222222 | F64: 13.8 | H64: * Nota 6 - Utilizada a estatística de 3,37% dos contribuintes beneficiados com o auxílio, conforme Anuário Estatístico da Previdência Social de 2015 (acrescidos de 2 dias ao ano, para os quais o trabalhador nem requer o benefício da Previdência - conforme SINAPI)
B66: Submódulo 4.2 - Intrajornada
C67: A | D67: Intervalo para repouso ou alimentação | E67: ='Encargos Sociais'!E33 -> 0 | F67: =ROUND(E67*$F$16,2) -> 0
D69: QUADRO-RESUMO DO MÓDULO 4 | F69: Valor
D70: 4.1 - Ausências Legais | E70: =SUM(E59:E64) -> 0.1109423581 | F70: =ROUND(E70*$F$16,2) -> 214.98
D71: 4.2 - Intrajornada | E71: =E67 -> 0 | F71: =ROUND(E71*$F$16,2) -> 0
D73: TOTAL DE PREVISÃO PARA RESCISÃO E INTERVALO INTRAJORNADA | F73: =SUM(F70:F71) -> 214.98
B75: MÓDULO 5 - INSUMOS DIVERSOS | F75: Valor
C76: A | D76: Uniformes - aquisição | F76: =ROUND(HLOOKUP($B$5,Uniformes!L4:EA56,3)/12,2) -> 125.05
C77: B | D77: Materiais de consumo relacionados ao posto - aquisição | F77: =ROUND(HLOOKUP(B5,'Mat Cons'!I11:DX13,3)/12,2) -> 0
C78: C | D78: Materiais permanentes relacionados ao posto - remuneração da sua depreciação / manutenção | F78: =HLOOKUP(B5,'Mat Perm'!Q11:EF13,3) -> 0
C79: D | D79: Equipamentos relacionados ao posto - remuneração da sua depreciação / manutenção | F79: =HLOOKUP(B5,'Equip Rel'!Q11:EF13,3) -> 0
C80: E | D80: Equipamentos de Proteção Individual - EPI - aquisição | F80: =ROUND(HLOOKUP(B5,EPI!J4:DY6,3)/12,2) -> 0
D82: TOTAL DE INSUMOS DIVERSOS | F82: =SUM(F76:F81) -> 125.05 | H82: * Nota - Valores mensais por empregado
B84: MÓDULO 6 - CUSTOS INDIRETOS, TRIBUTOS E LUCRO - BDI | E84: Percentuais | F84: Valor
C85: A | D85: Custos Indiretos | E85: =BDI!E6 -> 0.0401
C86: A.1 | D86: Administração Central | E86: =BDI!E7 -> 0.0347
C87: A.2 | D87: Seguros, Garantias e Riscos | E87: =BDI!E8 -> 0.0054
C88: B | D88: Lucro | E88: =BDI!E10 -> 0.0533
C89: C | D89: Tributos | E89: =SUM(E90:E91) -> 0.124
C90: C.1 | D90: Tributos Federais (COFINS, PIS e CPRB) | E90: =BDI!E18 -> 0.074
C91: C.2 | D91: Tributos Distritais (ISS) | E91: =BDI!E23 -> 0.05 | H91: * Nota - Utilizou-se o indicado pelo Sindicato da Arquitetura e da Engenharia (Sinaenco, 2008, p. 22), que adota um percentual redutor de 20% no cálculo dos custos tributários relativos às contribuições PIS e COFINS
C92: D | D92: Despesas Financeiras | E92: =BDI!E13 -> 0.005639499547
D94: TOTAL DE BDI | E94: =BDI!E26 -> 0.2577 | F94: =E94*E102 -> 1119.265833
D96: QUADRO-RESUMO DO CUSTO MENSAL POR EMPREGADO - SEM O 13º | E96: Valor
D97: Módulo 1 - Composição da Remuneração | E97: =F16 -> 1937.74
D98: Módulo 2 - Encargos e Benefícios Anuais, Mensais e Diários | E98: =F45 -> 1942.35
D99: Módulo 3 - Provisão para Rescisão | E99: =F55 -> 123.17
D100: Módulo 4 - Custo de Reposição do Profissional Ausente | E100: =F73 -> 214.98
D101: Módulo 5 - Insumos Diversos | E101: =F82 -> 125.05
D102: SUBTOTAL (A+B+C+D+E) | E102: =SUM(E97:E101) -> 4343.29
D103: Módulo 6 - Custos Indiretos, Tributos e Lucro | E103: =F94 -> 1119.265833
D105: TOTAL DO POSTO | E105: =SUM(E102:E103) -> 5462.555833
B107: MÓDULO 7 - DESTAQUE DO MÓDULO 2 - 13º SALÁRIO | E107: Percentuais | F107: Valor
C108: A | D108: 13º Salário | E108: ='Encargos Sociais'!E32 -> 0.08333333333 | F108: =ROUND(E108*F$16,2) -> 161.48
C109: B | D109: Encargos Sociais sobre o 13º Salário - Taxa calculada no SUBMÓDULO 2.2 | E109: =SUM($E$24:$E$32) -> 0.358 | F109: =ROUND(E109*$F$108,2) -> 57.81 | H109: * Nota 1 - Provisiona-se, mensalmente, o proporcional a 1/12 dos valores referentes a gratificação natalina e adicional de férias.
C110: C | D110: Reincidência de férias sobre o 13º Salário | E110: =E59 -> 0.09090909091 | F110: =ROUND(E110*$F$108,2) -> 14.68
C111: D | D111: BDI sobre o 13º Salário - Taxa calculada no MÓDULO 6 | E111: =E94 -> 0.2577 | F111: =ROUND(E111*($F$108+$F$109),2) -> 56.51
D113: TOTAL DO DESTAQUE DO 13º SALÁRIO | F113: =SUM(F108:F111) -> 290.48
D115: QUADRO-RESUMO DO CUSTO MENSAL POR EMPREGADO | E115: Valor
D116: Custo total - sem o 13º Salário | E116: =E105 -> 5462.555833
D117: Destaque do 13º Salário (valor mensal) | E117: =F113 -> 290.48
D119: TOTAL DO POSTO | E119: =E116+E117 -> 5753.035833

Sheet 3
B2: PLANILHA DE ESTIMATIVA DE CUSTOS
B5: 3 | D5: =HLOOKUP($B$5,'Dados Gerais'!$D$5:$BK$20,6) -> TELEFONISTA DE FLUXO DE ELEVADORES | E5: QUANTIDADE | F5: =HLOOKUP($B$5,'Dados Gerais'!$D$5:$BK$20,10) -> 7
B6: CCT | D6: =HLOOKUP($B$5,'Dados Gerais'!$D$5:$BK$20,15) -> SEAC/DF X SINDISERVIÇOS/DF 2023/2023 Nº DF000037/2023 | E6: DATA-BASE | F6: =HLOOKUP($B$5,'Dados Gerais'!$D$5:$BK$20,16) -> 2023-01-01
B8: MÓDULO 1 - COMPOSIÇÃO DA REMUNERAÇÃO | F8: Valor
C9: A | D9: Salário-Base | F9: =HLOOKUP($B$5,'Dados Gerais'!$D$5:$BK$20,8) -> 2035
C10: B | D10: Adicional de Periculosidade | F10: =HLOOKUP($B$5,'Dados Gerais'!$D$5:$BK$37,25) -> 0
C11: C | D11: Adicional de Insalubridade | F11: =HLOOKUP($B$5,'Dados Gerais'!$D$5:$BK$37,31) -> 0
C12: D | D12: Adicional Noturno | F12: =HLOOKUP($B$5,'Dados Gerais'!$D$5:$BK$50,46) -> 0 | H12: * Nota 1 - O Módulo 1 refere-se ao valor mensal devido ao empregado pela prestação do serviço no período de 12 meses.
C13: E | D13: Adicional de Hora Extra | F13: =HLOOKUP($B$5,'Dados Gerais'!$D$5:$BK$67,63) -> 0 | H13: * Nota 2 - O adicional de hora extra no feriado trabalhado foi suprimido pela Lei 13.467/17
C14: F | D14: Outros (especificar) | F14: =HLOOKUP($B$5,'Dados Gerais'!$D$5:$BK$59,33) -> 0 | H14: * Nota 3 - ART. 7º, § 2º, DA LEI Nº 605/49.Sendo mensalista o obreiro, o adicional noturno pago de forma fixa já é considerado integrado para os efeitos do pagamento do repouso semanal remunerado, nos termos do art. 7º, § 2º, da Lei nº 605/49.
D16: TOTAL DA REMUNERAÇÃO | F16: =SUM(F9:F14) -> 2035
B18: MÓDULO 2 - ENCARGOS E BENEFÍCIOS ANUAIS, MENSAIS E DIÁRIOS | E18: Percentuais | F18: Valor
B19: Submódulo 2.1 - 13º Salário e Adicional de Férias
C20: A | D20: 13º Salário - Calculado no Módulo 7 - Destacado | E20: 0 | F20: =ROUND(E20*F$16,2) -> 0
C21: B | D21: Adicional de Férias | E21: ='Encargos Sociais'!E31 -> 0.0303030303 | F21: =ROUND(E21*F$16,2) -> 61.67 | H21: * Nota 1 - Provisiona-se, mensalmente, o proporcional a 1/12 dos valores referentes a gratificação natalina, férias e adicional de férias.
H22: * Nota 2 - O adicional de férias contido no Submódulo 2.1 corresponde a 1/3 da remuneração que, por sua vez, é dividida por 12 contome Nota 1.
B23: Submódulo 2.2 - Encargos Previdenciários (GPS), Fundo de Garantia por Tempo de Serviço (FGTS) e Outras Contribuições
C24: A | D24: ='Encargos Sociais'!D14 -> INSS (art. 22, inciso I, Lei nº 8.212/91) | E24: ='Encargos Sociais'!E14 -> 0.2 | F24: =ROUND(E24*($F$16+$F$41+$F$73),2) -> 464.49
C25: B | D25: ='Encargos Sociais'!D15 -> Salário Educação (art. 3º, inciso I, Decreto nº 87.043/82) | E25: ='Encargos Sociais'!E15 -> 0.025 | F25: =ROUND(E25*($F$16+$F$41+$F$73),2) -> 58.06
C26: C | D26: ='Encargos Sociais'!D16 -> SAT/RAT (art. 22, II, Lei 8.212/91 e Anexo V, Decreto 6.042/07) - Enquadramento 7820-5/00 | E26: ='Encargos Sociais'!E16 -> 0.02 | F26: 46.45
C27: D | D27: ='Encargos Sociais'!D17 -> SESC ou SESI (art. 30, Lei nº 8.036/90 e art. 1º, Lei 8.154/90) | E27: ='Encargos Sociais'!E17 -> 0.015 | F27: 34.84
C28: E | D28: ='Encargos Sociais'!D18 -> SENAI ou SENAC (Decreto nº 2.318/86) | E28: ='Encargos Sociais'!E18 -> 0.01 | F28: 23.22
C29: F | D29: ='Encargos Sociais'!D19 -> SEBRAE (§ 3º, art. 8º, Lei 8.029/90, alterada pela Lei nº 8.154/90) | E29: ='Encargos Sociais'!E19 -> 0.006 | F29: 13.93
C30: G | D30: ='Encargos Sociais'!D20 -> INCRA (art. 1º, I, Decreto Lei 1.146/70 e Lei 7.787, de 30/06/89) | E30: ='Encargos Sociais'!E20 -> 0.002 | F30: 4.64 | H30: * Nota 1 - Os percentuais dos encargos previdenciários, do FGTS e demais contribuições são estabelecidos por legislação vigente.
C31: H | D31: ='Encargos Sociais'!D21 -> FGTS (Lei Complementar nº 110/01 e art. 30, Lei nº 8.036/90) | E31: ='Encargos Sociais'!E21 -> 0.08 | F31: 185.8 | H31: * Nota 2 - O SAT, a depender do grau de risco do serviço, irá variar entre 1%, para risco leve, de 2%, para risco médio, e de 3% para risco grave.
C32: I | D32: ='Encargos Sociais'!D22 -> SECONCI (Convenções Coletivas de Trabalho da construção) | E32: ='Encargos Sociais'!E22 -> 0 | F32: 0 | H32: * Nota 3 - Os percentuais do Submódulo 2.2 incidem sobre o Módulo 1 e o Submódulo 2.1.
B34: Submódulo 2.3 - Benefícios Mensais e Diários
C35: A | D35: Auxílio Transporte | F35: =HLOOKUP($B$5,'Dados Gerais'!$D$5:$BK$93,82) -> 195.09
C36: B | D36: Auxílio Alimentação | F36: =HLOOKUP($B$5,'Dados Gerais'!$D$5:$BK$93,89) -> 891
C37: C | D37: Assistência Médica e Familiar | F37: =HLOOKUP($B$5,'Dados Gerais'!$D$5:$BK$101,97) -> 0
C38: D | D38: Outros (Seguro de vida e auxílio funeral e auxílio odontológico) | F38: =HLOOKUP($B$5,'Dados Gerais'!$D$5:$BK$118,114) -> 0 | H38: * Nota 1 - O valor informado deverá ser o custo real do benefício (descontado o valor eventualmente pago pelo empregado).
H39: * Nota 2 - Observar a previsão dos benefícios contidos em Acordos, Convenções e Dissídios Coletivos de Trabalho e o disposto no art. 6º da IN 5/2017
D40: QUADRO-RESUMO DO MÓDULO 2
D41: 2.1 - 13º Salário, Férias e Adicional de Férias - 13º Destacado - Calculado no Módulo 7 | E41: =SUM(E20:E21) -> 0.0303030303 | F41: =F20+F21 -> 61.67
D42: 2.2 - Encargos Previdenciários (GPS), Fundo de Garantia por Tempo de Serviço (FGTS) e Contribuições | E42: =SUM(E24:E32) -> 0.358 | F42: =SUM(F24:F32) -> 831.43
D43: 2.3 - Benefícios Mensais e Diários | F43: =SUM(F35:F38) -> 1086.09
D45: TOTAL DOS ENCARGOS E BENEFÍCIOS | F45: =SUM(F41:F43) -> 1979.19
B47: MÓDULO 3 - PREVISÃO PARA RESCISÃO | E47: Percentuais | F47: Valor
C48: A | D48: ='Encargos Sociais'!D36 -> Aviso Prévio Indenizado (Art. 7º, inciso XXI, da CF/1988 e arts. 477, 487, §1º, e 491 da CLT) | E48: ='Encargos Sociais'!E36 -> 0.008333333333 | F48: =ROUND(E48*$F$16,2) -> 16.96
C49: B | D49: ='Encargos Sociais'!D37 -> Incidência do FGTS sobre o Aviso Prévio Indenizado (Súmula 305 TST) | E49: ='Encargos Sociais'!E37 -> 0.0006666666667 | F49: 1.36 | H49: * Nota 1 - Adotou-se os parâmetros do estudo do STF (http://www.stf.jus.br/arquivo/cms/sobrestfestudosci/anexo/encargos_sociais_03102007.pdf), onde 5% do pessoal é demitido pelo empregador no decurso do contrato (para estes, considerou-se o aviso prévio indenizado). Desprezou-se as demissões por justa causa e os pedidos de demissão.
C50: C | D50: ='Encargos Sociais'!D38 -> Multa do FGTS e Contribuição Social sobre o Aviso Prévio Indenizado (Art. 18, §1º, da Lei 8.036/1990 e art. 1º da LC nº 110/2001) | E50: ='Encargos Sociais'!E38 -> 0.007717066667 | F50: 15.7 | H50: * Nota 2 - No cálculo do percentual, considerou-se 36 dias, correspondendo à metade da duração média dos contratos (2 anos)
C51: D | D51: ='Encargos Sociais'!D39 -> Aviso Prévio Trabalhado (Art. 488, parágrafo único, CLT) | E51: ='Encargos Sociais'!E39 -> 0.01203703704 | F51: 24.5 | H51: * Nota 3 - Incide sobre a Remuneração + 13º salário (1/12) + Férias (1/12) + Adicional de Férias (1/36) x 50% multa (40% para o empregado e 10% de contribuição social) x 8% FGTS
C52: E | D52: ='Encargos Sociais'!D40 -> Incidência de GPS, FGTS e outras contribuições sobre o Aviso Prévio Trabalhado | E52: ='Encargos Sociais'!E40 -> 0.004309259259 | F52: 8.77 | H52: * Nota 4 - Os 95% restantes do cálculo, a um prazo médio de contrato de 4 anos. Assim, calcula-se 7 dias para o 1º ano de contrato e mais 3 dias para os 3 anos seguintes.
C53: F | D53: ='Encargos Sociais'!D41 -> Multa do FGTS e Contribuição Social sobre o Aviso Prévio Trabalhado | E53: ='Encargos Sociais'!E41 -> 0.03050515556 | F53: 62.08
D55: TOTAL DE PREVISÃO PARA RESCISÃO | F55: =SUM(F48:F53) -> 129.37
B57: MÓDULO 4 - CUSTO DO PROFISSIONAL AUSENTE | E57: Percentuais | F57: Valor
B58: Submódulo 4.1 - Ausências Legais
C59: A | D59: ='Encargos Sociais'!D25 -> Férias (Arts. 129 e 130, inc. I, da CLT) | E59: ='Encargos Sociais'!E25 -> 0.09090909091 | F59: =ROUND(E59*$F$16,2) -> 185 | H59: * Nota 1 - As alíneas “A” a “F” referem-se somente ao custo que será pago ao profissional ausente.
C60: B | D60: ='Encargos Sociais'!D26 -> Ausências Legais (Arts. 131 e 473 da CLT) | E60: ='Encargos Sociais'!E26 -> 0.007936507937 | F60: 16.15 | H60: * Nota 2 - Adotou-se a estimativa do SINAPI de 2 dias por ano.
C61: C | D61: ='Encargos Sociais'!D27 -> Licença-Paternidade (Art. 7º, XIX, e art. 10, §1º, do ADCT, CF/1988 e Art. 1º, II, da Lei 11.770/2008) | E61: ='Encargos Sociais'!E27 -> 0.0008277777778 | F61: 1.68 | H61: * Nota 3 - Utilizada a proporção de 50% para homens, 5 dias de afastamento, e a probabilidade de um trabalhador requerer a Licença Paternidade em 5,22%, conforme SINAPI (citando dados da PNAD 2015)
C62: D | D62: ='Encargos Sociais'!D28 -> Ausência por Acidente de Trabalho (Art. 131, III, da CLT) | E62: ='Encargos Sociais'!E28 -> 0.0008541666667 | F62: 1.74 | H62: * Nota 4 - Utilzada a estatística de 1,96% dos contribuintes beneficiados com a emissão do auxílio, conforme Anuário Estatístico da Previdência Social. Afastamento de 15 dias a cargo da empresa.
C63: E | D63: ='Encargos Sociais'!D29 -> Afastamento Maternidade (Art. 71 da Lei nº 8.213/1991) | E63: ='Encargos Sociais'!E29 -> 0.003292592593 | F63: 6.7 | H63: * Nota 5 - Utilizada a proporção de 50% para mulheres, 180 dias de afastamento, e a probabilidade de uma trabalhadora requerer a Licença Maternidade em 4,91%, conforme SINAPI (citando dados do IBGE 2016)
C64: F | D64: ='Encargos Sociais'!D30 -> Auxílio Enfermidade - Doença (Art. 59 da Lei nº 8.213/1991) | E64: ='Encargos Sociais'!E30 -> 0.007122222222 | F64: 14.49 | H64: * Nota 6 - Utilizada a estatística de 3,37% dos contribuintes beneficiados com o auxílio, conforme Anuário Estatístico da Previdência Social de 2015 (acrescidos de 2 dias ao ano, para os quais o trabalhador nem requer o benefício da Previdência - conforme SINAPI)
B66: Submódulo 4.2 - Intrajornada
C67: A | D67: Intervalo para repouso ou alimentação | E67: ='Encargos Sociais'!E33 -> 0 | F67: =ROUND(E67*$F$16,2) -> 0
D69: QUADRO-RESUMO DO MÓDULO 4 | F69: Valor
D70: 4.1 - Ausências Legais | E70: =SUM(E59:E64) -> 0.1109423581 | F70: =ROUND(E70*$F$16,2) -> 225.77
D71: 4.2 - Intrajornada | E71: =E67 -> 0 | F71: =ROUND(E71*$F$16,2) -> 0
D73: TOTAL DE PREVISÃO PARA RESCISÃO E INTERVALO INTRAJORNADA | F73: =SUM(F70:F71) -> 225.77
B75: MÓDULO 5 - INSUMOS DIVERSOS | F75: Valor
C76: A | D76: Uniformes - aquisição | F76: =ROUND(HLOOKUP($B$5,Uniformes!L4:EA6,3)/12,2) -> 125.05
C77: B | D77: Materiais de consumo relacionados ao posto - aquisição | F77: =ROUND(HLOOKUP(B5,'Mat Cons'!I11:DX13,3)/12,2) -> 0
C78: C | D78: Materiais permanentes relacionados ao posto - remuneração da sua depreciação / manutenção | F78: =HLOOKUP(B5,'Mat Perm'!Q11:EF13,3) -> 0
C79: D | D79: Equipamentos relacionados ao posto - remuneração da sua depreciação / manutenção | F79: =HLOOKUP(B5,'Equip Rel'!Q11:EF13,3) -> 0
C80: E | D80: Equipamentos de Proteção Individual - EPI - aquisição | F80: =ROUND(HLOOKUP(B5,EPI!J4:DY6,3)/12,2) -> 0
D82: TOTAL DE INSUMOS DIVERSOS | F82: =SUM(F76:F81) -> 125.05 | H82: * Nota - Valores mensais por empregado
B84: MÓDULO 6 - CUSTOS INDIRETOS, TRIBUTOS E LUCRO - BDI | E84: Percentuais | F84: Valor
C85: A | D85: Custos Indiretos | E85: =BDI!E6 -> 0.0401
C86: A.1 | D86: Administração Central | E86: =BDI!E7 -> 0.0347
C87: A.2 | D87: Seguros, Garantias e Riscos | E87: =BDI!E8 -> 0.0054
C88: B | D88: Lucro | E88: =BDI!E10 -> 0.0533
C89: C | D89: Tributos | E89: =SUM(E90:E91) -> 0.124
C90: C.1 | D90: Tributos Federais (COFINS, PIS e CPRB) | E90: =BDI!E18 -> 0.074
C91: C.2 | D91: Tributos Distritais (ISS) | E91: =BDI!E23 -> 0.05 | H91: * Nota - Utilizou-se o indicado pelo Sindicato da Arquitetura e da Engenharia (Sinaenco, 2008, p. 22), que adota um percentual redutor de 20% no cálculo dos custos tributários relativos às contribuições PIS e COFINS
C92: D | D92: Despesas Financeiras | E92: =BDI!E13 -> 0.005639499547
D94: TOTAL DE BDI | E94: =BDI!E26 -> 0.2577 | F94: =E94*E102 -> 1158.201726
D96: QUADRO-RESUMO DO CUSTO MENSAL POR EMPREGADO - SEM O 13º | E96: Valor
D97: Módulo 1 - Composição da Remuneração | E97: =F16 -> 2035
D98: Módulo 2 - Encargos e Benefícios Anuais, Mensais e Diários | E98: =F45 -> 1979.19
D99: Módulo 3 - Provisão para Rescisão | E99: =F55 -> 129.37
D100: Módulo 4 - Custo de Reposição do Profissional Ausente | E100: =F73 -> 225.77
D101: Módulo 5 - Insumos Diversos | E101: =F82 -> 125.05
D102: SUBTOTAL (A+B+C+D+E) | E102: =SUM(E97:E101) -> 4494.38
D103: Módulo 6 - Custos Indiretos, Tributos e Lucro | E103: =F94 -> 1158.201726
D105: TOTAL DO POSTO | E105: =SUM(E102:E103) -> 5652.581726
B107: MÓDULO 7 - DESTAQUE DO MÓDULO 2 - 13º SALÁRIO | E107: Percentuais | F107: Valor
C108: A | D108: 13º Salário | E108: ='Encargos Sociais'!E32 -> 0.08333333333 | F108: =ROUND(E108*F$16,2) -> 169.58
C109: B | D109: Encargos Sociais sobre o 13º Salário - Taxa calculada no SUBMÓDULO 2.2 | E109: =SUM($E$24:$E$32) -> 0.358 | F109: =ROUND(E109*$F$108,2) -> 60.71 | H109: * Nota 1 - Provisiona-se, mensalmente, o proporcional a 1/12 dos valores referentes a gratificação natalina e adicional de férias.
C110: C | D110: BDI sobre o 13º Salário - Taxa calculada no MÓDULO 6 | E110: =E94 -> 0.2577 | F110: =ROUND(E110*($F$108+$F$109),2) -> 59.35
D112: TOTAL DO DESTAQUE DO 13º SALÁRIO | F112: =SUM(F108:F110) -> 289.64
D114: QUADRO-RESUMO DO CUSTO MENSAL POR EMPREGADO | E114: Valor
D115: Custo total - sem o 13º Salário | E115: =E105 -> 5652.581726
D116: Destaque do 13º Salário (valor mensal) | E116: =F112 -> 289.64
D118: TOTAL DO POSTO | E118: =E115+E116 -> 5942.221726

Sheet 4
B2: PLANILHA DE ESTIMATIVA DE CUSTOS
B5: 4 | D5: =HLOOKUP($B$5,'Dados Gerais'!$D$5:$BK$20,6) -> RECEPCIONISTA DE FLUXO DE PESSOAS | E5: QUANTIDADE | F5: =HLOOKUP($B$5,'Dados Gerais'!$D$5:$BK$20,10) -> 7
B6: CCT | D6: =HLOOKUP($B$5,'Dados Gerais'!$D$5:$BK$20,15) -> SEAC/DF X SINDISERVIÇOS/DF 2023/2023 Nº DF000037/2023 | E6: DATA-BASE | F6: =HLOOKUP($B$5,'Dados Gerais'!$D$5:$BK$20,16) -> 2023-01-01
B8: MÓDULO 1 - COMPOSIÇÃO DA REMUNERAÇÃO | F8: Valor
C9: A | D9: Salário-Base | F9: =HLOOKUP($B$5,'Dados Gerais'!$D$5:$BK$20,8) -> 2319.94
C10: B | D10: Adicional de Periculosidade | F10: =HLOOKUP($B$5,'Dados Gerais'!$D$5:$BK$37,25) -> 0
C11: C | D11: Adicional de Insalubridade | F11: =HLOOKUP($B$5,'Dados Gerais'!$D$5:$BK$37,31) -> 0
C12: D | D12: Adicional Noturno | F12: =HLOOKUP($B$5,'Dados Gerais'!$D$5:$BK$50,46) -> 0 | H12: * Nota 1 - O Módulo 1 refere-se ao valor mensal devido ao empregado pela prestação do serviço no período de 12 meses.
C13: E | D13: Adicional de Hora Extra | F13: =HLOOKUP($B$5,'Dados Gerais'!$D$5:$BK$67,63) -> 0 | H13: * Nota 2 - O adicional de hora extra no feriado trabalhado foi suprimido pela Lei 13.467/17
C14: F | D14: Outros (especificar) | F14: =HLOOKUP($B$5,'Dados Gerais'!$D$5:$BK$59,33) -> 0 | H14: * Nota 3 - ART. 7º, § 2º, DA LEI Nº 605/49.Sendo mensalista o obreiro, o adicional noturno pago de forma fixa já é considerado integrado para os efeitos do pagamento do repouso semanal remunerado, nos termos do art. 7º, § 2º, da Lei nº 605/49.
D16: TOTAL DA REMUNERAÇÃO | F16: =SUM(F9:F14) -> 2319.94
B18: MÓDULO 2 - ENCARGOS E BENEFÍCIOS ANUAIS, MENSAIS E DIÁRIOS | E18: Percentuais | F18: Valor
B19: Submódulo 2.1 - 13º Salário e Adicional de Férias
C20: A | D20: 13º Salário - Calculado no Módulo 7 - Destacado | E20: 0 | F20: =ROUND(E20*F$16,2) -> 0
C21: B | D21: Adicional de Férias | E21: ='Encargos Sociais'!E31 -> 0.0303030303 | F21: =ROUND(E21*F$16,2) -> 70.3 | H21: * Nota 1 - Provisiona-se, mensalmente, o proporcional a 1/12 dos valores referentes a gratificação natalina, férias e adicional de férias.
H22: * Nota 2 - O adicional de férias contido no Submódulo 2.1 corresponde a 1/3 da remuneração que, por sua vez, é dividida por 12 contome Nota 1.
B23: Submódulo 2.2 - Encargos Previdenciários (GPS), Fundo de Garantia por Tempo de Serviço (FGTS) e Outras Contribuições
C24: A | D24: ='Encargos Sociais'!D14 -> INSS (art. 22, inciso I, Lei nº 8.212/91) | E24: ='Encargos Sociais'!E14 -> 0.2 | F24: =ROUND(E24*($F$16+$F$41+$F$73),2) -> 529.52
C25: B | D25: ='Encargos Sociais'!D15 -> Salário Educação (art. 3º, inciso I, Decreto nº 87.043/82) | E25: ='Encargos Sociais'!E15 -> 0.025 | F25: =ROUND(E25*($F$16+$F$41+$F$73),2) -> 66.19
C26: C | D26: ='Encargos Sociais'!D16 -> SAT/RAT (art. 22, II, Lei 8.212/91 e Anexo V, Decreto 6.042/07) - Enquadramento 7820-5/00 | E26: ='Encargos Sociais'!E16 -> 0.02 | F26: 52.95
C27: D | D27: ='Encargos Sociais'!D17 -> SESC ou SESI (art. 30, Lei nº 8.036/90 e art. 1º, Lei 8.154/90) | E27: ='Encargos Sociais'!E17 -> 0.015 | F27: 39.71
C28: E | D28: ='Encargos Sociais'!D18 -> SENAI ou SENAC (Decreto nº 2.318/86) | E28: ='Encargos Sociais'!E18 -> 0.01 | F28: 26.48
C29: F | D29: ='Encargos Sociais'!D19 -> SEBRAE (§ 3º, art. 8º, Lei 8.029/90, alterada pela Lei nº 8.154/90) | E29: ='Encargos Sociais'!E19 -> 0.006 | F29: 15.89
C30: G | D30: ='Encargos Sociais'!D20 -> INCRA (art. 1º, I, Decreto Lei 1.146/70 e Lei 7.787, de 30/06/89) | E30: ='Encargos Sociais'!E20 -> 0.002 | F30: 5.3 | H30: * Nota 1 - Os percentuais dos encargos previdenciários, do FGTS e demais contribuições são estabelecidos por legislação vigente.
C31: H | D31: ='Encargos Sociais'!D21 -> FGTS (Lei Complementar nº 110/01 e art. 30, Lei nº 8.036/90) | E31: ='Encargos Sociais'!E21 -> 0.08 | F31: 211.81 | H31: * Nota 2 - O SAT, a depender do grau de risco do serviço, irá variar entre 1%, para risco leve, de 2%, para risco médio, e de 3% para risco grave.
C32: I | D32: ='Encargos Sociais'!D22 -> SECONCI (Convenções Coletivas de Trabalho da construção) | E32: ='Encargos Sociais'!E22 -> 0 | F32: 0 | H32: * Nota 3 - Os percentuais do Submódulo 2.2 incidem sobre o Módulo 1 e o Submódulo 2.1.
B34: Submódulo 2.3 - Benefícios Mensais e Diários
C35: A | D35: Auxílio Transporte | F35: =HLOOKUP($B$5,'Dados Gerais'!$D$5:$BK$93,82) -> 177.99
C36: B | D36: Auxílio Alimentação | F36: =HLOOKUP($B$5,'Dados Gerais'!$D$5:$BK$93,89) -> 891
C37: C | D37: Assistência Médica e Familiar | F37: =HLOOKUP($B$5,'Dados Gerais'!$D$5:$BK$101,97) -> 0
C38: D | D38: Outros (Seguro de vida e auxílio funeral e auxílio odontológico) | F38: =HLOOKUP($B$5,'Dados Gerais'!$D$5:$BK$118,114) -> 0 | H38: * Nota 1 - O valor informado deverá ser o custo real do benefício (descontado o valor eventualmente pago pelo empregado).
H39: * Nota 2 - Observar a previsão dos benefícios contidos em Acordos, Convenções e Dissídios Coletivos de Trabalho e o disposto no art. 6º da IN 5/2017
D40: QUADRO-RESUMO DO MÓDULO 2
D41: 2.1 - 13º Salário, Férias e Adicional de Férias - 13º Destacado - Calculado no Módulo 7 | E41: =SUM(E20:E21) -> 0.0303030303 | F41: =F20+F21 -> 70.3
D42: 2.2 - Encargos Previdenciários (GPS), Fundo de Garantia por Tempo de Serviço (FGTS) e Contribuições | E42: =SUM(E24:E32) -> 0.358 | F42: =SUM(F24:F32) -> 947.85
D43: 2.3 - Benefícios Mensais e Diários | F43: =SUM(F35:F38) -> 1068.99
D45: TOTAL DOS ENCARGOS E BENEFÍCIOS | F45: =SUM(F41:F43) -> 2087.14
B47: MÓDULO 3 - PREVISÃO PARA RESCISÃO | E47: Percentuais | F47: Valor
C48: A | D48: ='Encargos Sociais'!D36 -> Aviso Prévio Indenizado (Art. 7º, inciso XXI, da CF/1988 e arts. 477, 487, §1º, e 491 da CLT) | E48: ='Encargos Sociais'!E36 -> 0.008333333333 | F48: =ROUND(E48*$F$16,2) -> 19.33
C49: B | D49: ='Encargos Sociais'!D37 -> Incidência do FGTS sobre o Aviso Prévio Indenizado (Súmula 305 TST) | E49: ='Encargos Sociais'!E37 -> 0.0006666666667 | F49: 1.55 | H49: * Nota 1 - As alíneas “A” a “F” referem-se somente ao custo que será pago ao profissional ausente.
C50: C | D50: ='Encargos Sociais'!D38 -> Multa do FGTS e Contribuição Social sobre o Aviso Prévio Indenizado (Art. 18, §1º, da Lei 8.036/1990 e art. 1º da LC nº 110/2001) | E50: ='Encargos Sociais'!E38 -> 0.007717066667 | F50: 17.9 | H50: * Nota 2 - No cálculo do percentual, considerou-se 36 dias, correspondendo à metade da duração média dos contratos (2 anos)
C51: D | D51: ='Encargos Sociais'!D39 -> Aviso Prévio Trabalhado (Art. 488, parágrafo único, CLT) | E51: ='Encargos Sociais'!E39 -> 0.01203703704 | F51: 27.93 | H51: * Nota 3 - Incide sobre a Remuneração + 13º salário (1/12) + Férias (1/12) + Adicional de Férias (1/36) x 50% multa (40% para o empregado e 10% de contribuição social) x 8% FGTS
C52: E | D52: ='Encargos Sociais'!D40 -> Incidência de GPS, FGTS e outras contribuições sobre o Aviso Prévio Trabalhado | E52: ='Encargos Sociais'!E40 -> 0.004309259259 | F52: 10 | H52: * Nota 4 - Os 95% restantes do cálculo, a um prazo médio de contrato de 4 anos. Assim, calcula-se 7 dias para o 1º ano de contrato e mais 3 dias para os 3 anos seguintes.
C53: F | D53: ='Encargos Sociais'!D41 -> Multa do FGTS e Contribuição Social sobre o Aviso Prévio Trabalhado | E53: ='Encargos Sociais'!E41 -> 0.03050515556 | F53: 70.77
D55: TOTAL DE PREVISÃO PARA RESCISÃO | F55: =SUM(F48:F53) -> 147.48
B57: MÓDULO 4 - CUSTO DO PROFISSIONAL AUSENTE | E57: Percentuais | F57: Valor
B58: Submódulo 4.1 - Ausências Legais
C59: A | D59: ='Encargos Sociais'!D25 -> Férias (Arts. 129 e 130, inc. I, da CLT) | E59: ='Encargos Sociais'!E25 -> 0.09090909091 | F59: =ROUND(E59*$F$16,2) -> 210.9 | H59: * Nota 1 - As alíneas “A” a “F” referem-se somente ao custo que será pago ao repositor pelos dias trabalhados quando da necessidade de substituir a mão de obra alocada na prestação do serviço.
C60: B | D60: ='Encargos Sociais'!D26 -> Ausências Legais (Arts. 131 e 473 da CLT) | E60: ='Encargos Sociais'!E26 -> 0.007936507937 | F60: 18.41 | H60: * Nota 2 - Adotou-se a estimativa do SINAPI de 2 dias por ano.
C61: C | D61: ='Encargos Sociais'!D27 -> Licença-Paternidade (Art. 7º, XIX, e art. 10, §1º, do ADCT, CF/1988 e Art. 1º, II, da Lei 11.770/2008) | E61: ='Encargos Sociais'!E27 -> 0.0008277777778 | F61: 1.92 | H61: * Nota 3 - Utilizada a proporção de 50% para homens, 5 dias de afastamento, e a probabilidade de um trabalhador requerer a Licença Paternidade em 5,22%, conforme SINAPI (citando dados da PNAD 2015)
C62: D | D62: ='Encargos Sociais'!D28 -> Ausência por Acidente de Trabalho (Art. 131, III, da CLT) | E62: ='Encargos Sociais'!E28 -> 0.0008541666667 | F62: 1.98 | H62: * Nota 4 - Utilzada a estatística de 1,96% dos contribuintes beneficiados com a emissão do auxílio, conforme Anuário Estatístico da Previdência Social. Afastamento de 15 dias a cargo da empresa.
C63: E | D63: ='Encargos Sociais'!D29 -> Afastamento Maternidade (Art. 71 da Lei nº 8.213/1991) | E63: ='Encargos Sociais'!E29 -> 0.003292592593 | F63: 7.64 | H63: * Nota 5 - Utilizada a proporção de 50% para mulheres, 180 dias de afastamento, e a probabilidade de uma trabalhadora requerer a Licença Maternidade em 4,91%, conforme SINAPI (citando dados do IBGE 2016)
C64: F | D64: ='Encargos Sociais'!D30 -> Auxílio Enfermidade - Doença (Art. 59 da Lei nº 8.213/1991) | E64: ='Encargos Sociais'!E30 -> 0.007122222222 | F64: 16.52 | H64: * Nota 6 - Utilizada a estatística de 3,37% dos contribuintes beneficiados com o auxílio, conforme Anuário Estatístico da Previdência Social de 2015 (acrescidos de 2 dias ao ano, para os quais o trabalhador nem requer o benefício da Previdência - conforme SINAPI)
B66: Submódulo 4.2 - Intrajornada
C67: A | D67: Intervalo para repouso ou alimentação | E67: ='Encargos Sociais'!E33 -> 0 | F67: =ROUND(E67*$F$16,2) -> 0
D69: QUADRO-RESUMO DO MÓDULO 4 | F69: Valor
D70: 4.1 - Ausências Legais | E70: =SUM(E59:E64) -> 0.1109423581 | F70: =ROUND(E70*$F$16,2) -> 257.38
D71: 4.2 - Intrajornada | E71: =E67 -> 0 | F71: =ROUND(E71*$F$16,2) -> 0
D73: TOTAL DE PREVISÃO PARA RESCISÃO E INTERVALO INTRAJORNADA | F73: =SUM(F70:F71) -> 257.38
B75: MÓDULO 5 - INSUMOS DIVERSOS | F75: Valor
C76: A | D76: Uniformes - aquisição | F76: =ROUND(HLOOKUP($B$5,Uniformes!L4:EA6,3)/12,2) -> 125.05
C77: B | D77: Materiais de consumo relacionados ao posto - aquisição | F77: =ROUND(HLOOKUP(B5,'Mat Cons'!I11:DX13,3)/12,2) -> 0
C78: C | D78: Materiais permanentes relacionados ao posto - remuneração da sua depreciação / manutenção | F78: =HLOOKUP(B5,'Mat Perm'!Q11:EF13,3) -> 0
C79: D | D79: Equipamentos relacionados ao posto - remuneração da sua depreciação / manutenção | F79: =HLOOKUP(B5,'Equip Rel'!Q11:EF13,3) -> 0
C80: E | D80: Equipamentos de Proteção Individual - EPI - aquisição | F80: =ROUND(HLOOKUP(B5,EPI!J4:DY6,3)/12,2) -> 0
D82: TOTAL DE INSUMOS DIVERSOS | F82: =SUM(F76:F81) -> 125.05 | H82: * Nota - Valores mensais por empregado
B84: MÓDULO 6 - CUSTOS INDIRETOS, TRIBUTOS E LUCRO - BDI | E84: Percentuais | F84: Valor
C85: A | D85: Custos Indiretos | E85: =BDI!E6 -> 0.0401
C86: A.1 | D86: Administração Central | E86: =BDI!E7 -> 0.0347
C87: A.2 | D87: Seguros, Garantias e Riscos | E87: =BDI!E8 -> 0.0054
C88: B | D88: Lucro | E88: =BDI!E10 -> 0.0533
C89: C | D89: Tributos | E89: =SUM(E90:E91) -> 0.124
C90: C.1 | D90: Tributos Federais (COFINS, PIS e CPRB) | E90: =BDI!E18 -> 0.074
C91: C.2 | D91: Tributos Distritais (ISS) | E91: =BDI!E23 -> 0.05 | H91: * Nota - Utilizou-se o indicado pelo Sindicato da Arquitetura e da Engenharia (Sinaenco, 2008, p. 22), que adota um percentual redutor de 20% no cálculo dos custos tributários relativos às contribuições PIS e COFINS
C92: D | D92: Despesas Financeiras | E92: =BDI!E13 -> 0.005639499547
D94: TOTAL DE BDI | E94: =BDI!E26 -> 0.2577 | F94: =E94*E102 -> 1272.262323
D96: QUADRO-RESUMO DO CUSTO MENSAL POR EMPREGADO - SEM O 13º | E96: Valor
D97: Módulo 1 - Composição da Remuneração | E97: =F16 -> 2319.94
D98: Módulo 2 - Encargos e Benefícios Anuais, Mensais e Diários | E98: =F45 -> 2087.14
D99: Módulo 3 - Provisão para Rescisão | E99: =F55 -> 147.48
D100: Módulo 4 - Custo de Reposição do Profissional Ausente | E100: =F73 -> 257.38
D101: Módulo 5 - Insumos Diversos | E101: =F82 -> 125.05
D102: SUBTOTAL (A+B+C+D+E) | E102: =SUM(E97:E101) -> 4936.99
D103: Módulo 6 - Custos Indiretos, Tributos e Lucro | E103: =F94 -> 1272.262323
D105: TOTAL DO POSTO | E105: =SUM(E102:E103) -> 6209.252323
B107: MÓDULO 7 - DESTAQUE DO MÓDULO 2 - 13º SALÁRIO | E107: Percentuais | F107: Valor
C108: A | D108: 13º Salário | E108: ='Encargos Sociais'!E32 -> 0.08333333333 | F108: =ROUND(E108*F$16,2) -> 193.33
C109: B | D109: Encargos Sociais sobre o 13º Salário - Taxa calculada no SUBMÓDULO 2.2 | E109: =SUM($E$24:$E$32) -> 0.358 | F109: =ROUND(E109*$F$108,2) -> 69.21 | H109: * Nota 1 - Provisiona-se, mensalmente, o proporcional a 1/12 dos valores referentes a gratificação natalina e adicional de férias.
C110: C | D110: BDI sobre o 13º Salário - Taxa calculada no MÓDULO 6 | E110: =E94 -> 0.2577 | F110: =ROUND(E110*($F$108+$F$109),2) -> 67.66
D112: TOTAL DO DESTAQUE DO 13º SALÁRIO | F112: =SUM(F108:F110) -> 330.2
D114: QUADRO-RESUMO DO CUSTO MENSAL POR EMPREGADO | E114: Valor
D115: Custo total - sem o 13º Salário | E115: =E105 -> 6209.252323
D116: Destaque do 13º Salário (valor mensal) | E116: =F112 -> 330.2
D118: TOTAL DO POSTO | E118: =E115+E116 -> 6539.452323

Sheet Dados Gerais
B3: INFORMAÇÕES DE ENTRADA
D5: 1 | E5: 2 | F5: 3 | G5: 4 | M5: 10 | N5: 11 | O5: 12 | P5: 13 | Q5: 14 | R5: 15 | S5: 16 | T5: 17 | U5: 18 | V5: 19 | W5: 20 | X5: 21 | Y5: 22 | Z5: 23 | AA5: 24 | AB5: 25 | AC5: 26 | AD5: 27 | AE5: 28 | AF5: 29 | AG5: 30 | AH5: 31 | AI5: 32 | AJ5: 33 | AK5: 34 | AL5: 35 | AM5: 36 | AN5: 37 | AO5: 38 | AP5: 39 | AQ5: 40 | AR5: 41 | AS5: 42 | AT5: 43 | AU5: 44 | AV5: 45 | AW5: 46 | AX5: 47 | AY5: 48 | AZ5: 49 | BA5: 50 | BB5: 51 | BC5: 52 | BD5: 53 | BE5: 54 | BF5: 55 | BG5: 56 | BH5: 57 | BI5: 58 | BJ5: 59 | BK5: 60
D6: CARGO 1 | E6: CARGO 2 | F6: CARGO 3 | G6: CARGO 4 | H6: CARGO 5 | I6: CARGO 6 | J6: CARGO 7 | K6: CARGO 8 | L6: CARGO 9 | M6: CARGO 10 | N6: CARGO 11 | O6: CARGO 12 | P6: CARGO 13 | Q6: CARGO 14 | R6: CARGO 15 | S6: CARGO 16 | T6: CARGO 17 | U6: CARGO 18 | V6: CARGO 19 | W6: CARGO 20 | X6: CARGO 21 | Y6: CARGO 22 | Z6: CARGO 23 | AA6: CARGO 24 | AB6: CARGO 25 | AC6: CARGO 26 | AD6: CARGO 27 | AE6: CARGO 28 | AF6: CARGO 29 | AG6: CARGO 30 | AH6: CARGO 31 | AI6: CARGO 32 | AJ6: CARGO 33 | AK6: CARGO 34 | AL6: CARGO 35 | AM6: CARGO 36 | AN6: CARGO 37 | AO6: CARGO 38 | AP6: CARGO 39 | AQ6: CARGO 40 | AR6: CARGO 41 | AS6: CARGO 42 | AT6: CARGO 43 | AU6: CARGO 44 | AV6: CARGO 45 | AW6: CARGO 46 | AX6: CARGO 47 | AY6: CARGO 48 | AZ6: CARGO 49 | BA6: CARGO 50 | BB6: CARGO 51 | BC6: CARGO 52 | BD6: CARGO 53 | BE6: CARGO 54 | BF6: CARGO 55 | BG6: CARGO 56 | BH6: CARGO 57 | BI6: CARGO 58 | BJ6: CARGO 59 | BK6: CARGO 60
B7: INFORMAÇÕES BÁSICAS
B9: DESCRIÇÃO DOS POSTOS DE SERVIÇO
D10: ENCARREGADO GERAL | E10: ASCENSORISTA | F10: TELEFONISTA DE FLUXO DE ELEVADORES | G10: RECEPCIONISTA DE FLUXO DE PESSOAS
B11: REMUNERAÇÕES
D12: 4346.172991 | E12: 1937.74 | F12: 2035 | G12: 2319.94
B13: QUANTIDADE DE POSTOS
D14: 1 | E14: 37 | F14: 7 | G14: 7
B15: JORNADA
C16: HORAS | D16: =30*5 -> 150 | E16: =D16 -> 150 | F16: =E16 -> 150 | G16: 150
C17: DIAS/MÊS | D17: 22 | E17: 22 | F17: 22 | G17: 22
B18: CCT UTILIZADA
C19: SINDICATOS E REFERÊNCIA | D19: SEAC/DF X SINDISERVIÇOS/DF 2023/2023 Nº DF000037/2023 | E19: SEAC/DF X SINDISERVIÇOS/DF 2023/2023 Nº DF000037/2023 | F19: SEAC/DF X SINDISERVIÇOS/DF 2023/2023 Nº DF000037/2023 | G19: SEAC/DF X SINDISERVIÇOS/DF 2023/2023 Nº DF000037/2023
C20: DATA-BASE | D20: 2023-01-01 | E20: 2023-01-01 | F20: 2023-01-01 | G20: 2023-01-01
B22: ADICIONAIS LEGAIS E GRATIFICAÇÕES
B24: PERICULOSIDADE (PERCENTUAL)
D25: 0 | E25: 0 | F25: 0 | G25: 0
B26: BASE DE CÁLCULO DO ADICIONAL DE PERICULOSIDADE (SALÁRIO BÁSICO)
D27: =D12 -> 4346.172991 | E27: 2386.75 | F27: 2386.75 | G27: 2386.75
B28: VALOR MENSAL DO ADICIONAL DE PERICULOSIDADE
D29: =ROUND(D25*D12,2) -> 0 | E29: 0 | F29: 0 | G29: 0
B30: INSALUBRIDADE (PERCENTUAL)
D31: 0 | E31: 0 | F31: 0 | G31: 0
B32: BASE DE CÁLCULO DO ADICIONAL DE INSALUBRIDADE (SALÁRIO MÍNIMO LEGAL)
D33: 1320 | E33: =D33 -> 1320 | F33: =E33 -> 1320 | G33: 1320
B34: VALOR MENSAL DO ADICIONAL DE INSALUBRIDADE
D35: =D31*D33 -> 0 | E35: 0 | F35: 0 | G35: =G31*G33 -> 0
B36: GRATIFICAÇÃO - VALOR MENSAL (R$)
D37: 0 | E37: 0 | F37: 0 | G37: 0
B39: ADICIONAL NOTURNO
B41: INCIDÊNCIA (PERCENTUAL CONFORME CCT)
D42: 0.2 | E42: =D42 -> 0.2 | F42: =E42 -> 0.2 | G42: 0.2
B43: HORAS REAIS POR DIA
D44: 0 | E44: 0 | F44: 0 | G44: 0
B45: HORAS FICTAS POR DIA
D46: =D44*8/7 -> 0 | E46: 0 | F46: =F44*8/7 -> 0 | G46: =G44*8/7 -> 0
B47: BASE DE CÁLCULO DO ADICIONAL NOTURNO (INCLUINDO ADICIONAIS E GRATIFICAÇÕES)
D48: =D12+D29+D35+D37 -> 4346.172991 | E48: =E12+E29+E35+E37 -> 1937.74 | F48: =F12+F29+F35+F37 -> 2035 | G48: =G12+G29+G35+G37 -> 2319.94
B49: VALOR MENSAL DO ADICIONAL NOTURNO (HORA NORMAL + HORA REDUZIDA) - POR POSTO
D50: =ROUND(D46*D17*D42*D48/D16,2) -> 0 | E50: =ROUND(E46*E17*E42*E48/E16,2) -> 0 | F50: =ROUND(F46*F17*F42*F48/F16,2) -> 0 | G50: =ROUND(G46*G17*G42*G48/G16,2) -> 0
B52: ADICIONAL DE HORA EXTRA
B54: INCIDÊNCIA (PERCENTUAL 1)
D55: 0.5 | E55: 0.5 | F55: 0.5 | G55: 0.5
B56: HORAS EXTRAS POR MÊS (PERCENTUAL 1)
D57: 0 | E57: 0 | F57: 0 | G57: 0
B58: VALOR MENSAL DO ADICIONAL DE HORAS EXTRAS (PERCENTUAL 1) - POR POSTO
D59: =ROUND(D57*D55*D12/D16,2) -> 0 | E59: 0 | F59: 0 | G59: 0
B60: INCIDÊNCIA (PERCENTUAL 2)
D61: 1 | E61: 1 | F61: 1 | G61: 1
B62: HORAS EXTRAS POR MÊS (PERCENTUAL 2)
D63: 0 | E63: 0 | F63: 0 | G63: 0
B64: VALOR MENSAL DO ADICIONAL DE HORAS EXTRAS (PERCENTUAL 2) - POR POSTO
D65: =ROUND(D63*D61*D12/D16,2) -> 0 | E65: 0 | F65: 0 | G65: 0
B66: TOTAL MENSAL DOS ADICIONAIS DE HORAS EXTRAS - POR POSTO
D67: =D65+D59 -> 0 | E67: 0 | F67: 0 | G67: 0
B69: BENEFÍCIOS COMUNS - AUXÍLIO TRANSPORTE
B71: DISTRIBUIÇÃO ESTIMADA DE PROCEDÊNCIA
C72: Cidade-satélite | D72: 0.68 | E72: 0.68 | F72: 0.68 | G72: 0.68
C73: Região do entorno | D73: 0.32 | E73: 0.32 | F73: 0.32 | G73: 0.32
C74: Esplanada - apenas para os que vêm do entorno | D74: =D73 -> 0.32 | E74: =E73 -> 0.32 | F74: 0.32 | G74: =G73 -> 0.32
B75: VALORES DOS VALES
C76: Cidade-satélite | D76: 5.5 | E76: =D76 -> 5.5 | F76: =E76 -> 5.5 | G76: =F76 -> 5.5
C77: Região do entorno | D77: 8.09 | E77: 8.09 | F77: 8.09 | G77: 8.09
C78: Esplanada | D78: 2.75 | E78: 2.75 | F78: 2.75 | G78: 2.75
B79: VALOR MENSAL BRUTO DE PAGAMENTO - POR POSTO
D80: =ROUND((D72*D76+D73*D77+D74*D78)*2*D17,2) -> 317.19 | E80: =ROUND((E72*E76+E73*E77+E74*E78)*2*E17,2) -> 317.19 | F80: 317.19 | G80: =ROUND((G72*G76+G73*G77+G74*G78)*2*G17,2) -> 317.19
B81: PERCENTUAL DE DESCONTO
D82: 0.06 | E82: 0.06 | F82: 0.06 | G82: 0.06
B83: VALOR MENSAL DO DESCONTO - POR POSTO
D84: =ROUND(D82*D12,2) -> 260.77 | E84: =ROUND(E82*E12,2) -> 116.26 | F84: =ROUND(F82*F12,2) -> 122.1 | G84: =ROUND(G82*G12,2) -> 139.2
B85: VALOR MENSAL LÍQUIDO DO VALE TRANSPORTE - POR POSTO
D86: =IF(D80>D84,D80-D84,0) -> 56.42 | E86: 200.93 | F86: =IF(F80>F84,F80-F84,0) -> 195.09 | G86: =IF(G80>G84,G80-G84,0) -> 177.99
D87: =D86*D14 -> 56.42 | E87: 2962.54 | F87: 2962.54 | G87: 2962.54
B88: BENEFÍCIOS COMUNS - AUXÍLIO ALIMENTAÇÃO
C90: VALOR CCT | D90: 40.5 | E90: =D90 -> 40.5 | F90: =E90 -> 40.5 | G90: 40.5
C91: VALOR CD | D91: 35 | E91: 35 | F91: 35 | G91: 35
B92: VALOR MENSAL DO AUXÍLIO ALIMENTAÇÃO - POR POSTO
D93: =ROUND(LARGE(D90:D91,1)*D17,2) -> 891 | E93: =ROUND(LARGE(E90:E91,1)*E17,2) -> 891 | F93: 891 | G93: =ROUND(LARGE(G90:G91,1)*G17,2) -> 891
D94: =D93*D14 -> 891 | E94: 10339.56 | F94: 10339.56 | G94: 10339.56
B95: BENEFÍCIOS ESPECIAIS - ASSISTÊNCIA MÉDICA E FAMILIAR
C97: OBRIGAÇÃO DE PAGTO | D97: NÃO | E97: NÃO | F97: NÃO | G97: NÃO
C98: VALOR CCT | D98: 0 | E98: 0 | F98: 0 | G98: 0
C99: VALOR MERCADO | D99: 0 | E99: 0 | F99: 0 | G99: 0
B100: VALOR MENSAL DO AUXÍLIO ESPECIAL - ASSISTÊNCIA MÉDICA E FAMILIAR - POR POSTO
D101: =IF(D97="SIM",ROUND(SMALL(D98:D99,1),2),0) -> 0 | E101: 0 | F101: =IF(F97="SIM",ROUND(SMALL(F98:F99,1),2),0) -> 0 | G101: =IF(G97="SIM",ROUND(SMALL(G98:G99,1),2),0) -> 0
B103: BENEFÍCIOS ESPECIAIS - SEGURO DE VIDA E AUXÍLIO-FUNERAL, AUX ODONT, AUX CRECHE
B105: SEGURO DE VIDA E AUXÍLIO FUNERAL
C106: OBRIGAÇÃO DE PAGTO | D106: NÃO | E106: NÃO | F106: NÃO | G106: NÃO
C107: VALOR CCT | D107: 0 | E107: 0 | F107: 0 | G107: 0
C108: VALOR MERCADO | D108: 0 | E108: 0 | F108: 0 | G108: 0
B109: VALOR MENSAL DO AUXÍLIO ESPECIAL - SEGURO DE VIDA E AUXÍLIO FUNERAL - POR POSTO
D110: =IF(D106="SIM",ROUND(SMALL(D107:D108,1),2),0) -> 0 | E110: 0 | F110: =IF(F106="SIM",ROUND(SMALL(F107:F108,1),2),0) -> 0 | G110: =IF(G106="SIM",ROUND(SMALL(G107:G108,1),2),0) -> 0
B111: AUXÍLIO ODONTOLÓGICO
C112: OBRIGAÇÃO DE PAGTO | D112: NÃO | E112: NÃO | F112: NÃO | G112: NÃO
C113: VALOR CCT | D113: 0 | E113: 0 | F113: 0 | G113: 0
C114: VALOR MERCADO | D114: 0 | E114: 0 | F114: 0 | G114: 0
B115: VALOR MENSAL DO AUXÍLIO ODONTOLÓGICO - POR POSTO
D116: =IF(D112="SIM",ROUND(SMALL(D113:D114,1),2)*D17,0) -> 0 | E116: 0 | F116: 0 | G116: 0
B117: TOTAL MENSAL DOS AUXÍLIOS ESPECIAIS - POR POSTO
D118: =D116+D110 -> 0 | E118: 0 | F118: =F116+F110 -> 0 | G118: =G116+G110 -> 0

Sheet Encargos Sociais
B4: ENCARGOS SOCIAIS SOBRE A MÃO DE OBRA
E5: Percentuais
B7: Referência:
C8: SINAPI OUT/2018
B10: Categorias:
C11: TODAS
B13: GRUPO A: Encargos Sociais Básicos - Previdenciários (GPS), Fundo de Garantia por Tempo de Serviço (FGTS) e Outras Contribuições | E13: =ROUND(SUM(E14:E22),4) -> 0.358
C14: A | D14: INSS (art. 22, inciso I, Lei nº 8.212/91) | E14: 0.2
C15: B | D15: Salário Educação (art. 3º, inciso I, Decreto nº 87.043/82) | E15: 0.025
C16: C | D16: SAT/RAT (art. 22, II, Lei 8.212/91 e Anexo V, Decreto 6.042/07) - Enquadramento 7820-5/00 | E16: 0.02
C17: D | D17: SESC ou SESI (art. 30, Lei nº 8.036/90 e art. 1º, Lei 8.154/90) | E17: 0.015
C18: E | D18: SENAI ou SENAC (Decreto nº 2.318/86) | E18: 0.01
C19: F | D19: SEBRAE (§ 3º, art. 8º, Lei 8.029/90, alterada pela Lei nº 8.154/90) | E19: 0.006 | G19: * Nota 1 - Os percentuais dos encargos previdenciários, do FGTS e demais contribuições são estabelecidos por legislação vigente.
C20: G | D20: INCRA (art. 1º, I, Decreto Lei 1.146/70 e Lei 7.787, de 30/06/89) | E20: 0.002 | G20: * Nota 2 - O SAT, a depender do grau de risco do serviço, irá variar entre 1%, para risco leve, de 2%, para risco médio, e de 3% para risco grave.
C21: H | D21: FGTS (Lei Complementar nº 110/01 e art. 30, Lei nº 8.036/90) | E21: 0.08 | G21: * Nota 3 - Os percentuais do Submódulo 2.2 incidem sobre o Módulo 1, o Submódulo 2.1, o Módulo 3, o Módulo 4 e o Módulo 6.
C22: I | D22: SECONCI (Convenções Coletivas de Trabalho da construção) | E22: 0
B24: GRUPO B: Encargos Sociais Relacionados ao Custo do Profissional Ausente - Ausências Legais | E24: =ROUND(SUM(E25:E33),4) -> 0.2246
C25: A | D25: Férias (Arts. 129 e 130, inc. I, da CLT) | E25: =1/11 -> 0.09090909091 | G25: * Nota 1 - As alíneas “A” a “F” referem-se ao custo que será pago pela empresa ao profissional ausente (férias e ausências legais)
C26: B | D26: Ausências Legais (Arts. 131 e 473 da CLT) | E26: =2/252 -> 0.007936507937 | G26: * Nota 2 - Adotou-se a estimativa do SINAPI de 2 dias por ano. Em 252 dias úteis por ano.
C27: C | D27: Licença-Paternidade (Art. 7º, XIX, e art. 10, §1º, do ADCT, CF/1988 e Art. 1º, II, da Lei 11.770/2008) | E27: =(5/(30*12))*0.0596 -> 0.0008277777778 | G27: * Nota 3 - Utilizada a proporção de 50% para homens, 5 dias de afastamento, e a probabilidade de um trabalhador requerer a Licença Paternidade em 5,96%, conforme SINAPI (Anuário Estatístico da Previdência Social - 2017)
C28: D | D28: Ausência por Acidente de Trabalho (Art. 131, III, da CLT) | E28: =0.0205*15/360 -> 0.0008541666667 | G28: * Nota 4 - Utilzada a estatística de 2,05% dos contribuintes beneficiados com a emissão do auxílio, conforme Anuário Estatístico da Previdência Social. Afastamento de 15 dias a cargo da empresa.
C29: E | D29: Afastamento Maternidade (Art. 71 da Lei nº 8.213/1991) | E29: =0.0508*(120/360)*(30+30*4/3)/360 -> 0.003292592593 | G29: * Nota 5 - Utilizada a estimativa de 120 dias de afastamento, e a probabilidade de uma trabalhadora requerer a Licença Maternidade em 5,08%, conforme SINAPI (citando dados do IBGE 2017) - A própria previdência paga o benefício pelos 120 dias, contudo o empregador arca com o 13º e com as férias
C30: F | D30: Auxílio Enfermidade - Doença (Art. 59 da Lei nº 8.213/1991) | E30: =((0.0376*15)+2)/360 -> 0.007122222222 | G30: * Nota 6 - Utilizada a estatística de 3,76% dos contribuintes beneficiados com o auxílio, conforme Anuário Estatístico da Previdência Social de 2016 (acrescidos de 2 dias ao ano, para os quais o trabalhador nem requer o benefício da Previdência - conforme SINAPI)
C31: G | D31: Adicional de Férias (componente do Submódulo 2.1) | E31: =1/3*1/11 -> 0.0303030303 | G31: * Nota 7 - O adicional de férias contido no Submódulo 2.1 corresponde a 1/3 da remuneração que, por sua vez, é dividida por 11 contome Nota 1.
C32: H | D32: 13º Salário (destacado na planilha de custos) | E32: =1/12 -> 0.08333333333 | G32: * Nota 8 - Provisiona-se, mensalmente, o proporcional a 1/12 dos valores referentes a gratificação natalina e adicional de férias.
C33: I | D33: Intervalo para repouso ou alimentação (componente do Submódulo 4.2) | E33: 0
B35: GRUPO C: Encargos Sociais Relacionados à Previsão para Rescisão Trabalhista | E35: =ROUND(SUM(E36:E41),4) -> 0.0636
C36: A | D36: Aviso Prévio Indenizado (Art. 7º, inciso XXI, da CF/1988 e arts. 477, 487, §1º, e 491 da CLT) | E36: =0.1*30/360 -> 0.008333333333 | G36: * Nota 1 - Considerou-se demissões de 10% por ano para substituições, a um prazo estimado de contrato de 3 anos. Aviso prévio - 1º ano 30 dias. Considerou-se os 10% demitidos sem justa causa e recebendo aviso indenizado.
C37: B | D37: Incidência do FGTS sobre o Aviso Prévio Indenizado (Súmula 305 TST) | E37: =E21*E36 -> 0.0006666666667
C38: C | D38: Multa do FGTS e Contribuição Social sobre o Aviso Prévio Indenizado (Art. 18, §1º, da Lei 8.036/1990 e art. 1º da LC nº 110/2001) | E38: =(1+1/12+1/12+1/36)*0.4*E21*0.2019 -> 0.007717066667 | G38: * Nota 2 - Incide sobre a Remuneração + 13º salário (1/12) + Férias (1/12) + Adicional de Férias (1/36) x 40% multa para o empregador x 8% FGTS
C39: D | D39: Aviso Prévio Trabalhado (Art. 488, parágrafo único, CLT) | E39: =((7+2*3)*100%/360)/3 -> 0.01203703704 | G39: * Nota 3 - Considerou-se demissões de 100% ao final do contrato, com um prazo médio estimado de 3 anos. Assim, calcula-se 7 dias para o 1º ano de contrato e mais 3 dias para os 2 anos seguintes. Total 13 dias.
C40: E | D40: Incidência de GPS, FGTS e outras contribuições sobre o Aviso Prévio Trabalhado | E40: =E39*E13 -> 0.004309259259
C41: F | D41: Multa do FGTS e Contribuição Social sobre o Aviso Prévio Trabalhado | E41: =(1+1/12+1/12+1/36)*0.4*E21*(1-0.2019) -> 0.03050515556 | G41: * Nota 4 - Incide sobre a Remuneração + 13º salário (1/12) + Férias (1/12) + Adicional de Férias (1/36) x 40% multa para o empregador x 8% FGTS
B43: GRUPO D: Reincidências | E43: =ROUND(SUM(E44:E44),4) -> 0.0804
C44: A | D44: Reincidência do Grupo A sobre o Grupo B | E44: =E13*E24 -> 0.0804068
D46: SOMATÓRIO - ENCARGOS SOCIAIS SOBRE A MÃO DE OBRA | E46: =E43+E35+E24+E13 -> 0.7266

Sheet BDI
B3: COMPOSIÇÃO DA TAXA DE CUSTOS INDIRETOS, TRIBUTOS E LUCRO - BDI
B4: APLICAÇÃO: MÃO DE OBRA, 13º, MATERIAIS, EPC E EQUIPAMENTO DE REGISTRO DE FREQUÊNCIA | E4: Percentuais
B6: Custos Indiretos da Contratada | E6: =SUM(E7:E8) -> 0.0401
C7: A | D7: Administração Central | E7: 0.0347 | G7: * Nota 1 - O Somatório da Administração Central com o Lucro deve ser inferior a 12%
C8: B | D8: Seguros, Garantias e Riscos | E8: =0.34%+0.2% -> 0.0054 | G8: * Nota 2 - O risco previsto para o porte do contrato majorado em mais 0,20% devido ao não pagamento dos insumos componentes do custo do posto quando da ausência do mesmo.
B10: Lucro | E10: =SUM(E11:E11) -> 0.0533
C11: A | D11: Lucro Real sobre os Custos Administrados | E11: 0.0533
B13: Despesas Financeiras | E13: =E14 -> 0.005639499547
C14: A | D14: Cálculo Baseado no Prazo para a Restituição dos Desembolsos Realizados pelo Contratado e na Taxa de Retorno Arbitrada | E14: =(1+E16)^(E15/252)-1 -> 0.005639499547 | G14: * Nota 1 - DF = [(1+TR)^(DU/252)]/100
C15: A.1 | D15: Dias Úteis Considerados | E15: 11 | G15: * Nota 2 - Diferença de dias entre o desembolso, pelo contratado, e o pagamento, pela Câmara
C16: A.2 | D16: Taxa de Retorno | E16: 0.1375 | G16: * Nota 3 - A taxa sugerida é a meta da SELIC
B18: Impostos - Tributos Federais | E18: =SUM(E19:E21) -> 0.074
C19: A | D19: Contribuição para o Financiamento da Seguridade Social - COFINS | E19: =0.8*7.6% -> 0.0608 | G19: * Nota 1 - Redução de 20% considerando as deduções permitidas em Lei, conforme SENGE, citado pelo TCU - Acórdão 2622/2013
C20: B | D20: Programa de Integração Social - PIS | E20: =0.8*1.65% -> 0.0132 | G20: * Nota 2 - Redução de 20% considerando as deduções permitidas em Lei, conforme SENGE, citado pelo TCU - Acórdão 2622/2013
C21: C | D21: Contribuição Previdenciária sobre a Receita Bruta - CPRB | E21: 0 | G21: * Nota 3 - Lei 12.546/2011 - Verificar atualizações e setores beneficiados
B23: Impostos - Tributos Distritais | E23: =SUM(E24:E24) -> 0.05
C24: A | D24: Imposto sobre Serviço de Qualquer Natureza - ISS | E24: 0.05
D26: SOMATÓRIO - ENCARGOS SOCIAIS SOBRE A MÃO DE OBRA | E26: =ROUND((((1+E6)*(1+E10)*(1+E13)/(1-E18-E23))-1),4) -> 0.2577 | G26: * Nota 1 - [(1+AC+SGR)*(1+L)*(1+DF)/(1-CONFINS-PIS-CPRB-ISS)]-1

Sheet Uniformes
B4: UNIFORMES - AQUISIÇÃO | L4: 1 | N4: =L4+1 -> 2 | P4: =N4+1 -> 3 | R4: =P4+1 -> 4 | T4: =R4+1 -> 5 | V4: =T4+1 -> 6 | X4: =V4+1 -> 7 | Z4: =X4+1 -> 8 | AB4: =Z4+1 -> 9 | AD4: =AB4+1 -> 10 | AF4: =AD4+1 -> 11 | AH4: =AF4+1 -> 12 | AJ4: =AH4+1 -> 13 | AL4: =AJ4+1 -> 14 | AN4: =AL4+1 -> 15 | AP4: =AN4+1 -> 16 | AR4: =AP4+1 -> 17 | AT4: =AR4+1 -> 18 | AV4: =AT4+1 -> 19 | AX4: =AV4+1 -> 20 | AZ4: =AX4+1 -> 21 | BB4: =AZ4+1 -> 22 | BD4: =BB4+1 -> 23 | BF4: =BD4+1 -> 24 | BH4: =BF4+1 -> 25 | BJ4: =BH4+1 -> 26 | BL4: =BJ4+1 -> 27 | BN4: =BL4+1 -> 28 | BP4: =BN4+1 -> 29 | BR4: =BP4+1 -> 30 | BT4: =BR4+1 -> 31 | BV4: =BT4+1 -> 32 | BX4: =BV4+1 -> 33 | BZ4: =BX4+1 -> 34 | CB4: =BZ4+1 -> 35 | CD4: =CB4+1 -> 36 | CF4: =CD4+1 -> 37 | CH4: =CF4+1 -> 38 | CJ4: =CH4+1 -> 39 | CL4: =CJ4+1 -> 40 | CN4: =CL4+1 -> 41 | CP4: =CN4+1 -> 42 | CR4: =CP4+1 -> 43 | CT4: =CR4+1 -> 44 | CV4: =CT4+1 -> 45 | CX4: =CV4+1 -> 46 | CZ4: =CX4+1 -> 47 | DB4: =CZ4+1 -> 48 | DD4: =DB4+1 -> 49 | DF4: =DD4+1 -> 50 | DH4: =DF4+1 -> 51 | DJ4: =DH4+1 -> 52 | DL4: =DJ4+1 -> 53 | DN4: =DL4+1 -> 54 | DP4: =DN4+1 -> 55 | DR4: =DP4+1 -> 56 | DT4: =DR4+1 -> 57 | DV4: =DT4+1 -> 58 | DX4: =DV4+1 -> 59 | DZ4: =DX4+1 -> 60
L6: =ROUND(SUM(M5:M75),2) -> 1500.6 | N6: =ROUND(SUM(O5:O75),2) -> 1500.6 | P6: =ROUND(SUM(Q5:Q75),2) -> 1500.6 | R6: =ROUND(SUM(S5:S75),2) -> 1500.6 | T6: =ROUND(SUM(U5:U75),2) -> 0 | V6: =ROUND(SUM(W5:W75),2) -> 0 | X6: =ROUND(SUM(Y5:Y75),2) -> 0 | Z6: =ROUND(SUM(AA5:AA75),2) -> 0 | AB6: =ROUND(SUM(AC5:AC75),2) -> 0 | AD6: =ROUND(SUM(AE5:AE75),2) -> 0 | AF6: =ROUND(SUM(AG5:AG75),2) -> 0 | AH6: =ROUND(SUM(AI5:AI75),2) -> 0 | AJ6: =ROUND(SUM(AK5:AK75),2) -> 0 | AL6: =ROUND(SUM(AM5:AM75),2) -> 0 | AN6: =ROUND(SUM(AO5:AO75),2) -> 0 | AP6: =ROUND(SUM(AQ5:AQ75),2) -> 0 | AR6: =ROUND(SUM(AS5:AS75),2) -> 0 | AT6: =ROUND(SUM(AU5:AU75),2) -> 0 | AV6: =ROUND(SUM(AW5:AW75),2) -> 0 | AX6: =ROUND(SUM(AY5:AY75),2) -> 0 | AZ6: =ROUND(SUM(BA5:BA75),2) -> 0 | BB6: =ROUND(SUM(BC5:BC75),2) -> 0 | BD6: =ROUND(SUM(BE5:BE75),2) -> 0 | BF6: =ROUND(SUM(BG5:BG75),2) -> 0 | BH6: =ROUND(SUM(BI5:BI75),2) -> 0 | BJ6: =ROUND(SUM(BK5:BK75),2) -> 0 | BL6: =ROUND(SUM(BM5:BM75),2) -> 0 | BN6: =ROUND(SUM(BO5:BO75),2) -> 0 | BP6: =ROUND(SUM(BQ5:BQ75),2) -> 0 | BR6: =ROUND(SUM(BS5:BS75),2) -> 0 | BT6: =ROUND(SUM(BU5:BU75),2) -> 0 | BV6: =ROUND(SUM(BW5:BW75),2) -> 0 | BX6: =ROUND(SUM(BY5:BY75),2) -> 0 | BZ6: =ROUND(SUM(CA5:CA75),2) -> 0 | CB6: =ROUND(SUM(CC5:CC75),2) -> 0 | CD6: =ROUND(SUM(CE5:CE75),2) -> 0 | CF6: =ROUND(SUM(CG5:CG75),2) -> 0 | CH6: =ROUND(SUM(CI5:CI75),2) -> 0 | CJ6: =ROUND(SUM(CK5:CK75),2) -> 0 | CL6: =ROUND(SUM(CM5:CM75),2) -> 0 | CN6: =ROUND(SUM(CO5:CO75),2) -> 0 | CP6: =ROUND(SUM(CQ5:CQ75),2) -> 0 | CR6: =ROUND(SUM(CS5:CS75),2) -> 0 | CT6: =ROUND(SUM(CU5:CU75),2) -> 0 | CV6: =ROUND(SUM(CW5:CW75),2) -> 0 | CX6: =ROUND(SUM(CY5:CY75),2) -> 0 | CZ6: =ROUND(SUM(DA5:DA75),2) -> 0 | DB6: =ROUND(SUM(DC5:DC75),2) -> 0 | DD6: =ROUND(SUM(DE5:DE75),2) -> 0 | DF6: =ROUND(SUM(DG5:DG75),2) -> 0 | DH6: =ROUND(SUM(DI5:DI75),2) -> 0 | DJ6: =ROUND(SUM(DK5:DK75),2) -> 0 | DL6: =ROUND(SUM(DM5:DM75),2) -> 0 | DN6: =ROUND(SUM(DO5:DO75),2) -> 0 | DP6: =ROUND(SUM(DQ5:DQ75),2) -> 0 | DR6: =ROUND(SUM(DS5:DS75),2) -> 0 | DT6: =ROUND(SUM(DU5:DU75),2) -> 0 | DV6: =ROUND(SUM(DW5:DW75),2) -> 0 | DX6: =ROUND(SUM(DY5:DY75),2) -> 0 | DZ6: =ROUND(SUM(EA5:EA75),2) -> 0
C7: CATEGORIAS | I7: QUANTIDADE
L8: =IF($C8=L$4,1,0) -> 0
C9: 1 | D9: =HLOOKUP($C9,'Dados Gerais'!$D$5:$BK$10,6) -> ENCARREGADO GERAL | I9: =HLOOKUP($C9,'Dados Gerais'!$D$5:$BK$14,10) -> 1 | L9: 1 | N9: =IF($C9=N$4,1,0) -> 0 | P9: =IF($C9=P$4,1,0) -> 0 | R9: =IF($C9=R$4,1,0) -> 0 | T9: =IF($C9=T$4,1,0) -> 0 | V9: =IF($C9=V$4,1,0) -> 0 | X9: =IF($C9=X$4,1,0) -> 0 | Z9: =IF($C9=Z$4,1,0) -> 0 | AB9: =IF($C9=AB$4,1,0) -> 0 | AD9: =IF($C9=AD$4,1,0) -> 0 | AF9: =IF($C9=AF$4,1,0) -> 0 | AH9: =IF($C9=AH$4,1,0) -> 0 | AJ9: =IF($C9=AJ$4,1,0) -> 0 | AL9: =IF($C9=AL$4,1,0) -> 0 | AN9: =IF($C9=AN$4,1,0) -> 0 | AP9: =IF($C9=AP$4,1,0) -> 0 | AR9: =IF($C9=AR$4,1,0) -> 0 | AT9: =IF($C9=AT$4,1,0) -> 0 | AV9: =IF($C9=AV$4,1,0) -> 0 | AX9: =IF($C9=AX$4,1,0) -> 0 | AZ9: =IF($C9=AZ$4,1,0) -> 0 | BB9: =IF($C9=BB$4,1,0) -> 0 | BD9: =IF($C9=BD$4,1,0) -> 0 | BF9: =IF($C9=BF$4,1,0) -> 0 | BH9: =IF($C9=BH$4,1,0) -> 0 | BJ9: =IF($C9=BJ$4,1,0) -> 0 | BL9: =IF($C9=BL$4,1,0) -> 0 | BN9: =IF($C9=BN$4,1,0) -> 0 | BP9: =IF($C9=BP$4,1,0) -> 0 | BR9: =IF($C9=BR$4,1,0) -> 0 | BT9: =IF($C9=BT$4,1,0) -> 0 | BV9: =IF($C9=BV$4,1,0) -> 0 | BX9: =IF($C9=BX$4,1,0) -> 0 | BZ9: =IF($C9=BZ$4,1,0) -> 0 | CB9: =IF($C9=CB$4,1,0) -> 0 | CD9: =IF($C9=CD$4,1,0) -> 0 | CF9: =IF($C9=CF$4,1,0) -> 0 | CH9: =IF($C9=CH$4,1,0) -> 0 | CJ9: =IF($C9=CJ$4,1,0) -> 0 | CL9: =IF($C9=CL$4,1,0) -> 0 | CN9: =IF($C9=CN$4,1,0) -> 0 | CP9: =IF($C9=CP$4,1,0) -> 0 | CR9: =IF($C9=CR$4,1,0) -> 0 | CT9: =IF($C9=CT$4,1,0) -> 0 | CV9: =IF($C9=CV$4,1,0) -> 0 | CX9: =IF($C9=CX$4,1,0) -> 0 | CZ9: =IF($C9=CZ$4,1,0) -> 0 | DB9: =IF($C9=DB$4,1,0) -> 0 | DD9: =IF($C9=DD$4,1,0) -> 0 | DF9: =IF($C9=DF$4,1,0) -> 0 | DH9: =IF($C9=DH$4,1,0) -> 0 | DJ9: =IF($C9=DJ$4,1,0) -> 0 | DL9: =IF($C9=DL$4,1,0) -> 0 | DN9: =IF($C9=DN$4,1,0) -> 0 | DP9: =IF($C9=DP$4,1,0) -> 0 | DR9: =IF($C9=DR$4,1,0) -> 0 | DT9: =IF($C9=DT$4,1,0) -> 0 | DV9: =IF($C9=DV$4,1,0) -> 0 | DX9: =IF($C9=DX$4,1,0) -> 0 | DZ9: =IF($C9=DZ$4,1,0) -> 0
C10: 2 | D10: =HLOOKUP($C10,'Dados Gerais'!$D$5:$BK$10,6) -> ASCENSORISTA | I10: =HLOOKUP($C10,'Dados Gerais'!$D$5:$BK$14,10) -> 37 | L10: =IF($C10=L$4,1,0) -> 0 | N10: 1 | P10: 0 | R10: 0 | T10: 0 | V10: 0 | X10: 0 | Z10: 0 | AB10: 0 | AD10: 0 | AF10: 0 | AH10: 0 | AJ10: 0 | AL10: 0 | AN10: 0 | AP10: 0 | AR10: 0 | AT10: 0 | AV10: 0 | AX10: 0 | AZ10: 0 | BB10: 0 | BD10: 0 | BF10: 0 | BH10: 0 | BJ10: 0 | BL10: 0 | BN10: 0 | BP10: 0 | BR10: 0 | BT10: 0 | BV10: 0 | BX10: 0 | BZ10: 0 | CB10: 0 | CD10: 0 | CF10: 0 | CH10: 0 | CJ10: 0 | CL10: 0 | CN10: 0 | CP10: 0 | CR10: 0 | CT10: 0 | CV10: 0 | CX10: 0 | CZ10: 0 | DB10: 0 | DD10: 0 | DF10: 0 | DH10: 0 | DJ10: 0 | DL10: 0 | DN10: 0 | DP10: 0 | DR10: 0 | DT10: 0 | DV10: 0 | DX10: 0 | DZ10: 0
C11: 3 | D11: =HLOOKUP($C11,'Dados Gerais'!$D$5:$BK$10,6) -> TELEFONISTA DE FLUXO DE ELEVADORES | I11: =HLOOKUP($C11,'Dados Gerais'!$D$5:$BK$14,10) -> 7 | L11: =IF($C11=L$4,1,0) -> 0 | N11: 0 | P11: 1 | R11: 0 | T11: 0 | V11: 0 | X11: 0 | Z11: 0 | AB11: 0 | AD11: 0 | AF11: 0 | AH11: 0 | AJ11: 0 | AL11: 0 | AN11: 0 | AP11: 0 | AR11: 0 | AT11: 0 | AV11: 0 | AX11: 0 | AZ11: 0 | BB11: 0 | BD11: 0 | BF11: 0 | BH11: 0 | BJ11: 0 | BL11: 0 | BN11: 0 | BP11: 0 | BR11: 0 | BT11: 0 | BV11: 0 | BX11: 0 | BZ11: 0 | CB11: 0 | CD11: 0 | CF11: 0 | CH11: 0 | CJ11: 0 | CL11: 0 | CN11: 0 | CP11: 0 | CR11: 0 | CT11: 0 | CV11: 0 | CX11: 0 | CZ11: 0 | DB11: 0 | DD11: 0 | DF11: 0 | DH11: 0 | DJ11: 0 | DL11: 0 | DN11: 0 | DP11: 0 | DR11: 0 | DT11: 0 | DV11: 0 | DX11: 0 | DZ11: 0
C12: 4 | D12: =HLOOKUP($C12,'Dados Gerais'!$D$5:$BK$10,6) -> RECEPCIONISTA DE FLUXO DE PESSOAS | I12: =HLOOKUP($C12,'Dados Gerais'!$D$5:$BK$14,10) -> 7 | L12: =IF($C12=L$4,1,0) -> 0 | N12: 0 | P12: 0 | R12: 1 | T12: 0 | V12: 0 | X12: 0 | Z12: 0 | AB12: 0 | AD12: 0 | AF12: 0 | AH12: 0 | AJ12: 0 | AL12: 0 | AN12: 0 | AP12: 0 | AR12: 0 | AT12: 0 | AV12: 0 | AX12: 0 | AZ12: 0 | BB12: 0 | BD12: 0 | BF12: 0 | BH12: 0 | BJ12: 0 | BL12: 0 | BN12: 0 | BP12: 0 | BR12: 0 | BT12: 0 | BV12: 0 | BX12: 0 | BZ12: 0 | CB12: 0 | CD12: 0 | CF12: 0 | CH12: 0 | CJ12: 0 | CL12: 0 | CN12: 0 | CP12: 0 | CR12: 0 | CT12: 0 | CV12: 0 | CX12: 0 | CZ12: 0 | DB12: 0 | DD12: 0 | DF12: 0 | DH12: 0 | DJ12: 0 | DL12: 0 | DN12: 0 | DP12: 0 | DR12: 0 | DT12: 0 | DV12: 0 | DX12: 0 | DZ12: 0
L13: 0
C15: ITEM | D15: DESCRIÇÃO | E15: QUANT ANUAL POR POSTO | F15: % ESTIMADO POR GÊNERO | G15: Nº DE POSTOS | H15: QUANT ANUAL TOTAL ESTIMADA | I15: VALOR
M16: =IF(SUM(L$8:L$13)>0,$E16*$I16,0) -> 0 | O16: =IF(SUM(N$8:N$13)>0,$E16*$I16,0) -> 0 | Q16: =IF(SUM(P$8:P$13)>0,$E16*$I16,0) -> 0 | S16: =IF(SUM(R$8:R$13)>0,$E16*$I16,0) -> 0 | U16: =IF(SUM(T$8:T$13)>0,$E16*$I16,0) -> 0 | W16: =IF(SUM(V$8:V$13)>0,$E16*$I16,0) -> 0 | Y16: =IF(SUM(X$8:X$13)>0,$E16*$I16,0) -> 0 | AA16: =IF(SUM(Z$8:Z$13)>0,$E16*$I16,0) -> 0 | AC16: =IF(SUM(AB$8:AB$13)>0,$E16*$I16,0) -> 0 | AE16: =IF(SUM(AD$8:AD$13)>0,$E16*$I16,0) -> 0 | AG16: =IF(SUM(AF$8:AF$13)>0,$E16*$I16,0) -> 0 | AI16: =IF(SUM(AH$8:AH$13)>0,$E16*$I16,0) -> 0 | AK16: =IF(SUM(AJ$8:AJ$13)>0,$E16*$I16,0) -> 0 | AM16: =IF(SUM(AL$8:AL$13)>0,$E16*$I16,0) -> 0 | AO16: =IF(SUM(AN$8:AN$13)>0,$E16*$I16,0) -> 0 | AQ16: =IF(SUM(AP$8:AP$13)>0,$E16*$I16,0) -> 0 | AS16: =IF(SUM(AR$8:AR$13)>0,$E16*$I16,0) -> 0 | AU16: =IF(SUM(AT$8:AT$13)>0,$E16*$I16,0) -> 0 | AW16: =IF(SUM(AV$8:AV$13)>0,$E16*$I16,0) -> 0 | AY16: =IF(SUM(AX$8:AX$13)>0,$E16*$I16,0) -> 0 | BA16: =IF(SUM(AZ$8:AZ$13)>0,$E16*$I16,0) -> 0 | BC16: =IF(SUM(BB$8:BB$13)>0,$E16*$I16,0) -> 0 | BE16: =IF(SUM(BD$8:BD$13)>0,$E16*$I16,0) -> 0 | BG16: =IF(SUM(BF$8:BF$13)>0,$E16*$I16,0) -> 0 | BI16: =IF(SUM(BH$8:BH$13)>0,$E16*$I16,0) -> 0 | BK16: =IF(SUM(BJ$8:BJ$13)>0,$E16*$I16,0) -> 0 | BM16: =IF(SUM(BL$8:BL$13)>0,$E16*$I16,0) -> 0 | BO16: =IF(SUM(BN$8:BN$13)>0,$E16*$I16,0) -> 0 | BQ16: =IF(SUM(BP$8:BP$13)>0,$E16*$I16,0) -> 0 | BS16: =IF(SUM(BR$8:BR$13)>0,$E16*$I16,0) -> 0 | BU16: =IF(SUM(BT$8:BT$13)>0,$E16*$I16,0) -> 0 | BW16: =IF(SUM(BV$8:BV$13)>0,$E16*$I16,0) -> 0 | BY16: =IF(SUM(BX$8:BX$13)>0,$E16*$I16,0) -> 0 | CA16: =IF(SUM(BZ$8:BZ$13)>0,$E16*$I16,0) -> 0 | CC16: =IF(SUM(CB$8:CB$13)>0,$E16*$I16,0) -> 0 | CE16: =IF(SUM(CD$8:CD$13)>0,$E16*$I16,0) -> 0 | CG16: =IF(SUM(CF$8:CF$13)>0,$E16*$I16,0) -> 0 | CI16: =IF(SUM(CH$8:CH$13)>0,$E16*$I16,0) -> 0 | CK16: =IF(SUM(CJ$8:CJ$13)>0,$E16*$I16,0) -> 0 | CM16: =IF(SUM(CL$8:CL$13)>0,$E16*$I16,0) -> 0 | CO16: =IF(SUM(CN$8:CN$13)>0,$E16*$I16,0) -> 0 | CQ16: =IF(SUM(CP$8:CP$13)>0,$E16*$I16,0) -> 0 | CS16: =IF(SUM(CR$8:CR$13)>0,$E16*$I16,0) -> 0 | CU16: =IF(SUM(CT$8:CT$13)>0,$E16*$I16,0) -> 0 | CW16: =IF(SUM(CV$8:CV$13)>0,$E16*$I16,0) -> 0 | CY16: =IF(SUM(CX$8:CX$13)>0,$E16*$I16,0) -> 0 | DA16: =IF(SUM(CZ$8:CZ$13)>0,$E16*$I16,0) -> 0 | DC16: =IF(SUM(DB$8:DB$13)>0,$E16*$I16,0) -> 0 | DE16: =IF(SUM(DD$8:DD$13)>0,$E16*$I16,0) -> 0 | DG16: =IF(SUM(DF$8:DF$13)>0,$E16*$I16,0) -> 0 | DI16: =IF(SUM(DH$8:DH$13)>0,$E16*$I16,0) -> 0 | DK16: =IF(SUM(DJ$8:DJ$13)>0,$E16*$I16,0) -> 0 | DM16: =IF(SUM(DL$8:DL$13)>0,$E16*$I16,0) -> 0 | DO16: =IF(SUM(DN$8:DN$13)>0,$E16*$I16,0) -> 0 | DQ16: =IF(SUM(DP$8:DP$13)>0,$E16*$I16,0) -> 0 | DS16: =IF(SUM(DR$8:DR$13)>0,$E16*$I16,0) -> 0 | DU16: =IF(SUM(DT$8:DT$13)>0,$E16*$I16,0) -> 0 | DW16: =IF(SUM(DV$8:DV$13)>0,$E16*$I16,0) -> 0 | DY16: =IF(SUM(DX$8:DX$13)>0,$E16*$I16,0) -> 0 | EA16: =IF(SUM(DZ$8:DZ$13)>0,$E16*$I16,0) -> 0
C17: MASCULINO | D17: Terno completo na cor cinza (masculino) | E17: 3 | F17: =20/(20+32) -> 0.3846153846 | G17: =SUM($I$9:$I$12) -> 52 | H17: =ROUNDUP(E17*F17*G17,0) -> 60 | I17: 268.3 | M17: =IF(SUM(L$8:L$13)>0,$H17*$I17,0)/SUM($I$9:$I$12) -> 309.5769231 | O17: =IF(SUM(N$8:N$13)>0,$H17*$I17,0)/SUM($I$9:$I$12) -> 309.5769231 | Q17: =IF(SUM(P$8:P$13)>0,$H17*$I17,0)/SUM($I$9:$I$12) -> 309.5769231 | S17: =IF(SUM(R$8:R$13)>0,$H17*$I17,0)/SUM($I$9:$I$12) -> 309.5769231 | U17: =IF(SUM(T$8:T$13)>0,$H17*$I17,0) -> 0 | W17: =IF(SUM(V$8:V$13)>0,$H17*$I17,0) -> 0 | Y17: =IF(SUM(X$8:X$13)>0,$H17*$I17,0) -> 0 | AA17: =IF(SUM(Z$8:Z$13)>0,$H17*$I17,0) -> 0 | AC17: =IF(SUM(AB$8:AB$13)>0,$H17*$I17,0) -> 0 | AE17: =IF(SUM(AD$8:AD$13)>0,$H17*$I17,0) -> 0 | AG17: =IF(SUM(AF$8:AF$13)>0,$H17*$I17,0) -> 0 | AI17: =IF(SUM(AH$8:AH$13)>0,$H17*$I17,0) -> 0 | AK17: =IF(SUM(AJ$8:AJ$13)>0,$H17*$I17,0) -> 0 | AM17: =IF(SUM(AL$8:AL$13)>0,$H17*$I17,0) -> 0 | AO17: =IF(SUM(AN$8:AN$13)>0,$H17*$I17,0) -> 0 | AQ17: =IF(SUM(AP$8:AP$13)>0,$H17*$I17,0) -> 0 | AS17: =IF(SUM(AR$8:AR$13)>0,$H17*$I17,0) -> 0 | AU17: =IF(SUM(AT$8:AT$13)>0,$H17*$I17,0) -> 0 | AW17: =IF(SUM(AV$8:AV$13)>0,$H17*$I17,0) -> 0 | AY17: =IF(SUM(AX$8:AX$13)>0,$H17*$I17,0) -> 0 | BA17: =IF(SUM(AZ$8:AZ$13)>0,$H17*$I17,0) -> 0 | BC17: =IF(SUM(BB$8:BB$13)>0,$H17*$I17,0) -> 0 | BE17: =IF(SUM(BD$8:BD$13)>0,$H17*$I17,0) -> 0 | BG17: =IF(SUM(BF$8:BF$13)>0,$H17*$I17,0) -> 0 | BI17: =IF(SUM(BH$8:BH$13)>0,$H17*$I17,0) -> 0 | BK17: =IF(SUM(BJ$8:BJ$13)>0,$H17*$I17,0) -> 0 | BM17: =IF(SUM(BL$8:BL$13)>0,$H17*$I17,0) -> 0 | BO17: =IF(SUM(BN$8:BN$13)>0,$H17*$I17,0) -> 0 | BQ17: =IF(SUM(BP$8:BP$13)>0,$H17*$I17,0) -> 0 | BS17: =IF(SUM(BR$8:BR$13)>0,$H17*$I17,0) -> 0 | BU17: =IF(SUM(BT$8:BT$13)>0,$H17*$I17,0) -> 0 | BW17: =IF(SUM(BV$8:BV$13)>0,$H17*$I17,0) -> 0 | BY17: =IF(SUM(BX$8:BX$13)>0,$H17*$I17,0) -> 0 | CA17: =IF(SUM(BZ$8:BZ$13)>0,$H17*$I17,0) -> 0 | CC17: =IF(SUM(CB$8:CB$13)>0,$H17*$I17,0) -> 0 | CE17: =IF(SUM(CD$8:CD$13)>0,$H17*$I17,0) -> 0 | CG17: =IF(SUM(CF$8:CF$13)>0,$H17*$I17,0) -> 0 | CI17: =IF(SUM(CH$8:CH$13)>0,$H17*$I17,0) -> 0 | CK17: =IF(SUM(CJ$8:CJ$13)>0,$H17*$I17,0) -> 0 | CM17: =IF(SUM(CL$8:CL$13)>0,$H17*$I17,0) -> 0 | CO17: =IF(SUM(CN$8:CN$13)>0,$H17*$I17,0) -> 0 | CQ17: =IF(SUM(CP$8:CP$13)>0,$H17*$I17,0) -> 0 | CS17: =IF(SUM(CR$8:CR$13)>0,$H17*$I17,0) -> 0 | CU17: =IF(SUM(CT$8:CT$13)>0,$H17*$I17,0) -> 0 | CW17: =IF(SUM(CV$8:CV$13)>0,$H17*$I17,0) -> 0 | CY17: =IF(SUM(CX$8:CX$13)>0,$H17*$I17,0) -> 0 | DA17: =IF(SUM(CZ$8:CZ$13)>0,$H17*$I17,0) -> 0 | DC17: =IF(SUM(DB$8:DB$13)>0,$H17*$I17,0) -> 0 | DE17: =IF(SUM(DD$8:DD$13)>0,$H17*$I17,0) -> 0 | DG17: =IF(SUM(DF$8:DF$13)>0,$H17*$I17,0) -> 0 | DI17: =IF(SUM(DH$8:DH$13)>0,$H17*$I17,0) -> 0 | DK17: =IF(SUM(DJ$8:DJ$13)>0,$H17*$I17,0) -> 0 | DM17: =IF(SUM(DL$8:DL$13)>0,$H17*$I17,0) -> 0 | DO17: =IF(SUM(DN$8:DN$13)>0,$H17*$I17,0) -> 0 | DQ17: =IF(SUM(DP$8:DP$13)>0,$H17*$I17,0) -> 0 | DS17: =IF(SUM(DR$8:DR$13)>0,$H17*$I17,0) -> 0 | DU17: =IF(SUM(DT$8:DT$13)>0,$H17*$I17,0) -> 0 | DW17: =IF(SUM(DV$8:DV$13)>0,$H17*$I17,0) -> 0 | DY17: =IF(SUM(DX$8:DX$13)>0,$H17*$I17,0) -> 0 | EA17: =IF(SUM(DZ$8:DZ$13)>0,$H17*$I17,0) -> 0
D18: Gravata masculina modelagem fina, cor cinza | E18: 3 | F18: =F17 -> 0.3846153846 | G18: 52 | H18: =ROUNDUP(E18*F18*G18,0) -> 60 | I18: 23.24 | M18: 26.81538462 | O18: =IF(SUM(N$8:N$13)>0,$H18*$I18,0)/SUM($I$9:$I$12) -> 26.81538462 | Q18: 26.81538462 | S18: 26.81538462 | U18: 0 | W18: 0 | Y18: 0 | AA18: 0 | AC18: 0 | AE18: 0 | AG18: 0 | AI18: 0 | AK18: 0 | AM18: 0 | AO18: 0 | AQ18: 0 | AS18: 0 | AU18: 0 | AW18: 0 | AY18: 0 | BA18: 0 | BC18: 0 | BE18: 0 | BG18: 0 | BI18: 0 | BK18: 0 | BM18: 0 | BO18: 0 | BQ18: 0 | BS18: 0 | BU18: 0 | BW18: 0 | BY18: 0 | CA18: 0 | CC18: 0 | CE18: 0 | CG18: 0 | CI18: 0 | CK18: 0 | CM18: 0 | CO18: 0 | CQ18: 0 | CS18: 0 | CU18: 0 | CW18: 0 | CY18: 0 | DA18: 0 | DC18: 0 | DE18: 0 | DG18: 0 | DI18: 0 | DK18: 0 | DM18: 0 | DO18: 0 | DQ18: 0 | DS18: 0 | DU18: 0 | DW18: 0 | DY18: 0 | EA18: 0
D19: Camisa na cor branca, 100% algodão | E19: 3 | F19: =F18 -> 0.3846153846 | G19: 52 | H19: 60 | I19: 90.63333333 | M19: 104.5769231 | O19: =IF(SUM(N$8:N$13)>0,$H19*$I19,0)/SUM($I$9:$I$12) -> 104.5769231 | Q19: 104.5769231 | S19: 104.5769231 | U19: 0 | W19: 0 | Y19: 0 | AA19: 0 | AC19: 0 | AE19: 0 | AG19: 0 | AI19: 0 | AK19: 0 | AM19: 0 | AO19: 0 | AQ19: 0 | AS19: 0 | AU19: 0 | AW19: 0 | AY19: 0 | BA19: 0 | BC19: 0 | BE19: 0 | BG19: 0 | BI19: 0 | BK19: 0 | BM19: 0 | BO19: 0 | BQ19: 0 | BS19: 0 | BU19: 0 | BW19: 0 | BY19: 0 | CA19: 0 | CC19: 0 | CE19: 0 | CG19: 0 | CI19: 0 | CK19: 0 | CM19: 0 | CO19: 0 | CQ19: 0 | CS19: 0 | CU19: 0 | CW19: 0 | CY19: 0 | DA19: 0 | DC19: 0 | DE19: 0 | DG19: 0 | DI19: 0 | DK19: 0 | DM19: 0 | DO19: 0 | DQ19: 0 | DS19: 0 | DU19: 0 | DW19: 0 | DY19: 0 | EA19: 0
D20: Cinto de couro preto | E20: 3 | F20: 0.3846153846 | G20: 52 | H20: 60 | I20: 30.55666667 | M20: 35.25769231 | O20: =IF(SUM(N$8:N$13)>0,$H20*$I20,0)/SUM($I$9:$I$12) -> 35.25769231 | Q20: 35.25769231 | S20: 35.25769231 | U20: 0 | W20: 0 | Y20: 0 | AA20: 0 | AC20: 0 | AE20: 0 | AG20: 0 | AI20: 0 | AK20: 0 | AM20: 0 | AO20: 0 | AQ20: 0 | AS20: 0 | AU20: 0 | AW20: 0 | AY20: 0 | BA20: 0 | BC20: 0 | BE20: 0 | BG20: 0 | BI20: 0 | BK20: 0 | BM20: 0 | BO20: 0 | BQ20: 0 | BS20: 0 | BU20: 0 | BW20: 0 | BY20: 0 | CA20: 0 | CC20: 0 | CE20: 0 | CG20: 0 | CI20: 0 | CK20: 0 | CM20: 0 | CO20: 0 | CQ20: 0 | CS20: 0 | CU20: 0 | CW20: 0 | CY20: 0 | DA20: 0 | DC20: 0 | DE20: 0 | DG20: 0 | DI20: 0 | DK20: 0 | DM20: 0 | DO20: 0 | DQ20: 0 | DS20: 0 | DU20: 0 | DW20: 0 | DY20: 0 | EA20: 0
D21: Meia preta | E21: 3 | F21: 0.3846153846 | G21: 52 | H21: 60 | I21: 8.966666667 | M21: 10.34615385 | O21: =IF(SUM(N$8:N$13)>0,$H21*$I21,0)/SUM($I$9:$I$12) -> 10.34615385 | Q21: 10.34615385 | S21: 10.34615385 | U21: 0 | W21: 0 | Y21: 0 | AA21: 0 | AC21: 0 | AE21: 0 | AG21: 0 | AI21: 0 | AK21: 0 | AM21: 0 | AO21: 0 | AQ21: 0 | AS21: 0 | AU21: 0 | AW21: 0 | AY21: 0 | BA21: 0 | BC21: 0 | BE21: 0 | BG21: 0 | BI21: 0 | BK21: 0 | BM21: 0 | BO21: 0 | BQ21: 0 | BS21: 0 | BU21: 0 | BW21: 0 | BY21: 0 | CA21: 0 | CC21: 0 | CE21: 0 | CG21: 0 | CI21: 0 | CK21: 0 | CM21: 0 | CO21: 0 | CQ21: 0 | CS21: 0 | CU21: 0 | CW21: 0 | CY21: 0 | DA21: 0 | DC21: 0 | DE21: 0 | DG21: 0 | DI21: 0 | DK21: 0 | DM21: 0 | DO21: 0 | DQ21: 0 | DS21: 0 | DU21: 0 | DW21: 0 | DY21: 0 | EA21: 0
D22: Sapato social masculino em couro com palmilha com gel, na cor preta | E22: 3 | F22: 0.3846153846 | G22: 52 | H22: 60 | I22: 133.5666667 | M22: 154.1153846 | O22: =IF(SUM(N$8:N$13)>0,$H22*$I22,0)/SUM($I$9:$I$12) -> 154.1153846 | Q22: 154.1153846 | S22: 154.1153846 | U22: 0 | W22: 0 | Y22: 0 | AA22: 0 | AC22: 0 | AE22: 0 | AG22: 0 | AI22: 0 | AK22: 0 | AM22: 0 | AO22: 0 | AQ22: 0 | AS22: 0 | AU22: 0 | AW22: 0 | AY22: 0 | BA22: 0 | BC22: 0 | BE22: 0 | BG22: 0 | BI22: 0 | BK22: 0 | BM22: 0 | BO22: 0 | BQ22: 0 | BS22: 0 | BU22: 0 | BW22: 0 | BY22: 0 | CA22: 0 | CC22: 0 | CE22: 0 | CG22: 0 | CI22: 0 | CK22: 0 | CM22: 0 | CO22: 0 | CQ22: 0 | CS22: 0 | CU22: 0 | CW22: 0 | CY22: 0 | DA22: 0 | DC22: 0 | DE22: 0 | DG22: 0 | DI22: 0 | DK22: 0 | DM22: 0 | DO22: 0 | DQ22: 0 | DS22: 0 | DU22: 0 | DW22: 0 | DY22: 0 | EA22: 0
C23: FEMININO | D23: Terno completo na cor cinza (feminino) | E23: =E17 -> 3 | F23: =100%-F22 -> 0.6153846154 | G23: 52 | H23: 96 | I23: 260.3 | M23: 480.5538462 | O23: =IF(SUM(N$8:N$13)>0,$H23*$I23,0)/SUM($I$9:$I$12) -> 480.5538462 | Q23: 480.5538462 | S23: 480.5538462 | U23: 0 | W23: 0 | Y23: 0 | AA23: 0 | AC23: 0 | AE23: 0 | AG23: 0 | AI23: 0 | AK23: 0 | AM23: 0 | AO23: 0 | AQ23: 0 | AS23: 0 | AU23: 0 | AW23: 0 | AY23: 0 | BA23: 0 | BC23: 0 | BE23: 0 | BG23: 0 | BI23: 0 | BK23: 0 | BM23: 0 | BO23: 0 | BQ23: 0 | BS23: 0 | BU23: 0 | BW23: 0 | BY23: 0 | CA23: 0 | CC23: 0 | CE23: 0 | CG23: 0 | CI23: 0 | CK23: 0 | CM23: 0 | CO23: 0 | CQ23: 0 | CS23: 0 | CU23: 0 | CW23: 0 | CY23: 0 | DA23: 0 | DC23: 0 | DE23: 0 | DG23: 0 | DI23: 0 | DK23: 0 | DM23: 0 | DO23: 0 | DQ23: 0 | DS23: 0 | DU23: 0 | DW23: 0 | DY23: 0 | EA23: 0
D24: Gravata feminina modelagem fina, cor cinza | E24: =E18 -> 3 | F24: =F23 -> 0.6153846154 | G24: 52 | H24: 96 | I24: 25.945 | M24: 47.89846154 | O24: =IF(SUM(N$8:N$13)>0,$H24*$I24,0)/SUM($I$9:$I$12) -> 47.89846154 | Q24: 47.89846154 | S24: 47.89846154 | U24: 0 | W24: 0 | Y24: 0 | AA24: 0 | AC24: 0 | AE24: 0 | AG24: 0 | AI24: 0 | AK24: 0 | AM24: 0 | AO24: 0 | AQ24: 0 | AS24: 0 | AU24: 0 | AW24: 0 | AY24: 0 | BA24: 0 | BC24: 0 | BE24: 0 | BG24: 0 | BI24: 0 | BK24: 0 | BM24: 0 | BO24: 0 | BQ24: 0 | BS24: 0 | BU24: 0 | BW24: 0 | BY24: 0 | CA24: 0 | CC24: 0 | CE24: 0 | CG24: 0 | CI24: 0 | CK24: 0 | CM24: 0 | CO24: 0 | CQ24: 0 | CS24: 0 | CU24: 0 | CW24: 0 | CY24: 0 | DA24: 0 | DC24: 0 | DE24: 0 | DG24: 0 | DI24: 0 | DK24: 0 | DM24: 0 | DO24: 0 | DQ24: 0 | DS24: 0 | DU24: 0 | DW24: 0 | DY24: 0 | EA24: 0
D25: Blusa feminina na cor branca, 100% algodão | E25: 3 | F25: =F24 -> 0.6153846154 | G25: 52 | H25: 96 | I25: 75 | M25: 138.4615385 | O25: =IF(SUM(N$8:N$13)>0,$H25*$I25,0)/SUM($I$9:$I$12) -> 138.4615385 | Q25: 138.4615385 | S25: 138.4615385 | U25: 0 | W25: 0 | Y25: 0 | AA25: 0 | AC25: 0 | AE25: 0 | AG25: 0 | AI25: 0 | AK25: 0 | AM25: 0 | AO25: 0 | AQ25: 0 | AS25: 0 | AU25: 0 | AW25: 0 | AY25: 0 | BA25: 0 | BC25: 0 | BE25: 0 | BG25: 0 | BI25: 0 | BK25: 0 | BM25: 0 | BO25: 0 | BQ25: 0 | BS25: 0 | BU25: 0 | BW25: 0 | BY25: 0 | CA25: 0 | CC25: 0 | CE25: 0 | CG25: 0 | CI25: 0 | CK25: 0 | CM25: 0 | CO25: 0 | CQ25: 0 | CS25: 0 | CU25: 0 | CW25: 0 | CY25: 0 | DA25: 0 | DC25: 0 | DE25: 0 | DG25: 0 | DI25: 0 | DK25: 0 | DM25: 0 | DO25: 0 | DQ25: 0 | DS25: 0 | DU25: 0 | DW25: 0 | DY25: 0 | EA25: 0
D26: Meia feminina preta | E26: 3 | F26: 0.6153846154 | G26: 52 | H26: 96 | I26: 11.87333333 | M26: 21.92 | O26: =IF(SUM(N$8:N$13)>0,$H26*$I26,0)/SUM($I$9:$I$12) -> 21.92 | Q26: 21.92 | S26: 21.92 | U26: 0 | W26: 0 | Y26: 0 | AA26: 0 | AC26: 0 | AE26: 0 | AG26: 0 | AI26: 0 | AK26: 0 | AM26: 0 | AO26: 0 | AQ26: 0 | AS26: 0 | AU26: 0 | AW26: 0 | AY26: 0 | BA26: 0 | BC26: 0 | BE26: 0 | BG26: 0 | BI26: 0 | BK26: 0 | BM26: 0 | BO26: 0 | BQ26: 0 | BS26: 0 | BU26: 0 | BW26: 0 | BY26: 0 | CA26: 0 | CC26: 0 | CE26: 0 | CG26: 0 | CI26: 0 | CK26: 0 | CM26: 0 | CO26: 0 | CQ26: 0 | CS26: 0 | CU26: 0 | CW26: 0 | CY26: 0 | DA26: 0 | DC26: 0 | DE26: 0 | DG26: 0 | DI26: 0 | DK26: 0 | DM26: 0 | DO26: 0 | DQ26: 0 | DS26: 0 | DU26: 0 | DW26: 0 | DY26: 0 | EA26: 0
D27: Sapato social feminino em couro com palmilha com gel, na cor preta | E27: 3 | F27: 0.6153846154 | G27: 52 | H27: 96 | I27: 92.66666667 | M27: 171.0769231 | O27: =IF(SUM(N$8:N$13)>0,$H27*$I27,0)/SUM($I$9:$I$12) -> 171.0769231 | Q27: 171.0769231 | S27: 171.0769231 | U27: 0 | W27: 0 | Y27: 0 | AA27: 0 | AC27: 0 | AE27: 0 | AG27: 0 | AI27: 0 | AK27: 0 | AM27: 0 | AO27: 0 | AQ27: 0 | AS27: 0 | AU27: 0 | AW27: 0 | AY27: 0 | BA27: 0 | BC27: 0 | BE27: 0 | BG27: 0 | BI27: 0 | BK27: 0 | BM27: 0 | BO27: 0 | BQ27: 0 | BS27: 0 | BU27: 0 | BW27: 0 | BY27: 0 | CA27: 0 | CC27: 0 | CE27: 0 | CG27: 0 | CI27: 0 | CK27: 0 | CM27: 0 | CO27: 0 | CQ27: 0 | CS27: 0 | CU27: 0 | CW27: 0 | CY27: 0 | DA27: 0 | DC27: 0 | DE27: 0 | DG27: 0 | DI27: 0 | DK27: 0 | DM27: 0 | DO27: 0 | DQ27: 0 | DS27: 0 | DU27: 0 | DW27: 0 | DY27: 0 | EA27: 0
M28: =IF(SUM(L$8:L$13)>0,$E28*$I28,0) -> 0 | O28: =IF(SUM(N$8:N$13)>0,$E28*$I28,0) -> 0 | Q28: =IF(SUM(P$8:P$13)>0,$E28*$I28,0) -> 0 | S28: =IF(SUM(R$8:R$13)>0,$E28*$I28,0) -> 0 | U28: =IF(SUM(T$8:T$13)>0,$E28*$I28,0) -> 0 | W28: =IF(SUM(V$8:V$13)>0,$E28*$I28,0) -> 0 | Y28: =IF(SUM(X$8:X$13)>0,$E28*$I28,0) -> 0 | AA28: =IF(SUM(Z$8:Z$13)>0,$E28*$I28,0) -> 0 | AC28: =IF(SUM(AB$8:AB$13)>0,$E28*$I28,0) -> 0 | AE28: =IF(SUM(AD$8:AD$13)>0,$E28*$I28,0) -> 0 | AG28: =IF(SUM(AF$8:AF$13)>0,$E28*$I28,0) -> 0 | AI28: =IF(SUM(AH$8:AH$13)>0,$E28*$I28,0) -> 0 | AK28: =IF(SUM(AJ$8:AJ$13)>0,$E28*$I28,0) -> 0 | AM28: =IF(SUM(AL$8:AL$13)>0,$E28*$I28,0) -> 0 | AO28: =IF(SUM(AN$8:AN$13)>0,$E28*$I28,0) -> 0 | AQ28: =IF(SUM(AP$8:AP$13)>0,$E28*$I28,0) -> 0 | AS28: =IF(SUM(AR$8:AR$13)>0,$E28*$I28,0) -> 0 | AU28: =IF(SUM(AT$8:AT$13)>0,$E28*$I28,0) -> 0 | AW28: =IF(SUM(AV$8:AV$13)>0,$E28*$I28,0) -> 0 | AY28: =IF(SUM(AX$8:AX$13)>0,$E28*$I28,0) -> 0 | BA28: =IF(SUM(AZ$8:AZ$13)>0,$E28*$I28,0) -> 0 | BC28: =IF(SUM(BB$8:BB$13)>0,$E28*$I28,0) -> 0 | BE28: =IF(SUM(BD$8:BD$13)>0,$E28*$I28,0) -> 0 | BG28: =IF(SUM(BF$8:BF$13)>0,$E28*$I28,0) -> 0 | BI28: =IF(SUM(BH$8:BH$13)>0,$E28*$I28,0) -> 0 | BK28: =IF(SUM(BJ$8:BJ$13)>0,$E28*$I28,0) -> 0 | BM28: =IF(SUM(BL$8:BL$13)>0,$E28*$I28,0) -> 0 | BO28: =IF(SUM(BN$8:BN$13)>0,$E28*$I28,0) -> 0 | BQ28: =IF(SUM(BP$8:BP$13)>0,$E28*$I28,0) -> 0 | BS28: =IF(SUM(BR$8:BR$13)>0,$E28*$I28,0) -> 0 | BU28: =IF(SUM(BT$8:BT$13)>0,$E28*$I28,0) -> 0 | BW28: =IF(SUM(BV$8:BV$13)>0,$E28*$I28,0) -> 0 | BY28: =IF(SUM(BX$8:BX$13)>0,$E28*$I28,0) -> 0 | CA28: =IF(SUM(BZ$8:BZ$13)>0,$E28*$I28,0) -> 0 | CC28: =IF(SUM(CB$8:CB$13)>0,$E28*$I28,0) -> 0 | CE28: =IF(SUM(CD$8:CD$13)>0,$E28*$I28,0) -> 0 | CG28: =IF(SUM(CF$8:CF$13)>0,$E28*$I28,0) -> 0 | CI28: =IF(SUM(CH$8:CH$13)>0,$E28*$I28,0) -> 0 | CK28: =IF(SUM(CJ$8:CJ$13)>0,$E28*$I28,0) -> 0 | CM28: =IF(SUM(CL$8:CL$13)>0,$E28*$I28,0) -> 0 | CO28: =IF(SUM(CN$8:CN$13)>0,$E28*$I28,0) -> 0 | CQ28: =IF(SUM(CP$8:CP$13)>0,$E28*$I28,0) -> 0 | CS28: =IF(SUM(CR$8:CR$13)>0,$E28*$I28,0) -> 0 | CU28: =IF(SUM(CT$8:CT$13)>0,$E28*$I28,0) -> 0 | CW28: =IF(SUM(CV$8:CV$13)>0,$E28*$I28,0) -> 0 | CY28: =IF(SUM(CX$8:CX$13)>0,$E28*$I28,0) -> 0 | DA28: =IF(SUM(CZ$8:CZ$13)>0,$E28*$I28,0) -> 0 | DC28: =IF(SUM(DB$8:DB$13)>0,$E28*$I28,0) -> 0 | DE28: =IF(SUM(DD$8:DD$13)>0,$E28*$I28,0) -> 0 | DG28: =IF(SUM(DF$8:DF$13)>0,$E28*$I28,0) -> 0 | DI28: =IF(SUM(DH$8:DH$13)>0,$E28*$I28,0) -> 0 | DK28: =IF(SUM(DJ$8:DJ$13)>0,$E28*$I28,0) -> 0 | DM28: =IF(SUM(DL$8:DL$13)>0,$E28*$I28,0) -> 0 | DO28: =IF(SUM(DN$8:DN$13)>0,$E28*$I28,0) -> 0 | DQ28: =IF(SUM(DP$8:DP$13)>0,$E28*$I28,0) -> 0 | DS28: =IF(SUM(DR$8:DR$13)>0,$E28*$I28,0) -> 0 | DU28: =IF(SUM(DT$8:DT$13)>0,$E28*$I28,0) -> 0 | DW28: =IF(SUM(DV$8:DV$13)>0,$E28*$I28,0) -> 0 | DY28: =IF(SUM(DX$8:DX$13)>0,$E28*$I28,0) -> 0 | EA28: =IF(SUM(DZ$8:DZ$13)>0,$E28*$I28,0) -> 0
C30: CATEGORIAS | I30: QUANTIDADE
L31: =IF($C31=L$4,1,0) -> 0 | N31: =IF($C31=N$4,1,0) -> 0 | P31: =IF($C31=P$4,1,0) -> 0 | R31: =IF($C31=R$4,1,0) -> 0 | T31: =IF($C31=T$4,1,0) -> 0 | V31: =IF($C31=V$4,1,0) -> 0 | X31: =IF($C31=X$4,1,0) -> 0 | Z31: =IF($C31=Z$4,1,0) -> 0 | AB31: =IF($C31=AB$4,1,0) -> 0 | AD31: =IF($C31=AD$4,1,0) -> 0 | AF31: 0 | AH31: 0 | AJ31: 0 | AL31: 0 | AN31: 0 | AP31: 0 | AR31: 0 | AT31: 0 | AV31: 0 | AX31: 0 | AZ31: 0 | BB31: 0 | BD31: 0 | BF31: 0 | BH31: 0 | BJ31: 0 | BL31: 0 | BN31: 0 | BP31: 0 | BR31: 0 | BT31: 0 | BV31: 0 | BX31: 0 | BZ31: 0 | CB31: 0 | CD31: 0 | CF31: 0 | CH31: 0 | CJ31: 0 | CL31: 0 | CN31: 0 | CP31: =IF($C31=CP$4,1,0) -> 0 | CR31: 0 | CT31: 0 | CV31: 0 | CX31: 0 | CZ31: 0 | DB31: 0 | DD31: 0 | DF31: 0 | DH31: 0 | DJ31: 0 | DL31: 0 | DN31: 0 | DP31: 0 | DR31: 0 | DT31: 0 | DV31: 0 | DX31: 0 | DZ31: 0
D32: =HLOOKUP($C32,'Dados Gerais'!$D$5:$BK$10,6) ->  | I32: =HLOOKUP($C32,'Dados Gerais'!$D$5:$BK$14,10) ->  | L32: =IF($C32=L$4,1,0) -> 0 | N32: 0 | P32: 0 | R32: 0 | T32: 0 | V32: 0 | X32: 0 | Z32: 0 | AB32: 0 | AD32: 0 | AF32: 0 | AH32: 0 | AJ32: 0 | AL32: 0 | AN32: 0 | AP32: 0 | AR32: 0 | AT32: 0 | AV32: 0 | AX32: 0 | AZ32: 0 | BB32: 0 | BD32: 0 | BF32: 0 | BH32: 0 | BJ32: 0 | BL32: 0 | BN32: 0 | BP32: 0 | BR32: 0 | BT32: 0 | BV32: 0 | BX32: 0 | BZ32: 0 | CB32: 0 | CD32: 0 | CF32: 0 | CH32: 0 | CJ32: 0 | CL32: 0 | CN32: 0 | CP32: 0 | CR32: 0 | CT32: 0 | CV32: 0 | CX32: 0 | CZ32: 0 | DB32: 0 | DD32: 0 | DF32: 0 | DH32: 0 | DJ32: 0 | DL32: 0 | DN32: 0 | DP32: 0 | DR32: 0 | DT32: 0 | DV32: 0 | DX32: 0 | DZ32: 0
D33: =HLOOKUP($C33,'Dados Gerais'!$D$5:$BK$10,6) ->  | I33: =HLOOKUP($C33,'Dados Gerais'!$D$5:$BK$14,10) ->  | L33: 0 | N33: 0 | P33: 0 | R33: =IF($C33=R$4,1,0) -> 0 | T33: 0 | V33: 0 | X33: 0 | Z33: 0 | AB33: 0 | AD33: 0 | AF33: 0 | AH33: 0 | AJ33: 0 | AL33: 0 | AN33: 0 | AP33: 0 | AR33: 0 | AT33: 0 | AV33: 0 | AX33: 0 | AZ33: 0 | BB33: 0 | BD33: 0 | BF33: 0 | BH33: 0 | BJ33: 0 | BL33: 0 | BN33: 0 | BP33: 0 | BR33: 0 | BT33: 0 | BV33: 0 | BX33: 0 | BZ33: 0 | CB33: 0 | CD33: 0 | CF33: 0 | CH33: 0 | CJ33: 0 | CL33: 0 | CN33: 0 | CP33: 0 | CR33: 0 | CT33: 0 | CV33: 0 | CX33: 0 | CZ33: 0 | DB33: 0 | DD33: 0 | DF33: 0 | DH33: 0 | DJ33: 0 | DL33: 0 | DN33: 0 | DP33: 0 | DR33: 0 | DT33: 0 | DV33: 0 | DX33: 0 | DZ33: 0
L34: =IF($C34=L$4,1,0) -> 0 | N34: =IF($C34=N$4,1,0) -> 0 | P34: =IF($C34=P$4,1,0) -> 0 | R34: 0 | T34: 0 | V34: 0 | X34: 0 | Z34: 0 | AB34: 0 | AD34: 0 | AF34: =IF($C34=AF$4,1,0) -> 0 | AH34: 0 | AJ34: 0 | AL34: 0 | AN34: 0 | AP34: 0 | AR34: 0 | AT34: 0 | AV34: 0 | AX34: 0 | AZ34: 0 | BB34: 0 | BD34: 0 | BF34: 0 | BH34: 0 | BJ34: 0 | BL34: 0 | BN34: 0 | BP34: 0 | BR34: 0 | BT34: 0 | BV34: 0 | BX34: 0 | BZ34: 0 | CB34: 0 | CD34: 0 | CF34: 0 | CH34: 0 | CJ34: 0 | CL34: 0 | CN34: 0 | CP34: 0 | CR34: 0 | CT34: 0 | CV34: 0 | CX34: 0 | CZ34: 0 | DB34: 0 | DD34: 0 | DF34: 0 | DH34: 0 | DJ34: 0 | DL34: 0 | DN34: 0 | DP34: 0 | DR34: 0 | DT34: 0 | DV34: 0 | DX34: 0 | DZ34: 0
C36: ITEM | D36: DESCRIÇÃO | E36: QUANT ANUAL POR POSTO | G36: Nº DE POSTOS | H36: QUANT ANUAL TOTAL | I36: VALOR
M37: =IF(SUM(L$8:L$13)>0,$E37*$I37,0) -> 0 | O37: =IF(SUM(N$8:N$13)>0,$E37*$I37,0) -> 0 | Q37: =IF(SUM(P$8:P$13)>0,$E37*$I37,0) -> 0 | S37: =IF(SUM(R$8:R$13)>0,$E37*$I37,0) -> 0 | U37: =IF(SUM(T$8:T$13)>0,$E37*$I37,0) -> 0 | W37: =IF(SUM(V$8:V$13)>0,$E37*$I37,0) -> 0 | Y37: =IF(SUM(X$8:X$13)>0,$E37*$I37,0) -> 0 | AA37: =IF(SUM(Z$8:Z$13)>0,$E37*$I37,0) -> 0 | AC37: =IF(SUM(AB$8:AB$13)>0,$E37*$I37,0) -> 0 | AE37: =IF(SUM(AD$8:AD$13)>0,$E37*$I37,0) -> 0 | AG37: =IF(SUM(AF$8:AF$13)>0,$E37*$I37,0) -> 0 | AI37: =IF(SUM(AH$8:AH$13)>0,$E37*$I37,0) -> 0 | AK37: =IF(SUM(AJ$8:AJ$13)>0,$E37*$I37,0) -> 0 | AM37: =IF(SUM(AL$8:AL$13)>0,$E37*$I37,0) -> 0 | AO37: =IF(SUM(AN$8:AN$13)>0,$E37*$I37,0) -> 0 | AQ37: =IF(SUM(AP$8:AP$13)>0,$E37*$I37,0) -> 0 | AS37: =IF(SUM(AR$8:AR$13)>0,$E37*$I37,0) -> 0 | AU37: =IF(SUM(AT$8:AT$13)>0,$E37*$I37,0) -> 0 | AW37: =IF(SUM(AV$8:AV$13)>0,$E37*$I37,0) -> 0 | AY37: =IF(SUM(AX$8:AX$13)>0,$E37*$I37,0) -> 0 | BA37: =IF(SUM(AZ$8:AZ$13)>0,$E37*$I37,0) -> 0 | BC37: =IF(SUM(BB$8:BB$13)>0,$E37*$I37,0) -> 0 | BE37: =IF(SUM(BD$8:BD$13)>0,$E37*$I37,0) -> 0 | BG37: =IF(SUM(BF$8:BF$13)>0,$E37*$I37,0) -> 0 | BI37: =IF(SUM(BH$8:BH$13)>0,$E37*$I37,0) -> 0 | BK37: =IF(SUM(BJ$8:BJ$13)>0,$E37*$I37,0) -> 0 | BM37: =IF(SUM(BL$8:BL$13)>0,$E37*$I37,0) -> 0 | BO37: =IF(SUM(BN$8:BN$13)>0,$E37*$I37,0) -> 0 | BQ37: =IF(SUM(BP$8:BP$13)>0,$E37*$I37,0) -> 0 | BS37: =IF(SUM(BR$8:BR$13)>0,$E37*$I37,0) -> 0 | BU37: =IF(SUM(BT$8:BT$13)>0,$E37*$I37,0) -> 0 | BW37: =IF(SUM(BV$8:BV$13)>0,$E37*$I37,0) -> 0 | BY37: =IF(SUM(BX$8:BX$13)>0,$E37*$I37,0) -> 0 | CA37: =IF(SUM(BZ$8:BZ$13)>0,$E37*$I37,0) -> 0 | CC37: =IF(SUM(CB$8:CB$13)>0,$E37*$I37,0) -> 0 | CE37: =IF(SUM(CD$8:CD$13)>0,$E37*$I37,0) -> 0 | CG37: =IF(SUM(CF$8:CF$13)>0,$E37*$I37,0) -> 0 | CI37: =IF(SUM(CH$8:CH$13)>0,$E37*$I37,0) -> 0 | CK37: =IF(SUM(CJ$8:CJ$13)>0,$E37*$I37,0) -> 0 | CM37: =IF(SUM(CL$8:CL$13)>0,$E37*$I37,0) -> 0 | CO37: =IF(SUM(CN$8:CN$13)>0,$E37*$I37,0) -> 0 | CQ37: =IF(SUM(CP$8:CP$13)>0,$E37*$I37,0) -> 0 | CS37: =IF(SUM(CR$8:CR$13)>0,$E37*$I37,0) -> 0 | CU37: =IF(SUM(CT$8:CT$13)>0,$E37*$I37,0) -> 0 | CW37: =IF(SUM(CV$8:CV$13)>0,$E37*$I37,0) -> 0 | CY37: =IF(SUM(CX$8:CX$13)>0,$E37*$I37,0) -> 0 | DA37: =IF(SUM(CZ$8:CZ$13)>0,$E37*$I37,0) -> 0 | DC37: =IF(SUM(DB$8:DB$13)>0,$E37*$I37,0) -> 0 | DE37: =IF(SUM(DD$8:DD$13)>0,$E37*$I37,0) -> 0 | DG37: =IF(SUM(DF$8:DF$13)>0,$E37*$I37,0) -> 0 | DI37: =IF(SUM(DH$8:DH$13)>0,$E37*$I37,0) -> 0 | DK37: =IF(SUM(DJ$8:DJ$13)>0,$E37*$I37,0) -> 0 | DM37: =IF(SUM(DL$8:DL$13)>0,$E37*$I37,0) -> 0 | DO37: =IF(SUM(DN$8:DN$13)>0,$E37*$I37,0) -> 0 | DQ37: =IF(SUM(DP$8:DP$13)>0,$E37*$I37,0) -> 0 | DS37: =IF(SUM(DR$8:DR$13)>0,$E37*$I37,0) -> 0 | DU37: =IF(SUM(DT$8:DT$13)>0,$E37*$I37,0) -> 0 | DW37: =IF(SUM(DV$8:DV$13)>0,$E37*$I37,0) -> 0 | DY37: =IF(SUM(DX$8:DX$13)>0,$E37*$I37,0) -> 0 | EA37: =IF(SUM(DZ$8:DZ$13)>0,$E37*$I37,0) -> 0
C38: 7 | E38: 4 | G38: =I32+I33 ->  | H38: =G38*E38 ->  | M38: =IF(SUM(L$32:L$34)>0,$E38*$I38,0) -> 0 | O38: =IF(SUM(N$32:N$34)>0,$E38*$I38,0) -> 0 | Q38: =IF(SUM(P$32:P$34)>0,$E38*$I38,0) -> 0 | S38: =IF(SUM(R$32:R$34)>0,$E38*$I38,0) -> 0 | U38: =IF(SUM(T$32:T$34)>0,$E38*$I38,0) -> 0 | W38: =IF(SUM(V$32:V$34)>0,$E38*$I38,0) -> 0 | Y38: =IF(SUM(X$32:X$34)>0,$E38*$I38,0) -> 0 | AA38: =IF(SUM(Z$32:Z$34)>0,$E38*$I38,0) -> 0 | AC38: =IF(SUM(AB$32:AB$34)>0,$E38*$I38,0) -> 0 | AE38: =IF(SUM(AD$32:AD$34)>0,$E38*$I38,0) -> 0 | AG38: =IF(SUM(AF$32:AF$34)>0,$E38*$I38,0) -> 0 | AI38: =IF(SUM(AH$32:AH$34)>0,$E38*$I38,0) -> 0 | AK38: =IF(SUM(AJ$32:AJ$34)>0,$E38*$I38,0) -> 0 | AM38: =IF(SUM(AL$32:AL$34)>0,$E38*$I38,0) -> 0 | AO38: =IF(SUM(AN$32:AN$34)>0,$E38*$I38,0) -> 0 | AQ38: =IF(SUM(AP$32:AP$34)>0,$E38*$I38,0) -> 0 | AS38: =IF(SUM(AR$32:AR$34)>0,$E38*$I38,0) -> 0 | AU38: =IF(SUM(AT$32:AT$34)>0,$E38*$I38,0) -> 0 | AW38: =IF(SUM(AV$32:AV$34)>0,$E38*$I38,0) -> 0 | AY38: =IF(SUM(AX$32:AX$34)>0,$E38*$I38,0) -> 0 | BA38: =IF(SUM(AZ$32:AZ$34)>0,$E38*$I38,0) -> 0 | BC38: =IF(SUM(BB$32:BB$34)>0,$E38*$I38,0) -> 0 | BE38: =IF(SUM(BD$32:BD$34)>0,$E38*$I38,0) -> 0 | BG38: =IF(SUM(BF$32:BF$34)>0,$E38*$I38,0) -> 0 | BI38: =IF(SUM(BH$32:BH$34)>0,$E38*$I38,0) -> 0 | BK38: =IF(SUM(BJ$32:BJ$34)>0,$E38*$I38,0) -> 0 | BM38: =IF(SUM(BL$32:BL$34)>0,$E38*$I38,0) -> 0 | BO38: =IF(SUM(BN$32:BN$34)>0,$E38*$I38,0) -> 0 | BQ38: =IF(SUM(BP$32:BP$34)>0,$E38*$I38,0) -> 0 | BS38: =IF(SUM(BR$32:BR$34)>0,$E38*$I38,0) -> 0 | BU38: =IF(SUM(BT$32:BT$34)>0,$E38*$I38,0) -> 0 | BW38: =IF(SUM(BV$32:BV$34)>0,$E38*$I38,0) -> 0 | BY38: =IF(SUM(BX$32:BX$34)>0,$E38*$I38,0) -> 0 | CA38: =IF(SUM(BZ$32:BZ$34)>0,$E38*$I38,0) -> 0 | CC38: =IF(SUM(CB$32:CB$34)>0,$E38*$I38,0) -> 0 | CE38: =IF(SUM(CD$32:CD$34)>0,$E38*$I38,0) -> 0 | CG38: =IF(SUM(CF$32:CF$34)>0,$E38*$I38,0) -> 0 | CI38: =IF(SUM(CH$32:CH$34)>0,$E38*$I38,0) -> 0 | CK38: =IF(SUM(CJ$32:CJ$34)>0,$E38*$I38,0) -> 0 | CM38: =IF(SUM(CL$32:CL$34)>0,$E38*$I38,0) -> 0 | CO38: =IF(SUM(CN$32:CN$34)>0,$E38*$I38,0) -> 0 | CQ38: =IF(SUM(CP$32:CP$34)>0,$E38*$I38,0) -> 0 | CS38: =IF(SUM(CR$32:CR$34)>0,$E38*$I38,0) -> 0 | CU38: =IF(SUM(CT$32:CT$34)>0,$E38*$I38,0) -> 0 | CW38: =IF(SUM(CV$32:CV$34)>0,$E38*$I38,0) -> 0 | CY38: =IF(SUM(CX$32:CX$34)>0,$E38*$I38,0) -> 0 | DA38: =IF(SUM(CZ$32:CZ$34)>0,$E38*$I38,0) -> 0 | DC38: =IF(SUM(DB$32:DB$34)>0,$E38*$I38,0) -> 0 | DE38: =IF(SUM(DD$32:DD$34)>0,$E38*$I38,0) -> 0 | DG38: =IF(SUM(DF$32:DF$34)>0,$E38*$I38,0) -> 0 | DI38: =IF(SUM(DH$32:DH$34)>0,$E38*$I38,0) -> 0 | DK38: =IF(SUM(DJ$32:DJ$34)>0,$E38*$I38,0) -> 0 | DM38: =IF(SUM(DL$32:DL$34)>0,$E38*$I38,0) -> 0 | DO38: =IF(SUM(DN$32:DN$34)>0,$E38*$I38,0) -> 0 | DQ38: =IF(SUM(DP$32:DP$34)>0,$E38*$I38,0) -> 0 | DS38: =IF(SUM(DR$32:DR$34)>0,$E38*$I38,0) -> 0 | DU38: =IF(SUM(DT$32:DT$34)>0,$E38*$I38,0) -> 0 | DW38: =IF(SUM(DV$32:DV$34)>0,$E38*$I38,0) -> 0 | DY38: =IF(SUM(DX$32:DX$34)>0,$E38*$I38,0) -> 0 | EA38: =IF(SUM(DZ$32:DZ$34)>0,$E38*$I38,0) -> 0
C39: 8 | E39: =E38 -> 4 | G39: =G38 ->  | M39: 0 | O39: 0 | Q39: 0 | S39: 0 | U39: 0 | W39: 0 | Y39: 0 | AA39: 0 | AC39: 0 | AE39: 0 | AG39: 0 | AI39: 0 | AK39: 0 | AM39: 0 | AO39: 0 | AQ39: 0 | AS39: 0 | AU39: 0 | AW39: 0 | AY39: 0 | BA39: 0 | BC39: 0 | BE39: 0 | BG39: 0 | BI39: 0 | BK39: 0 | BM39: 0 | BO39: 0 | BQ39: 0 | BS39: 0 | BU39: 0 | BW39: 0 | BY39: 0 | CA39: 0 | CC39: 0 | CE39: 0 | CG39: 0 | CI39: 0 | CK39: 0 | CM39: 0 | CO39: 0 | CQ39: 0 | CS39: 0 | CU39: 0 | CW39: 0 | CY39: 0 | DA39: 0 | DC39: 0 | DE39: 0 | DG39: 0 | DI39: 0 | DK39: 0 | DM39: 0 | DO39: 0 | DQ39: 0 | DS39: 0 | DU39: 0 | DW39: 0 | DY39: 0 | EA39: 0
C40: 9 | E40: =E39 -> 4 | G40: =G39 ->  | M40: 0 | O40: 0 | Q40: 0 | S40: 0 | U40: 0 | W40: 0 | Y40: 0 | AA40: 0 | AC40: 0 | AE40: 0 | AG40: 0 | AI40: 0 | AK40: 0 | AM40: 0 | AO40: 0 | AQ40: 0 | AS40: 0 | AU40: 0 | AW40: 0 | AY40: 0 | BA40: 0 | BC40: 0 | BE40: 0 | BG40: 0 | BI40: 0 | BK40: 0 | BM40: 0 | BO40: 0 | BQ40: 0 | BS40: 0 | BU40: 0 | BW40: 0 | BY40: 0 | CA40: 0 | CC40: 0 | CE40: 0 | CG40: 0 | CI40: 0 | CK40: 0 | CM40: 0 | CO40: 0 | CQ40: 0 | CS40: 0 | CU40: 0 | CW40: 0 | CY40: 0 | DA40: 0 | DC40: 0 | DE40: 0 | DG40: 0 | DI40: 0 | DK40: 0 | DM40: 0 | DO40: 0 | DQ40: 0 | DS40: 0 | DU40: 0 | DW40: 0 | DY40: 0 | EA40: 0
C41: 10 | E41: 4 | M41: 0 | O41: 0 | Q41: 0 | S41: 0 | U41: 0 | W41: 0 | Y41: 0 | AA41: 0 | AC41: 0 | AE41: 0 | AG41: 0 | AI41: 0 | AK41: 0 | AM41: 0 | AO41: 0 | AQ41: 0 | AS41: 0 | AU41: 0 | AW41: 0 | AY41: 0 | BA41: 0 | BC41: 0 | BE41: 0 | BG41: 0 | BI41: 0 | BK41: 0 | BM41: 0 | BO41: 0 | BQ41: 0 | BS41: 0 | BU41: 0 | BW41: 0 | BY41: 0 | CA41: 0 | CC41: 0 | CE41: 0 | CG41: 0 | CI41: 0 | CK41: 0 | CM41: 0 | CO41: 0 | CQ41: 0 | CS41: 0 | CU41: 0 | CW41: 0 | CY41: 0 | DA41: 0 | DC41: 0 | DE41: 0 | DG41: 0 | DI41: 0 | DK41: 0 | DM41: 0 | DO41: 0 | DQ41: 0 | DS41: 0 | DU41: 0 | DW41: 0 | DY41: 0 | EA41: 0
C42: 11 | E42: 4 | M42: 0 | O42: 0 | Q42: 0 | S42: 0 | U42: 0 | W42: 0 | Y42: 0 | AA42: 0 | AC42: 0 | AE42: 0 | AG42: 0 | AI42: 0 | AK42: 0 | AM42: 0 | AO42: 0 | AQ42: 0 | AS42: 0 | AU42: 0 | AW42: 0 | AY42: 0 | BA42: 0 | BC42: 0 | BE42: 0 | BG42: 0 | BI42: 0 | BK42: 0 | BM42: 0 | BO42: 0 | BQ42: 0 | BS42: 0 | BU42: 0 | BW42: 0 | BY42: 0 | CA42: 0 | CC42: 0 | CE42: 0 | CG42: 0 | CI42: 0 | CK42: 0 | CM42: 0 | CO42: 0 | CQ42: 0 | CS42: 0 | CU42: 0 | CW42: 0 | CY42: 0 | DA42: 0 | DC42: 0 | DE42: 0 | DG42: 0 | DI42: 0 | DK42: 0 | DM42: 0 | DO42: 0 | DQ42: 0 | DS42: 0 | DU42: 0 | DW42: 0 | DY42: 0 | EA42: 0
C43: 12 | E43: 4 | M43: 0 | O43: 0 | Q43: 0 | S43: 0 | U43: 0 | W43: 0 | Y43: 0 | AA43: 0 | AC43: 0 | AE43: 0 | AG43: 0 | AI43: 0 | AK43: 0 | AM43: 0 | AO43: 0 | AQ43: 0 | AS43: 0 | AU43: 0 | AW43: 0 | AY43: 0 | BA43: 0 | BC43: 0 | BE43: 0 | BG43: 0 | BI43: 0 | BK43: 0 | BM43: 0 | BO43: 0 | BQ43: 0 | BS43: 0 | BU43: 0 | BW43: 0 | BY43: 0 | CA43: 0 | CC43: 0 | CE43: 0 | CG43: 0 | CI43: 0 | CK43: 0 | CM43: 0 | CO43: 0 | CQ43: 0 | CS43: 0 | CU43: 0 | CW43: 0 | CY43: 0 | DA43: 0 | DC43: 0 | DE43: 0 | DG43: 0 | DI43: 0 | DK43: 0 | DM43: 0 | DO43: 0 | DQ43: 0 | DS43: 0 | DU43: 0 | DW43: 0 | DY43: 0 | EA43: 0
M44: 0 | O44: 0 | Q44: 0 | S44: 0 | U44: 0 | W44: 0 | Y44: 0 | AA44: 0 | AC44: 0 | AE44: 0 | AG44: 0 | AI44: 0 | AK44: 0 | AM44: 0 | AO44: 0 | AQ44: 0 | AS44: 0 | AU44: 0 | AW44: 0 | AY44: 0 | BA44: 0 | BC44: 0 | BE44: 0 | BG44: 0 | BI44: 0 | BK44: 0 | BM44: 0 | BO44: 0 | BQ44: 0 | BS44: 0 | BU44: 0 | BW44: 0 | BY44: 0 | CA44: 0 | CC44: 0 | CE44: 0 | CG44: 0 | CI44: 0 | CK44: 0 | CM44: 0 | CO44: 0 | CQ44: 0 | CS44: 0 | CU44: 0 | CW44: 0 | CY44: 0 | DA44: 0 | DC44: 0 | DE44: 0 | DG44: 0 | DI44: 0 | DK44: 0 | DM44: 0 | DO44: 0 | DQ44: 0 | DS44: 0 | DU44: 0 | DW44: 0 | DY44: 0 | EA44: 0
C45: CATEGORIAS | I45: QUANTIDADE
L46: =IF($C46=L$4,1,0) -> 0 | N46: =IF($C46=N$4,1,0) -> 0 | P46: =IF($C46=P$4,1,0) -> 0 | R46: =IF($C46=R$4,1,0) -> 0 | T46: =IF($C46=T$4,1,0) -> 0 | V46: =IF($C46=V$4,1,0) -> 0 | X46: =IF($C46=X$4,1,0) -> 0 | Z46: =IF($C46=Z$4,1,0) -> 0 | AB46: =IF($C46=AB$4,1,0) -> 0 | AD46: =IF($C46=AD$4,1,0) -> 0 | AF46: 0 | AH46: 0 | AJ46: 0 | AL46: 0 | AN46: 0 | AP46: 0 | AR46: 0 | AT46: 0 | AV46: 0 | AX46: 0 | AZ46: 0 | BB46: 0 | BD46: 0 | BF46: 0 | BH46: 0 | BJ46: 0 | BL46: 0 | BN46: 0 | BP46: 0 | BR46: 0 | BT46: 0 | BV46: 0 | BX46: 0 | BZ46: 0 | CB46: 0 | CD46: 0 | CF46: 0 | CH46: 0 | CJ46: 0 | CL46: 0 | CN46: 0 | CP46: =IF($C46=CP$4,1,0) -> 0 | CR46: 0 | CT46: 0 | CV46: 0 | CX46: 0 | CZ46: 0 | DB46: 0 | DD46: 0 | DF46: 0 | DH46: 0 | DJ46: 0 | DL46: 0 | DN46: 0 | DP46: 0 | DR46: 0 | DT46: 0 | DV46: 0 | DX46: 0 | DZ46: 0
D47: =HLOOKUP($C47,'Dados Gerais'!$D$5:$BK$10,6) ->  | I47: =HLOOKUP($C47,'Dados Gerais'!$D$5:$BK$14,10) ->  | L47: =IF($C47=L$4,1,0) -> 0 | N47: 0 | P47: 0 | R47: 0 | T47: 0 | V47: 0 | X47: 0 | Z47: 0 | AB47: 0 | AD47: 0 | AF47: 0 | AH47: 0 | AJ47: 0 | AL47: 0 | AN47: 0 | AP47: 0 | AR47: 0 | AT47: 0 | AV47: 0 | AX47: 0 | AZ47: 0 | BB47: 0 | BD47: 0 | BF47: 0 | BH47: 0 | BJ47: 0 | BL47: 0 | BN47: 0 | BP47: 0 | BR47: 0 | BT47: 0 | BV47: 0 | BX47: 0 | BZ47: 0 | CB47: 0 | CD47: 0 | CF47: 0 | CH47: 0 | CJ47: 0 | CL47: 0 | CN47: 0 | CP47: 0 | CR47: 0 | CT47: 0 | CV47: 0 | CX47: 0 | CZ47: 0 | DB47: 0 | DD47: 0 | DF47: 0 | DH47: 0 | DJ47: 0 | DL47: 0 | DN47: 0 | DP47: 0 | DR47: 0 | DT47: 0 | DV47: 0 | DX47: 0 | DZ47: 0
D48: =HLOOKUP($C48,'Dados Gerais'!$D$5:$BK$10,6) ->  | I48: =HLOOKUP($C48,'Dados Gerais'!$D$5:$BK$14,10) ->  | L48: 0 | N48: 0 | P48: 0 | R48: =IF($C48=R$4,1,0) -> 0 | T48: 0 | V48: 0 | X48: 0 | Z48: 0 | AB48: 0 | AD48: 0 | AF48: 0 | AH48: 0 | AJ48: 0 | AL48: 0 | AN48: 0 | AP48: 0 | AR48: 0 | AT48: 0 | AV48: 0 | AX48: 0 | AZ48: 0 | BB48: 0 | BD48: 0 | BF48: 0 | BH48: 0 | BJ48: 0 | BL48: 0 | BN48: 0 | BP48: 0 | BR48: 0 | BT48: 0 | BV48: 0 | BX48: 0 | BZ48: 0 | CB48: 0 | CD48: 0 | CF48: 0 | CH48: 0 | CJ48: 0 | CL48: 0 | CN48: 0 | CP48: 0 | CR48: 0 | CT48: 0 | CV48: 0 | CX48: 0 | CZ48: 0 | DB48: 0 | DD48: 0 | DF48: 0 | DH48: 0 | DJ48: 0 | DL48: 0 | DN48: 0 | DP48: 0 | DR48: 0 | DT48: 0 | DV48: 0 | DX48: 0 | DZ48: 0
L49: =IF($C49=L$4,1,0) -> 0 | N49: =IF($C49=N$4,1,0) -> 0 | P49: =IF($C49=P$4,1,0) -> 0 | R49: 0 | T49: 0 | V49: 0 | X49: 0 | Z49: 0 | AB49: 0 | AD49: 0 | AF49: =IF($C49=AF$4,1,0) -> 0 | AH49: 0 | AJ49: 0 | AL49: 0 | AN49: 0 | AP49: 0 | AR49: 0 | AT49: 0 | AV49: 0 | AX49: 0 | AZ49: 0 | BB49: 0 | BD49: 0 | BF49: 0 | BH49: 0 | BJ49: 0 | BL49: 0 | BN49: 0 | BP49: 0 | BR49: 0 | BT49: 0 | BV49: 0 | BX49: 0 | BZ49: 0 | CB49: 0 | CD49: 0 | CF49: 0 | CH49: 0 | CJ49: 0 | CL49: 0 | CN49: 0 | CP49: 0 | CR49: 0 | CT49: 0 | CV49: 0 | CX49: 0 | CZ49: 0 | DB49: 0 | DD49: 0 | DF49: 0 | DH49: 0 | DJ49: 0 | DL49: 0 | DN49: 0 | DP49: 0 | DR49: 0 | DT49: 0 | DV49: 0 | DX49: 0 | DZ49: 0
C51: ITEM | D51: DESCRIÇÃO | E51: QUANT ANUAL POR POSTO | G51: Nº DE POSTOS | H51: QUANT ANUAL TOTAL | I51: VALOR
M52: =IF(SUM(L$8:L$13)>0,$E52*$I52,0) -> 0 | O52: =IF(SUM(N$8:N$13)>0,$E52*$I52,0) -> 0 | Q52: =IF(SUM(P$8:P$13)>0,$E52*$I52,0) -> 0 | S52: =IF(SUM(R$8:R$13)>0,$E52*$I52,0) -> 0 | U52: =IF(SUM(T$8:T$13)>0,$E52*$I52,0) -> 0 | W52: =IF(SUM(V$8:V$13)>0,$E52*$I52,0) -> 0 | Y52: =IF(SUM(X$8:X$13)>0,$E52*$I52,0) -> 0 | AA52: =IF(SUM(Z$8:Z$13)>0,$E52*$I52,0) -> 0 | AC52: =IF(SUM(AB$8:AB$13)>0,$E52*$I52,0) -> 0 | AE52: =IF(SUM(AD$8:AD$13)>0,$E52*$I52,0) -> 0 | AG52: =IF(SUM(AF$8:AF$13)>0,$E52*$I52,0) -> 0 | AI52: =IF(SUM(AH$8:AH$13)>0,$E52*$I52,0) -> 0 | AK52: =IF(SUM(AJ$8:AJ$13)>0,$E52*$I52,0) -> 0 | AM52: =IF(SUM(AL$8:AL$13)>0,$E52*$I52,0) -> 0 | AO52: =IF(SUM(AN$8:AN$13)>0,$E52*$I52,0) -> 0 | AQ52: =IF(SUM(AP$8:AP$13)>0,$E52*$I52,0) -> 0 | AS52: =IF(SUM(AR$8:AR$13)>0,$E52*$I52,0) -> 0 | AU52: =IF(SUM(AT$8:AT$13)>0,$E52*$I52,0) -> 0 | AW52: =IF(SUM(AV$8:AV$13)>0,$E52*$I52,0) -> 0 | AY52: =IF(SUM(AX$8:AX$13)>0,$E52*$I52,0) -> 0 | BA52: =IF(SUM(AZ$8:AZ$13)>0,$E52*$I52,0) -> 0 | BC52: =IF(SUM(BB$8:BB$13)>0,$E52*$I52,0) -> 0 | BE52: =IF(SUM(BD$8:BD$13)>0,$E52*$I52,0) -> 0 | BG52: =IF(SUM(BF$8:BF$13)>0,$E52*$I52,0) -> 0 | BI52: =IF(SUM(BH$8:BH$13)>0,$E52*$I52,0) -> 0 | BK52: =IF(SUM(BJ$8:BJ$13)>0,$E52*$I52,0) -> 0 | BM52: =IF(SUM(BL$8:BL$13)>0,$E52*$I52,0) -> 0 | BO52: =IF(SUM(BN$8:BN$13)>0,$E52*$I52,0) -> 0 | BQ52: =IF(SUM(BP$8:BP$13)>0,$E52*$I52,0) -> 0 | BS52: =IF(SUM(BR$8:BR$13)>0,$E52*$I52,0) -> 0 | BU52: =IF(SUM(BT$8:BT$13)>0,$E52*$I52,0) -> 0 | BW52: =IF(SUM(BV$8:BV$13)>0,$E52*$I52,0) -> 0 | BY52: =IF(SUM(BX$8:BX$13)>0,$E52*$I52,0) -> 0 | CA52: =IF(SUM(BZ$8:BZ$13)>0,$E52*$I52,0) -> 0 | CC52: =IF(SUM(CB$8:CB$13)>0,$E52*$I52,0) -> 0 | CE52: =IF(SUM(CD$8:CD$13)>0,$E52*$I52,0) -> 0 | CG52: =IF(SUM(CF$8:CF$13)>0,$E52*$I52,0) -> 0 | CI52: =IF(SUM(CH$8:CH$13)>0,$E52*$I52,0) -> 0 | CK52: =IF(SUM(CJ$8:CJ$13)>0,$E52*$I52,0) -> 0 | CM52: =IF(SUM(CL$8:CL$13)>0,$E52*$I52,0) -> 0 | CO52: =IF(SUM(CN$8:CN$13)>0,$E52*$I52,0) -> 0 | CQ52: =IF(SUM(CP$8:CP$13)>0,$E52*$I52,0) -> 0 | CS52: =IF(SUM(CR$8:CR$13)>0,$E52*$I52,0) -> 0 | CU52: =IF(SUM(CT$8:CT$13)>0,$E52*$I52,0) -> 0 | CW52: =IF(SUM(CV$8:CV$13)>0,$E52*$I52,0) -> 0 | CY52: =IF(SUM(CX$8:CX$13)>0,$E52*$I52,0) -> 0 | DA52: =IF(SUM(CZ$8:CZ$13)>0,$E52*$I52,0) -> 0 | DC52: =IF(SUM(DB$8:DB$13)>0,$E52*$I52,0) -> 0 | DE52: =IF(SUM(DD$8:DD$13)>0,$E52*$I52,0) -> 0 | DG52: =IF(SUM(DF$8:DF$13)>0,$E52*$I52,0) -> 0 | DI52: =IF(SUM(DH$8:DH$13)>0,$E52*$I52,0) -> 0 | DK52: =IF(SUM(DJ$8:DJ$13)>0,$E52*$I52,0) -> 0 | DM52: =IF(SUM(DL$8:DL$13)>0,$E52*$I52,0) -> 0 | DO52: =IF(SUM(DN$8:DN$13)>0,$E52*$I52,0) -> 0 | DQ52: =IF(SUM(DP$8:DP$13)>0,$E52*$I52,0) -> 0 | DS52: =IF(SUM(DR$8:DR$13)>0,$E52*$I52,0) -> 0 | DU52: =IF(SUM(DT$8:DT$13)>0,$E52*$I52,0) -> 0 | DW52: =IF(SUM(DV$8:DV$13)>0,$E52*$I52,0) -> 0 | DY52: =IF(SUM(DX$8:DX$13)>0,$E52*$I52,0) -> 0 | EA52: =IF(SUM(DZ$8:DZ$13)>0,$E52*$I52,0) -> 0
C53: 13 | E53: 4 | G53: =I47+I48 ->  | H53: =G53*E53 ->  | M53: =IF(SUM(L$46:L$49)>0,$E53*$I53,0) -> 0 | O53: =IF(SUM(N$46:N$49)>0,$E53*$I53,0) -> 0 | Q53: =IF(SUM(P$46:P$49)>0,$E53*$I53,0) -> 0 | S53: =IF(SUM(R$46:R$49)>0,$E53*$I53,0) -> 0 | U53: =IF(SUM(T$46:T$49)>0,$E53*$I53,0) -> 0 | W53: =IF(SUM(V$46:V$49)>0,$E53*$I53,0) -> 0 | Y53: =IF(SUM(X$46:X$49)>0,$E53*$I53,0) -> 0 | AA53: =IF(SUM(Z$46:Z$49)>0,$E53*$I53,0) -> 0 | AC53: =IF(SUM(AB$46:AB$49)>0,$E53*$I53,0) -> 0 | AE53: =IF(SUM(AD$46:AD$49)>0,$E53*$I53,0) -> 0 | AG53: =IF(SUM(AF$46:AF$49)>0,$E53*$I53,0) -> 0 | AI53: =IF(SUM(AH$46:AH$49)>0,$E53*$I53,0) -> 0 | AK53: =IF(SUM(AJ$46:AJ$49)>0,$E53*$I53,0) -> 0 | AM53: =IF(SUM(AL$46:AL$49)>0,$E53*$I53,0) -> 0 | AO53: =IF(SUM(AN$46:AN$49)>0,$E53*$I53,0) -> 0 | AQ53: =IF(SUM(AP$46:AP$49)>0,$E53*$I53,0) -> 0 | AS53: =IF(SUM(AR$46:AR$49)>0,$E53*$I53,0) -> 0 | AU53: =IF(SUM(AT$46:AT$49)>0,$E53*$I53,0) -> 0 | AW53: =IF(SUM(AV$46:AV$49)>0,$E53*$I53,0) -> 0 | AY53: =IF(SUM(AX$46:AX$49)>0,$E53*$I53,0) -> 0 | BA53: =IF(SUM(AZ$46:AZ$49)>0,$E53*$I53,0) -> 0 | BC53: =IF(SUM(BB$46:BB$49)>0,$E53*$I53,0) -> 0 | BE53: =IF(SUM(BD$46:BD$49)>0,$E53*$I53,0) -> 0 | BG53: =IF(SUM(BF$46:BF$49)>0,$E53*$I53,0) -> 0 | BI53: =IF(SUM(BH$46:BH$49)>0,$E53*$I53,0) -> 0 | BK53: =IF(SUM(BJ$46:BJ$49)>0,$E53*$I53,0) -> 0 | BM53: =IF(SUM(BL$46:BL$49)>0,$E53*$I53,0) -> 0 | BO53: =IF(SUM(BN$46:BN$49)>0,$E53*$I53,0) -> 0 | BQ53: =IF(SUM(BP$46:BP$49)>0,$E53*$I53,0) -> 0 | BS53: =IF(SUM(BR$46:BR$49)>0,$E53*$I53,0) -> 0 | BU53: =IF(SUM(BT$46:BT$49)>0,$E53*$I53,0) -> 0 | BW53: =IF(SUM(BV$46:BV$49)>0,$E53*$I53,0) -> 0 | BY53: =IF(SUM(BX$46:BX$49)>0,$E53*$I53,0) -> 0 | CA53: =IF(SUM(BZ$46:BZ$49)>0,$E53*$I53,0) -> 0 | CC53: =IF(SUM(CB$46:CB$49)>0,$E53*$I53,0) -> 0 | CE53: =IF(SUM(CD$46:CD$49)>0,$E53*$I53,0) -> 0 | CG53: =IF(SUM(CF$46:CF$49)>0,$E53*$I53,0) -> 0 | CI53: =IF(SUM(CH$46:CH$49)>0,$E53*$I53,0) -> 0 | CK53: =IF(SUM(CJ$46:CJ$49)>0,$E53*$I53,0) -> 0 | CM53: =IF(SUM(CL$46:CL$49)>0,$E53*$I53,0) -> 0 | CO53: =IF(SUM(CN$46:CN$49)>0,$E53*$I53,0) -> 0 | CQ53: =IF(SUM(CP$46:CP$49)>0,$E53*$I53,0) -> 0 | CS53: =IF(SUM(CR$46:CR$49)>0,$E53*$I53,0) -> 0 | CU53: =IF(SUM(CT$46:CT$49)>0,$E53*$I53,0) -> 0 | CW53: =IF(SUM(CV$46:CV$49)>0,$E53*$I53,0) -> 0 | CY53: =IF(SUM(CX$46:CX$49)>0,$E53*$I53,0) -> 0 | DA53: =IF(SUM(CZ$46:CZ$49)>0,$E53*$I53,0) -> 0 | DC53: =IF(SUM(DB$46:DB$49)>0,$E53*$I53,0) -> 0 | DE53: =IF(SUM(DD$46:DD$49)>0,$E53*$I53,0) -> 0 | DG53: =IF(SUM(DF$46:DF$49)>0,$E53*$I53,0) -> 0 | DI53: =IF(SUM(DH$46:DH$49)>0,$E53*$I53,0) -> 0 | DK53: =IF(SUM(DJ$46:DJ$49)>0,$E53*$I53,0) -> 0 | DM53: =IF(SUM(DL$46:DL$49)>0,$E53*$I53,0) -> 0 | DO53: =IF(SUM(DN$46:DN$49)>0,$E53*$I53,0) -> 0 | DQ53: =IF(SUM(DP$46:DP$49)>0,$E53*$I53,0) -> 0 | DS53: =IF(SUM(DR$46:DR$49)>0,$E53*$I53,0) -> 0 | DU53: =IF(SUM(DT$46:DT$49)>0,$E53*$I53,0) -> 0 | DW53: =IF(SUM(DV$46:DV$49)>0,$E53*$I53,0) -> 0 | DY53: =IF(SUM(DX$46:DX$49)>0,$E53*$I53,0) -> 0 | EA53: =IF(SUM(DZ$46:DZ$49)>0,$E53*$I53,0) -> 0
C54: 14 | E54: =E53 -> 4 | G54: =G53 ->  | M54: =IF(SUM(L$46:L$49)>0,$E54*$I54,0) -> 0 | O54: =IF(SUM(N$46:N$49)>0,$E54*$I54,0) -> 0 | Q54: =IF(SUM(P$46:P$49)>0,$E54*$I54,0) -> 0 | S54: =IF(SUM(R$46:R$49)>0,$E54*$I54,0) -> 0 | U54: =IF(SUM(T$46:T$49)>0,$E54*$I54,0) -> 0 | W54: =IF(SUM(V$46:V$49)>0,$E54*$I54,0) -> 0 | Y54: =IF(SUM(X$46:X$49)>0,$E54*$I54,0) -> 0 | AA54: =IF(SUM(Z$46:Z$49)>0,$E54*$I54,0) -> 0 | AC54: =IF(SUM(AB$46:AB$49)>0,$E54*$I54,0) -> 0 | AE54: =IF(SUM(AD$46:AD$49)>0,$E54*$I54,0) -> 0 | AG54: 0 | AI54: 0 | AK54: 0 | AM54: 0 | AO54: 0 | AQ54: 0 | AS54: 0 | AU54: 0 | AW54: 0 | AY54: 0 | BA54: 0 | BC54: 0 | BE54: 0 | BG54: 0 | BI54: 0 | BK54: 0 | BM54: 0 | BO54: 0 | BQ54: 0 | BS54: 0 | BU54: 0 | BW54: 0 | BY54: 0 | CA54: 0 | CC54: 0 | CE54: 0 | CG54: 0 | CI54: 0 | CK54: 0 | CM54: 0 | CO54: 0 | CQ54: 0 | CS54: 0 | CU54: 0 | CW54: 0 | CY54: 0 | DA54: 0 | DC54: 0 | DE54: 0 | DG54: 0 | DI54: 0 | DK54: 0 | DM54: 0 | DO54: 0 | DQ54: 0 | DS54: 0 | DU54: 0 | DW54: 0 | DY54: 0 | EA54: 0
C55: 15 | E55: 4 | M55: =IF(SUM(L$46:L$49)>0,$E55*$I55,0) -> 0 | O55: =IF(SUM(N$46:N$49)>0,$E55*$I55,0) -> 0 | Q55: =IF(SUM(P$46:P$49)>0,$E55*$I55,0) -> 0 | S55: =IF(SUM(R$46:R$49)>0,$E55*$I55,0) -> 0 | U55: =IF(SUM(T$46:T$49)>0,$E55*$I55,0) -> 0 | W55: =IF(SUM(V$46:V$49)>0,$E55*$I55,0) -> 0 | Y55: =IF(SUM(X$46:X$49)>0,$E55*$I55,0) -> 0 | AA55: =IF(SUM(Z$46:Z$49)>0,$E55*$I55,0) -> 0 | AC55: =IF(SUM(AB$46:AB$49)>0,$E55*$I55,0) -> 0 | AE55: =IF(SUM(AD$46:AD$49)>0,$E55*$I55,0) -> 0 | AG55: 0 | AI55: 0 | AK55: 0 | AM55: 0 | AO55: 0 | AQ55: 0 | AS55: 0 | AU55: 0 | AW55: 0 | AY55: 0 | BA55: 0 | BC55: 0 | BE55: 0 | BG55: 0 | BI55: 0 | BK55: 0 | BM55: 0 | BO55: 0 | BQ55: 0 | BS55: 0 | BU55: 0 | BW55: 0 | BY55: 0 | CA55: 0 | CC55: 0 | CE55: 0 | CG55: 0 | CI55: 0 | CK55: 0 | CM55: 0 | CO55: 0 | CQ55: 0 | CS55: 0 | CU55: 0 | CW55: 0 | CY55: 0 | DA55: 0 | DC55: 0 | DE55: 0 | DG55: 0 | DI55: 0 | DK55: 0 | DM55: 0 | DO55: 0 | DQ55: 0 | DS55: 0 | DU55: 0 | DW55: 0 | DY55: 0 | EA55: 0
F59: =20/53 -> 0.3773584906 | I59: =SUM(I17:I27)*SUM(H17+H23)/52/2 -> 1531.5725

Sheet EPI (hidden)
B4: EQUIPAMENTOS DE PROTEÇÃO INDIVIDUAL - AQUISIÇÃO | J4: 1 | L4: =J4+1 -> 2 | N4: =L4+1 -> 3 | P4: =N4+1 -> 4 | R4: =P4+1 -> 5 | T4: =R4+1 -> 6 | V4: =T4+1 -> 7 | X4: =V4+1 -> 8 | Z4: =X4+1 -> 9 | AB4: =Z4+1 -> 10 | AD4: =AB4+1 -> 11 | AF4: =AD4+1 -> 12 | AH4: =AF4+1 -> 13 | AJ4: =AH4+1 -> 14 | AL4: =AJ4+1 -> 15 | AN4: =AL4+1 -> 16 | AP4: =AN4+1 -> 17 | AR4: =AP4+1 -> 18 | AT4: =AR4+1 -> 19 | AV4: =AT4+1 -> 20 | AX4: =AV4+1 -> 21 | AZ4: =AX4+1 -> 22 | BB4: =AZ4+1 -> 23 | BD4: =BB4+1 -> 24 | BF4: =BD4+1 -> 25 | BH4: =BF4+1 -> 26 | BJ4: =BH4+1 -> 27 | BL4: =BJ4+1 -> 28 | BN4: =BL4+1 -> 29 | BP4: =BN4+1 -> 30 | BR4: =BP4+1 -> 31 | BT4: =BR4+1 -> 32 | BV4: =BT4+1 -> 33 | BX4: =BV4+1 -> 34 | BZ4: =BX4+1 -> 35 | CB4: =BZ4+1 -> 36 | CD4: =CB4+1 -> 37 | CF4: =CD4+1 -> 38 | CH4: =CF4+1 -> 39 | CJ4: =CH4+1 -> 40 | CL4: =CJ4+1 -> 41 | CN4: =CL4+1 -> 42 | CP4: =CN4+1 -> 43 | CR4: =CP4+1 -> 44 | CT4: =CR4+1 -> 45 | CV4: =CT4+1 -> 46 | CX4: =CV4+1 -> 47 | CZ4: =CX4+1 -> 48 | DB4: =CZ4+1 -> 49 | DD4: =DB4+1 -> 50 | DF4: =DD4+1 -> 51 | DH4: =DF4+1 -> 52 | DJ4: =DH4+1 -> 53 | DL4: =DJ4+1 -> 54 | DN4: =DL4+1 -> 55 | DP4: =DN4+1 -> 56 | DR4: =DP4+1 -> 57 | DT4: =DR4+1 -> 58 | DV4: =DT4+1 -> 59 | DX4: =DV4+1 -> 60
J6: =ROUND(SUM(K5:K107),2) -> 0 | L6: =ROUND(SUM(M5:M107),2) -> 0 | N6: =ROUND(SUM(O5:O107),2) -> 0 | P6: =ROUND(SUM(Q5:Q107),2) -> 0 | R6: =ROUND(SUM(S5:S107),2) -> 0 | T6: =ROUND(SUM(U5:U107),2) -> 0 | V6: =ROUND(SUM(W5:W107),2) -> 0 | X6: =ROUND(SUM(Y5:Y107),2) -> 0 | Z6: =ROUND(SUM(AA5:AA107),2) -> 0 | AB6: =ROUND(SUM(AC5:AC107),2) -> 0 | AD6: =ROUND(SUM(AE5:AE107),2) -> 0 | AF6: =ROUND(SUM(AG5:AG107),2) -> 0 | AH6: =ROUND(SUM(AI5:AI107),2) -> 0 | AJ6: =ROUND(SUM(AK5:AK107),2) -> 0 | AL6: =ROUND(SUM(AM5:AM107),2) -> 0 | AN6: =ROUND(SUM(AO5:AO107),2) -> 0 | AP6: =ROUND(SUM(AQ5:AQ107),2) -> 0 | AR6: =ROUND(SUM(AS5:AS107),2) -> 0 | AT6: =ROUND(SUM(AU5:AU107),2) -> 0 | AV6: =ROUND(SUM(AW5:AW107),2) -> 0 | AX6: =ROUND(SUM(AY5:AY107),2) -> 0 | AZ6: =ROUND(SUM(BA5:BA107),2) -> 0 | BB6: =ROUND(SUM(BC5:BC107),2) -> 0 | BD6: =ROUND(SUM(BE5:BE107),2) -> 0 | BF6: =ROUND(SUM(BG5:BG107),2) -> 0 | BH6: =ROUND(SUM(BI5:BI107),2) -> 0 | BJ6: =ROUND(SUM(BK5:BK107),2) -> 0 | BL6: =ROUND(SUM(BM5:BM107),2) -> 0 | BN6: =ROUND(SUM(BO5:BO107),2) -> 0 | BP6: =ROUND(SUM(BQ5:BQ107),2) -> 0 | BR6: =ROUND(SUM(BS5:BS107),2) -> 0 | BT6: =ROUND(SUM(BU5:BU107),2) -> 0 | BV6: =ROUND(SUM(BW5:BW107),2) -> 0 | BX6: =ROUND(SUM(BY5:BY107),2) -> 0 | BZ6: =ROUND(SUM(CA5:CA107),2) -> 0 | CB6: =ROUND(SUM(CC5:CC107),2) -> 0 | CD6: =ROUND(SUM(CE5:CE107),2) -> 0 | CF6: =ROUND(SUM(CG5:CG107),2) -> 0 | CH6: =ROUND(SUM(CI5:CI107),2) -> 0 | CJ6: =ROUND(SUM(CK5:CK107),2) -> 0 | CL6: =ROUND(SUM(CM5:CM107),2) -> 0 | CN6: =ROUND(SUM(CO5:CO107),2) -> 0 | CP6: =ROUND(SUM(CQ5:CQ107),2) -> 0 | CR6: =ROUND(SUM(CS5:CS107),2) -> 0 | CT6: =ROUND(SUM(CU5:CU107),2) -> 0 | CV6: =ROUND(SUM(CW5:CW107),2) -> 0 | CX6: =ROUND(SUM(CY5:CY107),2) -> 0 | CZ6: =ROUND(SUM(DA5:DA107),2) -> 0 | DB6: =ROUND(SUM(DC5:DC107),2) -> 0 | DD6: =ROUND(SUM(DE5:DE107),2) -> 0 | DF6: =ROUND(SUM(DG5:DG107),2) -> 0 | DH6: =ROUND(SUM(DI5:DI107),2) -> 0 | DJ6: =ROUND(SUM(DK5:DK107),2) -> 0 | DL6: =ROUND(SUM(DM5:DM107),2) -> 0 | DN6: =ROUND(SUM(DO5:DO107),2) -> 0 | DP6: =ROUND(SUM(DQ5:DQ107),2) -> 0 | DR6: =ROUND(SUM(DS5:DS107),2) -> 0 | DT6: =ROUND(SUM(DU5:DU107),2) -> 0 | DV6: =ROUND(SUM(DW5:DW107),2) -> 0 | DX6: =ROUND(SUM(DY5:DY107),2) -> 0
C7: CATEGORIAS | G7: QUANTIDADE
J8: =IF($C8=J$4,1,0) -> 0 | L8: =IF($C8=L$4,1,0) -> 0 | N8: =IF($C8=N$4,1,0) -> 0 | P8: =IF($C8=P$4,1,0) -> 0 | R8: =IF($C8=R$4,1,0) -> 0 | T8: =IF($C8=T$4,1,0) -> 0 | V8: =IF($C8=V$4,1,0) -> 0 | X8: =IF($C8=X$4,1,0) -> 0 | Z8: =IF($C8=Z$4,1,0) -> 0 | AB8: =IF($C8=AB$4,1,0) -> 0 | AD8: =IF($C8=AD$4,1,0) -> 0 | AF8: =IF($C8=AF$4,1,0) -> 0 | AH8: =IF($C8=AH$4,1,0) -> 0 | AJ8: =IF($C8=AJ$4,1,0) -> 0 | AL8: =IF($C8=AL$4,1,0) -> 0 | AN8: =IF($C8=AN$4,1,0) -> 0 | AP8: =IF($C8=AP$4,1,0) -> 0 | AR8: =IF($C8=AR$4,1,0) -> 0 | AT8: =IF($C8=AT$4,1,0) -> 0 | AV8: =IF($C8=AV$4,1,0) -> 0 | AX8: =IF($C8=AX$4,1,0) -> 0 | AZ8: =IF($C8=AZ$4,1,0) -> 0 | BB8: =IF($C8=BB$4,1,0) -> 0 | BD8: =IF($C8=BD$4,1,0) -> 0 | BF8: =IF($C8=BF$4,1,0) -> 0 | BH8: =IF($C8=BH$4,1,0) -> 0 | BJ8: =IF($C8=BJ$4,1,0) -> 0 | BL8: =IF($C8=BL$4,1,0) -> 0 | BN8: =IF($C8=BN$4,1,0) -> 0 | BP8: =IF($C8=BP$4,1,0) -> 0 | BR8: =IF($C8=BR$4,1,0) -> 0 | BT8: =IF($C8=BT$4,1,0) -> 0 | BV8: =IF($C8=BV$4,1,0) -> 0 | BX8: =IF($C8=BX$4,1,0) -> 0 | BZ8: =IF($C8=BZ$4,1,0) -> 0 | CB8: =IF($C8=CB$4,1,0) -> 0 | CD8: =IF($C8=CD$4,1,0) -> 0 | CF8: =IF($C8=CF$4,1,0) -> 0 | CH8: =IF($C8=CH$4,1,0) -> 0 | CJ8: =IF($C8=CJ$4,1,0) -> 0 | CL8: =IF($C8=CL$4,1,0) -> 0 | CN8: =IF($C8=CN$4,1,0) -> 0 | CP8: =IF($C8=CP$4,1,0) -> 0 | CR8: =IF($C8=CR$4,1,0) -> 0 | CT8: =IF($C8=CT$4,1,0) -> 0 | CV8: =IF($C8=CV$4,1,0) -> 0 | CX8: =IF($C8=CX$4,1,0) -> 0 | CZ8: =IF($C8=CZ$4,1,0) -> 0 | DB8: =IF($C8=DB$4,1,0) -> 0 | DD8: =IF($C8=DD$4,1,0) -> 0 | DF8: =IF($C8=DF$4,1,0) -> 0 | DH8: =IF($C8=DH$4,1,0) -> 0 | DJ8: =IF($C8=DJ$4,1,0) -> 0 | DL8: =IF($C8=DL$4,1,0) -> 0 | DN8: =IF($C8=DN$4,1,0) -> 0 | DP8: =IF($C8=DP$4,1,0) -> 0 | DR8: =IF($C8=DR$4,1,0) -> 0 | DT8: =IF($C8=DT$4,1,0) -> 0 | DV8: =IF($C8=DV$4,1,0) -> 0 | DX8: =IF($C8=DX$4,1,0) -> 0
C9: 1 | D9: =HLOOKUP($C9,'Dados Gerais'!$D$5:$BK$10,6) -> ENCARREGADO GERAL | G9: =HLOOKUP($C9,'Dados Gerais'!$D$5:$BK$14,10) -> 1 | J9: =IF($C9=J$4,1,0) -> 1 | L9: 0 | N9: 0 | P9: 0 | R9: 0 | T9: 0 | V9: 0 | X9: 0 | Z9: 0 | AB9: 0 | AD9: 0 | AF9: 0 | AH9: 0 | AJ9: 0 | AL9: 0 | AN9: 0 | AP9: 0 | AR9: 0 | AT9: 0 | AV9: 0 | AX9: 0 | AZ9: 0 | BB9: 0 | BD9: 0 | BF9: 0 | BH9: 0 | BJ9: 0 | BL9: 0 | BN9: 0 | BP9: 0 | BR9: 0 | BT9: 0 | BV9: 0 | BX9: 0 | BZ9: 0 | CB9: 0 | CD9: 0 | CF9: 0 | CH9: 0 | CJ9: 0 | CL9: 0 | CN9: 0 | CP9: 0 | CR9: 0 | CT9: 0 | CV9: 0 | CX9: 0 | CZ9: 0 | DB9: 0 | DD9: 0 | DF9: 0 | DH9: 0 | DJ9: 0 | DL9: 0 | DN9: 0 | DP9: 0 | DR9: 0 | DT9: 0 | DV9: 0 | DX9: 0
J10: =IF($C10=J$4,1,0) -> 0 | L10: 0 | N10: 0 | P10: 0 | R10: 0 | T10: 0 | V10: 0 | X10: 0 | Z10: 0 | AB10: 0 | AD10: 0 | AF10: 0 | AH10: 0 | AJ10: 0 | AL10: 0 | AN10: 0 | AP10: 0 | AR10: 0 | AT10: 0 | AV10: 0 | AX10: 0 | AZ10: 0 | BB10: 0 | BD10: 0 | BF10: 0 | BH10: 0 | BJ10: 0 | BL10: 0 | BN10: 0 | BP10: 0 | BR10: 0 | BT10: 0 | BV10: 0 | BX10: 0 | BZ10: 0 | CB10: 0 | CD10: 0 | CF10: 0 | CH10: 0 | CJ10: 0 | CL10: 0 | CN10: 0 | CP10: 0 | CR10: 0 | CT10: 0 | CV10: 0 | CX10: 0 | CZ10: 0 | DB10: 0 | DD10: 0 | DF10: 0 | DH10: 0 | DJ10: 0 | DL10: 0 | DN10: 0 | DP10: 0 | DR10: 0 | DT10: 0 | DV10: 0 | DX10: 0
C12: ITEM | D12: DESCRIÇÃO | E12: QUANT ANUAL POR POSTO | F12: UNIDADE | G12: VALOR
K13: =IF(SUM(J$8:J$10)>0,$E13*$G13,0) -> 0 | M13: =IF(SUM(L$8:L$10)>0,$E13*$G13,0) -> 0 | O13: =IF(SUM(N$8:N$10)>0,$E13*$G13,0) -> 0 | Q13: =IF(SUM(P$8:P$10)>0,$E13*$G13,0) -> 0 | S13: =IF(SUM(R$8:R$10)>0,$E13*$G13,0) -> 0 | U13: =IF(SUM(T$8:T$10)>0,$E13*$G13,0) -> 0 | W13: =IF(SUM(V$8:V$10)>0,$E13*$G13,0) -> 0 | Y13: =IF(SUM(X$8:X$10)>0,$E13*$G13,0) -> 0 | AA13: =IF(SUM(Z$8:Z$10)>0,$E13*$G13,0) -> 0 | AC13: =IF(SUM(AB$8:AB$10)>0,$E13*$G13,0) -> 0 | AE13: =IF(SUM(AD$8:AD$10)>0,$E13*$G13,0) -> 0 | AG13: =IF(SUM(AF$8:AF$10)>0,$E13*$G13,0) -> 0 | AI13: =IF(SUM(AH$8:AH$10)>0,$E13*$G13,0) -> 0 | AK13: =IF(SUM(AJ$8:AJ$10)>0,$E13*$G13,0) -> 0 | AM13: =IF(SUM(AL$8:AL$10)>0,$E13*$G13,0) -> 0 | AO13: =IF(SUM(AN$8:AN$10)>0,$E13*$G13,0) -> 0 | AQ13: =IF(SUM(AP$8:AP$10)>0,$E13*$G13,0) -> 0 | AS13: =IF(SUM(AR$8:AR$10)>0,$E13*$G13,0) -> 0 | AU13: =IF(SUM(AT$8:AT$10)>0,$E13*$G13,0) -> 0 | AW13: =IF(SUM(AV$8:AV$10)>0,$E13*$G13,0) -> 0 | AY13: =IF(SUM(AX$8:AX$10)>0,$E13*$G13,0) -> 0 | BA13: =IF(SUM(AZ$8:AZ$10)>0,$E13*$G13,0) -> 0 | BC13: =IF(SUM(BB$8:BB$10)>0,$E13*$G13,0) -> 0 | BE13: =IF(SUM(BD$8:BD$10)>0,$E13*$G13,0) -> 0 | BG13: =IF(SUM(BF$8:BF$10)>0,$E13*$G13,0) -> 0 | BI13: =IF(SUM(BH$8:BH$10)>0,$E13*$G13,0) -> 0 | BK13: =IF(SUM(BJ$8:BJ$10)>0,$E13*$G13,0) -> 0 | BM13: =IF(SUM(BL$8:BL$10)>0,$E13*$G13,0) -> 0 | BO13: =IF(SUM(BN$8:BN$10)>0,$E13*$G13,0) -> 0 | BQ13: =IF(SUM(BP$8:BP$10)>0,$E13*$G13,0) -> 0 | BS13: =IF(SUM(BR$8:BR$10)>0,$E13*$G13,0) -> 0 | BU13: =IF(SUM(BT$8:BT$10)>0,$E13*$G13,0) -> 0 | BW13: =IF(SUM(BV$8:BV$10)>0,$E13*$G13,0) -> 0 | BY13: =IF(SUM(BX$8:BX$10)>0,$E13*$G13,0) -> 0 | CA13: =IF(SUM(BZ$8:BZ$10)>0,$E13*$G13,0) -> 0 | CC13: =IF(SUM(CB$8:CB$10)>0,$E13*$G13,0) -> 0 | CE13: =IF(SUM(CD$8:CD$10)>0,$E13*$G13,0) -> 0 | CG13: =IF(SUM(CF$8:CF$10)>0,$E13*$G13,0) -> 0 | CI13: =IF(SUM(CH$8:CH$10)>0,$E13*$G13,0) -> 0 | CK13: =IF(SUM(CJ$8:CJ$10)>0,$E13*$G13,0) -> 0 | CM13: =IF(SUM(CL$8:CL$10)>0,$E13*$G13,0) -> 0 | CO13: =IF(SUM(CN$8:CN$10)>0,$E13*$G13,0) -> 0 | CQ13: =IF(SUM(CP$8:CP$10)>0,$E13*$G13,0) -> 0 | CS13: =IF(SUM(CR$8:CR$10)>0,$E13*$G13,0) -> 0 | CU13: =IF(SUM(CT$8:CT$10)>0,$E13*$G13,0) -> 0 | CW13: =IF(SUM(CV$8:CV$10)>0,$E13*$G13,0) -> 0 | CY13: =IF(SUM(CX$8:CX$10)>0,$E13*$G13,0) -> 0 | DA13: =IF(SUM(CZ$8:CZ$10)>0,$E13*$G13,0) -> 0 | DC13: =IF(SUM(DB$8:DB$10)>0,$E13*$G13,0) -> 0 | DE13: =IF(SUM(DD$8:DD$10)>0,$E13*$G13,0) -> 0 | DG13: =IF(SUM(DF$8:DF$10)>0,$E13*$G13,0) -> 0 | DI13: =IF(SUM(DH$8:DH$10)>0,$E13*$G13,0) -> 0 | DK13: =IF(SUM(DJ$8:DJ$10)>0,$E13*$G13,0) -> 0 | DM13: =IF(SUM(DL$8:DL$10)>0,$E13*$G13,0) -> 0 | DO13: =IF(SUM(DN$8:DN$10)>0,$E13*$G13,0) -> 0 | DQ13: =IF(SUM(DP$8:DP$10)>0,$E13*$G13,0) -> 0 | DS13: =IF(SUM(DR$8:DR$10)>0,$E13*$G13,0) -> 0 | DU13: =IF(SUM(DT$8:DT$10)>0,$E13*$G13,0) -> 0 | DW13: =IF(SUM(DV$8:DV$10)>0,$E13*$G13,0) -> 0 | DY13: =IF(SUM(DX$8:DX$10)>0,$E13*$G13,0) -> 0
C14: 1 | D14: Calçado de segurança tipo sapato com resistência a objetos pontiagudos, fechamento em elástico, couro preto, forração em tecido, bico de composite, palmilha de montagem têxtil resistente à perfuração, solado de PU (poliuretano), bidensidade sem cadarço. Ref. MARLUVAS. | F14: PAR | G14: 117.26 | K14: =IF(SUM(J$8:J$10)>0,$E14*$G14,0) -> 0 | M14: =IF(SUM(L$8:L$10)>0,$E14*$G14,0) -> 0 | O14: =IF(SUM(N$8:N$10)>0,$E14*$G14,0) -> 0 | Q14: =IF(SUM(P$8:P$10)>0,$E14*$G14,0) -> 0 | S14: =IF(SUM(R$8:R$10)>0,$E14*$G14,0) -> 0 | U14: =IF(SUM(T$8:T$10)>0,$E14*$G14,0) -> 0 | W14: =IF(SUM(V$8:V$10)>0,$E14*$G14,0) -> 0 | Y14: =IF(SUM(X$8:X$10)>0,$E14*$G14,0) -> 0 | AA14: =IF(SUM(Z$8:Z$10)>0,$E14*$G14,0) -> 0 | AC14: =IF(SUM(AB$8:AB$10)>0,$E14*$G14,0) -> 0 | AE14: =IF(SUM(AD$8:AD$10)>0,$E14*$G14,0) -> 0 | AG14: =IF(SUM(AF$8:AF$10)>0,$E14*$G14,0) -> 0 | AI14: =IF(SUM(AH$8:AH$10)>0,$E14*$G14,0) -> 0 | AK14: =IF(SUM(AJ$8:AJ$10)>0,$E14*$G14,0) -> 0 | AM14: =IF(SUM(AL$8:AL$10)>0,$E14*$G14,0) -> 0 | AO14: =IF(SUM(AN$8:AN$10)>0,$E14*$G14,0) -> 0 | AQ14: =IF(SUM(AP$8:AP$10)>0,$E14*$G14,0) -> 0 | AS14: =IF(SUM(AR$8:AR$10)>0,$E14*$G14,0) -> 0 | AU14: =IF(SUM(AT$8:AT$10)>0,$E14*$G14,0) -> 0 | AW14: =IF(SUM(AV$8:AV$10)>0,$E14*$G14,0) -> 0 | AY14: =IF(SUM(AX$8:AX$10)>0,$E14*$G14,0) -> 0 | BA14: =IF(SUM(AZ$8:AZ$10)>0,$E14*$G14,0) -> 0 | BC14: =IF(SUM(BB$8:BB$10)>0,$E14*$G14,0) -> 0 | BE14: =IF(SUM(BD$8:BD$10)>0,$E14*$G14,0) -> 0 | BG14: =IF(SUM(BF$8:BF$10)>0,$E14*$G14,0) -> 0 | BI14: =IF(SUM(BH$8:BH$10)>0,$E14*$G14,0) -> 0 | BK14: =IF(SUM(BJ$8:BJ$10)>0,$E14*$G14,0) -> 0 | BM14: =IF(SUM(BL$8:BL$10)>0,$E14*$G14,0) -> 0 | BO14: =IF(SUM(BN$8:BN$10)>0,$E14*$G14,0) -> 0 | BQ14: =IF(SUM(BP$8:BP$10)>0,$E14*$G14,0) -> 0 | BS14: =IF(SUM(BR$8:BR$10)>0,$E14*$G14,0) -> 0 | BU14: =IF(SUM(BT$8:BT$10)>0,$E14*$G14,0) -> 0 | BW14: =IF(SUM(BV$8:BV$10)>0,$E14*$G14,0) -> 0 | BY14: =IF(SUM(BX$8:BX$10)>0,$E14*$G14,0) -> 0 | CA14: =IF(SUM(BZ$8:BZ$10)>0,$E14*$G14,0) -> 0 | CC14: =IF(SUM(CB$8:CB$10)>0,$E14*$G14,0) -> 0 | CE14: =IF(SUM(CD$8:CD$10)>0,$E14*$G14,0) -> 0 | CG14: =IF(SUM(CF$8:CF$10)>0,$E14*$G14,0) -> 0 | CI14: =IF(SUM(CH$8:CH$10)>0,$E14*$G14,0) -> 0 | CK14: =IF(SUM(CJ$8:CJ$10)>0,$E14*$G14,0) -> 0 | CM14: =IF(SUM(CL$8:CL$10)>0,$E14*$G14,0) -> 0 | CO14: =IF(SUM(CN$8:CN$10)>0,$E14*$G14,0) -> 0 | CQ14: =IF(SUM(CP$8:CP$10)>0,$E14*$G14,0) -> 0 | CS14: =IF(SUM(CR$8:CR$10)>0,$E14*$G14,0) -> 0 | CU14: =IF(SUM(CT$8:CT$10)>0,$E14*$G14,0) -> 0 | CW14: =IF(SUM(CV$8:CV$10)>0,$E14*$G14,0) -> 0 | CY14: =IF(SUM(CX$8:CX$10)>0,$E14*$G14,0) -> 0 | DA14: =IF(SUM(CZ$8:CZ$10)>0,$E14*$G14,0) -> 0 | DC14: =IF(SUM(DB$8:DB$10)>0,$E14*$G14,0) -> 0 | DE14: =IF(SUM(DD$8:DD$10)>0,$E14*$G14,0) -> 0 | DG14: =IF(SUM(DF$8:DF$10)>0,$E14*$G14,0) -> 0 | DI14: =IF(SUM(DH$8:DH$10)>0,$E14*$G14,0) -> 0 | DK14: =IF(SUM(DJ$8:DJ$10)>0,$E14*$G14,0) -> 0 | DM14: =IF(SUM(DL$8:DL$10)>0,$E14*$G14,0) -> 0 | DO14: =IF(SUM(DN$8:DN$10)>0,$E14*$G14,0) -> 0 | DQ14: =IF(SUM(DP$8:DP$10)>0,$E14*$G14,0) -> 0 | DS14: =IF(SUM(DR$8:DR$10)>0,$E14*$G14,0) -> 0 | DU14: =IF(SUM(DT$8:DT$10)>0,$E14*$G14,0) -> 0 | DW14: =IF(SUM(DV$8:DV$10)>0,$E14*$G14,0) -> 0 | DY14: 0
C16: CATEGORIAS | G16: QUANTIDADE
J17: =IF($C17=J$4,1,0) -> 0 | L17: =IF($C17=L$4,1,0) -> 0 | N17: =IF($C17=N$4,1,0) -> 0 | P17: =IF($C17=P$4,1,0) -> 0 | R17: =IF($C17=R$4,1,0) -> 0 | T17: =IF($C17=T$4,1,0) -> 0 | V17: =IF($C17=V$4,1,0) -> 0 | X17: =IF($C17=X$4,1,0) -> 0 | Z17: =IF($C17=Z$4,1,0) -> 0 | AB17: =IF($C17=AB$4,1,0) -> 0 | AD17: =IF($C17=AD$4,1,0) -> 0 | AF17: =IF($C17=AF$4,1,0) -> 0 | AH17: =IF($C17=AH$4,1,0) -> 0 | AJ17: =IF($C17=AJ$4,1,0) -> 0 | AL17: =IF($C17=AL$4,1,0) -> 0 | AN17: =IF($C17=AN$4,1,0) -> 0 | AP17: =IF($C17=AP$4,1,0) -> 0 | AR17: =IF($C17=AR$4,1,0) -> 0 | AT17: =IF($C17=AT$4,1,0) -> 0 | AV17: =IF($C17=AV$4,1,0) -> 0 | AX17: =IF($C17=AX$4,1,0) -> 0 | AZ17: =IF($C17=AZ$4,1,0) -> 0 | BB17: =IF($C17=BB$4,1,0) -> 0 | BD17: =IF($C17=BD$4,1,0) -> 0 | BF17: =IF($C17=BF$4,1,0) -> 0 | BH17: =IF($C17=BH$4,1,0) -> 0 | BJ17: =IF($C17=BJ$4,1,0) -> 0 | BL17: =IF($C17=BL$4,1,0) -> 0 | BN17: =IF($C17=BN$4,1,0) -> 0 | BP17: =IF($C17=BP$4,1,0) -> 0 | BR17: =IF($C17=BR$4,1,0) -> 0 | BT17: =IF($C17=BT$4,1,0) -> 0 | BV17: =IF($C17=BV$4,1,0) -> 0 | BX17: =IF($C17=BX$4,1,0) -> 0 | BZ17: =IF($C17=BZ$4,1,0) -> 0 | CB17: =IF($C17=CB$4,1,0) -> 0 | CD17: =IF($C17=CD$4,1,0) -> 0 | CF17: =IF($C17=CF$4,1,0) -> 0 | CH17: =IF($C17=CH$4,1,0) -> 0 | CJ17: =IF($C17=CJ$4,1,0) -> 0 | CL17: =IF($C17=CL$4,1,0) -> 0 | CN17: =IF($C17=CN$4,1,0) -> 0 | CP17: =IF($C17=CP$4,1,0) -> 0 | CR17: =IF($C17=CR$4,1,0) -> 0 | CT17: =IF($C17=CT$4,1,0) -> 0 | CV17: =IF($C17=CV$4,1,0) -> 0 | CX17: =IF($C17=CX$4,1,0) -> 0 | CZ17: =IF($C17=CZ$4,1,0) -> 0 | DB17: =IF($C17=DB$4,1,0) -> 0 | DD17: =IF($C17=DD$4,1,0) -> 0 | DF17: =IF($C17=DF$4,1,0) -> 0 | DH17: =IF($C17=DH$4,1,0) -> 0 | DJ17: =IF($C17=DJ$4,1,0) -> 0 | DL17: =IF($C17=DL$4,1,0) -> 0 | DN17: =IF($C17=DN$4,1,0) -> 0 | DP17: =IF($C17=DP$4,1,0) -> 0 | DR17: =IF($C17=DR$4,1,0) -> 0 | DT17: =IF($C17=DT$4,1,0) -> 0 | DV17: =IF($C17=DV$4,1,0) -> 0 | DX17: =IF($C17=DX$4,1,0) -> 0
C18: 2 | D18: =HLOOKUP($C18,'Dados Gerais'!$D$5:$BK$10,6) -> ASCENSORISTA | G18: =HLOOKUP($C18,'Dados Gerais'!$D$5:$BK$14,10) -> 37 | J18: =IF($C18=J$4,1,0) -> 0 | L18: 1 | N18: 0 | P18: 0 | R18: 0 | T18: 0 | V18: 0 | X18: 0 | Z18: 0 | AB18: 0 | AD18: 0 | AF18: 0 | AH18: 0 | AJ18: 0 | AL18: 0 | AN18: 0 | AP18: 0 | AR18: 0 | AT18: 0 | AV18: 0 | AX18: 0 | AZ18: 0 | BB18: 0 | BD18: 0 | BF18: 0 | BH18: 0 | BJ18: 0 | BL18: 0 | BN18: 0 | BP18: 0 | BR18: 0 | BT18: 0 | BV18: 0 | BX18: 0 | BZ18: 0 | CB18: 0 | CD18: 0 | CF18: 0 | CH18: 0 | CJ18: 0 | CL18: 0 | CN18: 0 | CP18: 0 | CR18: 0 | CT18: 0 | CV18: 0 | CX18: 0 | CZ18: 0 | DB18: 0 | DD18: 0 | DF18: 0 | DH18: 0 | DJ18: 0 | DL18: 0 | DN18: 0 | DP18: 0 | DR18: 0 | DT18: 0 | DV18: 0 | DX18: 0
J19: =IF($C19=J$4,1,0) -> 0 | L19: 0 | N19: 0 | P19: 0 | R19: 0 | T19: 0 | V19: 0 | X19: 0 | Z19: 0 | AB19: 0 | AD19: 0 | AF19: 0 | AH19: 0 | AJ19: 0 | AL19: 0 | AN19: 0 | AP19: 0 | AR19: 0 | AT19: 0 | AV19: 0 | AX19: 0 | AZ19: 0 | BB19: 0 | BD19: 0 | BF19: 0 | BH19: 0 | BJ19: 0 | BL19: 0 | BN19: 0 | BP19: 0 | BR19: 0 | BT19: 0 | BV19: 0 | BX19: 0 | BZ19: 0 | CB19: 0 | CD19: 0 | CF19: 0 | CH19: 0 | CJ19: 0 | CL19: 0 | CN19: 0 | CP19: 0 | CR19: 0 | CT19: 0 | CV19: 0 | CX19: 0 | CZ19: 0 | DB19: 0 | DD19: 0 | DF19: 0 | DH19: 0 | DJ19: 0 | DL19: 0 | DN19: 0 | DP19: 0 | DR19: 0 | DT19: 0 | DV19: 0 | DX19: 0
C21: ITEM | D21: DESCRIÇÃO | E21: QUANT ANUAL POR POSTO | F21: UNIDADE | G21: VALOR
K22: =IF(SUM(J$8:J$10)>0,$E22*$G22,0) -> 0 | M22: =IF(SUM(L$8:L$10)>0,$E22*$G22,0) -> 0 | O22: =IF(SUM(N$8:N$10)>0,$E22*$G22,0) -> 0 | Q22: =IF(SUM(P$8:P$10)>0,$E22*$G22,0) -> 0 | S22: =IF(SUM(R$8:R$10)>0,$E22*$G22,0) -> 0 | U22: =IF(SUM(T$8:T$10)>0,$E22*$G22,0) -> 0 | W22: =IF(SUM(V$8:V$10)>0,$E22*$G22,0) -> 0 | Y22: =IF(SUM(X$8:X$10)>0,$E22*$G22,0) -> 0 | AA22: =IF(SUM(Z$8:Z$10)>0,$E22*$G22,0) -> 0 | AC22: =IF(SUM(AB$8:AB$10)>0,$E22*$G22,0) -> 0 | AE22: =IF(SUM(AD$8:AD$10)>0,$E22*$G22,0) -> 0 | AG22: =IF(SUM(AF$8:AF$10)>0,$E22*$G22,0) -> 0 | AI22: =IF(SUM(AH$8:AH$10)>0,$E22*$G22,0) -> 0 | AK22: =IF(SUM(AJ$8:AJ$10)>0,$E22*$G22,0) -> 0 | AM22: =IF(SUM(AL$8:AL$10)>0,$E22*$G22,0) -> 0 | AO22: =IF(SUM(AN$8:AN$10)>0,$E22*$G22,0) -> 0 | AQ22: =IF(SUM(AP$8:AP$10)>0,$E22*$G22,0) -> 0 | AS22: =IF(SUM(AR$8:AR$10)>0,$E22*$G22,0) -> 0 | AU22: =IF(SUM(AT$8:AT$10)>0,$E22*$G22,0) -> 0 | AW22: =IF(SUM(AV$8:AV$10)>0,$E22*$G22,0) -> 0 | AY22: =IF(SUM(AX$8:AX$10)>0,$E22*$G22,0) -> 0 | BA22: =IF(SUM(AZ$8:AZ$10)>0,$E22*$G22,0) -> 0 | BC22: =IF(SUM(BB$8:BB$10)>0,$E22*$G22,0) -> 0 | BE22: =IF(SUM(BD$8:BD$10)>0,$E22*$G22,0) -> 0 | BG22: =IF(SUM(BF$8:BF$10)>0,$E22*$G22,0) -> 0 | BI22: =IF(SUM(BH$8:BH$10)>0,$E22*$G22,0) -> 0 | BK22: =IF(SUM(BJ$8:BJ$10)>0,$E22*$G22,0) -> 0 | BM22: =IF(SUM(BL$8:BL$10)>0,$E22*$G22,0) -> 0 | BO22: =IF(SUM(BN$8:BN$10)>0,$E22*$G22,0) -> 0 | BQ22: =IF(SUM(BP$8:BP$10)>0,$E22*$G22,0) -> 0 | BS22: =IF(SUM(BR$8:BR$10)>0,$E22*$G22,0) -> 0 | BU22: =IF(SUM(BT$8:BT$10)>0,$E22*$G22,0) -> 0 | BW22: =IF(SUM(BV$8:BV$10)>0,$E22*$G22,0) -> 0 | BY22: =IF(SUM(BX$8:BX$10)>0,$E22*$G22,0) -> 0 | CA22: =IF(SUM(BZ$8:BZ$10)>0,$E22*$G22,0) -> 0 | CC22: =IF(SUM(CB$8:CB$10)>0,$E22*$G22,0) -> 0 | CE22: =IF(SUM(CD$8:CD$10)>0,$E22*$G22,0) -> 0 | CG22: =IF(SUM(CF$8:CF$10)>0,$E22*$G22,0) -> 0 | CI22: =IF(SUM(CH$8:CH$10)>0,$E22*$G22,0) -> 0 | CK22: =IF(SUM(CJ$8:CJ$10)>0,$E22*$G22,0) -> 0 | CM22: =IF(SUM(CL$8:CL$10)>0,$E22*$G22,0) -> 0 | CO22: =IF(SUM(CN$8:CN$10)>0,$E22*$G22,0) -> 0 | CQ22: =IF(SUM(CP$8:CP$10)>0,$E22*$G22,0) -> 0 | CS22: =IF(SUM(CR$8:CR$10)>0,$E22*$G22,0) -> 0 | CU22: =IF(SUM(CT$8:CT$10)>0,$E22*$G22,0) -> 0 | CW22: =IF(SUM(CV$8:CV$10)>0,$E22*$G22,0) -> 0 | CY22: =IF(SUM(CX$8:CX$10)>0,$E22*$G22,0) -> 0 | DA22: =IF(SUM(CZ$8:CZ$10)>0,$E22*$G22,0) -> 0 | DC22: =IF(SUM(DB$8:DB$10)>0,$E22*$G22,0) -> 0 | DE22: =IF(SUM(DD$8:DD$10)>0,$E22*$G22,0) -> 0 | DG22: =IF(SUM(DF$8:DF$10)>0,$E22*$G22,0) -> 0 | DI22: =IF(SUM(DH$8:DH$10)>0,$E22*$G22,0) -> 0 | DK22: =IF(SUM(DJ$8:DJ$10)>0,$E22*$G22,0) -> 0 | DM22: =IF(SUM(DL$8:DL$10)>0,$E22*$G22,0) -> 0 | DO22: =IF(SUM(DN$8:DN$10)>0,$E22*$G22,0) -> 0 | DQ22: =IF(SUM(DP$8:DP$10)>0,$E22*$G22,0) -> 0 | DS22: =IF(SUM(DR$8:DR$10)>0,$E22*$G22,0) -> 0 | DU22: =IF(SUM(DT$8:DT$10)>0,$E22*$G22,0) -> 0 | DW22: =IF(SUM(DV$8:DV$10)>0,$E22*$G22,0) -> 0 | DY22: =IF(SUM(DX$8:DX$10)>0,$E22*$G22,0) -> 0
C23: 1 | D23: Calçado de segurança tipo sapato com resistência a objetos pontiagudos, fechamento em elástico, couro preto, forração em tecido, bico de composite, palmilha de montagem têxtil resistente à perfuração, solado de PU (poliuretano), bidensidade sem cadarço. Ref. MARLUVAS. | F23: PAR | G23: =G14 -> 117.26 | K23: =IF(SUM(J$17:J$19)>0,$E23*$G23,0) -> 0 | M23: =IF(SUM(L$17:L$19)>0,$E23*$G23,0) -> 0 | O23: =IF(SUM(N$17:N$19)>0,$E23*$G23,0) -> 0 | Q23: =IF(SUM(P$17:P$19)>0,$E23*$G23,0) -> 0 | S23: =IF(SUM(R$17:R$19)>0,$E23*$G23,0) -> 0 | U23: =IF(SUM(T$17:T$19)>0,$E23*$G23,0) -> 0 | W23: =IF(SUM(V$17:V$19)>0,$E23*$G23,0) -> 0 | Y23: =IF(SUM(X$17:X$19)>0,$E23*$G23,0) -> 0 | AA23: =IF(SUM(Z$17:Z$19)>0,$E23*$G23,0) -> 0 | AC23: =IF(SUM(AB$17:AB$19)>0,$E23*$G23,0) -> 0 | AE23: =IF(SUM(AD$17:AD$19)>0,$E23*$G23,0) -> 0 | AG23: =IF(SUM(AF$17:AF$19)>0,$E23*$G23,0) -> 0 | AI23: =IF(SUM(AH$17:AH$19)>0,$E23*$G23,0) -> 0 | AK23: =IF(SUM(AJ$17:AJ$19)>0,$E23*$G23,0) -> 0 | AM23: =IF(SUM(AL$17:AL$19)>0,$E23*$G23,0) -> 0 | AO23: =IF(SUM(AN$17:AN$19)>0,$E23*$G23,0) -> 0 | AQ23: =IF(SUM(AP$17:AP$19)>0,$E23*$G23,0) -> 0 | AS23: =IF(SUM(AR$17:AR$19)>0,$E23*$G23,0) -> 0 | AU23: =IF(SUM(AT$17:AT$19)>0,$E23*$G23,0) -> 0 | AW23: =IF(SUM(AV$17:AV$19)>0,$E23*$G23,0) -> 0 | AY23: =IF(SUM(AX$17:AX$19)>0,$E23*$G23,0) -> 0 | BA23: =IF(SUM(AZ$17:AZ$19)>0,$E23*$G23,0) -> 0 | BC23: =IF(SUM(BB$17:BB$19)>0,$E23*$G23,0) -> 0 | BE23: =IF(SUM(BD$17:BD$19)>0,$E23*$G23,0) -> 0 | BG23: =IF(SUM(BF$17:BF$19)>0,$E23*$G23,0) -> 0 | BI23: =IF(SUM(BH$17:BH$19)>0,$E23*$G23,0) -> 0 | BK23: =IF(SUM(BJ$17:BJ$19)>0,$E23*$G23,0) -> 0 | BM23: =IF(SUM(BL$17:BL$19)>0,$E23*$G23,0) -> 0 | BO23: =IF(SUM(BN$17:BN$19)>0,$E23*$G23,0) -> 0 | BQ23: =IF(SUM(BP$17:BP$19)>0,$E23*$G23,0) -> 0 | BS23: =IF(SUM(BR$17:BR$19)>0,$E23*$G23,0) -> 0 | BU23: =IF(SUM(BT$17:BT$19)>0,$E23*$G23,0) -> 0 | BW23: =IF(SUM(BV$17:BV$19)>0,$E23*$G23,0) -> 0 | BY23: =IF(SUM(BX$17:BX$19)>0,$E23*$G23,0) -> 0 | CA23: =IF(SUM(BZ$17:BZ$19)>0,$E23*$G23,0) -> 0 | CC23: =IF(SUM(CB$17:CB$19)>0,$E23*$G23,0) -> 0 | CE23: =IF(SUM(CD$17:CD$19)>0,$E23*$G23,0) -> 0 | CG23: =IF(SUM(CF$17:CF$19)>0,$E23*$G23,0) -> 0 | CI23: =IF(SUM(CH$17:CH$19)>0,$E23*$G23,0) -> 0 | CK23: =IF(SUM(CJ$17:CJ$19)>0,$E23*$G23,0) -> 0 | CM23: =IF(SUM(CL$17:CL$19)>0,$E23*$G23,0) -> 0 | CO23: =IF(SUM(CN$17:CN$19)>0,$E23*$G23,0) -> 0 | CQ23: =IF(SUM(CP$17:CP$19)>0,$E23*$G23,0) -> 0 | CS23: =IF(SUM(CR$17:CR$19)>0,$E23*$G23,0) -> 0 | CU23: =IF(SUM(CT$17:CT$19)>0,$E23*$G23,0) -> 0 | CW23: =IF(SUM(CV$17:CV$19)>0,$E23*$G23,0) -> 0 | CY23: =IF(SUM(CX$17:CX$19)>0,$E23*$G23,0) -> 0 | DA23: =IF(SUM(CZ$17:CZ$19)>0,$E23*$G23,0) -> 0 | DC23: =IF(SUM(DB$17:DB$19)>0,$E23*$G23,0) -> 0 | DE23: =IF(SUM(DD$17:DD$19)>0,$E23*$G23,0) -> 0 | DG23: =IF(SUM(DF$17:DF$19)>0,$E23*$G23,0) -> 0 | DI23: =IF(SUM(DH$17:DH$19)>0,$E23*$G23,0) -> 0 | DK23: =IF(SUM(DJ$17:DJ$19)>0,$E23*$G23,0) -> 0 | DM23: =IF(SUM(DL$17:DL$19)>0,$E23*$G23,0) -> 0 | DO23: =IF(SUM(DN$17:DN$19)>0,$E23*$G23,0) -> 0 | DQ23: =IF(SUM(DP$17:DP$19)>0,$E23*$G23,0) -> 0 | DS23: =IF(SUM(DR$17:DR$19)>0,$E23*$G23,0) -> 0 | DU23: =IF(SUM(DT$17:DT$19)>0,$E23*$G23,0) -> 0 | DW23: =IF(SUM(DV$17:DV$19)>0,$E23*$G23,0) -> 0 | DY23: =IF(SUM(DX$17:DX$19)>0,$E23*$G23,0) -> 0
K24: =IF(SUM(J$17:J$19)>0,$E24*$G24,0) -> 0 | M24: =IF(SUM(L$17:L$19)>0,$E24*$G24,0) -> 0 | O24: =IF(SUM(N$17:N$19)>0,$E24*$G24,0) -> 0 | Q24: =IF(SUM(P$17:P$19)>0,$E24*$G24,0) -> 0 | S24: =IF(SUM(R$17:R$19)>0,$E24*$G24,0) -> 0 | U24: =IF(SUM(T$17:T$19)>0,$E24*$G24,0) -> 0 | W24: =IF(SUM(V$17:V$19)>0,$E24*$G24,0) -> 0 | Y24: =IF(SUM(X$17:X$19)>0,$E24*$G24,0) -> 0 | AA24: =IF(SUM(Z$17:Z$19)>0,$E24*$G24,0) -> 0 | AC24: =IF(SUM(AB$17:AB$19)>0,$E24*$G24,0) -> 0 | AE24: =IF(SUM(AD$17:AD$19)>0,$E24*$G24,0) -> 0 | AG24: =IF(SUM(AF$17:AF$19)>0,$E24*$G24,0) -> 0 | AI24: =IF(SUM(AH$17:AH$19)>0,$E24*$G24,0) -> 0 | AK24: =IF(SUM(AJ$17:AJ$19)>0,$E24*$G24,0) -> 0 | AM24: =IF(SUM(AL$17:AL$19)>0,$E24*$G24,0) -> 0 | AO24: =IF(SUM(AN$17:AN$19)>0,$E24*$G24,0) -> 0 | AQ24: =IF(SUM(AP$17:AP$19)>0,$E24*$G24,0) -> 0 | AS24: =IF(SUM(AR$17:AR$19)>0,$E24*$G24,0) -> 0 | AU24: =IF(SUM(AT$17:AT$19)>0,$E24*$G24,0) -> 0 | AW24: =IF(SUM(AV$17:AV$19)>0,$E24*$G24,0) -> 0 | AY24: =IF(SUM(AX$17:AX$19)>0,$E24*$G24,0) -> 0 | BA24: =IF(SUM(AZ$17:AZ$19)>0,$E24*$G24,0) -> 0 | BC24: =IF(SUM(BB$17:BB$19)>0,$E24*$G24,0) -> 0 | BE24: =IF(SUM(BD$17:BD$19)>0,$E24*$G24,0) -> 0 | BG24: =IF(SUM(BF$17:BF$19)>0,$E24*$G24,0) -> 0 | BI24: =IF(SUM(BH$17:BH$19)>0,$E24*$G24,0) -> 0 | BK24: =IF(SUM(BJ$17:BJ$19)>0,$E24*$G24,0) -> 0 | BM24: =IF(SUM(BL$17:BL$19)>0,$E24*$G24,0) -> 0 | BO24: =IF(SUM(BN$17:BN$19)>0,$E24*$G24,0) -> 0 | BQ24: =IF(SUM(BP$17:BP$19)>0,$E24*$G24,0) -> 0 | BS24: =IF(SUM(BR$17:BR$19)>0,$E24*$G24,0) -> 0 | BU24: =IF(SUM(BT$17:BT$19)>0,$E24*$G24,0) -> 0 | BW24: =IF(SUM(BV$17:BV$19)>0,$E24*$G24,0) -> 0 | BY24: =IF(SUM(BX$17:BX$19)>0,$E24*$G24,0) -> 0 | CA24: =IF(SUM(BZ$17:BZ$19)>0,$E24*$G24,0) -> 0 | CC24: =IF(SUM(CB$17:CB$19)>0,$E24*$G24,0) -> 0 | CE24: =IF(SUM(CD$17:CD$19)>0,$E24*$G24,0) -> 0 | CG24: =IF(SUM(CF$17:CF$19)>0,$E24*$G24,0) -> 0 | CI24: =IF(SUM(CH$17:CH$19)>0,$E24*$G24,0) -> 0 | CK24: =IF(SUM(CJ$17:CJ$19)>0,$E24*$G24,0) -> 0 | CM24: =IF(SUM(CL$17:CL$19)>0,$E24*$G24,0) -> 0 | CO24: =IF(SUM(CN$17:CN$19)>0,$E24*$G24,0) -> 0 | CQ24: =IF(SUM(CP$17:CP$19)>0,$E24*$G24,0) -> 0 | CS24: =IF(SUM(CR$17:CR$19)>0,$E24*$G24,0) -> 0 | CU24: =IF(SUM(CT$17:CT$19)>0,$E24*$G24,0) -> 0 | CW24: =IF(SUM(CV$17:CV$19)>0,$E24*$G24,0) -> 0 | CY24: =IF(SUM(CX$17:CX$19)>0,$E24*$G24,0) -> 0 | DA24: =IF(SUM(CZ$17:CZ$19)>0,$E24*$G24,0) -> 0 | DC24: =IF(SUM(DB$17:DB$19)>0,$E24*$G24,0) -> 0 | DE24: =IF(SUM(DD$17:DD$19)>0,$E24*$G24,0) -> 0 | DG24: =IF(SUM(DF$17:DF$19)>0,$E24*$G24,0) -> 0 | DI24: =IF(SUM(DH$17:DH$19)>0,$E24*$G24,0) -> 0 | DK24: =IF(SUM(DJ$17:DJ$19)>0,$E24*$G24,0) -> 0 | DM24: =IF(SUM(DL$17:DL$19)>0,$E24*$G24,0) -> 0 | DO24: =IF(SUM(DN$17:DN$19)>0,$E24*$G24,0) -> 0 | DQ24: =IF(SUM(DP$17:DP$19)>0,$E24*$G24,0) -> 0 | DS24: =IF(SUM(DR$17:DR$19)>0,$E24*$G24,0) -> 0 | DU24: =IF(SUM(DT$17:DT$19)>0,$E24*$G24,0) -> 0 | DW24: =IF(SUM(DV$17:DV$19)>0,$E24*$G24,0) -> 0 | DY24: 0
C25: CATEGORIAS | G25: QUANTIDADE
J26: =IF($C26=J$4,1,0) -> 0 | L26: =IF($C26=L$4,1,0) -> 0 | N26: =IF($C26=N$4,1,0) -> 0 | P26: =IF($C26=P$4,1,0) -> 0 | R26: =IF($C26=R$4,1,0) -> 0 | T26: =IF($C26=T$4,1,0) -> 0 | V26: =IF($C26=V$4,1,0) -> 0 | X26: =IF($C26=X$4,1,0) -> 0 | Z26: =IF($C26=Z$4,1,0) -> 0 | AB26: =IF($C26=AB$4,1,0) -> 0 | AD26: =IF($C26=AD$4,1,0) -> 0 | AF26: =IF($C26=AF$4,1,0) -> 0 | AH26: =IF($C26=AH$4,1,0) -> 0 | AJ26: =IF($C26=AJ$4,1,0) -> 0 | AL26: =IF($C26=AL$4,1,0) -> 0 | AN26: =IF($C26=AN$4,1,0) -> 0 | AP26: =IF($C26=AP$4,1,0) -> 0 | AR26: =IF($C26=AR$4,1,0) -> 0 | AT26: =IF($C26=AT$4,1,0) -> 0 | AV26: =IF($C26=AV$4,1,0) -> 0 | AX26: =IF($C26=AX$4,1,0) -> 0 | AZ26: =IF($C26=AZ$4,1,0) -> 0 | BB26: =IF($C26=BB$4,1,0) -> 0 | BD26: =IF($C26=BD$4,1,0) -> 0 | BF26: =IF($C26=BF$4,1,0) -> 0 | BH26: =IF($C26=BH$4,1,0) -> 0 | BJ26: =IF($C26=BJ$4,1,0) -> 0 | BL26: =IF($C26=BL$4,1,0) -> 0 | BN26: =IF($C26=BN$4,1,0) -> 0 | BP26: =IF($C26=BP$4,1,0) -> 0 | BR26: =IF($C26=BR$4,1,0) -> 0 | BT26: =IF($C26=BT$4,1,0) -> 0 | BV26: =IF($C26=BV$4,1,0) -> 0 | BX26: =IF($C26=BX$4,1,0) -> 0 | BZ26: =IF($C26=BZ$4,1,0) -> 0 | CB26: =IF($C26=CB$4,1,0) -> 0 | CD26: =IF($C26=CD$4,1,0) -> 0 | CF26: =IF($C26=CF$4,1,0) -> 0 | CH26: =IF($C26=CH$4,1,0) -> 0 | CJ26: =IF($C26=CJ$4,1,0) -> 0 | CL26: =IF($C26=CL$4,1,0) -> 0 | CN26: =IF($C26=CN$4,1,0) -> 0 | CP26: =IF($C26=CP$4,1,0) -> 0 | CR26: =IF($C26=CR$4,1,0) -> 0 | CT26: =IF($C26=CT$4,1,0) -> 0 | CV26: =IF($C26=CV$4,1,0) -> 0 | CX26: =IF($C26=CX$4,1,0) -> 0 | CZ26: =IF($C26=CZ$4,1,0) -> 0 | DB26: =IF($C26=DB$4,1,0) -> 0 | DD26: =IF($C26=DD$4,1,0) -> 0 | DF26: =IF($C26=DF$4,1,0) -> 0 | DH26: =IF($C26=DH$4,1,0) -> 0 | DJ26: =IF($C26=DJ$4,1,0) -> 0 | DL26: =IF($C26=DL$4,1,0) -> 0 | DN26: =IF($C26=DN$4,1,0) -> 0 | DP26: =IF($C26=DP$4,1,0) -> 0 | DR26: =IF($C26=DR$4,1,0) -> 0 | DT26: =IF($C26=DT$4,1,0) -> 0 | DV26: =IF($C26=DV$4,1,0) -> 0 | DX26: =IF($C26=DX$4,1,0) -> 0
C27: 3 | D27: =HLOOKUP($C27,'Dados Gerais'!$D$5:$BK$10,6) -> TELEFONISTA DE FLUXO DE ELEVADORES | G27: =HLOOKUP($C27,'Dados Gerais'!$D$5:$BK$14,10) -> 7 | J27: =IF($C27=J$4,1,0) -> 0 | L27: 0 | N27: 1 | P27: 0 | R27: 0 | T27: 0 | V27: 0 | X27: 0 | Z27: 0 | AB27: 0 | AD27: 0 | AF27: 0 | AH27: 0 | AJ27: 0 | AL27: 0 | AN27: 0 | AP27: 0 | AR27: 0 | AT27: 0 | AV27: 0 | AX27: 0 | AZ27: 0 | BB27: 0 | BD27: 0 | BF27: 0 | BH27: 0 | BJ27: 0 | BL27: 0 | BN27: 0 | BP27: 0 | BR27: 0 | BT27: 0 | BV27: 0 | BX27: 0 | BZ27: 0 | CB27: 0 | CD27: 0 | CF27: 0 | CH27: 0 | CJ27: 0 | CL27: 0 | CN27: 0 | CP27: 0 | CR27: 0 | CT27: 0 | CV27: 0 | CX27: 0 | CZ27: 0 | DB27: 0 | DD27: 0 | DF27: 0 | DH27: 0 | DJ27: 0 | DL27: 0 | DN27: 0 | DP27: 0 | DR27: 0 | DT27: 0 | DV27: 0 | DX27: 0
C28: 4 | D28: =HLOOKUP($C28,'Dados Gerais'!$D$5:$BK$10,6) -> RECEPCIONISTA DE FLUXO DE PESSOAS | G28: =HLOOKUP($C28,'Dados Gerais'!$D$5:$BK$14,10) -> 7 | J28: =IF($C28=J$4,1,0) -> 0 | L28: 0 | N28: 0 | P28: 1 | R28: 0 | T28: 0 | V28: 0 | X28: 0 | Z28: 0 | AB28: 0 | AD28: 0 | AF28: 0 | AH28: 0 | AJ28: 0 | AL28: 0 | AN28: 0 | AP28: 0 | AR28: 0 | AT28: 0 | AV28: 0 | AX28: 0 | AZ28: 0 | BB28: 0 | BD28: 0 | BF28: 0 | BH28: 0 | BJ28: 0 | BL28: 0 | BN28: 0 | BP28: 0 | BR28: 0 | BT28: 0 | BV28: 0 | BX28: 0 | BZ28: 0 | CB28: 0 | CD28: 0 | CF28: 0 | CH28: 0 | CJ28: 0 | CL28: 0 | CN28: 0 | CP28: 0 | CR28: 0 | CT28: 0 | CV28: 0 | CX28: 0 | CZ28: 0 | DB28: 0 | DD28: 0 | DF28: 0 | DH28: 0 | DJ28: 0 | DL28: 0 | DN28: 0 | DP28: 0 | DR28: 0 | DT28: 0 | DV28: 0 | DX28: 0
J29: =IF($C29=J$4,1,0) -> 0 | L29: 0 | N29: 0 | P29: 0 | R29: 0 | T29: 0 | V29: 0 | X29: 0 | Z29: 0 | AB29: 0 | AD29: 0 | AF29: 0 | AH29: 0 | AJ29: 0 | AL29: 0 | AN29: 0 | AP29: 0 | AR29: 0 | AT29: 0 | AV29: 0 | AX29: 0 | AZ29: 0 | BB29: 0 | BD29: 0 | BF29: 0 | BH29: 0 | BJ29: 0 | BL29: 0 | BN29: 0 | BP29: 0 | BR29: 0 | BT29: 0 | BV29: 0 | BX29: 0 | BZ29: 0 | CB29: 0 | CD29: 0 | CF29: 0 | CH29: 0 | CJ29: 0 | CL29: 0 | CN29: 0 | CP29: 0 | CR29: 0 | CT29: 0 | CV29: 0 | CX29: 0 | CZ29: 0 | DB29: 0 | DD29: 0 | DF29: 0 | DH29: 0 | DJ29: 0 | DL29: 0 | DN29: 0 | DP29: 0 | DR29: 0 | DT29: 0 | DV29: 0 | DX29: 0
C31: ITEM | D31: DESCRIÇÃO | E31: QUANT ANUAL POR POSTO | F31: UNIDADE | G31: VALOR
K32: =IF(SUM(J$8:J$10)>0,$E32*$G32,0) -> 0 | M32: =IF(SUM(L$8:L$10)>0,$E32*$G32,0) -> 0 | O32: =IF(SUM(N$8:N$10)>0,$E32*$G32,0) -> 0 | Q32: =IF(SUM(P$8:P$10)>0,$E32*$G32,0) -> 0 | S32: =IF(SUM(R$8:R$10)>0,$E32*$G32,0) -> 0 | U32: =IF(SUM(T$8:T$10)>0,$E32*$G32,0) -> 0 | W32: =IF(SUM(V$8:V$10)>0,$E32*$G32,0) -> 0 | Y32: =IF(SUM(X$8:X$10)>0,$E32*$G32,0) -> 0 | AA32: =IF(SUM(Z$8:Z$10)>0,$E32*$G32,0) -> 0 | AC32: =IF(SUM(AB$8:AB$10)>0,$E32*$G32,0) -> 0 | AE32: =IF(SUM(AD$8:AD$10)>0,$E32*$G32,0) -> 0 | AG32: =IF(SUM(AF$8:AF$10)>0,$E32*$G32,0) -> 0 | AI32: =IF(SUM(AH$8:AH$10)>0,$E32*$G32,0) -> 0 | AK32: =IF(SUM(AJ$8:AJ$10)>0,$E32*$G32,0) -> 0 | AM32: =IF(SUM(AL$8:AL$10)>0,$E32*$G32,0) -> 0 | AO32: =IF(SUM(AN$8:AN$10)>0,$E32*$G32,0) -> 0 | AQ32: =IF(SUM(AP$8:AP$10)>0,$E32*$G32,0) -> 0 | AS32: =IF(SUM(AR$8:AR$10)>0,$E32*$G32,0) -> 0 | AU32: =IF(SUM(AT$8:AT$10)>0,$E32*$G32,0) -> 0 | AW32: =IF(SUM(AV$8:AV$10)>0,$E32*$G32,0) -> 0 | AY32: =IF(SUM(AX$8:AX$10)>0,$E32*$G32,0) -> 0 | BA32: =IF(SUM(AZ$8:AZ$10)>0,$E32*$G32,0) -> 0 | BC32: =IF(SUM(BB$8:BB$10)>0,$E32*$G32,0) -> 0 | BE32: =IF(SUM(BD$8:BD$10)>0,$E32*$G32,0) -> 0 | BG32: =IF(SUM(BF$8:BF$10)>0,$E32*$G32,0) -> 0 | BI32: =IF(SUM(BH$8:BH$10)>0,$E32*$G32,0) -> 0 | BK32: =IF(SUM(BJ$8:BJ$10)>0,$E32*$G32,0) -> 0 | BM32: =IF(SUM(BL$8:BL$10)>0,$E32*$G32,0) -> 0 | BO32: =IF(SUM(BN$8:BN$10)>0,$E32*$G32,0) -> 0 | BQ32: =IF(SUM(BP$8:BP$10)>0,$E32*$G32,0) -> 0 | BS32: =IF(SUM(BR$8:BR$10)>0,$E32*$G32,0) -> 0 | BU32: =IF(SUM(BT$8:BT$10)>0,$E32*$G32,0) -> 0 | BW32: =IF(SUM(BV$8:BV$10)>0,$E32*$G32,0) -> 0 | BY32: =IF(SUM(BX$8:BX$10)>0,$E32*$G32,0) -> 0 | CA32: =IF(SUM(BZ$8:BZ$10)>0,$E32*$G32,0) -> 0 | CC32: =IF(SUM(CB$8:CB$10)>0,$E32*$G32,0) -> 0 | CE32: =IF(SUM(CD$8:CD$10)>0,$E32*$G32,0) -> 0 | CG32: =IF(SUM(CF$8:CF$10)>0,$E32*$G32,0) -> 0 | CI32: =IF(SUM(CH$8:CH$10)>0,$E32*$G32,0) -> 0 | CK32: =IF(SUM(CJ$8:CJ$10)>0,$E32*$G32,0) -> 0 | CM32: =IF(SUM(CL$8:CL$10)>0,$E32*$G32,0) -> 0 | CO32: =IF(SUM(CN$8:CN$10)>0,$E32*$G32,0) -> 0 | CQ32: =IF(SUM(CP$8:CP$10)>0,$E32*$G32,0) -> 0 | CS32: =IF(SUM(CR$8:CR$10)>0,$E32*$G32,0) -> 0 | CU32: =IF(SUM(CT$8:CT$10)>0,$E32*$G32,0) -> 0 | CW32: =IF(SUM(CV$8:CV$10)>0,$E32*$G32,0) -> 0 | CY32: =IF(SUM(CX$8:CX$10)>0,$E32*$G32,0) -> 0 | DA32: =IF(SUM(CZ$8:CZ$10)>0,$E32*$G32,0) -> 0 | DC32: =IF(SUM(DB$8:DB$10)>0,$E32*$G32,0) -> 0 | DE32: =IF(SUM(DD$8:DD$10)>0,$E32*$G32,0) -> 0 | DG32: =IF(SUM(DF$8:DF$10)>0,$E32*$G32,0) -> 0 | DI32: =IF(SUM(DH$8:DH$10)>0,$E32*$G32,0) -> 0 | DK32: =IF(SUM(DJ$8:DJ$10)>0,$E32*$G32,0) -> 0 | DM32: =IF(SUM(DL$8:DL$10)>0,$E32*$G32,0) -> 0 | DO32: =IF(SUM(DN$8:DN$10)>0,$E32*$G32,0) -> 0 | DQ32: =IF(SUM(DP$8:DP$10)>0,$E32*$G32,0) -> 0 | DS32: =IF(SUM(DR$8:DR$10)>0,$E32*$G32,0) -> 0 | DU32: =IF(SUM(DT$8:DT$10)>0,$E32*$G32,0) -> 0 | DW32: =IF(SUM(DV$8:DV$10)>0,$E32*$G32,0) -> 0 | DY32: =IF(SUM(DX$8:DX$10)>0,$E32*$G32,0) -> 0
C33: 1 | D33: Calçado de segurança tipo sapato com resistência a objetos pontiagudos, fechamento em elástico, couro preto, forração em tecido, bico de composite, palmilha de montagem têxtil resistente à perfuração, solado de PU (poliuretano), bidensidade sem cadarço. Ref. MARLUVAS. | F33: PAR | G33: =G23 -> 117.26 | K33: =IF(SUM(J$26:J$29)>0,$E33*$G33,0) -> 0 | M33: =IF(SUM(L$26:L$29)>0,$E33*$G33,0) -> 0 | O33: =IF(SUM(N$26:N$29)>0,$E33*$G33,0) -> 0 | Q33: =IF(SUM(P$26:P$29)>0,$E33*$G33,0) -> 0 | S33: =IF(SUM(R$26:R$29)>0,$E33*$G33,0) -> 0 | U33: =IF(SUM(T$26:T$29)>0,$E33*$G33,0) -> 0 | W33: =IF(SUM(V$26:V$29)>0,$E33*$G33,0) -> 0 | Y33: =IF(SUM(X$26:X$29)>0,$E33*$G33,0) -> 0 | AA33: =IF(SUM(Z$26:Z$29)>0,$E33*$G33,0) -> 0 | AC33: =IF(SUM(AB$26:AB$29)>0,$E33*$G33,0) -> 0 | AE33: =IF(SUM(AD$26:AD$29)>0,$E33*$G33,0) -> 0 | AG33: =IF(SUM(AF$26:AF$29)>0,$E33*$G33,0) -> 0 | AI33: =IF(SUM(AH$26:AH$29)>0,$E33*$G33,0) -> 0 | AK33: =IF(SUM(AJ$26:AJ$29)>0,$E33*$G33,0) -> 0 | AM33: =IF(SUM(AL$26:AL$29)>0,$E33*$G33,0) -> 0 | AO33: =IF(SUM(AN$26:AN$29)>0,$E33*$G33,0) -> 0 | AQ33: =IF(SUM(AP$26:AP$29)>0,$E33*$G33,0) -> 0 | AS33: =IF(SUM(AR$26:AR$29)>0,$E33*$G33,0) -> 0 | AU33: =IF(SUM(AT$26:AT$29)>0,$E33*$G33,0) -> 0 | AW33: =IF(SUM(AV$26:AV$29)>0,$E33*$G33,0) -> 0 | AY33: =IF(SUM(AX$26:AX$29)>0,$E33*$G33,0) -> 0 | BA33: =IF(SUM(AZ$26:AZ$29)>0,$E33*$G33,0) -> 0 | BC33: =IF(SUM(BB$26:BB$29)>0,$E33*$G33,0) -> 0 | BE33: =IF(SUM(BD$26:BD$29)>0,$E33*$G33,0) -> 0 | BG33: =IF(SUM(BF$26:BF$29)>0,$E33*$G33,0) -> 0 | BI33: =IF(SUM(BH$26:BH$29)>0,$E33*$G33,0) -> 0 | BK33: =IF(SUM(BJ$26:BJ$29)>0,$E33*$G33,0) -> 0 | BM33: =IF(SUM(BL$26:BL$29)>0,$E33*$G33,0) -> 0 | BO33: =IF(SUM(BN$26:BN$29)>0,$E33*$G33,0) -> 0 | BQ33: =IF(SUM(BP$26:BP$29)>0,$E33*$G33,0) -> 0 | BS33: =IF(SUM(BR$26:BR$29)>0,$E33*$G33,0) -> 0 | BU33: =IF(SUM(BT$26:BT$29)>0,$E33*$G33,0) -> 0 | BW33: =IF(SUM(BV$26:BV$29)>0,$E33*$G33,0) -> 0 | BY33: =IF(SUM(BX$26:BX$29)>0,$E33*$G33,0) -> 0 | CA33: =IF(SUM(BZ$26:BZ$29)>0,$E33*$G33,0) -> 0 | CC33: =IF(SUM(CB$26:CB$29)>0,$E33*$G33,0) -> 0 | CE33: =IF(SUM(CD$26:CD$29)>0,$E33*$G33,0) -> 0 | CG33: =IF(SUM(CF$26:CF$29)>0,$E33*$G33,0) -> 0 | CI33: =IF(SUM(CH$26:CH$29)>0,$E33*$G33,0) -> 0 | CK33: =IF(SUM(CJ$26:CJ$29)>0,$E33*$G33,0) -> 0 | CM33: =IF(SUM(CL$26:CL$29)>0,$E33*$G33,0) -> 0 | CO33: =IF(SUM(CN$26:CN$29)>0,$E33*$G33,0) -> 0 | CQ33: =IF(SUM(CP$26:CP$29)>0,$E33*$G33,0) -> 0 | CS33: =IF(SUM(CR$26:CR$29)>0,$E33*$G33,0) -> 0 | CU33: =IF(SUM(CT$26:CT$29)>0,$E33*$G33,0) -> 0 | CW33: =IF(SUM(CV$26:CV$29)>0,$E33*$G33,0) -> 0 | CY33: =IF(SUM(CX$26:CX$29)>0,$E33*$G33,0) -> 0 | DA33: =IF(SUM(CZ$26:CZ$29)>0,$E33*$G33,0) -> 0 | DC33: =IF(SUM(DB$26:DB$29)>0,$E33*$G33,0) -> 0 | DE33: =IF(SUM(DD$26:DD$29)>0,$E33*$G33,0) -> 0 | DG33: =IF(SUM(DF$26:DF$29)>0,$E33*$G33,0) -> 0 | DI33: =IF(SUM(DH$26:DH$29)>0,$E33*$G33,0) -> 0 | DK33: =IF(SUM(DJ$26:DJ$29)>0,$E33*$G33,0) -> 0 | DM33: =IF(SUM(DL$26:DL$29)>0,$E33*$G33,0) -> 0 | DO33: =IF(SUM(DN$26:DN$29)>0,$E33*$G33,0) -> 0 | DQ33: =IF(SUM(DP$26:DP$29)>0,$E33*$G33,0) -> 0 | DS33: =IF(SUM(DR$26:DR$29)>0,$E33*$G33,0) -> 0 | DU33: =IF(SUM(DT$26:DT$29)>0,$E33*$G33,0) -> 0 | DW33: =IF(SUM(DV$26:DV$29)>0,$E33*$G33,0) -> 0 | DY33: =IF(SUM(DX$26:DX$29)>0,$E33*$G33,0) -> 0
C34: 2 | D34: Respirador purificador de ar tipo, peça semifacial filtrante para partículas (PFF2), com formato dobrável, solda ultra-sônica em todo o seu perímetro. Fita elástica branca fixada nas laterais externas do respirador, perfazendo uma alça na para fixação na parte superior da cabeça e a outra na parte inferior, para fixação na altura da nuca do usuário. A parte superior externa da peça possui tira de material metálico moldável, utilizada para ajuste no septo nasal. Com válvula de exalação. DEVERÁ APRESENTAR O SELO DE APROVAÇÃO DO INMETRO. Ref. 3M | F34: UND | G34: 2.74 | K34: =IF(SUM(J$26:J$29)>0,$E34*$G34,0) -> 0 | M34: =IF(SUM(L$26:L$29)>0,$E34*$G34,0) -> 0 | O34: =IF(SUM(N$26:N$29)>0,$E34*$G34,0) -> 0 | Q34: =IF(SUM(P$26:P$29)>0,$E34*$G34,0) -> 0 | S34: =IF(SUM(R$26:R$29)>0,$E34*$G34,0) -> 0 | U34: =IF(SUM(T$26:T$29)>0,$E34*$G34,0) -> 0 | W34: =IF(SUM(V$26:V$29)>0,$E34*$G34,0) -> 0 | Y34: =IF(SUM(X$26:X$29)>0,$E34*$G34,0) -> 0 | AA34: =IF(SUM(Z$26:Z$29)>0,$E34*$G34,0) -> 0 | AC34: =IF(SUM(AB$26:AB$29)>0,$E34*$G34,0) -> 0 | AE34: =IF(SUM(AD$26:AD$29)>0,$E34*$G34,0) -> 0 | AG34: =IF(SUM(AF$26:AF$29)>0,$E34*$G34,0) -> 0 | AI34: =IF(SUM(AH$26:AH$29)>0,$E34*$G34,0) -> 0 | AK34: =IF(SUM(AJ$26:AJ$29)>0,$E34*$G34,0) -> 0 | AM34: =IF(SUM(AL$26:AL$29)>0,$E34*$G34,0) -> 0 | AO34: =IF(SUM(AN$26:AN$29)>0,$E34*$G34,0) -> 0 | AQ34: =IF(SUM(AP$26:AP$29)>0,$E34*$G34,0) -> 0 | AS34: =IF(SUM(AR$26:AR$29)>0,$E34*$G34,0) -> 0 | AU34: =IF(SUM(AT$26:AT$29)>0,$E34*$G34,0) -> 0 | AW34: =IF(SUM(AV$26:AV$29)>0,$E34*$G34,0) -> 0 | AY34: =IF(SUM(AX$26:AX$29)>0,$E34*$G34,0) -> 0 | BA34: =IF(SUM(AZ$26:AZ$29)>0,$E34*$G34,0) -> 0 | BC34: =IF(SUM(BB$26:BB$29)>0,$E34*$G34,0) -> 0 | BE34: =IF(SUM(BD$26:BD$29)>0,$E34*$G34,0) -> 0 | BG34: =IF(SUM(BF$26:BF$29)>0,$E34*$G34,0) -> 0 | BI34: =IF(SUM(BH$26:BH$29)>0,$E34*$G34,0) -> 0 | BK34: =IF(SUM(BJ$26:BJ$29)>0,$E34*$G34,0) -> 0 | BM34: =IF(SUM(BL$26:BL$29)>0,$E34*$G34,0) -> 0 | BO34: =IF(SUM(BN$26:BN$29)>0,$E34*$G34,0) -> 0 | BQ34: =IF(SUM(BP$26:BP$29)>0,$E34*$G34,0) -> 0 | BS34: =IF(SUM(BR$26:BR$29)>0,$E34*$G34,0) -> 0 | BU34: =IF(SUM(BT$26:BT$29)>0,$E34*$G34,0) -> 0 | BW34: =IF(SUM(BV$26:BV$29)>0,$E34*$G34,0) -> 0 | BY34: =IF(SUM(BX$26:BX$29)>0,$E34*$G34,0) -> 0 | CA34: =IF(SUM(BZ$26:BZ$29)>0,$E34*$G34,0) -> 0 | CC34: =IF(SUM(CB$26:CB$29)>0,$E34*$G34,0) -> 0 | CE34: =IF(SUM(CD$26:CD$29)>0,$E34*$G34,0) -> 0 | CG34: =IF(SUM(CF$26:CF$29)>0,$E34*$G34,0) -> 0 | CI34: =IF(SUM(CH$26:CH$29)>0,$E34*$G34,0) -> 0 | CK34: =IF(SUM(CJ$26:CJ$29)>0,$E34*$G34,0) -> 0 | CM34: =IF(SUM(CL$26:CL$29)>0,$E34*$G34,0) -> 0 | CO34: =IF(SUM(CN$26:CN$29)>0,$E34*$G34,0) -> 0 | CQ34: =IF(SUM(CP$26:CP$29)>0,$E34*$G34,0) -> 0 | CS34: =IF(SUM(CR$26:CR$29)>0,$E34*$G34,0) -> 0 | CU34: =IF(SUM(CT$26:CT$29)>0,$E34*$G34,0) -> 0 | CW34: =IF(SUM(CV$26:CV$29)>0,$E34*$G34,0) -> 0 | CY34: =IF(SUM(CX$26:CX$29)>0,$E34*$G34,0) -> 0 | DA34: =IF(SUM(CZ$26:CZ$29)>0,$E34*$G34,0) -> 0 | DC34: =IF(SUM(DB$26:DB$29)>0,$E34*$G34,0) -> 0 | DE34: =IF(SUM(DD$26:DD$29)>0,$E34*$G34,0) -> 0 | DG34: =IF(SUM(DF$26:DF$29)>0,$E34*$G34,0) -> 0 | DI34: =IF(SUM(DH$26:DH$29)>0,$E34*$G34,0) -> 0 | DK34: =IF(SUM(DJ$26:DJ$29)>0,$E34*$G34,0) -> 0 | DM34: =IF(SUM(DL$26:DL$29)>0,$E34*$G34,0) -> 0 | DO34: =IF(SUM(DN$26:DN$29)>0,$E34*$G34,0) -> 0 | DQ34: =IF(SUM(DP$26:DP$29)>0,$E34*$G34,0) -> 0 | DS34: =IF(SUM(DR$26:DR$29)>0,$E34*$G34,0) -> 0 | DU34: =IF(SUM(DT$26:DT$29)>0,$E34*$G34,0) -> 0 | DW34: =IF(SUM(DV$26:DV$29)>0,$E34*$G34,0) -> 0 | DY34: 0
C36: CATEGORIAS | G36: QUANTIDADE
J37: =IF($C37=J$4,1,0) -> 0 | L37: =IF($C37=L$4,1,0) -> 0 | N37: =IF($C37=N$4,1,0) -> 0 | P37: =IF($C37=P$4,1,0) -> 0 | R37: =IF($C37=R$4,1,0) -> 0 | T37: =IF($C37=T$4,1,0) -> 0 | V37: =IF($C37=V$4,1,0) -> 0 | X37: =IF($C37=X$4,1,0) -> 0 | Z37: =IF($C37=Z$4,1,0) -> 0 | AB37: =IF($C37=AB$4,1,0) -> 0 | AD37: =IF($C37=AD$4,1,0) -> 0 | AF37: =IF($C37=AF$4,1,0) -> 0 | AH37: =IF($C37=AH$4,1,0) -> 0 | AJ37: =IF($C37=AJ$4,1,0) -> 0 | AL37: =IF($C37=AL$4,1,0) -> 0 | AN37: =IF($C37=AN$4,1,0) -> 0 | AP37: =IF($C37=AP$4,1,0) -> 0 | AR37: =IF($C37=AR$4,1,0) -> 0 | AT37: =IF($C37=AT$4,1,0) -> 0 | AV37: =IF($C37=AV$4,1,0) -> 0 | AX37: =IF($C37=AX$4,1,0) -> 0 | AZ37: =IF($C37=AZ$4,1,0) -> 0 | BB37: =IF($C37=BB$4,1,0) -> 0 | BD37: =IF($C37=BD$4,1,0) -> 0 | BF37: =IF($C37=BF$4,1,0) -> 0 | BH37: =IF($C37=BH$4,1,0) -> 0 | BJ37: =IF($C37=BJ$4,1,0) -> 0 | BL37: =IF($C37=BL$4,1,0) -> 0 | BN37: =IF($C37=BN$4,1,0) -> 0 | BP37: =IF($C37=BP$4,1,0) -> 0 | BR37: =IF($C37=BR$4,1,0) -> 0 | BT37: =IF($C37=BT$4,1,0) -> 0 | BV37: =IF($C37=BV$4,1,0) -> 0 | BX37: =IF($C37=BX$4,1,0) -> 0 | BZ37: =IF($C37=BZ$4,1,0) -> 0 | CB37: =IF($C37=CB$4,1,0) -> 0 | CD37: =IF($C37=CD$4,1,0) -> 0 | CF37: =IF($C37=CF$4,1,0) -> 0 | CH37: =IF($C37=CH$4,1,0) -> 0 | CJ37: =IF($C37=CJ$4,1,0) -> 0 | CL37: =IF($C37=CL$4,1,0) -> 0 | CN37: =IF($C37=CN$4,1,0) -> 0 | CP37: =IF($C37=CP$4,1,0) -> 0 | CR37: =IF($C37=CR$4,1,0) -> 0 | CT37: =IF($C37=CT$4,1,0) -> 0 | CV37: =IF($C37=CV$4,1,0) -> 0 | CX37: =IF($C37=CX$4,1,0) -> 0 | CZ37: =IF($C37=CZ$4,1,0) -> 0 | DB37: =IF($C37=DB$4,1,0) -> 0 | DD37: =IF($C37=DD$4,1,0) -> 0 | DF37: =IF($C37=DF$4,1,0) -> 0 | DH37: =IF($C37=DH$4,1,0) -> 0 | DJ37: =IF($C37=DJ$4,1,0) -> 0 | DL37: =IF($C37=DL$4,1,0) -> 0 | DN37: =IF($C37=DN$4,1,0) -> 0 | DP37: =IF($C37=DP$4,1,0) -> 0 | DR37: =IF($C37=DR$4,1,0) -> 0 | DT37: =IF($C37=DT$4,1,0) -> 0 | DV37: =IF($C37=DV$4,1,0) -> 0 | DX37: =IF($C37=DX$4,1,0) -> 0
C38: 5 | D38: =HLOOKUP($C38,'Dados Gerais'!$D$5:$BK$10,6) -> RECEPCIONISTA DE FLUXO DE PESSOAS | G38: =HLOOKUP($C38,'Dados Gerais'!$D$5:$BK$14,10) -> 7 | J38: =IF($C38=J$4,1,0) -> 0 | L38: 0 | N38: 0 | P38: 0 | R38: 1 | T38: 0 | V38: 0 | X38: 0 | Z38: 0 | AB38: 0 | AD38: 0 | AF38: 0 | AH38: 0 | AJ38: 0 | AL38: 0 | AN38: 0 | AP38: 0 | AR38: 0 | AT38: 0 | AV38: 0 | AX38: 0 | AZ38: 0 | BB38: 0 | BD38: 0 | BF38: 0 | BH38: 0 | BJ38: 0 | BL38: 0 | BN38: 0 | BP38: 0 | BR38: 0 | BT38: 0 | BV38: 0 | BX38: 0 | BZ38: 0 | CB38: 0 | CD38: 0 | CF38: 0 | CH38: 0 | CJ38: 0 | CL38: 0 | CN38: 0 | CP38: 0 | CR38: 0 | CT38: 0 | CV38: 0 | CX38: 0 | CZ38: 0 | DB38: 0 | DD38: 0 | DF38: 0 | DH38: 0 | DJ38: 0 | DL38: 0 | DN38: 0 | DP38: 0 | DR38: 0 | DT38: 0 | DV38: 0 | DX38: 0
J39: =IF($C39=J$4,1,0) -> 0 | L39: 0 | N39: 0 | P39: 0 | R39: 0 | T39: 0 | V39: 0 | X39: 0 | Z39: 0 | AB39: 0 | AD39: 0 | AF39: 0 | AH39: 0 | AJ39: 0 | AL39: 0 | AN39: 0 | AP39: 0 | AR39: 0 | AT39: 0 | AV39: 0 | AX39: 0 | AZ39: 0 | BB39: 0 | BD39: 0 | BF39: 0 | BH39: 0 | BJ39: 0 | BL39: 0 | BN39: 0 | BP39: 0 | BR39: 0 | BT39: 0 | BV39: 0 | BX39: 0 | BZ39: 0 | CB39: 0 | CD39: 0 | CF39: 0 | CH39: 0 | CJ39: 0 | CL39: 0 | CN39: 0 | CP39: 0 | CR39: 0 | CT39: 0 | CV39: 0 | CX39: 0 | CZ39: 0 | DB39: 0 | DD39: 0 | DF39: 0 | DH39: 0 | DJ39: 0 | DL39: 0 | DN39: 0 | DP39: 0 | DR39: 0 | DT39: 0 | DV39: 0 | DX39: 0
C41: ITEM | D41: DESCRIÇÃO | E41: QUANT ANUAL POR POSTO | F41: UNIDADE | G41: VALOR
K42: =IF(SUM(J$8:J$10)>0,$E42*$G42,0) -> 0 | M42: =IF(SUM(L$8:L$10)>0,$E42*$G42,0) -> 0 | O42: =IF(SUM(N$8:N$10)>0,$E42*$G42,0) -> 0 | Q42: =IF(SUM(P$8:P$10)>0,$E42*$G42,0) -> 0 | S42: =IF(SUM(R$8:R$10)>0,$E42*$G42,0) -> 0 | U42: =IF(SUM(T$8:T$10)>0,$E42*$G42,0) -> 0 | W42: =IF(SUM(V$8:V$10)>0,$E42*$G42,0) -> 0 | Y42: =IF(SUM(X$8:X$10)>0,$E42*$G42,0) -> 0 | AA42: =IF(SUM(Z$8:Z$10)>0,$E42*$G42,0) -> 0 | AC42: =IF(SUM(AB$8:AB$10)>0,$E42*$G42,0) -> 0 | AE42: =IF(SUM(AD$8:AD$10)>0,$E42*$G42,0) -> 0 | AG42: =IF(SUM(AF$8:AF$10)>0,$E42*$G42,0) -> 0 | AI42: =IF(SUM(AH$8:AH$10)>0,$E42*$G42,0) -> 0 | AK42: =IF(SUM(AJ$8:AJ$10)>0,$E42*$G42,0) -> 0 | AM42: =IF(SUM(AL$8:AL$10)>0,$E42*$G42,0) -> 0 | AO42: =IF(SUM(AN$8:AN$10)>0,$E42*$G42,0) -> 0 | AQ42: =IF(SUM(AP$8:AP$10)>0,$E42*$G42,0) -> 0 | AS42: =IF(SUM(AR$8:AR$10)>0,$E42*$G42,0) -> 0 | AU42: =IF(SUM(AT$8:AT$10)>0,$E42*$G42,0) -> 0 | AW42: =IF(SUM(AV$8:AV$10)>0,$E42*$G42,0) -> 0 | AY42: =IF(SUM(AX$8:AX$10)>0,$E42*$G42,0) -> 0 | BA42: =IF(SUM(AZ$8:AZ$10)>0,$E42*$G42,0) -> 0 | BC42: =IF(SUM(BB$8:BB$10)>0,$E42*$G42,0) -> 0 | BE42: =IF(SUM(BD$8:BD$10)>0,$E42*$G42,0) -> 0 | BG42: =IF(SUM(BF$8:BF$10)>0,$E42*$G42,0) -> 0 | BI42: =IF(SUM(BH$8:BH$10)>0,$E42*$G42,0) -> 0 | BK42: =IF(SUM(BJ$8:BJ$10)>0,$E42*$G42,0) -> 0 | BM42: =IF(SUM(BL$8:BL$10)>0,$E42*$G42,0) -> 0 | BO42: =IF(SUM(BN$8:BN$10)>0,$E42*$G42,0) -> 0 | BQ42: =IF(SUM(BP$8:BP$10)>0,$E42*$G42,0) -> 0 | BS42: =IF(SUM(BR$8:BR$10)>0,$E42*$G42,0) -> 0 | BU42: =IF(SUM(BT$8:BT$10)>0,$E42*$G42,0) -> 0 | BW42: =IF(SUM(BV$8:BV$10)>0,$E42*$G42,0) -> 0 | BY42: =IF(SUM(BX$8:BX$10)>0,$E42*$G42,0) -> 0 | CA42: =IF(SUM(BZ$8:BZ$10)>0,$E42*$G42,0) -> 0 | CC42: =IF(SUM(CB$8:CB$10)>0,$E42*$G42,0) -> 0 | CE42: =IF(SUM(CD$8:CD$10)>0,$E42*$G42,0) -> 0 | CG42: =IF(SUM(CF$8:CF$10)>0,$E42*$G42,0) -> 0 | CI42: =IF(SUM(CH$8:CH$10)>0,$E42*$G42,0) -> 0 | CK42: =IF(SUM(CJ$8:CJ$10)>0,$E42*$G42,0) -> 0 | CM42: =IF(SUM(CL$8:CL$10)>0,$E42*$G42,0) -> 0 | CO42: =IF(SUM(CN$8:CN$10)>0,$E42*$G42,0) -> 0 | CQ42: =IF(SUM(CP$8:CP$10)>0,$E42*$G42,0) -> 0 | CS42: =IF(SUM(CR$8:CR$10)>0,$E42*$G42,0) -> 0 | CU42: =IF(SUM(CT$8:CT$10)>0,$E42*$G42,0) -> 0 | CW42: =IF(SUM(CV$8:CV$10)>0,$E42*$G42,0) -> 0 | CY42: =IF(SUM(CX$8:CX$10)>0,$E42*$G42,0) -> 0 | DA42: =IF(SUM(CZ$8:CZ$10)>0,$E42*$G42,0) -> 0 | DC42: =IF(SUM(DB$8:DB$10)>0,$E42*$G42,0) -> 0 | DE42: =IF(SUM(DD$8:DD$10)>0,$E42*$G42,0) -> 0 | DG42: =IF(SUM(DF$8:DF$10)>0,$E42*$G42,0) -> 0 | DI42: =IF(SUM(DH$8:DH$10)>0,$E42*$G42,0) -> 0 | DK42: =IF(SUM(DJ$8:DJ$10)>0,$E42*$G42,0) -> 0 | DM42: =IF(SUM(DL$8:DL$10)>0,$E42*$G42,0) -> 0 | DO42: =IF(SUM(DN$8:DN$10)>0,$E42*$G42,0) -> 0 | DQ42: =IF(SUM(DP$8:DP$10)>0,$E42*$G42,0) -> 0 | DS42: =IF(SUM(DR$8:DR$10)>0,$E42*$G42,0) -> 0 | DU42: =IF(SUM(DT$8:DT$10)>0,$E42*$G42,0) -> 0 | DW42: =IF(SUM(DV$8:DV$10)>0,$E42*$G42,0) -> 0 | DY42: =IF(SUM(DX$8:DX$10)>0,$E42*$G42,0) -> 0
C43: 1 | D43: Calçado de segurança tipo sapato com resistência a objetos pontiagudos, fechamento em elástico, couro preto, forração em tecido, bico de composite, palmilha de montagem têxtil resistente à perfuração, solado de PU (poliuretano), bidensidade sem cadarço. Ref. MARLUVAS. | F43: PAR | G43: =G33 -> 117.26 | K43: =IF(SUM(J$37:J$39)>0,$E43*$G43,0) -> 0 | M43: =IF(SUM(L$37:L$39)>0,$E43*$G43,0) -> 0 | O43: =IF(SUM(N$37:N$39)>0,$E43*$G43,0) -> 0 | Q43: =IF(SUM(P$37:P$39)>0,$E43*$G43,0) -> 0 | S43: =IF(SUM(R$37:R$39)>0,$E43*$G43,0) -> 0 | U43: =IF(SUM(T$37:T$39)>0,$E43*$G43,0) -> 0 | W43: =IF(SUM(V$37:V$39)>0,$E43*$G43,0) -> 0 | Y43: =IF(SUM(X$37:X$39)>0,$E43*$G43,0) -> 0 | AA43: =IF(SUM(Z$37:Z$39)>0,$E43*$G43,0) -> 0 | AC43: =IF(SUM(AB$37:AB$39)>0,$E43*$G43,0) -> 0 | AE43: =IF(SUM(AD$37:AD$39)>0,$E43*$G43,0) -> 0 | AG43: =IF(SUM(AF$37:AF$39)>0,$E43*$G43,0) -> 0 | AI43: =IF(SUM(AH$37:AH$39)>0,$E43*$G43,0) -> 0 | AK43: =IF(SUM(AJ$37:AJ$39)>0,$E43*$G43,0) -> 0 | AM43: =IF(SUM(AL$37:AL$39)>0,$E43*$G43,0) -> 0 | AO43: =IF(SUM(AN$37:AN$39)>0,$E43*$G43,0) -> 0 | AQ43: =IF(SUM(AP$37:AP$39)>0,$E43*$G43,0) -> 0 | AS43: =IF(SUM(AR$37:AR$39)>0,$E43*$G43,0) -> 0 | AU43: =IF(SUM(AT$37:AT$39)>0,$E43*$G43,0) -> 0 | AW43: =IF(SUM(AV$37:AV$39)>0,$E43*$G43,0) -> 0 | AY43: =IF(SUM(AX$37:AX$39)>0,$E43*$G43,0) -> 0 | BA43: =IF(SUM(AZ$37:AZ$39)>0,$E43*$G43,0) -> 0 | BC43: =IF(SUM(BB$37:BB$39)>0,$E43*$G43,0) -> 0 | BE43: =IF(SUM(BD$37:BD$39)>0,$E43*$G43,0) -> 0 | BG43: =IF(SUM(BF$37:BF$39)>0,$E43*$G43,0) -> 0 | BI43: =IF(SUM(BH$37:BH$39)>0,$E43*$G43,0) -> 0 | BK43: =IF(SUM(BJ$37:BJ$39)>0,$E43*$G43,0) -> 0 | BM43: =IF(SUM(BL$37:BL$39)>0,$E43*$G43,0) -> 0 | BO43: =IF(SUM(BN$37:BN$39)>0,$E43*$G43,0) -> 0 | BQ43: =IF(SUM(BP$37:BP$39)>0,$E43*$G43,0) -> 0 | BS43: =IF(SUM(BR$37:BR$39)>0,$E43*$G43,0) -> 0 | BU43: =IF(SUM(BT$37:BT$39)>0,$E43*$G43,0) -> 0 | BW43: =IF(SUM(BV$37:BV$39)>0,$E43*$G43,0) -> 0 | BY43: =IF(SUM(BX$37:BX$39)>0,$E43*$G43,0) -> 0 | CA43: =IF(SUM(BZ$37:BZ$39)>0,$E43*$G43,0) -> 0 | CC43: =IF(SUM(CB$37:CB$39)>0,$E43*$G43,0) -> 0 | CE43: =IF(SUM(CD$37:CD$39)>0,$E43*$G43,0) -> 0 | CG43: =IF(SUM(CF$37:CF$39)>0,$E43*$G43,0) -> 0 | CI43: =IF(SUM(CH$37:CH$39)>0,$E43*$G43,0) -> 0 | CK43: =IF(SUM(CJ$37:CJ$39)>0,$E43*$G43,0) -> 0 | CM43: =IF(SUM(CL$37:CL$39)>0,$E43*$G43,0) -> 0 | CO43: =IF(SUM(CN$37:CN$39)>0,$E43*$G43,0) -> 0 | CQ43: =IF(SUM(CP$37:CP$39)>0,$E43*$G43,0) -> 0 | CS43: =IF(SUM(CR$37:CR$39)>0,$E43*$G43,0) -> 0 | CU43: =IF(SUM(CT$37:CT$39)>0,$E43*$G43,0) -> 0 | CW43: =IF(SUM(CV$37:CV$39)>0,$E43*$G43,0) -> 0 | CY43: =IF(SUM(CX$37:CX$39)>0,$E43*$G43,0) -> 0 | DA43: =IF(SUM(CZ$37:CZ$39)>0,$E43*$G43,0) -> 0 | DC43: =IF(SUM(DB$37:DB$39)>0,$E43*$G43,0) -> 0 | DE43: =IF(SUM(DD$37:DD$39)>0,$E43*$G43,0) -> 0 | DG43: =IF(SUM(DF$37:DF$39)>0,$E43*$G43,0) -> 0 | DI43: =IF(SUM(DH$37:DH$39)>0,$E43*$G43,0) -> 0 | DK43: =IF(SUM(DJ$37:DJ$39)>0,$E43*$G43,0) -> 0 | DM43: =IF(SUM(DL$37:DL$39)>0,$E43*$G43,0) -> 0 | DO43: =IF(SUM(DN$37:DN$39)>0,$E43*$G43,0) -> 0 | DQ43: =IF(SUM(DP$37:DP$39)>0,$E43*$G43,0) -> 0 | DS43: =IF(SUM(DR$37:DR$39)>0,$E43*$G43,0) -> 0 | DU43: =IF(SUM(DT$37:DT$39)>0,$E43*$G43,0) -> 0 | DW43: =IF(SUM(DV$37:DV$39)>0,$E43*$G43,0) -> 0 | DY43: =IF(SUM(DX$37:DX$39)>0,$E43*$G43,0) -> 0
C44: 2 | D44: Respirador purificador de ar tipo, peça semifacial filtrante para partículas (PFF2), com formato dobrável, solda ultra-sônica em todo o seu perímetro. Fita elástica branca fixada nas laterais externas do respirador, perfazendo uma alça na para fixação na parte superior da cabeça e a outra na parte inferior, para fixação na altura da nuca do usuário. A parte superior externa da peça possui tira de material metálico moldável, utilizada para ajuste no septo nasal. Com válvula de exalação. DEVERÁ APRESENTAR O SELO DE APROVAÇÃO DO INMETRO. Ref. 3M | F44: UND | G44: =G34 -> 2.74 | K44: =IF(SUM(J$37:J$39)>0,$E44*$G44,0) -> 0 | M44: =IF(SUM(L$37:L$39)>0,$E44*$G44,0) -> 0 | O44: =IF(SUM(N$37:N$39)>0,$E44*$G44,0) -> 0 | Q44: =IF(SUM(P$37:P$39)>0,$E44*$G44,0) -> 0 | S44: =IF(SUM(R$37:R$39)>0,$E44*$G44,0) -> 0 | U44: =IF(SUM(T$37:T$39)>0,$E44*$G44,0) -> 0 | W44: =IF(SUM(V$37:V$39)>0,$E44*$G44,0) -> 0 | Y44: =IF(SUM(X$37:X$39)>0,$E44*$G44,0) -> 0 | AA44: =IF(SUM(Z$37:Z$39)>0,$E44*$G44,0) -> 0 | AC44: =IF(SUM(AB$37:AB$39)>0,$E44*$G44,0) -> 0 | AE44: =IF(SUM(AD$37:AD$39)>0,$E44*$G44,0) -> 0 | AG44: =IF(SUM(AF$37:AF$39)>0,$E44*$G44,0) -> 0 | AI44: =IF(SUM(AH$37:AH$39)>0,$E44*$G44,0) -> 0 | AK44: =IF(SUM(AJ$37:AJ$39)>0,$E44*$G44,0) -> 0 | AM44: =IF(SUM(AL$37:AL$39)>0,$E44*$G44,0) -> 0 | AO44: =IF(SUM(AN$37:AN$39)>0,$E44*$G44,0) -> 0 | AQ44: =IF(SUM(AP$37:AP$39)>0,$E44*$G44,0) -> 0 | AS44: =IF(SUM(AR$37:AR$39)>0,$E44*$G44,0) -> 0 | AU44: =IF(SUM(AT$37:AT$39)>0,$E44*$G44,0) -> 0 | AW44: =IF(SUM(AV$37:AV$39)>0,$E44*$G44,0) -> 0 | AY44: =IF(SUM(AX$37:AX$39)>0,$E44*$G44,0) -> 0 | BA44: =IF(SUM(AZ$37:AZ$39)>0,$E44*$G44,0) -> 0 | BC44: =IF(SUM(BB$37:BB$39)>0,$E44*$G44,0) -> 0 | BE44: =IF(SUM(BD$37:BD$39)>0,$E44*$G44,0) -> 0 | BG44: =IF(SUM(BF$37:BF$39)>0,$E44*$G44,0) -> 0 | BI44: =IF(SUM(BH$37:BH$39)>0,$E44*$G44,0) -> 0 | BK44: =IF(SUM(BJ$37:BJ$39)>0,$E44*$G44,0) -> 0 | BM44: =IF(SUM(BL$37:BL$39)>0,$E44*$G44,0) -> 0 | BO44: =IF(SUM(BN$37:BN$39)>0,$E44*$G44,0) -> 0 | BQ44: =IF(SUM(BP$37:BP$39)>0,$E44*$G44,0) -> 0 | BS44: =IF(SUM(BR$37:BR$39)>0,$E44*$G44,0) -> 0 | BU44: =IF(SUM(BT$37:BT$39)>0,$E44*$G44,0) -> 0 | BW44: =IF(SUM(BV$37:BV$39)>0,$E44*$G44,0) -> 0 | BY44: =IF(SUM(BX$37:BX$39)>0,$E44*$G44,0) -> 0 | CA44: =IF(SUM(BZ$37:BZ$39)>0,$E44*$G44,0) -> 0 | CC44: =IF(SUM(CB$37:CB$39)>0,$E44*$G44,0) -> 0 | CE44: =IF(SUM(CD$37:CD$39)>0,$E44*$G44,0) -> 0 | CG44: =IF(SUM(CF$37:CF$39)>0,$E44*$G44,0) -> 0 | CI44: =IF(SUM(CH$37:CH$39)>0,$E44*$G44,0) -> 0 | CK44: =IF(SUM(CJ$37:CJ$39)>0,$E44*$G44,0) -> 0 | CM44: =IF(SUM(CL$37:CL$39)>0,$E44*$G44,0) -> 0 | CO44: =IF(SUM(CN$37:CN$39)>0,$E44*$G44,0) -> 0 | CQ44: =IF(SUM(CP$37:CP$39)>0,$E44*$G44,0) -> 0 | CS44: =IF(SUM(CR$37:CR$39)>0,$E44*$G44,0) -> 0 | CU44: =IF(SUM(CT$37:CT$39)>0,$E44*$G44,0) -> 0 | CW44: =IF(SUM(CV$37:CV$39)>0,$E44*$G44,0) -> 0 | CY44: =IF(SUM(CX$37:CX$39)>0,$E44*$G44,0) -> 0 | DA44: =IF(SUM(CZ$37:CZ$39)>0,$E44*$G44,0) -> 0 | DC44: =IF(SUM(DB$37:DB$39)>0,$E44*$G44,0) -> 0 | DE44: =IF(SUM(DD$37:DD$39)>0,$E44*$G44,0) -> 0 | DG44: =IF(SUM(DF$37:DF$39)>0,$E44*$G44,0) -> 0 | DI44: =IF(SUM(DH$37:DH$39)>0,$E44*$G44,0) -> 0 | DK44: =IF(SUM(DJ$37:DJ$39)>0,$E44*$G44,0) -> 0 | DM44: =IF(SUM(DL$37:DL$39)>0,$E44*$G44,0) -> 0 | DO44: =IF(SUM(DN$37:DN$39)>0,$E44*$G44,0) -> 0 | DQ44: =IF(SUM(DP$37:DP$39)>0,$E44*$G44,0) -> 0 | DS44: =IF(SUM(DR$37:DR$39)>0,$E44*$G44,0) -> 0 | DU44: =IF(SUM(DT$37:DT$39)>0,$E44*$G44,0) -> 0 | DW44: =IF(SUM(DV$37:DV$39)>0,$E44*$G44,0) -> 0 | DY44: 0
C46: CATEGORIAS | G46: QUANTIDADE
J47: =IF($C47=J$4,1,0) -> 0 | L47: =IF($C47=L$4,1,0) -> 0 | N47: =IF($C47=N$4,1,0) -> 0 | P47: =IF($C47=P$4,1,0) -> 0 | R47: =IF($C47=R$4,1,0) -> 0 | T47: =IF($C47=T$4,1,0) -> 0 | V47: =IF($C47=V$4,1,0) -> 0 | X47: =IF($C47=X$4,1,0) -> 0 | Z47: =IF($C47=Z$4,1,0) -> 0 | AB47: =IF($C47=AB$4,1,0) -> 0 | AD47: =IF($C47=AD$4,1,0) -> 0 | AF47: =IF($C47=AF$4,1,0) -> 0 | AH47: =IF($C47=AH$4,1,0) -> 0 | AJ47: =IF($C47=AJ$4,1,0) -> 0 | AL47: =IF($C47=AL$4,1,0) -> 0 | AN47: =IF($C47=AN$4,1,0) -> 0 | AP47: =IF($C47=AP$4,1,0) -> 0 | AR47: =IF($C47=AR$4,1,0) -> 0 | AT47: =IF($C47=AT$4,1,0) -> 0 | AV47: =IF($C47=AV$4,1,0) -> 0 | AX47: =IF($C47=AX$4,1,0) -> 0 | AZ47: =IF($C47=AZ$4,1,0) -> 0 | BB47: =IF($C47=BB$4,1,0) -> 0 | BD47: =IF($C47=BD$4,1,0) -> 0 | BF47: =IF($C47=BF$4,1,0) -> 0 | BH47: =IF($C47=BH$4,1,0) -> 0 | BJ47: =IF($C47=BJ$4,1,0) -> 0 | BL47: =IF($C47=BL$4,1,0) -> 0 | BN47: =IF($C47=BN$4,1,0) -> 0 | BP47: =IF($C47=BP$4,1,0) -> 0 | BR47: =IF($C47=BR$4,1,0) -> 0 | BT47: =IF($C47=BT$4,1,0) -> 0 | BV47: =IF($C47=BV$4,1,0) -> 0 | BX47: =IF($C47=BX$4,1,0) -> 0 | BZ47: =IF($C47=BZ$4,1,0) -> 0 | CB47: =IF($C47=CB$4,1,0) -> 0 | CD47: =IF($C47=CD$4,1,0) -> 0 | CF47: =IF($C47=CF$4,1,0) -> 0 | CH47: =IF($C47=CH$4,1,0) -> 0 | CJ47: =IF($C47=CJ$4,1,0) -> 0 | CL47: =IF($C47=CL$4,1,0) -> 0 | CN47: =IF($C47=CN$4,1,0) -> 0 | CP47: =IF($C47=CP$4,1,0) -> 0 | CR47: =IF($C47=CR$4,1,0) -> 0 | CT47: =IF($C47=CT$4,1,0) -> 0 | CV47: =IF($C47=CV$4,1,0) -> 0 | CX47: =IF($C47=CX$4,1,0) -> 0 | CZ47: =IF($C47=CZ$4,1,0) -> 0 | DB47: =IF($C47=DB$4,1,0) -> 0 | DD47: =IF($C47=DD$4,1,0) -> 0 | DF47: =IF($C47=DF$4,1,0) -> 0 | DH47: =IF($C47=DH$4,1,0) -> 0 | DJ47: =IF($C47=DJ$4,1,0) -> 0 | DL47: =IF($C47=DL$4,1,0) -> 0 | DN47: =IF($C47=DN$4,1,0) -> 0 | DP47: =IF($C47=DP$4,1,0) -> 0 | DR47: =IF($C47=DR$4,1,0) -> 0 | DT47: =IF($C47=DT$4,1,0) -> 0 | DV47: =IF($C47=DV$4,1,0) -> 0 | DX47: =IF($C47=DX$4,1,0) -> 0
C48: 6 | D48: =HLOOKUP($C48,'Dados Gerais'!$D$5:$BK$10,6) -> RECEPCIONISTA DE FLUXO DE PESSOAS | G48: =HLOOKUP($C48,'Dados Gerais'!$D$5:$BK$14,10) -> 7 | J48: =IF($C48=J$4,1,0) -> 0 | L48: 0 | N48: 0 | P48: 0 | R48: 0 | T48: 1 | V48: 0 | X48: 0 | Z48: 0 | AB48: 0 | AD48: 0 | AF48: 0 | AH48: 0 | AJ48: 0 | AL48: 0 | AN48: 0 | AP48: 0 | AR48: 0 | AT48: 0 | AV48: 0 | AX48: 0 | AZ48: 0 | BB48: 0 | BD48: 0 | BF48: 0 | BH48: 0 | BJ48: 0 | BL48: 0 | BN48: 0 | BP48: 0 | BR48: 0 | BT48: 0 | BV48: 0 | BX48: 0 | BZ48: 0 | CB48: 0 | CD48: 0 | CF48: 0 | CH48: 0 | CJ48: 0 | CL48: 0 | CN48: 0 | CP48: 0 | CR48: 0 | CT48: 0 | CV48: 0 | CX48: 0 | CZ48: 0 | DB48: 0 | DD48: 0 | DF48: 0 | DH48: 0 | DJ48: 0 | DL48: 0 | DN48: 0 | DP48: 0 | DR48: 0 | DT48: 0 | DV48: 0 | DX48: 0
J49: =IF($C49=J$4,1,0) -> 0 | L49: 0 | N49: 0 | P49: 0 | R49: 0 | T49: 0 | V49: 0 | X49: 0 | Z49: 0 | AB49: 0 | AD49: 0 | AF49: 0 | AH49: 0 | AJ49: 0 | AL49: 0 | AN49: 0 | AP49: 0 | AR49: 0 | AT49: 0 | AV49: 0 | AX49: 0 | AZ49: 0 | BB49: 0 | BD49: 0 | BF49: 0 | BH49: 0 | BJ49: 0 | BL49: 0 | BN49: 0 | BP49: 0 | BR49: 0 | BT49: 0 | BV49: 0 | BX49: 0 | BZ49: 0 | CB49: 0 | CD49: 0 | CF49: 0 | CH49: 0 | CJ49: 0 | CL49: 0 | CN49: 0 | CP49: 0 | CR49: 0 | CT49: 0 | CV49: 0 | CX49: 0 | CZ49: 0 | DB49: 0 | DD49: 0 | DF49: 0 | DH49: 0 | DJ49: 0 | DL49: 0 | DN49: 0 | DP49: 0 | DR49: 0 | DT49: 0 | DV49: 0 | DX49: 0
C51: ITEM | D51: DESCRIÇÃO | E51: QUANT ANUAL POR POSTO | F51: UNIDADE | G51: VALOR
K52: =IF(SUM(J$8:J$10)>0,$E52*$G52,0) -> 0 | M52: =IF(SUM(L$8:L$10)>0,$E52*$G52,0) -> 0 | O52: =IF(SUM(N$8:N$10)>0,$E52*$G52,0) -> 0 | Q52: =IF(SUM(P$8:P$10)>0,$E52*$G52,0) -> 0 | S52: =IF(SUM(R$8:R$10)>0,$E52*$G52,0) -> 0 | U52: =IF(SUM(T$8:T$10)>0,$E52*$G52,0) -> 0 | W52: =IF(SUM(V$8:V$10)>0,$E52*$G52,0) -> 0 | Y52: =IF(SUM(X$8:X$10)>0,$E52*$G52,0) -> 0 | AA52: =IF(SUM(Z$8:Z$10)>0,$E52*$G52,0) -> 0 | AC52: =IF(SUM(AB$8:AB$10)>0,$E52*$G52,0) -> 0 | AE52: =IF(SUM(AD$8:AD$10)>0,$E52*$G52,0) -> 0 | AG52: =IF(SUM(AF$8:AF$10)>0,$E52*$G52,0) -> 0 | AI52: =IF(SUM(AH$8:AH$10)>0,$E52*$G52,0) -> 0 | AK52: =IF(SUM(AJ$8:AJ$10)>0,$E52*$G52,0) -> 0 | AM52: =IF(SUM(AL$8:AL$10)>0,$E52*$G52,0) -> 0 | AO52: =IF(SUM(AN$8:AN$10)>0,$E52*$G52,0) -> 0 | AQ52: =IF(SUM(AP$8:AP$10)>0,$E52*$G52,0) -> 0 | AS52: =IF(SUM(AR$8:AR$10)>0,$E52*$G52,0) -> 0 | AU52: =IF(SUM(AT$8:AT$10)>0,$E52*$G52,0) -> 0 | AW52: =IF(SUM(AV$8:AV$10)>0,$E52*$G52,0) -> 0 | AY52: =IF(SUM(AX$8:AX$10)>0,$E52*$G52,0) -> 0 | BA52: =IF(SUM(AZ$8:AZ$10)>0,$E52*$G52,0) -> 0 | BC52: =IF(SUM(BB$8:BB$10)>0,$E52*$G52,0) -> 0 | BE52: =IF(SUM(BD$8:BD$10)>0,$E52*$G52,0) -> 0 | BG52: =IF(SUM(BF$8:BF$10)>0,$E52*$G52,0) -> 0 | BI52: =IF(SUM(BH$8:BH$10)>0,$E52*$G52,0) -> 0 | BK52: =IF(SUM(BJ$8:BJ$10)>0,$E52*$G52,0) -> 0 | BM52: =IF(SUM(BL$8:BL$10)>0,$E52*$G52,0) -> 0 | BO52: =IF(SUM(BN$8:BN$10)>0,$E52*$G52,0) -> 0 | BQ52: =IF(SUM(BP$8:BP$10)>0,$E52*$G52,0) -> 0 | BS52: =IF(SUM(BR$8:BR$10)>0,$E52*$G52,0) -> 0 | BU52: =IF(SUM(BT$8:BT$10)>0,$E52*$G52,0) -> 0 | BW52: =IF(SUM(BV$8:BV$10)>0,$E52*$G52,0) -> 0 | BY52: =IF(SUM(BX$8:BX$10)>0,$E52*$G52,0) -> 0 | CA52: =IF(SUM(BZ$8:BZ$10)>0,$E52*$G52,0) -> 0 | CC52: =IF(SUM(CB$8:CB$10)>0,$E52*$G52,0) -> 0 | CE52: =IF(SUM(CD$8:CD$10)>0,$E52*$G52,0) -> 0 | CG52: =IF(SUM(CF$8:CF$10)>0,$E52*$G52,0) -> 0 | CI52: =IF(SUM(CH$8:CH$10)>0,$E52*$G52,0) -> 0 | CK52: =IF(SUM(CJ$8:CJ$10)>0,$E52*$G52,0) -> 0 | CM52: =IF(SUM(CL$8:CL$10)>0,$E52*$G52,0) -> 0 | CO52: =IF(SUM(CN$8:CN$10)>0,$E52*$G52,0) -> 0 | CQ52: =IF(SUM(CP$8:CP$10)>0,$E52*$G52,0) -> 0 | CS52: =IF(SUM(CR$8:CR$10)>0,$E52*$G52,0) -> 0 | CU52: =IF(SUM(CT$8:CT$10)>0,$E52*$G52,0) -> 0 | CW52: =IF(SUM(CV$8:CV$10)>0,$E52*$G52,0) -> 0 | CY52: =IF(SUM(CX$8:CX$10)>0,$E52*$G52,0) -> 0 | DA52: =IF(SUM(CZ$8:CZ$10)>0,$E52*$G52,0) -> 0 | DC52: =IF(SUM(DB$8:DB$10)>0,$E52*$G52,0) -> 0 | DE52: =IF(SUM(DD$8:DD$10)>0,$E52*$G52,0) -> 0 | DG52: =IF(SUM(DF$8:DF$10)>0,$E52*$G52,0) -> 0 | DI52: =IF(SUM(DH$8:DH$10)>0,$E52*$G52,0) -> 0 | DK52: =IF(SUM(DJ$8:DJ$10)>0,$E52*$G52,0) -> 0 | DM52: =IF(SUM(DL$8:DL$10)>0,$E52*$G52,0) -> 0 | DO52: =IF(SUM(DN$8:DN$10)>0,$E52*$G52,0) -> 0 | DQ52: =IF(SUM(DP$8:DP$10)>0,$E52*$G52,0) -> 0 | DS52: =IF(SUM(DR$8:DR$10)>0,$E52*$G52,0) -> 0 | DU52: =IF(SUM(DT$8:DT$10)>0,$E52*$G52,0) -> 0 | DW52: =IF(SUM(DV$8:DV$10)>0,$E52*$G52,0) -> 0 | DY52: =IF(SUM(DX$8:DX$10)>0,$E52*$G52,0) -> 0
C53: 1 | D53: Calçado de segurança tipo sapato com resistência a objetos pontiagudos, fechamento em elástico, couro preto, forração em tecido, bico de composite, palmilha de montagem têxtil resistente à perfuração, solado de PU (poliuretano), bidensidade sem cadarço. Ref. MARLUVAS. | F53: PAR | G53: =G43 -> 117.26 | K53: =IF(SUM(J$47:J$49)>0,$E53*$G53,0) -> 0 | M53: =IF(SUM(L$47:L$49)>0,$E53*$G53,0) -> 0 | O53: =IF(SUM(N$47:N$49)>0,$E53*$G53,0) -> 0 | Q53: =IF(SUM(P$47:P$49)>0,$E53*$G53,0) -> 0 | S53: =IF(SUM(R$47:R$49)>0,$E53*$G53,0) -> 0 | U53: =IF(SUM(T$47:T$49)>0,$E53*$G53,0) -> 0 | W53: =IF(SUM(V$47:V$49)>0,$E53*$G53,0) -> 0 | Y53: =IF(SUM(X$47:X$49)>0,$E53*$G53,0) -> 0 | AA53: =IF(SUM(Z$47:Z$49)>0,$E53*$G53,0) -> 0 | AC53: =IF(SUM(AB$47:AB$49)>0,$E53*$G53,0) -> 0 | AE53: =IF(SUM(AD$47:AD$49)>0,$E53*$G53,0) -> 0 | AG53: =IF(SUM(AF$47:AF$49)>0,$E53*$G53,0) -> 0 | AI53: =IF(SUM(AH$47:AH$49)>0,$E53*$G53,0) -> 0 | AK53: =IF(SUM(AJ$47:AJ$49)>0,$E53*$G53,0) -> 0 | AM53: =IF(SUM(AL$47:AL$49)>0,$E53*$G53,0) -> 0 | AO53: =IF(SUM(AN$47:AN$49)>0,$E53*$G53,0) -> 0 | AQ53: =IF(SUM(AP$47:AP$49)>0,$E53*$G53,0) -> 0 | AS53: =IF(SUM(AR$47:AR$49)>0,$E53*$G53,0) -> 0 | AU53: =IF(SUM(AT$47:AT$49)>0,$E53*$G53,0) -> 0 | AW53: =IF(SUM(AV$47:AV$49)>0,$E53*$G53,0) -> 0 | AY53: =IF(SUM(AX$47:AX$49)>0,$E53*$G53,0) -> 0 | BA53: =IF(SUM(AZ$47:AZ$49)>0,$E53*$G53,0) -> 0 | BC53: =IF(SUM(BB$47:BB$49)>0,$E53*$G53,0) -> 0 | BE53: =IF(SUM(BD$47:BD$49)>0,$E53*$G53,0) -> 0 | BG53: =IF(SUM(BF$47:BF$49)>0,$E53*$G53,0) -> 0 | BI53: =IF(SUM(BH$47:BH$49)>0,$E53*$G53,0) -> 0 | BK53: =IF(SUM(BJ$47:BJ$49)>0,$E53*$G53,0) -> 0 | BM53: =IF(SUM(BL$47:BL$49)>0,$E53*$G53,0) -> 0 | BO53: =IF(SUM(BN$47:BN$49)>0,$E53*$G53,0) -> 0 | BQ53: =IF(SUM(BP$47:BP$49)>0,$E53*$G53,0) -> 0 | BS53: =IF(SUM(BR$47:BR$49)>0,$E53*$G53,0) -> 0 | BU53: =IF(SUM(BT$47:BT$49)>0,$E53*$G53,0) -> 0 | BW53: =IF(SUM(BV$47:BV$49)>0,$E53*$G53,0) -> 0 | BY53: =IF(SUM(BX$47:BX$49)>0,$E53*$G53,0) -> 0 | CA53: =IF(SUM(BZ$47:BZ$49)>0,$E53*$G53,0) -> 0 | CC53: =IF(SUM(CB$47:CB$49)>0,$E53*$G53,0) -> 0 | CE53: =IF(SUM(CD$47:CD$49)>0,$E53*$G53,0) -> 0 | CG53: =IF(SUM(CF$47:CF$49)>0,$E53*$G53,0) -> 0 | CI53: =IF(SUM(CH$47:CH$49)>0,$E53*$G53,0) -> 0 | CK53: =IF(SUM(CJ$47:CJ$49)>0,$E53*$G53,0) -> 0 | CM53: =IF(SUM(CL$47:CL$49)>0,$E53*$G53,0) -> 0 | CO53: =IF(SUM(CN$47:CN$49)>0,$E53*$G53,0) -> 0 | CQ53: =IF(SUM(CP$47:CP$49)>0,$E53*$G53,0) -> 0 | CS53: =IF(SUM(CR$47:CR$49)>0,$E53*$G53,0) -> 0 | CU53: =IF(SUM(CT$47:CT$49)>0,$E53*$G53,0) -> 0 | CW53: =IF(SUM(CV$47:CV$49)>0,$E53*$G53,0) -> 0 | CY53: =IF(SUM(CX$47:CX$49)>0,$E53*$G53,0) -> 0 | DA53: =IF(SUM(CZ$47:CZ$49)>0,$E53*$G53,0) -> 0 | DC53: =IF(SUM(DB$47:DB$49)>0,$E53*$G53,0) -> 0 | DE53: =IF(SUM(DD$47:DD$49)>0,$E53*$G53,0) -> 0 | DG53: =IF(SUM(DF$47:DF$49)>0,$E53*$G53,0) -> 0 | DI53: =IF(SUM(DH$47:DH$49)>0,$E53*$G53,0) -> 0 | DK53: =IF(SUM(DJ$47:DJ$49)>0,$E53*$G53,0) -> 0 | DM53: =IF(SUM(DL$47:DL$49)>0,$E53*$G53,0) -> 0 | DO53: =IF(SUM(DN$47:DN$49)>0,$E53*$G53,0) -> 0 | DQ53: =IF(SUM(DP$47:DP$49)>0,$E53*$G53,0) -> 0 | DS53: =IF(SUM(DR$47:DR$49)>0,$E53*$G53,0) -> 0 | DU53: =IF(SUM(DT$47:DT$49)>0,$E53*$G53,0) -> 0 | DW53: =IF(SUM(DV$47:DV$49)>0,$E53*$G53,0) -> 0 | DY53: =IF(SUM(DX$47:DX$49)>0,$E53*$G53,0) -> 0
C54: 2 | D54: Respirador purificador de ar tipo, peça semifacial filtrante para partículas (PFF2), com formato dobrável, solda ultra-sônica em todo o seu perímetro. Fita elástica branca fixada nas laterais externas do respirador, perfazendo uma alça na para fixação na parte superior da cabeça e a outra na parte inferior, para fixação na altura da nuca do usuário. A parte superior externa da peça possui tira de material metálico moldável, utilizada para ajuste no septo nasal. Com válvula de exalação. DEVERÁ APRESENTAR O SELO DE APROVAÇÃO DO INMETRO. Ref. 3M | F54: UND | G54: =G44 -> 2.74 | K54: =IF(SUM(J$47:J$49)>0,$E54*$G54,0) -> 0 | M54: 0 | O54: 0 | Q54: 0 | S54: 0 | U54: 0 | W54: 0 | Y54: 0 | AA54: 0 | AC54: 0 | AE54: 0 | AG54: 0 | AI54: 0 | AK54: 0 | AM54: 0 | AO54: 0 | AQ54: 0 | AS54: 0 | AU54: 0 | AW54: 0 | AY54: 0 | BA54: 0 | BC54: 0 | BE54: 0 | BG54: 0 | BI54: 0 | BK54: 0 | BM54: 0 | BO54: 0 | BQ54: 0 | BS54: 0 | BU54: 0 | BW54: 0 | BY54: 0 | CA54: 0 | CC54: 0 | CE54: 0 | CG54: 0 | CI54: 0 | CK54: 0 | CM54: 0 | CO54: 0 | CQ54: 0 | CS54: 0 | CU54: 0 | CW54: 0 | CY54: 0 | DA54: 0 | DC54: 0 | DE54: 0 | DG54: 0 | DI54: 0 | DK54: 0 | DM54: 0 | DO54: 0 | DQ54: 0 | DS54: 0 | DU54: 0 | DW54: 0 | DY54: 0
C55: 3 | D55: Luva de Segurança confeccionada em LÁTEX natural anatômica (esp. mínima 0,60mm), acabamento forrado em algodão flocado, antiderrapante na palma e dedos. Ref.: Mucambo | F55: PAR | G55: 10.15 | K55: 0 | M55: =IF(SUM(L$47:L$49)>0,$E55*$G55,0) -> 0 | O55: 0 | Q55: 0 | S55: 0 | U55: 0 | W55: 0 | Y55: 0 | AA55: 0 | AC55: 0 | AE55: 0 | AG55: 0 | AI55: 0 | AK55: 0 | AM55: 0 | AO55: 0 | AQ55: 0 | AS55: 0 | AU55: 0 | AW55: 0 | AY55: 0 | BA55: 0 | BC55: 0 | BE55: 0 | BG55: 0 | BI55: 0 | BK55: 0 | BM55: 0 | BO55: 0 | BQ55: 0 | BS55: 0 | BU55: 0 | BW55: 0 | BY55: 0 | CA55: 0 | CC55: 0 | CE55: 0 | CG55: 0 | CI55: 0 | CK55: 0 | CM55: 0 | CO55: 0 | CQ55: 0 | CS55: 0 | CU55: 0 | CW55: 0 | CY55: 0 | DA55: 0 | DC55: 0 | DE55: 0 | DG55: 0 | DI55: 0 | DK55: 0 | DM55: 0 | DO55: 0 | DQ55: 0 | DS55: 0 | DU55: 0 | DW55: 0 | DY55: 0
C56: 4 | D56: Óculos de segurança constituídos de armação e visor confeccionados em uma única peça de policarbonato INCOLOR, anti-risco, apoio nasal de plástico maleável. Hastes emborrachadas. Ref.: 3M Virtua V4 | F56: UND | G56: 10.59 | K56: 0 | M56: 0 | O56: 0 | Q56: 0 | S56: 0 | U56: 0 | W56: 0 | Y56: 0 | AA56: 0 | AC56: 0 | AE56: 0 | AG56: 0 | AI56: 0 | AK56: 0 | AM56: 0 | AO56: 0 | AQ56: 0 | AS56: 0 | AU56: 0 | AW56: 0 | AY56: 0 | BA56: 0 | BC56: 0 | BE56: 0 | BG56: 0 | BI56: 0 | BK56: 0 | BM56: 0 | BO56: 0 | BQ56: 0 | BS56: 0 | BU56: 0 | BW56: 0 | BY56: 0 | CA56: 0 | CC56: 0 | CE56: 0 | CG56: 0 | CI56: 0 | CK56: 0 | CM56: 0 | CO56: 0 | CQ56: 0 | CS56: 0 | CU56: 0 | CW56: 0 | CY56: 0 | DA56: 0 | DC56: 0 | DE56: 0 | DG56: 0 | DI56: 0 | DK56: 0 | DM56: 0 | DO56: 0 | DQ56: 0 | DS56: 0 | DU56: 0 | DW56: 0 | DY56: 0
C59: CATEGORIAS | G59: QUANTIDADE
J60: =IF($C60=J$4,1,0) -> 0 | L60: =IF($C60=L$4,1,0) -> 0 | N60: =IF($C60=N$4,1,0) -> 0 | P60: =IF($C60=P$4,1,0) -> 0 | R60: =IF($C60=R$4,1,0) -> 0 | T60: =IF($C60=T$4,1,0) -> 0 | V60: =IF($C60=V$4,1,0) -> 0 | X60: =IF($C60=X$4,1,0) -> 0 | Z60: =IF($C60=Z$4,1,0) -> 0 | AB60: =IF($C60=AB$4,1,0) -> 0 | AD60: =IF($C60=AD$4,1,0) -> 0 | AF60: =IF($C60=AF$4,1,0) -> 0 | AH60: =IF($C60=AH$4,1,0) -> 0 | AJ60: =IF($C60=AJ$4,1,0) -> 0 | AL60: =IF($C60=AL$4,1,0) -> 0 | AN60: =IF($C60=AN$4,1,0) -> 0 | AP60: =IF($C60=AP$4,1,0) -> 0 | AR60: =IF($C60=AR$4,1,0) -> 0 | AT60: =IF($C60=AT$4,1,0) -> 0 | AV60: =IF($C60=AV$4,1,0) -> 0 | AX60: =IF($C60=AX$4,1,0) -> 0 | AZ60: =IF($C60=AZ$4,1,0) -> 0 | BB60: =IF($C60=BB$4,1,0) -> 0 | BD60: =IF($C60=BD$4,1,0) -> 0 | BF60: =IF($C60=BF$4,1,0) -> 0 | BH60: =IF($C60=BH$4,1,0) -> 0 | BJ60: =IF($C60=BJ$4,1,0) -> 0 | BL60: =IF($C60=BL$4,1,0) -> 0 | BN60: =IF($C60=BN$4,1,0) -> 0 | BP60: =IF($C60=BP$4,1,0) -> 0 | BR60: =IF($C60=BR$4,1,0) -> 0 | BT60: =IF($C60=BT$4,1,0) -> 0 | BV60: =IF($C60=BV$4,1,0) -> 0 | BX60: =IF($C60=BX$4,1,0) -> 0 | BZ60: =IF($C60=BZ$4,1,0) -> 0 | CB60: =IF($C60=CB$4,1,0) -> 0 | CD60: =IF($C60=CD$4,1,0) -> 0 | CF60: =IF($C60=CF$4,1,0) -> 0 | CH60: =IF($C60=CH$4,1,0) -> 0 | CJ60: =IF($C60=CJ$4,1,0) -> 0 | CL60: =IF($C60=CL$4,1,0) -> 0 | CN60: =IF($C60=CN$4,1,0) -> 0 | CP60: =IF($C60=CP$4,1,0) -> 0 | CR60: =IF($C60=CR$4,1,0) -> 0 | CT60: =IF($C60=CT$4,1,0) -> 0 | CV60: =IF($C60=CV$4,1,0) -> 0 | CX60: =IF($C60=CX$4,1,0) -> 0 | CZ60: =IF($C60=CZ$4,1,0) -> 0 | DB60: =IF($C60=DB$4,1,0) -> 0 | DD60: =IF($C60=DD$4,1,0) -> 0 | DF60: =IF($C60=DF$4,1,0) -> 0 | DH60: =IF($C60=DH$4,1,0) -> 0 | DJ60: =IF($C60=DJ$4,1,0) -> 0 | DL60: =IF($C60=DL$4,1,0) -> 0 | DN60: =IF($C60=DN$4,1,0) -> 0 | DP60: =IF($C60=DP$4,1,0) -> 0 | DR60: =IF($C60=DR$4,1,0) -> 0 | DT60: =IF($C60=DT$4,1,0) -> 0 | DV60: =IF($C60=DV$4,1,0) -> 0 | DX60: =IF($C60=DX$4,1,0) -> 0
C61: 7 | D61: =HLOOKUP($C61,'Dados Gerais'!$D$5:$BK$10,6) -> RECEPCIONISTA DE FLUXO DE PESSOAS | G61: =HLOOKUP($C61,'Dados Gerais'!$D$5:$BK$14,10) -> 7 | J61: =IF($C61=J$4,1,0) -> 0 | L61: 0 | N61: 0 | P61: 0 | R61: 0 | T61: 0 | V61: 1 | X61: 0 | Z61: 0 | AB61: 0 | AD61: 0 | AF61: 0 | AH61: 0 | AJ61: 0 | AL61: 0 | AN61: 0 | AP61: 0 | AR61: 0 | AT61: 0 | AV61: 0 | AX61: 0 | AZ61: 0 | BB61: 0 | BD61: 0 | BF61: 0 | BH61: 0 | BJ61: 0 | BL61: 0 | BN61: 0 | BP61: 0 | BR61: 0 | BT61: 0 | BV61: 0 | BX61: 0 | BZ61: 0 | CB61: 0 | CD61: 0 | CF61: 0 | CH61: 0 | CJ61: 0 | CL61: 0 | CN61: 0 | CP61: 0 | CR61: 0 | CT61: 0 | CV61: 0 | CX61: 0 | CZ61: 0 | DB61: 0 | DD61: 0 | DF61: 0 | DH61: 0 | DJ61: 0 | DL61: 0 | DN61: 0 | DP61: 0 | DR61: 0 | DT61: 0 | DV61: 0 | DX61: 0
C62: 8 | D62: =HLOOKUP($C62,'Dados Gerais'!$D$5:$BK$10,6) -> RECEPCIONISTA DE FLUXO DE PESSOAS | G62: =HLOOKUP($C62,'Dados Gerais'!$D$5:$BK$14,10) -> 7 | J62: =IF($C62=J$4,1,0) -> 0 | L62: 0 | N62: 0 | P62: 0 | R62: 0 | T62: 0 | V62: 0 | X62: 1 | Z62: 0 | AB62: 0 | AD62: 0 | AF62: 0 | AH62: 0 | AJ62: 0 | AL62: 0 | AN62: 0 | AP62: 0 | AR62: 0 | AT62: 0 | AV62: 0 | AX62: 0 | AZ62: 0 | BB62: 0 | BD62: 0 | BF62: 0 | BH62: 0 | BJ62: 0 | BL62: 0 | BN62: 0 | BP62: 0 | BR62: 0 | BT62: 0 | BV62: 0 | BX62: 0 | BZ62: 0 | CB62: 0 | CD62: 0 | CF62: 0 | CH62: 0 | CJ62: 0 | CL62: 0 | CN62: 0 | CP62: 0 | CR62: 0 | CT62: 0 | CV62: 0 | CX62: 0 | CZ62: 0 | DB62: 0 | DD62: 0 | DF62: 0 | DH62: 0 | DJ62: 0 | DL62: 0 | DN62: 0 | DP62: 0 | DR62: 0 | DT62: 0 | DV62: 0 | DX62: 0
C63: 9 | D63: =HLOOKUP($C63,'Dados Gerais'!$D$5:$BK$10,6) -> RECEPCIONISTA DE FLUXO DE PESSOAS | G63: =HLOOKUP($C63,'Dados Gerais'!$D$5:$BK$14,10) -> 7 | J63: =IF($C63=J$4,1,0) -> 0 | L63: 0 | N63: 0 | P63: 0 | R63: 0 | T63: 0 | V63: 0 | X63: 0 | Z63: 1 | AB63: 0 | AD63: 0 | AF63: 0 | AH63: 0 | AJ63: 0 | AL63: 0 | AN63: 0 | AP63: 0 | AR63: 0 | AT63: 0 | AV63: 0 | AX63: 0 | AZ63: 0 | BB63: 0 | BD63: 0 | BF63: 0 | BH63: 0 | BJ63: 0 | BL63: 0 | BN63: 0 | BP63: 0 | BR63: 0 | BT63: 0 | BV63: 0 | BX63: 0 | BZ63: 0 | CB63: 0 | CD63: 0 | CF63: 0 | CH63: 0 | CJ63: 0 | CL63: 0 | CN63: 0 | CP63: 0 | CR63: 0 | CT63: 0 | CV63: 0 | CX63: 0 | CZ63: 0 | DB63: 0 | DD63: 0 | DF63: 0 | DH63: 0 | DJ63: 0 | DL63: 0 | DN63: 0 | DP63: 0 | DR63: 0 | DT63: 0 | DV63: 0 | DX63: 0
J64: =IF($C64=J$4,1,0) -> 0 | L64: 0 | N64: 0 | P64: 0 | R64: 0 | T64: 0 | V64: 0 | X64: 0 | Z64: 0 | AB64: 0 | AD64: 0 | AF64: 0 | AH64: 0 | AJ64: 0 | AL64: 0 | AN64: 0 | AP64: 0 | AR64: 0 | AT64: 0 | AV64: 0 | AX64: 0 | AZ64: 0 | BB64: 0 | BD64: 0 | BF64: 0 | BH64: 0 | BJ64: 0 | BL64: 0 | BN64: 0 | BP64: 0 | BR64: 0 | BT64: 0 | BV64: 0 | BX64: 0 | BZ64: 0 | CB64: 0 | CD64: 0 | CF64: 0 | CH64: 0 | CJ64: 0 | CL64: 0 | CN64: 0 | CP64: 0 | CR64: 0 | CT64: 0 | CV64: 0 | CX64: 0 | CZ64: 0 | DB64: 0 | DD64: 0 | DF64: 0 | DH64: 0 | DJ64: 0 | DL64: 0 | DN64: 0 | DP64: 0 | DR64: 0 | DT64: 0 | DV64: 0 | DX64: 0
C66: ITEM | D66: DESCRIÇÃO | E66: QUANT ANUAL POR POSTO | F66: UNIDADE | G66: VALOR
K67: =IF(SUM(J$8:J$10)>0,$E67*$G67,0) -> 0 | M67: =IF(SUM(L$8:L$10)>0,$E67*$G67,0) -> 0 | O67: =IF(SUM(N$8:N$10)>0,$E67*$G67,0) -> 0 | Q67: =IF(SUM(P$8:P$10)>0,$E67*$G67,0) -> 0 | S67: =IF(SUM(R$8:R$10)>0,$E67*$G67,0) -> 0 | U67: =IF(SUM(T$8:T$10)>0,$E67*$G67,0) -> 0 | W67: =IF(SUM(V$8:V$10)>0,$E67*$G67,0) -> 0 | Y67: =IF(SUM(X$8:X$10)>0,$E67*$G67,0) -> 0 | AA67: =IF(SUM(Z$8:Z$10)>0,$E67*$G67,0) -> 0 | AC67: =IF(SUM(AB$8:AB$10)>0,$E67*$G67,0) -> 0 | AE67: =IF(SUM(AD$8:AD$10)>0,$E67*$G67,0) -> 0 | AG67: =IF(SUM(AF$8:AF$10)>0,$E67*$G67,0) -> 0 | AI67: =IF(SUM(AH$8:AH$10)>0,$E67*$G67,0) -> 0 | AK67: =IF(SUM(AJ$8:AJ$10)>0,$E67*$G67,0) -> 0 | AM67: =IF(SUM(AL$8:AL$10)>0,$E67*$G67,0) -> 0 | AO67: =IF(SUM(AN$8:AN$10)>0,$E67*$G67,0) -> 0 | AQ67: =IF(SUM(AP$8:AP$10)>0,$E67*$G67,0) -> 0 | AS67: =IF(SUM(AR$8:AR$10)>0,$E67*$G67,0) -> 0 | AU67: =IF(SUM(AT$8:AT$10)>0,$E67*$G67,0) -> 0 | AW67: =IF(SUM(AV$8:AV$10)>0,$E67*$G67,0) -> 0 | AY67: =IF(SUM(AX$8:AX$10)>0,$E67*$G67,0) -> 0 | BA67: =IF(SUM(AZ$8:AZ$10)>0,$E67*$G67,0) -> 0 | BC67: =IF(SUM(BB$8:BB$10)>0,$E67*$G67,0) -> 0 | BE67: =IF(SUM(BD$8:BD$10)>0,$E67*$G67,0) -> 0 | BG67: =IF(SUM(BF$8:BF$10)>0,$E67*$G67,0) -> 0 | BI67: =IF(SUM(BH$8:BH$10)>0,$E67*$G67,0) -> 0 | BK67: =IF(SUM(BJ$8:BJ$10)>0,$E67*$G67,0) -> 0 | BM67: =IF(SUM(BL$8:BL$10)>0,$E67*$G67,0) -> 0 | BO67: =IF(SUM(BN$8:BN$10)>0,$E67*$G67,0) -> 0 | BQ67: =IF(SUM(BP$8:BP$10)>0,$E67*$G67,0) -> 0 | BS67: =IF(SUM(BR$8:BR$10)>0,$E67*$G67,0) -> 0 | BU67: =IF(SUM(BT$8:BT$10)>0,$E67*$G67,0) -> 0 | BW67: =IF(SUM(BV$8:BV$10)>0,$E67*$G67,0) -> 0 | BY67: =IF(SUM(BX$8:BX$10)>0,$E67*$G67,0) -> 0 | CA67: =IF(SUM(BZ$8:BZ$10)>0,$E67*$G67,0) -> 0 | CC67: =IF(SUM(CB$8:CB$10)>0,$E67*$G67,0) -> 0 | CE67: =IF(SUM(CD$8:CD$10)>0,$E67*$G67,0) -> 0 | CG67: =IF(SUM(CF$8:CF$10)>0,$E67*$G67,0) -> 0 | CI67: =IF(SUM(CH$8:CH$10)>0,$E67*$G67,0) -> 0 | CK67: =IF(SUM(CJ$8:CJ$10)>0,$E67*$G67,0) -> 0 | CM67: =IF(SUM(CL$8:CL$10)>0,$E67*$G67,0) -> 0 | CO67: =IF(SUM(CN$8:CN$10)>0,$E67*$G67,0) -> 0 | CQ67: =IF(SUM(CP$8:CP$10)>0,$E67*$G67,0) -> 0 | CS67: =IF(SUM(CR$8:CR$10)>0,$E67*$G67,0) -> 0 | CU67: =IF(SUM(CT$8:CT$10)>0,$E67*$G67,0) -> 0 | CW67: =IF(SUM(CV$8:CV$10)>0,$E67*$G67,0) -> 0 | CY67: =IF(SUM(CX$8:CX$10)>0,$E67*$G67,0) -> 0 | DA67: =IF(SUM(CZ$8:CZ$10)>0,$E67*$G67,0) -> 0 | DC67: =IF(SUM(DB$8:DB$10)>0,$E67*$G67,0) -> 0 | DE67: =IF(SUM(DD$8:DD$10)>0,$E67*$G67,0) -> 0 | DG67: =IF(SUM(DF$8:DF$10)>0,$E67*$G67,0) -> 0 | DI67: =IF(SUM(DH$8:DH$10)>0,$E67*$G67,0) -> 0 | DK67: =IF(SUM(DJ$8:DJ$10)>0,$E67*$G67,0) -> 0 | DM67: =IF(SUM(DL$8:DL$10)>0,$E67*$G67,0) -> 0 | DO67: =IF(SUM(DN$8:DN$10)>0,$E67*$G67,0) -> 0 | DQ67: =IF(SUM(DP$8:DP$10)>0,$E67*$G67,0) -> 0 | DS67: =IF(SUM(DR$8:DR$10)>0,$E67*$G67,0) -> 0 | DU67: =IF(SUM(DT$8:DT$10)>0,$E67*$G67,0) -> 0 | DW67: =IF(SUM(DV$8:DV$10)>0,$E67*$G67,0) -> 0 | DY67: =IF(SUM(DX$8:DX$10)>0,$E67*$G67,0) -> 0
C68: 1 | D68: Calçado de segurança tipo sapato com resistência a objetos pontiagudos, fechamento em elástico, couro preto, forração em tecido, bico de composite, palmilha de montagem têxtil resistente à perfuração, solado de PU (poliuretano), bidensidade sem cadarço. Ref. MARLUVAS. | F68: PAR | G68: =G53 -> 117.26 | K68: =IF(SUM(J$61:J$63)>0,$E68*$G68,0) -> 0 | M68: =IF(SUM(L$61:L$63)>0,$E68*$G68,0) -> 0 | O68: =IF(SUM($J$61:$J$63)>0,$E68*$G68,0) -> 0 | Q68: =IF(SUM($J$61:$J$63)>0,$E68*$G68,0) -> 0 | S68: =IF(SUM($J$61:$J$63)>0,$E68*$G68,0) -> 0 | U68: =IF(SUM($J$61:$J$63)>0,$E68*$G68,0) -> 0 | W68: =IF(SUM(V$61:V$63)>0,$E68*$G68,0) -> 0 | Y68: =IF(SUM(X$61:X$63)>0,$E68*$G68,0) -> 0 | AA68: =IF(SUM(Z$61:Z$63)>0,$E68*$G68,0) -> 0 | AC68: =IF(SUM($J$61:$J$63)>0,$E68*$G68,0) -> 0 | AE68: =IF(SUM($J$61:$J$63)>0,$E68*$G68,0) -> 0 | AG68: =IF(SUM($J$61:$J$63)>0,$E68*$G68,0) -> 0 | AI68: =IF(SUM($J$61:$J$63)>0,$E68*$G68,0) -> 0 | AK68: =IF(SUM($J$61:$J$63)>0,$E68*$G68,0) -> 0 | AM68: =IF(SUM($J$61:$J$63)>0,$E68*$G68,0) -> 0 | AO68: =IF(SUM($J$61:$J$63)>0,$E68*$G68,0) -> 0 | AQ68: =IF(SUM($J$61:$J$63)>0,$E68*$G68,0) -> 0 | AS68: =IF(SUM($J$61:$J$63)>0,$E68*$G68,0) -> 0 | AU68: =IF(SUM($J$61:$J$63)>0,$E68*$G68,0) -> 0 | AW68: =IF(SUM($J$61:$J$63)>0,$E68*$G68,0) -> 0 | AY68: =IF(SUM($J$61:$J$63)>0,$E68*$G68,0) -> 0 | BA68: =IF(SUM($J$61:$J$63)>0,$E68*$G68,0) -> 0 | BC68: =IF(SUM($J$61:$J$63)>0,$E68*$G68,0) -> 0 | BE68: =IF(SUM($J$61:$J$63)>0,$E68*$G68,0) -> 0 | BG68: =IF(SUM($J$61:$J$63)>0,$E68*$G68,0) -> 0 | BI68: =IF(SUM($J$61:$J$63)>0,$E68*$G68,0) -> 0 | BK68: =IF(SUM($J$61:$J$63)>0,$E68*$G68,0) -> 0 | BM68: =IF(SUM($J$61:$J$63)>0,$E68*$G68,0) -> 0 | BO68: =IF(SUM($J$61:$J$63)>0,$E68*$G68,0) -> 0 | BQ68: =IF(SUM($J$61:$J$63)>0,$E68*$G68,0) -> 0 | BS68: =IF(SUM($J$61:$J$63)>0,$E68*$G68,0) -> 0 | BU68: =IF(SUM($J$61:$J$63)>0,$E68*$G68,0) -> 0 | BW68: =IF(SUM($J$61:$J$63)>0,$E68*$G68,0) -> 0 | BY68: =IF(SUM($J$61:$J$63)>0,$E68*$G68,0) -> 0 | CA68: =IF(SUM($J$61:$J$63)>0,$E68*$G68,0) -> 0 | CC68: =IF(SUM($J$61:$J$63)>0,$E68*$G68,0) -> 0 | CE68: =IF(SUM($J$61:$J$63)>0,$E68*$G68,0) -> 0 | CG68: =IF(SUM($J$61:$J$63)>0,$E68*$G68,0) -> 0 | CI68: =IF(SUM($J$61:$J$63)>0,$E68*$G68,0) -> 0 | CK68: =IF(SUM($J$61:$J$63)>0,$E68*$G68,0) -> 0 | CM68: =IF(SUM($J$61:$J$63)>0,$E68*$G68,0) -> 0 | CO68: =IF(SUM($J$61:$J$63)>0,$E68*$G68,0) -> 0 | CQ68: =IF(SUM($J$61:$J$63)>0,$E68*$G68,0) -> 0 | CS68: =IF(SUM($J$61:$J$63)>0,$E68*$G68,0) -> 0 | CU68: =IF(SUM($J$61:$J$63)>0,$E68*$G68,0) -> 0 | CW68: =IF(SUM($J$61:$J$63)>0,$E68*$G68,0) -> 0 | CY68: =IF(SUM($J$61:$J$63)>0,$E68*$G68,0) -> 0 | DA68: =IF(SUM($J$61:$J$63)>0,$E68*$G68,0) -> 0 | DC68: =IF(SUM($J$61:$J$63)>0,$E68*$G68,0) -> 0 | DE68: =IF(SUM($J$61:$J$63)>0,$E68*$G68,0) -> 0 | DG68: =IF(SUM($J$61:$J$63)>0,$E68*$G68,0) -> 0 | DI68: =IF(SUM($J$61:$J$63)>0,$E68*$G68,0) -> 0 | DK68: =IF(SUM($J$61:$J$63)>0,$E68*$G68,0) -> 0 | DM68: =IF(SUM($J$61:$J$63)>0,$E68*$G68,0) -> 0 | DO68: =IF(SUM($J$61:$J$63)>0,$E68*$G68,0) -> 0 | DQ68: =IF(SUM($J$61:$J$63)>0,$E68*$G68,0) -> 0 | DS68: =IF(SUM($J$61:$J$63)>0,$E68*$G68,0) -> 0 | DU68: =IF(SUM($J$61:$J$63)>0,$E68*$G68,0) -> 0 | DW68: =IF(SUM($J$61:$J$63)>0,$E68*$G68,0) -> 0 | DY68: =IF(SUM($J$61:$J$63)>0,$E68*$G68,0) -> 0
C69: 2 | D69: Luva de Segurança confeccionada em LÁTEX natural anatômica (esp. mínima 0,60mm), acabamento forrado em algodão flocado, antiderrapante na palma e dedos. Ref.: Mucambo | F69: PAR | G69: =G55 -> 10.15 | K69: =IF(SUM(J$61:J$63)>0,$E69*$G69,0) -> 0 | M69: 0 | O69: =IF(SUM($J$61:$J$63)>0,$E69*$G69,0) -> 0 | Q69: 0 | S69: 0 | U69: 0 | W69: =IF(SUM(V$61:V$63)>0,$E69*$G69,0) -> 0 | Y69: 0 | AA69: =IF(SUM(Z$61:Z$63)>0,$E69*$G69,0) -> 0 | AC69: =IF(SUM($J$61:$J$63)>0,$E69*$G69,0) -> 0 | AE69: 0 | AG69: 0 | AI69: 0 | AK69: 0 | AM69: 0 | AO69: 0 | AQ69: 0 | AS69: 0 | AU69: 0 | AW69: 0 | AY69: 0 | BA69: 0 | BC69: 0 | BE69: 0 | BG69: 0 | BI69: 0 | BK69: 0 | BM69: 0 | BO69: 0 | BQ69: 0 | BS69: 0 | BU69: 0 | BW69: 0 | BY69: 0 | CA69: 0 | CC69: 0 | CE69: 0 | CG69: 0 | CI69: 0 | CK69: 0 | CM69: 0 | CO69: 0 | CQ69: 0 | CS69: 0 | CU69: 0 | CW69: 0 | CY69: 0 | DA69: 0 | DC69: 0 | DE69: 0 | DG69: 0 | DI69: 0 | DK69: 0 | DM69: 0 | DO69: 0 | DQ69: 0 | DS69: 0 | DU69: 0 | DW69: 0 | DY69: 0
C70: 3 | D70: Respirador purificador de ar tipo, peça semifacial filtrante para partículas (PFF2), com formato dobrável, solda ultra-sônica em todo o seu perímetro. Fita elástica branca fixada nas laterais externas do respirador, perfazendo uma alça na para fixação na parte superior da cabeça e a outra na parte inferior, para fixação na altura da nuca do usuário. A parte superior externa da peça possui tira de material metálico moldável, utilizada para ajuste no septo nasal. Com válvula de exalação. DEVERÁ APRESENTAR O SELO DE APROVAÇÃO DO INMETRO. Ref. 3M | F70: UND | G70: =G54 -> 2.74 | K70: 0 | M70: 0 | O70: =IF(SUM($J$61:$J$63)>0,$E70*$G70,0) -> 0 | Q70: 0 | S70: 0 | U70: 0 | W70: 0 | Y70: 0 | AA70: =IF(SUM(Z$61:Z$63)>0,$E70*$G70,0) -> 0 | AC70: 0 | AE70: 0 | AG70: 0 | AI70: 0 | AK70: 0 | AM70: 0 | AO70: 0 | AQ70: 0 | AS70: 0 | AU70: 0 | AW70: 0 | AY70: 0 | BA70: 0 | BC70: 0 | BE70: 0 | BG70: 0 | BI70: 0 | BK70: 0 | BM70: 0 | BO70: 0 | BQ70: 0 | BS70: 0 | BU70: 0 | BW70: 0 | BY70: 0 | CA70: 0 | CC70: 0 | CE70: 0 | CG70: 0 | CI70: 0 | CK70: 0 | CM70: 0 | CO70: 0 | CQ70: 0 | CS70: 0 | CU70: 0 | CW70: 0 | CY70: 0 | DA70: 0 | DC70: 0 | DE70: 0 | DG70: 0 | DI70: 0 | DK70: 0 | DM70: 0 | DO70: 0 | DQ70: 0 | DS70: 0 | DU70: 0 | DW70: 0 | DY70: 0

Sheet SREP
B4: SISTEMA DE REGISTRO ELETRÔNICO DE PRESENÇA - SREP
C7: PAGAMENTO DA DEPRECIAÇÃO
C8: ITEM | D8: DESCRIÇÃO | E8: QUANT ANUAL | F8: CONTA SIAFI | G8: VALOR DE AQ. | H8: % RESIDUAL | I8: VIDA ÚTIL | J8: DEP. MENSAL | K8: CUSTO TOTAL | L8: BDI (%) | M8: PREÇO TOTAL | N8: FONTE | O8: REFERÊNCIA
C10: 1 | D10: Equipamento de Registro Eletrônico de Ponto, de parede, com teclado externo e leitor biométrico, em conformidade com a Portaria 1.510/2009 do MT | E10: 2 | F10: 12311.01.24 (máquinas e equip eletrônicos) | G10: 1597 | H10: 0.1 | I10: 10 | J10: =G10*(1-H10)/(I10*12) -> 11.9775 | K10: =J10*E10 -> 23.955 | L10: =BDI!E26 -> 0.2577 | M10: =ROUND(K10*(1+L10),2) -> 30.13 | N10: COTAÇÃO
C13: PAGAMENTO DA MANUTENÇÃO
C14: ITEM | D14: DESCRIÇÃO | H14: K (calculado) | I14: MENSAL DEPR. | J14: % MAN X DEP | K14: MENSAL MAN. | L14: BDI (%) | M14: PREÇO TOTAL
C16: 2 | D16: Todos os itens | H16: =H23 -> 1.90003968 | I16: =K10 -> 23.955 | J16: =H16 -> 1.90003968 | K16: =I16*H16 -> 45.51545053 | L16: =L10 -> 0.2577 | M16: =ROUND(K16*(1+L16),2) -> 57.24
E18: K1 | F18: K2 | G18: K3 | H18: K4
E19: 0.85 | F19: 1 | G19: 0.8 | H19: 1.4
E20: K5 | F20: K6 | G20: K7 | H20: K8
E21: 1 | F21: 0.6 | G21: 1.6 | H21: 1.1
E22: K9 | F22: K10 | G22: K11 | H22: RESULTADO
D23: * a descrição de cada coeficiente segue abaixo | E23: 1.5 | F23: 0.9 | G23: 1.4 | H23: =E19*F19*G19*H19*E21*F21*G21*H21*E23*F23*G23 -> 1.90003968
C26: PAGAMENTO DO SOFTWARE
C27: ITEM | D27: DESCRIÇÃO | I27: QUANTIDADE | J27: UNIDADE | K27: UNIT. MENSAL | L27: BDI (%) | M27: PREÇO TOTAL
C29: 3 | D29: Software Ponto Secullum 4 - manutenção e suporte técnico com backup - Web Nuvem - Mensalidade até 200 usuários | I29: 1 | J29: Licença/mês | K29: 538.92 | L29: =L35 -> 0.2577 | M29: =ROUND(K29*(1+L29),2) -> 677.8 | N29: COTAÇÃO
C32: MATERIAL DE CONSUMO ASSOCIADO
C33: ITEM | D33: DESCRIÇÃO | H33: QUANTID/ANO | I33: UNIDADE | J33: VALOR DE AQ. | K33: MENSAL MAT | L33: BDI (%) | M33: PREÇO TOTAL
C35: 4 | D35: Bobina térmica específica para o registrador eletrônico de ponto, com papel termossensível, superfície de impressão externa ao rolo, durabilidade de impressão mínima de 5 anos e comprimento mínimo de 300m | E35: * estimado um gasto anual de 16 bobinas | H35: =ROUNDUP(SUM(Remunerações!E15)*4*22*12*0.05/300,0) -> 10 | I35: Bobina | J35: 36.7 | K35: =J35*H35/12 -> 30.58333333 | L35: =L16 -> 0.2577 | M35: =ROUND(K35*(1+L35),2) -> 38.46 | N35: COTAÇÃO
C38: MATERIAL DE CONSUMO ASSOCIADO
C39: ITEM | D39: DESCRIÇÃO | M39: PREÇO TOTAL
C41: 1 | D41: Componente DEPRECIAÇÃO | M41: =M10 -> 30.13
C42: 2 | D42: Componente MANUTENÇÃO | M42: =M16 -> 57.24
C43: 3 | D43: Componente SOFTWARE | M43: =M29 -> 677.8
C44: 4 | D44: Componente MATERIAL DE CONSUMO ASSOCIADO | M44: =M35 -> 38.46
L46: SOMATÓRIO TOTAL MENSAL | M46: =SUM(M40:M45) -> 803.63
L47: SOMATÓRIO TOTAL ANUAL | M47: =M46*12 -> 9643.56
C50: MATERIAL DE CONSUMO ASSOCIADO
C51: MEMÓRIA DE CÁLCULO DO COEFICIENTE DE CORRELAÇÃO MANUTENÇÃO X DEPRECIAÇÃO (K)
C53: JUSTIFICATIVAS | E53: TIPO | F53: K1 | H53: Condições de Trab | I53: K4 | K53: Tempo Vida (anos) | L53: K6 | N53: Temperatura | O53: K8
E54: Guindaste | F54: 0.5 | H54: Em espera | I54: 0.4 | K54: 1 | L54: 0.6 | N54: Muito quente (> 40º C) | O54: 1.3
C55: K1 | D55: Considerado o valor médio de 0,85 | E55: Caminhão-comum | F55: 0.8 | H55: Leves | I55: 0.8 | K55: 2 | L55: 0.7 | N55: Quente (30º a 40º C) | O55: 1.1
C56: K2 | D56: Considerado o operador médio | E56: Fora-de-estrada | F56: 1 | H56: Médias | I56: 1 | K56: 3 | L56: 0.8 | N56: Médio (10º a 30º C) | O56: 1
C57: K3 | D57: Consideradas ferramentas de primeira qualidade | E57: Carregadeira | F57: 1 | H57: Pesadas | I57: 1.4 | K57: 4 | L57: 0.9 | N57: Frio (< 10º C) | O57: 1.2
C58: K4 | D58: Há todo o tipo de trabalho, foi considerado condições pesadas | E58: Escavadeira | F58: 1.4 | H58: Severas | I58: 2 | K58: 5 | L58: 1
C59: K5 | D59: Considerando manutenção normal | E59: Motoescrêiper | F59: 1.1 | K59: 6 | L59: 1 | N59: Ritmo de Trabalho | O59: K9
C60: K6 | D60: Equipamentos novos | E60: Trator de esteira | F60: 1.2 | H60: Manutenção | I60: K5 | K60: 7 | L60: 1 | N60: Folgado | O60: 0.9
C61: K7 | D61: 44h por dia, 252 dias por ano | H61: Excelente | I61: 0.6 | K61: 8 | L61: 1.2 | N61: Médio | O61: 1
C62: K8 | D62: Clima quente, acima de 30º C | E62: Qualid do Operador | F62: K2 | H62: Boa | I62: 0.8 | K62: 9 | L62: 1.3 | N62: Com pressa | O62: 1.5
C63: K9 | D63: Ritmo de trabalho usualmente com pressa | E63: Excelente | F63: 0.8 | H63: Média | I63: 1 | K63: 10 | L63: 1.4
C64: K10 | D64: Considerado o operador médio | E64: Boa | F64: 0.9 | H64: Ruim | I64: 1.5 | K64: 11 | L64: 2 | N64: Conh do Serviço | O64: K10
C65: K11 | D65: Foi considerada a opção de aluguel a terceiros, ainda que a simulação seja dos custos do contratado, contudo a execução dos serviços é em local de terceiros | E65: Média | F65: 1 | H65: Inexistente | I65: 3 | K65: 15 | L65: 2 | N65: Grande | O65: 0.8
E66: Ruim | F66: 1.2 | N66: Médio | O66: 0.9
E67: Péssima | F67: 2 | H67: Horas de Uso | I67: K7 | J67: 6000 | K67: 1 | N67: Pouco | O67: 1
H68: 1000 | I68: 0.5 | J68: 8000 | K68: 1.3
E69: Qualidade do Equip | F69: K3 | H69: 2000 | I69: 0.5 | J69: 10000 | K69: 1.6 | N69: Tipo do Serviço | O69: K11
E70: De primeira | F70: 0.8 | H70: 3000 | I70: 0.6 | J70: 12000 | K70: 1.9 | N70: Mina ou Pedreira | O70: 0.8
E71: Média | F71: 1 | H71: 4000 | I71: 0.7 | J71: 15000 | K71: 2.3 | N71: Construção Geral | O71: 1
E72: Ruim | F72: 1.5 | H72: 5000 | I72: 0.9 | J72: 20000 | K72: 3 | N72: Aluguel a Terceiros | O72: 1.4
E74: Fonte:
E75: MATTOS, Aldo Dórea. Como preparar orçamentos de obras. São Paulo: Pini, 2006. 281 p., il

Sheet Não Rel - EPI (hidden)
B4: EPIS NÃO RELACIONADOS DIRETAMENTE A UM POSTO DE TRABALHO - AQUISIÇÃO
D7: ITEM | E7: DESCRIÇÃO | F7: QUANT ANUAL | G7: UNIDADE | H7: CUSTO UNITÁRIO | I7: CUSTO ANUAL | J7: BDI (%) | K7: PREÇO TOTAL | L7: FONTE
D9: 1 | E9: Avental em PVC (forrado), 70 X 120CM de largura e comprimento (aproximadamente), corpo inteiro na frente, contendo tiras fixadas no avental, que deverão ser amarradas no pescoço e na cintura. REF.: MAICOL | G9: UNID | H9: 18.67 | I9: =H9*F9 -> 0 | J9: =BDI!E26 -> 0.2577 | K9: =ROUND(I9*(1+J9),2) -> 0 | L9: COTAÇÃO
D10: 2 | E10: Avental em PVC, com forro de poliéster, tipo barbeiro, manga longa, fechamento nas costas na altura dos ombros através de botões de pressão plásticos, duas tiras na cintura soldadas eletronicamente com fechamento através de fivela plástica tipo engate rápido, acabamento em solda eletrônica. Ref.: MAICOL | G10: UNID | H10: 23.11 | I10: =H10*F10 -> 0 | J10: =J9 -> 0.2577 | K10: =ROUND(I10*(1+J10),2) -> 0 | L10: COTAÇÃO
D11: 3 | E11: Bloqueador solar com fator de proteção solar no mínimo de 30 (UV FPS 30) com propriedade repelente a insetos. Inodoro. Bombonas (4 Litros). REF.: LUVEX. | G11: UNID | H11: 363.86 | I11: =H11*F11 -> 0 | J11: =J10 -> 0.2577 | K11: =ROUND(I11*(1+J11),2) -> 0 | L11: COTAÇÃO
D12: 4 | E12: Boné tipo Árabe confeccionado em helanca com viés na aba, elástico interno traseiro para ajuste de tamanho, fechamento da saia em velcro. REF.: Nexus | G12: UNID | H12: 13 | I12: 0 | J12: 0.2577 | K12: 0 | L12: COTAÇÃO
D13: 5 | E13: Bota em PVC, impermeável, forrada internamente, cano médio, resistência ao escorregamento do solado SRC. Ref. MARLUVAS | G13: PARES | H13: 45.26 | I13: 0 | J13: 0.2577 | K13: 0 | L13: COTAÇÃO
D14: 6 | E14: Capacete de segurança em polietileno de alta densidade, na cor CINZA, com aba frontal, casco com nervuras, com Faixa anti-suor, regulagem de tamanho com ajuste simples, com jugular. Ref.: MSA | G14: UNID | H14: 31.09 | I14: 0 | J14: 0.2577 | K14: 0 | L14: COTAÇÃO
D15: 7 | E15: Cartucho químico para Vapores orgânicos e gases ácidos compatível com os respiradores (meia peça facial e peça facial completa). Ref. 3M Série 6000 | G15: PARES | H15: 111.1 | I15: 0 | J15: 0.2577 | K15: 0 | L15: COTAÇÃO
D16: 8 | E16: Cinto de segurança, tipo paraquedista, com talabarte duplo (comprimento aprox 1,50m) e absorvedor de energia, produzido em material sintético, com 2 pontos de ancoragem - Frontal e dorsal - ajuste nas pernas e cintura. Ref.: Gulin | G16: CONJ | H16: 426.58 | I16: 0 | J16: 0.2577 | K16: 0 | L16: COTAÇÃO
D17: 9 | E17: Corda de segurança semi-estática 12mm na cor branca, carga de ruptura 20kN. Trançado triplo e alma central. Trançado externo em multi filamento de poliamida, trançado intermediário e alerta visual em multi filamento de polipropileno, trançado interno em multi filamento de poliamida e alma central torcida em multi filamento de poliamida. Possui fita de identificação interna. Ref. 3M ALTISEG | G17: METROS | H17: 6.19 | I17: 0 | J17: 0.2577 | K17: 0 | L17: COTAÇÃO
D18: 10 | E18: Fita de sinalização (zebrada), com listas laranja e preta intercaladas-rolo 180 m x 65 mm. Rolo de 200 Metros. Ref.: 3M | G18: UNID | H18: 8.53 | I18: 0 | J18: 0.2577 | K18: 0 | L18: COTAÇÃO
D19: 11 | E19: Jardineira impermeável, com peito alto, tiras fixas, reguláveis por argolas e com botas de PVC acoplados, tamanhos – botas 42,44. Deverá possuir Certificado de Aprovação aprovado pelo Ministério do Trabalho e Emprego e vigente. Ref.: Prot-cap. | G19: UNID | H19: 178.465 | I19: 0 | J19: 0.2577 | K19: 0 | L19: COTAÇÃO
D20: 12 | E20: Luva de segurança confeccionada em para-aramida e algodão tipo Jersey (felpudo), totalmente revestida na face palmar, pontas dos dedos e dorso em nitrílico, punho de segurança revestido em nitrílico. Para proteção das mãos do usuário contra agentes abrasivos, escoriantes, cortantes e perfurantes. Ref.: Volk, modelo Attack. | G20: PARES | H20: 42.33 | I20: 0 | J20: 0.2577 | K20: 0 | L20: COTAÇÃO
D21: 13 | E21: Luva de segurança em borracha nitrílica, na cor verde, sem forro. Superfície externa antiderrapante. Cano longo (46cm) e espessura mínima de 0,55mm. Ref.: Danny Nitriflex | G21: PAR | H21: 9.395 | I21: 0 | J21: 0.2577 | K21: 0 | L21: COTAÇÃO
D22: 14 | E22: Luva de segurança confeccionada em fios de algodão vulcanizado de látex reforçado na palma e nos dedos. Reforço entre o polegar e o indicador. Sem costura interna. Ref.: Danny, modelo Gladiador | G22: PAR | H22: 9.76 | I22: 0 | J22: 0.2577 | K22: 0 | L22: COTAÇÃO
D23: 15 | E23: Óculos de segurança constituídos de armação e visor confeccionados em uma única peça de policarbonato CINZA, anti-risco, apoio nasal de plástico maleável. Hastes emborrachadas. Ref.: 3M Virtua V4 | G23: UNID | H23: 24.145 | I23: 0 | J23: 0.2577 | K23: 0 | L23: COTAÇÃO
D24: 16 | E24: Óculos de segurança constituídos de armação e visor confeccionados em uma única peça de policarbonato INCOLOR, anti-risco, apoio nasal de plástico maleável. Hastes emborrachadas. Ref.: 3M Virtua V4 | G24: UNID | H24: 10.59 | I24: 0 | J24: 0.2577 | K24: 0 | L24: COTAÇÃO
D25: 17 | E25: Óculos de sobreposição INCOLOR, constituído de armação e visor confeccionados em uma única peça de policarbonato com apoio (do nariz) anatômico. Permite a sobreposição em óculos de grau. Hastes do tipo espátula confeccionadas do mesmo material da armação. Possui fendas para ventilação fixadas à armação e orifícios para cordão. REF. CARBOGRAFITE Mod. Provision. | G25: UNID | H25: 11.5 | I25: 0 | J25: 0.2577 | K25: 0 | L25: COTAÇÃO
D26: 18 | E26: Protetor auditivo, do tipo inserção pré-moldado, de silicone, lavável, com cordão e tamanho único, com proteção mínima de 18 Db(A) de atenuação pelo método NRRsf. Ref: 3M | G26: UNID | H26: 3.93 | I26: =H26*F26 -> 0 | J26: =J22 -> 0.2577 | K26: =ROUND(I26*(1+J26),2) -> 0 | L26: COTAÇÃO
D27: 19 | E27: Respirador de meia peça facial, com duplo filtro Ref.: 3M, modelo 6200 | G27: UNID | H27: 171.745 | I27: 0 | J27: 0.2577 | K27: 0 | L27: COTAÇÃO
D28: 20 | E28: Respirador peça facial completa, com duplo filtro Ref.: 3M, modelo 6800 | G28: UNID | H28: 1430.88 | I28: 0 | J28: =J26 -> 0.2577 | K28: 0 | L28: COTAÇÃO
D29: 21 | E29: Respirador purificador de ar tipo, peça semifacial filtrante para partículas (PFF2), com formato dobrável, solda ultra-sônica em todo o seu perímetro. Fita elástica branca fixada nas laterais externas do respirador, perfazendo uma alça na para fixação na parte superior da cabeça e a outra na parte inferior, para fixação na altura da nuca do usuário. A parte superior externa da peça possui tira de material metálico moldável, utilizada para ajuste no septo nasal. Com válvula de exalação. DEVERÁ APRESENTAR O SELO DE APROVAÇÃO DO INMETRO. Ref. 3M | G29: UNID | H29: 2.735 | I29: 0 | J29: =J25 -> 0.2577 | K29: 0 | L29: COTAÇÃO
D30: 22 | E30: Avental descartável em TNT (tipo capote), fechamento posterior com tiras, manga longa, elástico no punho, cor branca, gramatura mínima 20. Ref.: Amédica Descartáveis | G30: UNID | H30: 3.694 | I30: 0 | J30: 0.2577 | K30: 0 | L30: COTAÇÃO
D31: 23 | E31: Touca Sanfonada em TNT, descartável, cor branca, gramatura mínima 20. Ref.: Amédica Descartáveis | G31: UNID | H31: 0.265 | I31: 0 | J31: =J29 -> 0.2577 | K31: 0 | L31: COTAÇÃO
D32: 24 | E32: Vestimenta tipo capa (para chuva), confeccionada em PVC forrada em poliéster, fechamento frontal com botões plásticos de pressão, costuras através de solda eletrônica, com mangas e capuz, comprimento mínimo 1,15m. ref. CARBOGRAFITE | G32: UNID | H32: 21.955 | I32: 0 | J32: =J30 -> 0.2577 | K32: 0 | L32: COTAÇÃO
J34: SOMATÓRIO TOTAL MENSAL | K34: =K35/12 -> 0
J35: SOMATÓRIO TOTAL ANUAL | K35: =SUM(K8:K33) -> 0 | N35: =SUM($I$9:$I$32) -> 0 | O35: por ano sem bdi

Sheet Equip Rel (hidden)
C1: CÂMARA DOS DEPUTADOS
C2: DEPARTAMENTO TÉCNICO
C3: Coordenação de Planejamento e Gestão
C5: Data: | D5: ='Dados Gerais'!#REF! -> 
C6: Processo: | D6: ='Dados Gerais'!#REF! -> 
C7: Objeto: | D7: ='Dados Gerais'!#REF! -> 
B11: EQUIPAMENTOS RELACIONADOS AO POSTO - PAGAMENTO DA DEPRECIAÇÃO / MANUTENÇÃO | Q11: 1 | S11: =Q11+1 -> 2 | U11: =S11+1 -> 3 | W11: =U11+1 -> 4 | Y11: =W11+1 -> 5 | AA11: =Y11+1 -> 6 | AC11: =AA11+1 -> 7 | AE11: =AC11+1 -> 8 | AG11: =AE11+1 -> 9 | AI11: =AG11+1 -> 10 | AK11: =AI11+1 -> 11 | AM11: =AK11+1 -> 12 | AO11: =AM11+1 -> 13 | AQ11: =AO11+1 -> 14 | AS11: =AQ11+1 -> 15 | AU11: =AS11+1 -> 16 | AW11: =AU11+1 -> 17 | AY11: =AW11+1 -> 18 | BA11: =AY11+1 -> 19 | BC11: =BA11+1 -> 20 | BE11: =BC11+1 -> 21 | BG11: =BE11+1 -> 22 | BI11: =BG11+1 -> 23 | BK11: =BI11+1 -> 24 | BM11: =BK11+1 -> 25 | BO11: =BM11+1 -> 26 | BQ11: =BO11+1 -> 27 | BS11: =BQ11+1 -> 28 | BU11: =BS11+1 -> 29 | BW11: =BU11+1 -> 30 | BY11: =BW11+1 -> 31 | CA11: =BY11+1 -> 32 | CC11: =CA11+1 -> 33 | CE11: =CC11+1 -> 34 | CG11: =CE11+1 -> 35 | CI11: =CG11+1 -> 36 | CK11: =CI11+1 -> 37 | CM11: =CK11+1 -> 38 | CO11: =CM11+1 -> 39 | CQ11: =CO11+1 -> 40 | CS11: =CQ11+1 -> 41 | CU11: =CS11+1 -> 42 | CW11: =CU11+1 -> 43 | CY11: =CW11+1 -> 44 | DA11: =CY11+1 -> 45 | DC11: =DA11+1 -> 46 | DE11: =DC11+1 -> 47 | DG11: =DE11+1 -> 48 | DI11: =DG11+1 -> 49 | DK11: =DI11+1 -> 50 | DM11: =DK11+1 -> 51 | DO11: =DM11+1 -> 52 | DQ11: =DO11+1 -> 53 | DS11: =DQ11+1 -> 54 | DU11: =DS11+1 -> 55 | DW11: =DU11+1 -> 56 | DY11: =DW11+1 -> 57 | EA11: =DY11+1 -> 58 | EC11: =EA11+1 -> 59 | EE11: =EC11+1 -> 60
Q13: =SUM(R12:R61) -> 0 | S13: =SUM(T12:T61) -> 0 | U13: =SUM(V12:V61) -> 0 | W13: =SUM(X12:X61) -> 0 | Y13: =SUM(Z12:Z61) -> 0 | AA13: =SUM(AB12:AB61) -> 0 | AC13: =SUM(AD12:AD61) -> 0 | AE13: =SUM(AF12:AF61) -> 0 | AG13: =SUM(AH12:AH61) -> 0 | AI13: =SUM(AJ12:AJ61) -> 0 | AK13: =SUM(AL12:AL61) -> 0 | AM13: =SUM(AN12:AN61) -> 0 | AO13: =SUM(AP12:AP61) -> 0 | AQ13: =SUM(AR12:AR61) -> 0 | AS13: =SUM(AT12:AT61) -> 0 | AU13: =SUM(AV12:AV61) -> 0 | AW13: =SUM(AX12:AX61) -> 0 | AY13: =SUM(AZ12:AZ61) -> 0 | BA13: =SUM(BB12:BB61) -> 0 | BC13: =SUM(BD12:BD61) -> 0 | BE13: =SUM(BF12:BF61) -> 0 | BG13: =SUM(BH12:BH61) -> 0 | BI13: =SUM(BJ12:BJ61) -> 0 | BK13: =SUM(BL12:BL61) -> 0 | BM13: =SUM(BN12:BN61) -> 0 | BO13: =SUM(BP12:BP61) -> 0 | BQ13: =SUM(BR12:BR61) -> 0 | BS13: =SUM(BT12:BT61) -> 0 | BU13: =SUM(BV12:BV61) -> 0 | BW13: =SUM(BX12:BX61) -> 0 | BY13: =SUM(BZ12:BZ61) -> 0 | CA13: =SUM(CB12:CB61) -> 0 | CC13: =SUM(CD12:CD61) -> 0 | CE13: =SUM(CF12:CF61) -> 0 | CG13: =SUM(CH12:CH61) -> 0 | CI13: =SUM(CJ12:CJ61) -> 0 | CK13: =SUM(CL12:CL61) -> 0 | CM13: =SUM(CN12:CN61) -> 0 | CO13: =SUM(CP12:CP61) -> 0 | CQ13: =SUM(CR12:CR61) -> 0 | CS13: =SUM(CT12:CT61) -> 0 | CU13: =SUM(CV12:CV61) -> 0 | CW13: =SUM(CX12:CX61) -> 0 | CY13: =SUM(CZ12:CZ61) -> 0 | DA13: =SUM(DB12:DB61) -> 0 | DC13: =SUM(DD12:DD61) -> 0 | DE13: =SUM(DF12:DF61) -> 0 | DG13: =SUM(DH12:DH61) -> 0 | DI13: =SUM(DJ12:DJ61) -> 0 | DK13: =SUM(DL12:DL61) -> 0 | DM13: =SUM(DN12:DN61) -> 0 | DO13: =SUM(DP12:DP61) -> 0 | DQ13: =SUM(DR12:DR61) -> 0 | DS13: =SUM(DT12:DT61) -> 0 | DU13: =SUM(DV12:DV61) -> 0 | DW13: =SUM(DX12:DX61) -> 0 | DY13: =SUM(DZ12:DZ61) -> 0 | EA13: =SUM(EB12:EB61) -> 0 | EC13: =SUM(ED12:ED61) -> 0 | EE13: =SUM(EF12:EF61) -> 0
C14: CATEGORIAS | E14: QUANTIDADE
Q15: =IF($C15=Q$11,1,0) -> 0 | S15: =IF($C15=S$11,1,0) -> 0 | U15: =IF($C15=U$11,1,0) -> 0 | W15: =IF($C15=W$11,1,0) -> 0 | Y15: =IF($C15=Y$11,1,0) -> 0 | AA15: =IF($C15=AA$11,1,0) -> 0 | AC15: =IF($C15=AC$11,1,0) -> 0 | AE15: =IF($C15=AE$11,1,0) -> 0 | AG15: =IF($C15=AG$11,1,0) -> 0 | AI15: =IF($C15=AI$11,1,0) -> 0 | AK15: =IF($C15=AK$11,1,0) -> 0 | AM15: =IF($C15=AM$11,1,0) -> 0 | AO15: =IF($C15=AO$11,1,0) -> 0 | AQ15: =IF($C15=AQ$11,1,0) -> 0 | AS15: =IF($C15=AS$11,1,0) -> 0 | AU15: =IF($C15=AU$11,1,0) -> 0 | AW15: =IF($C15=AW$11,1,0) -> 0 | AY15: =IF($C15=AY$11,1,0) -> 0 | BA15: =IF($C15=BA$11,1,0) -> 0 | BC15: =IF($C15=BC$11,1,0) -> 0 | BE15: =IF($C15=BE$11,1,0) -> 0 | BG15: =IF($C15=BG$11,1,0) -> 0 | BI15: =IF($C15=BI$11,1,0) -> 0 | BK15: =IF($C15=BK$11,1,0) -> 0 | BM15: =IF($C15=BM$11,1,0) -> 0 | BO15: =IF($C15=BO$11,1,0) -> 0 | BQ15: =IF($C15=BQ$11,1,0) -> 0 | BS15: =IF($C15=BS$11,1,0) -> 0 | BU15: =IF($C15=BU$11,1,0) -> 0 | BW15: =IF($C15=BW$11,1,0) -> 0 | BY15: =IF($C15=BY$11,1,0) -> 0 | CA15: =IF($C15=CA$11,1,0) -> 0 | CC15: =IF($C15=CC$11,1,0) -> 0 | CE15: =IF($C15=CE$11,1,0) -> 0 | CG15: =IF($C15=CG$11,1,0) -> 0 | CI15: =IF($C15=CI$11,1,0) -> 0 | CK15: =IF($C15=CK$11,1,0) -> 0 | CM15: =IF($C15=CM$11,1,0) -> 0 | CO15: =IF($C15=CO$11,1,0) -> 0 | CQ15: =IF($C15=CQ$11,1,0) -> 0 | CS15: =IF($C15=CS$11,1,0) -> 0 | CU15: =IF($C15=CU$11,1,0) -> 0 | CW15: =IF($C15=CW$11,1,0) -> 0 | CY15: =IF($C15=CY$11,1,0) -> 0 | DA15: =IF($C15=DA$11,1,0) -> 0 | DC15: =IF($C15=DC$11,1,0) -> 0 | DE15: =IF($C15=DE$11,1,0) -> 0 | DG15: =IF($C15=DG$11,1,0) -> 0 | DI15: =IF($C15=DI$11,1,0) -> 0 | DK15: =IF($C15=DK$11,1,0) -> 0 | DM15: =IF($C15=DM$11,1,0) -> 0 | DO15: =IF($C15=DO$11,1,0) -> 0 | DQ15: =IF($C15=DQ$11,1,0) -> 0 | DS15: =IF($C15=DS$11,1,0) -> 0 | DU15: =IF($C15=DU$11,1,0) -> 0 | DW15: =IF($C15=DW$11,1,0) -> 0 | DY15: =IF($C15=DY$11,1,0) -> 0 | EA15: =IF($C15=EA$11,1,0) -> 0 | EC15: =IF($C15=EC$11,1,0) -> 0 | EE15: =IF($C15=EE$11,1,0) -> 0
D16: =HLOOKUP($C16,'Dados Gerais'!$D$5:$BK$10,6) ->  | E16: =HLOOKUP($C16,'Dados Gerais'!$D$5:$BK$14,10) ->  | Q16: =IF($C16=Q$11,1,0) -> 0 | S16: =IF($C16=S$11,1,0) -> 0 | U16: =IF($C16=U$11,1,0) -> 0 | W16: =IF($C16=W$11,1,0) -> 0 | Y16: =IF($C16=Y$11,1,0) -> 0 | AA16: =IF($C16=AA$11,1,0) -> 0 | AC16: =IF($C16=AC$11,1,0) -> 0 | AE16: =IF($C16=AE$11,1,0) -> 0 | AG16: =IF($C16=AG$11,1,0) -> 0 | AI16: =IF($C16=AI$11,1,0) -> 0 | AK16: =IF($C16=AK$11,1,0) -> 0 | AM16: =IF($C16=AM$11,1,0) -> 0 | AO16: =IF($C16=AO$11,1,0) -> 0 | AQ16: =IF($C16=AQ$11,1,0) -> 0 | AS16: =IF($C16=AS$11,1,0) -> 0 | AU16: =IF($C16=AU$11,1,0) -> 0 | AW16: =IF($C16=AW$11,1,0) -> 0 | AY16: =IF($C16=AY$11,1,0) -> 0 | BA16: =IF($C16=BA$11,1,0) -> 0 | BC16: =IF($C16=BC$11,1,0) -> 0 | BE16: =IF($C16=BE$11,1,0) -> 0 | BG16: =IF($C16=BG$11,1,0) -> 0 | BI16: =IF($C16=BI$11,1,0) -> 0 | BK16: =IF($C16=BK$11,1,0) -> 0 | BM16: =IF($C16=BM$11,1,0) -> 0 | BO16: =IF($C16=BO$11,1,0) -> 0 | BQ16: =IF($C16=BQ$11,1,0) -> 0 | BS16: =IF($C16=BS$11,1,0) -> 0 | BU16: =IF($C16=BU$11,1,0) -> 0 | BW16: =IF($C16=BW$11,1,0) -> 0 | BY16: =IF($C16=BY$11,1,0) -> 0 | CA16: =IF($C16=CA$11,1,0) -> 0 | CC16: =IF($C16=CC$11,1,0) -> 0 | CE16: =IF($C16=CE$11,1,0) -> 0 | CG16: =IF($C16=CG$11,1,0) -> 0 | CI16: =IF($C16=CI$11,1,0) -> 0 | CK16: =IF($C16=CK$11,1,0) -> 0 | CM16: =IF($C16=CM$11,1,0) -> 0 | CO16: =IF($C16=CO$11,1,0) -> 0 | CQ16: =IF($C16=CQ$11,1,0) -> 0 | CS16: =IF($C16=CS$11,1,0) -> 0 | CU16: =IF($C16=CU$11,1,0) -> 0 | CW16: =IF($C16=CW$11,1,0) -> 0 | CY16: =IF($C16=CY$11,1,0) -> 0 | DA16: =IF($C16=DA$11,1,0) -> 0 | DC16: =IF($C16=DC$11,1,0) -> 0 | DE16: =IF($C16=DE$11,1,0) -> 0 | DG16: =IF($C16=DG$11,1,0) -> 0 | DI16: =IF($C16=DI$11,1,0) -> 0 | DK16: =IF($C16=DK$11,1,0) -> 0 | DM16: =IF($C16=DM$11,1,0) -> 0 | DO16: =IF($C16=DO$11,1,0) -> 0 | DQ16: =IF($C16=DQ$11,1,0) -> 0 | DS16: =IF($C16=DS$11,1,0) -> 0 | DU16: =IF($C16=DU$11,1,0) -> 0 | DW16: =IF($C16=DW$11,1,0) -> 0 | DY16: =IF($C16=DY$11,1,0) -> 0 | EA16: =IF($C16=EA$11,1,0) -> 0 | EC16: =IF($C16=EC$11,1,0) -> 0 | EE16: =IF($C16=EE$11,1,0) -> 0
Q17: =IF($C17=Q$11,1,0) -> 0 | S17: =IF($C17=S$11,1,0) -> 0 | U17: =IF($C17=U$11,1,0) -> 0 | W17: =IF($C17=W$11,1,0) -> 0 | Y17: =IF($C17=Y$11,1,0) -> 0 | AA17: =IF($C17=AA$11,1,0) -> 0 | AC17: =IF($C17=AC$11,1,0) -> 0 | AE17: =IF($C17=AE$11,1,0) -> 0 | AG17: =IF($C17=AG$11,1,0) -> 0 | AI17: =IF($C17=AI$11,1,0) -> 0 | AK17: =IF($C17=AK$11,1,0) -> 0 | AM17: =IF($C17=AM$11,1,0) -> 0 | AO17: =IF($C17=AO$11,1,0) -> 0 | AQ17: =IF($C17=AQ$11,1,0) -> 0 | AS17: =IF($C17=AS$11,1,0) -> 0 | AU17: =IF($C17=AU$11,1,0) -> 0 | AW17: =IF($C17=AW$11,1,0) -> 0 | AY17: =IF($C17=AY$11,1,0) -> 0 | BA17: =IF($C17=BA$11,1,0) -> 0 | BC17: =IF($C17=BC$11,1,0) -> 0 | BE17: =IF($C17=BE$11,1,0) -> 0 | BG17: =IF($C17=BG$11,1,0) -> 0 | BI17: =IF($C17=BI$11,1,0) -> 0 | BK17: =IF($C17=BK$11,1,0) -> 0 | BM17: =IF($C17=BM$11,1,0) -> 0 | BO17: =IF($C17=BO$11,1,0) -> 0 | BQ17: =IF($C17=BQ$11,1,0) -> 0 | BS17: =IF($C17=BS$11,1,0) -> 0 | BU17: =IF($C17=BU$11,1,0) -> 0 | BW17: =IF($C17=BW$11,1,0) -> 0 | BY17: =IF($C17=BY$11,1,0) -> 0 | CA17: =IF($C17=CA$11,1,0) -> 0 | CC17: =IF($C17=CC$11,1,0) -> 0 | CE17: =IF($C17=CE$11,1,0) -> 0 | CG17: =IF($C17=CG$11,1,0) -> 0 | CI17: =IF($C17=CI$11,1,0) -> 0 | CK17: =IF($C17=CK$11,1,0) -> 0 | CM17: =IF($C17=CM$11,1,0) -> 0 | CO17: =IF($C17=CO$11,1,0) -> 0 | CQ17: =IF($C17=CQ$11,1,0) -> 0 | CS17: =IF($C17=CS$11,1,0) -> 0 | CU17: =IF($C17=CU$11,1,0) -> 0 | CW17: =IF($C17=CW$11,1,0) -> 0 | CY17: =IF($C17=CY$11,1,0) -> 0 | DA17: =IF($C17=DA$11,1,0) -> 0 | DC17: =IF($C17=DC$11,1,0) -> 0 | DE17: =IF($C17=DE$11,1,0) -> 0 | DG17: =IF($C17=DG$11,1,0) -> 0 | DI17: =IF($C17=DI$11,1,0) -> 0 | DK17: =IF($C17=DK$11,1,0) -> 0 | DM17: =IF($C17=DM$11,1,0) -> 0 | DO17: =IF($C17=DO$11,1,0) -> 0 | DQ17: =IF($C17=DQ$11,1,0) -> 0 | DS17: =IF($C17=DS$11,1,0) -> 0 | DU17: =IF($C17=DU$11,1,0) -> 0 | DW17: =IF($C17=DW$11,1,0) -> 0 | DY17: =IF($C17=DY$11,1,0) -> 0 | EA17: =IF($C17=EA$11,1,0) -> 0 | EC17: =IF($C17=EC$11,1,0) -> 0 | EE17: =IF($C17=EE$11,1,0) -> 0
C19: PAGAMENTO DA DEPRECIAÇÃO
C20: ITEM | D20: DESCRIÇÃO | E20: QUANT ANUAL | F20: CONTA SIAFI | G20: VALOR DE AQ. | H20: % RESIDUAL | I20: VIDA ÚTIL | J20: DEP. MENSAL | K20: CUSTO TOTAL | L20: BDI (%) | M20: PREÇO TOTAL | N20: FONTE | O20: REFERÊNCIA
J22: =G22*(1-H22)/(I22*12) ->  | K22: =J22*E22 ->  | L22: =BDI!E26 -> 0.2577 | M22: =ROUND(K22*(1+L22),2) ->  | N22: COTAÇÃO
C25: PAGAMENTO DA MANUTENÇÃO
C26: ITEM | D26: DESCRIÇÃO | H26: K (calculado) | I26: MENSAL DEPR. | J26: % MAN X DEP | K26: MENSAL MAN. | L26: BDI (%) | M26: PREÇO TOTAL
H28: =H35 -> 0.2395008 | I28: =M22 ->  | J28: =H28 -> 0.2395008 | K28: =I28*H28 ->  | L28: =L22 -> 0.2577 | M28: =ROUND(K28*(1+L28),2) -> 
E30: K1 | F30: K2 | G30: K3 | H30: K4
E31: 1 | F31: 1 | G31: 0.8 | H31: 0.8
E32: K5 | F32: K6 | G32: K7 | H32: K8
E33: 1 | F33: 0.6 | G33: 0.5 | H33: 1.1
E34: K9 | F34: K10 | G34: K11 | H34: RESULTADO
D35: * a descrição de cada coeficiente segue abaixo | E35: 0.9 | F35: 0.9 | G35: 1.4 | H35: =E31*F31*G31*H31*E33*F33*G33*H33*E35*F35*G35 -> 0.2395008
C38: MATERIAL DE CONSUMO ASSOCIADO
C39: ITEM | D39: DESCRIÇÃO | H39: QUANTID/ANO | I39: UNIDADE | J39: VALOR DE AQ. | K39: MENSAL MAT | L39: BDI (%) | M39: PREÇO TOTAL
K41: =J41*H41/12 -> 0 | L41: =L28 -> 0.2577 | M41: =ROUND(K41*(1+L41),2) -> 0
C44: MATERIAL DE CONSUMO ASSOCIADO
C45: ITEM | D45: DESCRIÇÃO | M45: PREÇO TOTAL
C47: 1 | D47: Componente DEPRECIAÇÃO - POR POSTO | M47: =M22 -> 
C48: 2 | D48: Componente MANUTENÇÃO - POR POSTO | M48: =M28 -> 
C49: 3 | D49: Componente MATERIAL DE CONSUMO ASSOCIADO - POR POSTO | M49: =M41 -> 0
L51: SOMATÓRIO TOTAL MENSAL - POR POSTO | M51: =SUM(M46:M50) ->  | R51: =IF(SUM(Q$15:Q$17)>0,$M51,0) -> 0 | T51: =IF(SUM(S$15:S$17)>0,$M51,0) -> 0 | V51: =IF(SUM(U$15:U$17)>0,$M51,0) -> 0 | X51: =IF(SUM(W$15:W$17)>0,$M51,0) -> 0 | Z51: =IF(SUM(Y$15:Y$17)>0,$M51,0) -> 0 | AB51: =IF(SUM(AA$15:AA$17)>0,$M51,0) -> 0 | AD51: =IF(SUM(AC$15:AC$17)>0,$M51,0) -> 0 | AF51: =IF(SUM(AE$15:AE$17)>0,$M51,0) -> 0 | AH51: =IF(SUM(AG$15:AG$17)>0,$M51,0) -> 0 | AJ51: =IF(SUM(AI$15:AI$17)>0,$M51,0) -> 0 | AL51: =IF(SUM(AK$15:AK$17)>0,$M51,0) -> 0 | AN51: =IF(SUM(AM$15:AM$17)>0,$M51,0) -> 0 | AP51: =IF(SUM(AO$15:AO$17)>0,$M51,0) -> 0 | AR51: =IF(SUM(AQ$15:AQ$17)>0,$M51,0) -> 0 | AT51: =IF(SUM(AS$15:AS$17)>0,$M51,0) -> 0 | AV51: =IF(SUM(AU$15:AU$17)>0,$M51,0) -> 0 | AX51: =IF(SUM(AW$15:AW$17)>0,$M51,0) -> 0 | AZ51: =IF(SUM(AY$15:AY$17)>0,$M51,0) -> 0 | BB51: =IF(SUM(BA$15:BA$17)>0,$M51,0) -> 0 | BD51: =IF(SUM(BC$15:BC$17)>0,$M51,0) -> 0 | BF51: =IF(SUM(BE$15:BE$17)>0,$M51,0) -> 0 | BH51: =IF(SUM(BG$15:BG$17)>0,$M51,0) -> 0 | BJ51: =IF(SUM(BI$15:BI$17)>0,$M51,0) -> 0 | BL51: =IF(SUM(BK$15:BK$17)>0,$M51,0) -> 0 | BN51: =IF(SUM(BM$15:BM$17)>0,$M51,0) -> 0 | BP51: =IF(SUM(BO$15:BO$17)>0,$M51,0) -> 0 | BR51: =IF(SUM(BQ$15:BQ$17)>0,$M51,0) -> 0 | BT51: =IF(SUM(BS$15:BS$17)>0,$M51,0) -> 0 | BV51: =IF(SUM(BU$15:BU$17)>0,$M51,0) -> 0 | BX51: =IF(SUM(BW$15:BW$17)>0,$M51,0) -> 0 | BZ51: =IF(SUM(BY$15:BY$17)>0,$M51,0) -> 0 | CB51: =IF(SUM(CA$15:CA$17)>0,$M51,0) -> 0 | CD51: =IF(SUM(CC$15:CC$17)>0,$M51,0) -> 0 | CF51: =IF(SUM(CE$15:CE$17)>0,$M51,0) -> 0 | CH51: =IF(SUM(CG$15:CG$17)>0,$M51,0) -> 0 | CJ51: =IF(SUM(CI$15:CI$17)>0,$M51,0) -> 0 | CL51: =IF(SUM(CK$15:CK$17)>0,$M51,0) -> 0 | CN51: =IF(SUM(CM$15:CM$17)>0,$M51,0) -> 0 | CP51: =IF(SUM(CO$15:CO$17)>0,$M51,0) -> 0 | CR51: =IF(SUM(CQ$15:CQ$17)>0,$M51,0) -> 0 | CT51: =IF(SUM(CS$15:CS$17)>0,$M51,0) -> 0 | CV51: =IF(SUM(CU$15:CU$17)>0,$M51,0) -> 0 | CX51: =IF(SUM(CW$15:CW$17)>0,$M51,0) -> 0 | CZ51: =IF(SUM(CY$15:CY$17)>0,$M51,0) -> 0 | DB51: =IF(SUM(DA$15:DA$17)>0,$M51,0) -> 0 | DD51: =IF(SUM(DC$15:DC$17)>0,$M51,0) -> 0 | DF51: =IF(SUM(DE$15:DE$17)>0,$M51,0) -> 0 | DH51: =IF(SUM(DG$15:DG$17)>0,$M51,0) -> 0 | DJ51: =IF(SUM(DI$15:DI$17)>0,$M51,0) -> 0 | DL51: =IF(SUM(DK$15:DK$17)>0,$M51,0) -> 0 | DN51: =IF(SUM(DM$15:DM$17)>0,$M51,0) -> 0 | DP51: =IF(SUM(DO$15:DO$17)>0,$M51,0) -> 0 | DR51: =IF(SUM(DQ$15:DQ$17)>0,$M51,0) -> 0 | DT51: =IF(SUM(DS$15:DS$17)>0,$M51,0) -> 0 | DV51: =IF(SUM(DU$15:DU$17)>0,$M51,0) -> 0 | DX51: =IF(SUM(DW$15:DW$17)>0,$M51,0) -> 0 | DZ51: =IF(SUM(DY$15:DY$17)>0,$M51,0) -> 0 | EB51: =IF(SUM(EA$15:EA$17)>0,$M51,0) -> 0 | ED51: =IF(SUM(EC$15:EC$17)>0,$M51,0) -> 0 | EF51: =IF(SUM(EE$15:EE$17)>0,$M51,0) -> 0
L52: SOMATÓRIO TOTAL ANUAL - POR POSTO | M52: =M51*12 -> 
C55: MATERIAL DE CONSUMO ASSOCIADO
C56: MEMÓRIA DE CÁLCULO DO COEFICIENTE DE CORRELAÇÃO MANUTENÇÃO X DEPRECIAÇÃO (K)
C58: JUSTIFICATIVAS | E58: TIPO | F58: K1 | H58: Condições de Trab | I58: K4 | K58: Tempo Vida (anos) | L58: K6 | N58: Temperatura | O58: K8
E59: Guindaste | F59: 0.5 | H59: Em espera | I59: 0.4 | K59: 1 | L59: 0.6 | N59: Muito quente (> 40º C) | O59: 1.3
C60: K1 | D60: Arbitrado 1 | E60: Caminhão-comum | F60: 0.8 | H60: Leves | I60: 0.8 | K60: 2 | L60: 0.7 | N60: Quente (30º a 40º C) | O60: 1.1
C61: K2 | D61: Considerado o operador médio | E61: Fora-de-estrada | F61: 1 | H61: Médias | I61: 1 | K61: 3 | L61: 0.8 | N61: Médio (10º a 30º C) | O61: 1
C62: K3 | D62: Consideradas ferramentas de primeira qualidade | E62: Carregadeira | F62: 1 | H62: Pesadas | I62: 1.4 | K62: 4 | L62: 0.9 | N62: Frio (< 10º C) | O62: 1.2
C63: K4 | D63: Consições leves | E63: Escavadeira | F63: 1.4 | H63: Severas | I63: 2 | K63: 5 | L63: 1
C64: K5 | D64: Considerando manutenção normal | E64: Motoescrêiper | F64: 1.1 | K64: 6 | L64: 1 | N64: Ritmo de Trabalho | O64: K9
C65: K6 | D65: Equipamentos novos | E65: Trator de esteira | F65: 1.2 | H65: Manutenção | I65: K5 | K65: 7 | L65: 1 | N65: Folgado | O65: 0.9
C66: K7 | D66: 220h por mês, 252 dias por ano | H66: Excelente | I66: 0.6 | K66: 8 | L66: 1.2 | N66: Médio | O66: 1
C67: K8 | D67: Clima quente, acima de 30º C | E67: Qualid do Operador | F67: K2 | H67: Boa | I67: 0.8 | K67: 9 | L67: 1.3 | N67: Com pressa | O67: 1.5
C68: K9 | D68: Ritmo de trabalho usualmente folgado | E68: Excelente | F68: 0.8 | H68: Média | I68: 1 | K68: 10 | L68: 1.4
C69: K10 | D69: Considerado o operador médio | E69: Boa | F69: 0.9 | H69: Ruim | I69: 1.5 | K69: 11 | L69: 2 | N69: Conh do Serviço | O69: K10
C70: K11 | D70: Foi considerada a opção de aluguel a terceiros, ainda que a simulação seja dos custos do contratado, contudo a execução dos serviços é em local de terceiros | E70: Média | F70: 1 | H70: Inexistente | I70: 3 | K70: 15 | L70: 2 | N70: Grande | O70: 0.8
E71: Ruim | F71: 1.2 | N71: Médio | O71: 0.9
E72: Péssima | F72: 2 | H72: Horas de Uso | I72: K7 | J72: 6000 | K72: 1 | N72: Pouco | O72: 1
H73: 1000 | I73: 0.5 | J73: 8000 | K73: 1.3
E74: Qualidade do Equip | F74: K3 | H74: 2000 | I74: 0.5 | J74: 10000 | K74: 1.6 | N74: Tipo do Serviço | O74: K11
E75: De primeira | F75: 0.8 | H75: 3000 | I75: 0.6 | J75: 12000 | K75: 1.9 | N75: Mina ou Pedreira | O75: 0.8
E76: Média | F76: 1 | H76: 4000 | I76: 0.7 | J76: 15000 | K76: 2.3 | N76: Construção Geral | O76: 1
E77: Ruim | F77: 1.5 | H77: 5000 | I77: 0.9 | J77: 20000 | K77: 3 | N77: Aluguel a Terceiros | O77: 1.4
E79: Fonte:
E80: MATTOS, Aldo Dórea. Como preparar orçamentos de obras. São Paulo: Pini, 2006. 281 p., il

Sheet Não Rel - Depr (hidden)
B4: EQUIPAMENTOS NÃO RELACIONADOS DIRETAMENTE A UM POSTO DE TRABALHO - PAGAMENTO DA DEPRECIAÇÃO / MANUTENÇÃO
C7: PAGAMENTO DA DEPRECIAÇÃO
C8: ITEM | D8: DESCRIÇÃO | E8: QUANT ANUAL | F8: CONTA SIAFI | G8: VALOR DE AQ. | H8: % RESIDUAL | I8: VIDA ÚTIL | J8: DEP. MENSAL | K8: CUSTO TOTAL | L8: BDI (%) | M8: PREÇO TOTAL | N8: FONTE | O8: REFERÊNCIA
C10: 1 | D10: Aspirador com elemento filtrante a base de combinação do separador com água (Ref. Pró-Áqua ou outro de desempenho e qualidade similar ou superior) | F10: 12311.01.25 | G10: 519.55 | H10: 0.1 | I10: 10 | J10: =G10*(1-H10)/(I10*12) -> 3.896625 | K10: =J10*E10 -> 0 | L10: =BDI!$E$26 -> 0.2577 | M10: =ROUND(K10*(1+L10),2) -> 0 | N10: COTAÇÃO
C11: 2 | D11: Aspirador doméstico pequeno (ref. Eletrolux GT 2200 ou Leo da Soteco 12000 W ou outro de desempenho e qualidade similar ou superior) | F11: 12311.01.25 | G11: 1809.95 | H11: 0.1 | I11: 10 | J11: 13.574625 | K11: 0 | L11: =BDI!$E$26 -> 0.2577 | M11: 0 | N11: COTAÇÃO
C12: 3 | D12: Aspirador industrial e (ref. Eletrolux GT 3000 PRO ou A280 da Soteco) | F12: 12311.01.25 | G12: 4007.45 | H12: 0.1 | I12: 10 | J12: 30.055875 | K12: 0 | L12: =BDI!$E$26 -> 0.2577 | M12: 0 | N12: COTAÇÃO
C13: 4 | D13: Cabo Extensor 06 metros, (ref. Braslimpia EX 600 ou outro de desempenho e qualidade similar ou superior) | F13: 12311.01.25 | G13: 202.86 | H13: 0.1 | I13: 10 | J13: 1.52145 | K13: 0 | L13: =BDI!$E$26 -> 0.2577 | M13: 0 | N13: COTAÇÃO
C14: 5 | D14: Carrinho funcional para limpeza, com sacos para (ref. TTS 380 S, completo ou Tomki 1021 ou outro de desempenho e qualidade similar ou superior) | F14: 12311.01.25 | G14: 3000.9 | H14: 0.1 | I14: 10 | J14: 22.50675 | K14: 0 | L14: =BDI!$E$26 -> 0.2577 | M14: 0 | N14: COTAÇÃO
C15: 6 | D15: Carro contêiner para coleta de lixo cap. 120 litros, c/ 02 rodízios pneumáticos (ref. Soluvan ou Contenur ou rubbermaid ou fiberglass ou outro de desempenho e qualidade similar ou superior) | F15: 12311.01.25 | G15: 254.45 | H15: 0.1 | I15: 10 | J15: 1.908375 | K15: 0 | L15: =BDI!$E$26 -> 0.2577 | M15: 0 | N15: COTAÇÃO
C16: 7 | D16: Carro contêiner para transporte de lixo cap. 600 litros com 04 rodízios pneumáticos (ref. Contenur, Soluvan, rubbermaid ou fiberglass ou outro de desempenho e qualidade similar ou superior) | F16: 12311.01.25 | G16: 2588.745 | H16: 0.1 | I16: 10 | J16: 19.4155875 | K16: 0 | L16: =BDI!$E$26 -> 0.2577 | M16: 0 | N16: COTAÇÃO
C17: 8 | D17: Carro contêiner cor branca, para coleta de lixo hospitalar, cap. 120 litros, c/ 02 rodízios pneumáticos (ref. Pead MGB da Contenur ou outro de desempenho e qualidade similar ou superior) | F17: 12311.01.25 | G17: 230 | H17: 0.1 | I17: 10 | J17: 1.725 | K17: 0 | L17: =BDI!$E$26 -> 0.2577 | M17: 0 | N17: COTAÇÃO
C18: 9 | D18: Carro contêiner cor branca, para coleta de lixo hospitalar, cap. 240 litros, c/ 02 rodízios giratórios (ref. Fiberglass, Contenur ou outro de desempenho e qualidade similar ou superior) | F18: 12311.01.25 | G18: 391.795 | H18: 0.1 | I18: 10 | J18: 2.9384625 | K18: 0 | L18: =BDI!$E$26 -> 0.2577 | M18: 0 | N18: COTAÇÃO
C19: 10 | D19: Enceradeira doméstica (Ref. Eletrolux b61 ou outro de desempenho e qualidade similar ou superior) | F19: 12311.01.25 | G19: 634.4 | H19: 0.1 | I19: 10 | J19: 4.758 | K19: 0 | L19: =BDI!$E$26 -> 0.2577 | M19: 0 | N19: COTAÇÃO
C20: 11 | D20: Enceradeira industrial grande 410 mm (ref. Bandeirante, Karcher, ou Cleaner ou outro de desempenho e qualidade similar ou superior) | F20: 12311.01.25 | G20: 2781 | H20: 0.1 | I20: 10 | J20: 20.8575 | K20: 0 | L20: =BDI!$E$26 -> 0.2577 | M20: 0 | N20: COTAÇÃO
C21: 12 | D21: Enceradeira industrial grande 510 mm (ref. Bandeirante, Karcher, ou Cleaner ou outro de desempenho e qualidade similar ou superior) | F21: 12311.01.25 | G21: 2971.5 | H21: 0.1 | I21: 10 | J21: =G21*(1-H21)/(I21*12) -> 22.28625 | K21: =J21*E21 -> 0 | L21: =BDI!$E$26 -> 0.2577 | M21: =ROUND(K21*(1+L21),2) -> 0 | N21: COTAÇÃO
C22: 13 | D22: Enceradeira industrial pequena 350 mm (ref. Bandeirante, Karcher, ou Cleaner ou outro de desempenho e qualidade similar ou superior) | F22: 12311.01.25 | G22: 2252.125 | H22: 0.1 | I22: 10 | J22: 16.8909375 | K22: 0 | L22: =BDI!$E$26 -> 0.2577 | M22: 0 | N22: COTAÇÃO
C23: 14 | D23: Escada em com 04 degraus (ref. Aluleve ou Artfactory ou outro de desempenho e qualidade similar ou superior) | F23: 12311.01.25 | G23: 171.215 | H23: 0.1 | I23: 10 | J23: 1.2841125 | K23: 0 | L23: =BDI!$E$26 -> 0.2577 | M23: 0 | N23: COTAÇÃO
C24: 15 | D24: Escada em alumínio com 06 degraus (ref Aluleve ou Artfactory ou outro de desempenho e qualidade similar ou superior) | F24: 12311.01.25 | G24: 208.535 | H24: 0.1 | I24: 10 | J24: 1.5640125 | K24: 0 | L24: =BDI!$E$26 -> 0.2577 | M24: 0 | N24: COTAÇÃO
C25: 16 | D25: Escada em alumínio com 16 degraus (ref. Aluleve ou Artfactory) | F25: 12311.01.25 | G25: 585.645 | H25: 0.1 | I25: 10 | J25: 4.3923375 | K25: 0 | L25: =BDI!$E$26 -> 0.2577 | M25: 0 | N25: COTAÇÃO
C26: 17 | D26: Lavadora de alta pressão (ref. Wap L2600 ou L2800 ou Eletrolux L2400 ou outro de desempenho e qualidade similar ou superior) | F26: 12311.01.25 | G26: 12149.365 | H26: 0.1 | I26: 10 | J26: 91.1202375 | K26: 0 | L26: =BDI!$E$26 -> 0.2577 | M26: 0 | N26: COTAÇÃO
C27: 18 | D27: Lavadora e secadora automática de pisos, semi-tracionária, movida a bateria (ref. Plataforma LST-51B, Johnson Diversey Aquamat 45 ou Comac Simpla E/45B ou outro de desempenho e qualidade similar ou superior) | F27: 12311.01.25 | G27: 26015.635 | H27: 0.1 | I27: 10 | J27: 195.1172625 | K27: 0 | L27: =BDI!$E$26 -> 0.2577 | M27: 0 | N27: COTAÇÃO
C28: 19 | D28: Lavadora extratora para carpete tanque expansível 38 litros (ref. Tennant Lavadora 1240 ou outro de desempenho e qualidade similar ou superior) | F28: 12311.01.25 | G28: 2440.935 | H28: 0.1 | I28: 10 | J28: 18.3070125 | K28: 0 | L28: =BDI!$E$26 -> 0.2577 | M28: 0 | N28: COTAÇÃO
C29: 20 | D29: Limpadora a vapor de aquecimento rápido (ref. SKY VAP MAX ou Karcher ou outro de desempenho e qualidade similar ou superior) | F29: 12311.01.25 | G29: 1082.84 | H29: 0.1 | I29: 10 | J29: 8.1213 | K29: 0 | L29: =BDI!$E$26 -> 0.2577 | M29: 0 | N29: COTAÇÃO
C30: 21 | D30: Limpadora extratora para carpete (ref. Eletrolux Extracar 5002 Pro) | F30: 12311.01.25 | G30: 3496.91 | H30: 0.1 | I30: 10 | J30: 26.226825 | K30: 0 | L30: =BDI!$E$26 -> 0.2577 | M30: 0 | N30: COTAÇÃO
C31: 22 | D31: Lustradora Ultra Speed (ref. Platinum UHS 1600 da Plataforma ou outro de desempenho e qualidade similar ou superior) | F31: 12311.01.25 | G31: 7006 | H31: 0.1 | I31: 10 | J31: 52.545 | K31: 0 | L31: =BDI!$E$26 -> 0.2577 | M31: 0 | N31: COTAÇÃO
C32: 23 | D32: Mini Kit Limpa-vidros combinado com guia removível, raspadores, luvas para lavagem e cabos de alumínio montáveis (ref. Bralimpia KT 900 ou outro de desempenho e qualidade similar ou superior) | F32: 12311.01.25 | G32: 174.57 | H32: 0.1 | I32: 10 | J32: 1.309275 | K32: 0 | L32: =BDI!$E$26 -> 0.2577 | M32: 0 | N32: COTAÇÃO
C33: 24 | D33: Rodo aspirador p/ pisos (ref. Floor VAC 1500 da Wap ou outro de desempenho e qualidade similar ou superior) | F33: 12311.01.25 | G33: 1861.945 | H33: 0.1 | I33: 10 | J33: 13.9645875 | K33: 0 | L33: =BDI!$E$26 -> 0.2577 | M33: 0 | N33: COTAÇÃO
C34: 25 | D34: Varredora coletora para estacionamento (ref. Eureka Picobello 151 ou Karcher T500 ou outro de desempenho e qualidade similar ou superior) | F34: 12311.01.25 | G34: 15462.385 | H34: 0.1 | I34: 10 | J34: 115.9678875 | K34: 0 | L34: =BDI!$E$26 -> 0.2577 | M34: 0 | N34: COTAÇÃO
C37: PAGAMENTO DA MANUTENÇÃO
C38: ITEM | D38: DESCRIÇÃO | H38: K (calculado) | I38: MENSAL DEPR. | J38: % MAN X DEP | K38: MENSAL MAN. | L38: BDI (%) | M38: PREÇO TOTAL
H40: =H47 -> 0.424116 | I40: =SUM(M10:M34) -> 0 | J40: =H40 -> 0.424116 | K40: =I40*H40 -> 0 | L40: =BDI!E26 -> 0.2577 | M40: =ROUND(K40*(1+L40),2) -> 0
E42: K1 | F42: K2 | G42: K3 | H42: K4
E43: 0.85 | F43: 1 | G43: 0.8 | H43: 1
E44: K5 | F44: K6 | G44: K7 | H44: K8
E45: 1 | F45: 0.6 | G45: 0.5 | H45: 1.1
E46: K9 | F46: K10 | G46: K11 | H46: RESULTADO
D47: * a descrição de cada coeficiente segue abaixo | E47: 1.5 | F47: 0.9 | G47: 1.4 | H47: =E43*F43*G43*H43*E45*F45*G45*H45*E47*F47*G47 -> 0.424116
C50: MATERIAL DE CONSUMO ASSOCIADO
C51: ITEM | D51: DESCRIÇÃO | H51: QUANTID/ANO | I51: UNIDADE | J51: VALOR DE AQ. | K51: MENSAL MAT | L51: BDI (%) | M51: PREÇO TOTAL
K53: =J53*H53/12 -> 0 | L53: =BDI!E26 -> 0.2577 | M53: =ROUND(K53*(1+L53),2) -> 0
C56: MATERIAL DE CONSUMO ASSOCIADO
C57: ITEM | D57: DESCRIÇÃO | M57: PREÇO TOTAL
C59: 1 | D59: Componente DEPRECIAÇÃO | M59: =I40 -> 0
C60: 2 | D60: Componente MANUTENÇÃO | M60: =M40 -> 0
C61: 3 | D61: Componente MATERIAL DE CONSUMO ASSOCIADO | M61: =M53 -> 0
L63: SOMATÓRIO TOTAL MENSAL | M63: =SUM(M58:M62) -> 0
L64: SOMATÓRIO TOTAL ANUAL | M64: =M63*12 -> 0
C67: MATERIAL DE CONSUMO ASSOCIADO
C68: MEMÓRIA DE CÁLCULO DO COEFICIENTE DE CORRELAÇÃO MANUTENÇÃO X DEPRECIAÇÃO (K)
C70: JUSTIFICATIVAS | E70: TIPO | F70: K1 | H70: Condições de Trab | I70: K4 | K70: Tempo Vida (anos) | L70: K6 | N70: Temperatura | O70: K8
E71: Guindaste | F71: 0.5 | H71: Em espera | I71: 0.4 | K71: 1 | L71: 0.6 | N71: Muito quente (> 40º C) | O71: 1.3
C72: K1 | D72: Considerado o valor médio de 0,85 | E72: Caminhão-comum | F72: 0.8 | H72: Leves | I72: 0.8 | K72: 2 | L72: 0.7 | N72: Quente (30º a 40º C) | O72: 1.1
C73: K2 | D73: Considerado o operador médio | E73: Fora-de-estrada | F73: 1 | H73: Médias | I73: 1 | K73: 3 | L73: 0.8 | N73: Médio (10º a 30º C) | O73: 1
C74: K3 | D74: Consideradas ferramentas de primeira qualidade | E74: Carregadeira | F74: 1 | H74: Pesadas | I74: 1.4 | K74: 4 | L74: 0.9 | N74: Frio (< 10º C) | O74: 1.2
C75: K4 | D75: Há todo o tipo de trabalho, foi considerado o valor médio | E75: Escavadeira | F75: 1.4 | H75: Severas | I75: 2 | K75: 5 | L75: 1
C76: K5 | D76: Considerando manutenção normal | E76: Motoescrêiper | F76: 1.1 | K76: 6 | L76: 1 | N76: Ritmo de Trabalho | O76: K9
C77: K6 | D77: Equipamentos novos | E77: Trator de esteira | F77: 1.2 | H77: Manutenção | I77: K5 | K77: 7 | L77: 1 | N77: Folgado | O77: 0.9
C78: K7 | D78: 220h por mês, 252 dias por ano | H78: Excelente | I78: 0.6 | K78: 8 | L78: 1.2 | N78: Médio | O78: 1
C79: K8 | D79: Clima quente, acima de 30º C | E79: Qualid do Operador | F79: K2 | H79: Boa | I79: 0.8 | K79: 9 | L79: 1.3 | N79: Com pressa | O79: 1.5
C80: K9 | D80: Ritmo de trabalho usualmente com pressa | E80: Excelente | F80: 0.8 | H80: Média | I80: 1 | K80: 10 | L80: 1.4
C81: K10 | D81: Considerado o operador médio | E81: Boa | F81: 0.9 | H81: Ruim | I81: 1.5 | K81: 11 | L81: 2 | N81: Conh do Serviço | O81: K10
C82: K11 | D82: Foi considerada a opção de aluguel a terceiros, ainda que a simulação seja dos custos do contratado, contudo a execução dos serviços é em local de terceiros | E82: Média | F82: 1 | H82: Inexistente | I82: 3 | K82: 15 | L82: 2 | N82: Grande | O82: 0.8
E83: Ruim | F83: 1.2 | N83: Médio | O83: 0.9
E84: Péssima | F84: 2 | H84: Horas de Uso | I84: K7 | J84: 6000 | K84: 1 | N84: Pouco | O84: 1
H85: 1000 | I85: 0.5 | J85: 8000 | K85: 1.3
E86: Qualidade do Equip | F86: K3 | H86: 2000 | I86: 0.5 | J86: 10000 | K86: 1.6 | N86: Tipo do Serviço | O86: K11
E87: De primeira | F87: 0.8 | H87: 3000 | I87: 0.6 | J87: 12000 | K87: 1.9 | N87: Mina ou Pedreira | O87: 0.8
E88: Média | F88: 1 | H88: 4000 | I88: 0.7 | J88: 15000 | K88: 2.3 | N88: Construção Geral | O88: 1
E89: Ruim | F89: 1.5 | H89: 5000 | I89: 0.9 | J89: 20000 | K89: 3 | N89: Aluguel a Terceiros | O89: 1.4
E91: Fonte:
E92: MATTOS, Aldo Dórea. Como preparar orçamentos de obras. São Paulo: Pini, 2006. 281 p., il

Sheet Não Rel - Mat Consumo (hidden)
B4: MATERIAIS NÃO RELACIONADOS DIRETAMENTE A UM POSTO DE TRABALHO - AQUISIÇÃO SOB DEMANDA
C7: ITEM | D7: CÓDIGO | E7: DESCRIÇÃO | F7: MÉDIA CONSUMO MENSAL | G7: QUANT ANUAL | H7: UNIDADE | I7: CUSTO UNITÁRIO | J7: CUSTO TOTAL | K7: BDI (%) | L7: PREÇO TOTAL | M7: FONTE | N7: REFERÊNCIA
C9: 1 | E9: Água Sanitária | G9: =F9*12 -> 0 | H9: Litros | I9: 2.823333333 | J9: =I9*G9 -> 0 | K9: =BDI!E26 -> 0.2577 | L9: =ROUND(J9*(1+K9),2) -> 0 | M9: Cotação
C10: 2 | E10: Álcool líquido com teor ativo 70 % | G10: =F10*12 -> 0 | H10: Litros | I10: 8.015 | J10: =I10*G10 -> 0 | K10: =K9 -> 0.2577 | L10: =ROUND(J10*(1+K10),2) -> 0 | M10: Cotação
C11: 3 | E11: Brilho Inox em Spray à base de óleo mineral e emulsão de silicone (ref: 3M ou outro de desempenho e qualidade similar) | G11: 0 | H11: Frasco de 500 ml | I11: 9.585 | J11: 0 | K11: =K10 -> 0.2577 | L11: 0 | M11: Cotação
C12: 4 | E12: Cloro Granulado (balde de 10 kg) | G12: 0 | H12: Balde | I12: 287.45 | J12: 0 | K12: 0.2577 | L12: 0 | M12: Cotação
C13: 5 | E13: Desinfetante Alcalino p/ Limpeza Geral , diluição 1/100 (ref. Bryo Plus da Inglesa ou outro de desempenho e qualidade similar) | G13: 0 | H13: Galão de 5 litros | I13: 12.95 | J13: 0 | K13: 0.2577 | L13: 0 | M13: Cotação
C14: 6 | E14: Desinfetante hospitalar Mirax Oxy a base de Peroxido de Hidrogênio e Quaternário de amônio (5ºGeração) (ref., Renko, diluição 1/100, ou outro de desempenho e qualidade similar) | G14: 0 | H14: Galão de 5 litros | I14: 91.9 | J14: 0 | K14: 0.2577 | L14: 0 | M14: Cotação
C15: 7 | E15: Desinfetante hospitalar – Mult Germ 200 – 1/200 – (ref. Multquímica ou outro de desempenho e qualidade similar) | G15: 0 | H15: Galão de 5 litros | I15: 113.45 | J15: 0 | K15: 0.2577 | L15: 0 | M15: Cotação
C16: 8 | E16: Desodorizante frasco 400 ml (ref. Bom Ar, Domline, No Ar da Bombril ou outro de desempenho e qualidade similar) | G16: 0 | H16: Frasco de 400 ml | I16: 9.445 | J16: 0 | K16: 0.2577 | L16: 0 | M16: Cotação
C17: 9 | E17: Detergente líquido neutro (ref. Bryo Plus, diluição 1/100, Inglesa ou outro de desempenho e qualidade similar) | G17: 0 | H17: Galão de 5 litros | I17: 18.69 | J17: 0 | K17: 0.2577 | L17: 0 | M17: Cotação
C18: 10 | E18: Disco Removível p/ enceradeira 350 mm (preto, verde, vermelho, amarelo e branco) (ref: 3m ou outro de desempenho e qualidade similar) | G18: 0 | H18: Unidade | I18: 18.33 | J18: 0 | K18: 0.2577 | L18: 0 | M18: Cotação
C19: 11 | E19: Disco Bonnet Certec Sintético – 430 mm – para lavagem de carpete | G19: 0 | H19: Unidade | I19: 27.425 | J19: 0 | K19: 0.2577 | L19: 0 | M19: Cotação
C20: 12 | E20: Disco p/ Polidora High Speed, polidor, restauradora para retirada de marcas, de fibra natural, 510 mm (ref. 3M – pêlo de porco – Restaurador) | G20: 0 | H20: Unidade | I20: 50.91666667 | J20: 0 | K20: 0.2577 | L20: 0 | M20: Cotação
C21: 13 | E21: Disco para enceradeira restaurador para mármore 510mm Cor roxo. (ref: 3M) | G21: 0 | H21: Unidade | I21: 294.54 | J21: 0 | K21: 0.2577 | L21: 0 | M21: Cotação
C22: 14 | E22: Disco removível para enceradeira, 410mm, (preto, verde, vermelho, amarelo e branco) (ref: 3m ou outro de desempenho e qualidade similar) | G22: 0 | H22: Unidade | I22: 25.945 | J22: 0 | K22: 0.2577 | L22: 0 | M22: Cotação
C23: 15 | E23: Disco removível para enceradeira, 510mm, (preto, verde, vermelho, amarelo e branco) (ref: 3m ou outro de desempenho e qualidade similar ou superior) | G23: 0 | H23: Unidade | I23: 40.425 | J23: 0 | K23: 0.2577 | L23: 0 | M23: Cotação
C24: 16 | E24: Escova de Nylon multiuso Manual, 13x6,5 cm fibra de aprox. 2,5 cm | G24: 0 | H24: Unidade | I24: 3.34 | J24: 0 | K24: 0.2577 | L24: 0 | M24: Cotação
C25: 17 | E25: Esponja de Aço 60g (ref. Bombril, Assolan ou outro de desempenho e qualidade similar ou superior) | G25: 0 | H25: Unidade | I25: 1.75 | J25: 0 | K25: 0.2577 | L25: 0 | M25: Cotação
C26: 18 | E26: Esponja Dupla Face (ref: 3M ou similar) | G26: 0 | H26: Unidade | I26: 0.7483333333 | J26: 0 | K26: 0.2577 | L26: 0 | M26: Cotação
C27: 19 | E27: Fita Adesiva Transparente Para Empacotamento e uso Geral 48mm X 100m (ref. 3M, Scotch Brite Johnson ou outro de desempenho e qualidade similar ou superior) | G27: 0 | H27: Unidade | I27: 11.15 | J27: 0 | K27: 0.2577 | L27: 0 | M27: Cotação
C28: 20 | E28: Fita dupla face de silicone para instalação, largura de 19 mm, rolo com 20m | G28: 0 | H28: Unidade | I28: 66.9 | J28: 0 | K28: 0.2577 | L28: 0 | M28: Cotação
C29: 21 | E29: Flanela em Peça, 40x60 cm (ref. Copalimpa, star ou outro de desempenho e qualidade similar ou superior) | G29: 0 | H29: Unidade | I29: 1.728333333 | J29: 0 | K29: 0.2577 | L29: 0 | M29: Cotação
C30: 22 | E30: Hipoclorito de Sódio 12% ativo líquido concentrado (ref. START ou outro de desempenho e qualidade similar ou superior) | G30: 0 | H30: Galão de 5 litros | I30: 16.14 | J30: 0 | K30: 0.2577 | L30: 0 | M30: Cotação
C31: 23 | E31: Impermeabilizante acrílico metalizado (ref. Traffic HS - Johnson ou outro de desempenho e qualidade similar ou superior) | G31: 0 | H31: Galão de 5 litros | I31: 110.36 | J31: 0 | K31: 0.2577 | L31: 0 | M31: Cotação
C32: 24 | E32: Limpa Carpete Diluível 1/20 – (ref. Briosol ou ZAZ, ou outro de desempenho e qualidade similar ou superior) | G32: 0 | H32: Galão de 5 litros | I32: 69.485 | J32: 0 | K32: 0.2577 | L32: 0 | M32: Cotação
C33: 25 | E33: Limpa Vidros (ref. Start ou outro de desempenho e qualidade similar ou superior) | G33: 0 | H33: Frasco de 500 ml | I33: 2.935 | J33: 0 | K33: 0.2577 | L33: 0 | M33: Cotação
C34: 26 | E34: Limpador multiuso diluível 1/ 20 – 500 ml (ref. Ajax fresh ou outro de desempenho e qualidade similar ou superior) | G34: 0 | H34: Caixa de 12 unid | I34: 34.62333333 | J34: 0 | K34: 0.2577 | L34: 0 | M34: Cotação
C35: 27 | E35: Lustra Móveis (ref. worker ou outro de desempenho e qualidade similar ou superior) | G35: 0 | H35: Frasco de 250 ml | I35: 6.87 | J35: 0 | K35: 0.2577 | L35: 0 | M35: Cotação
C36: 28 | E36: Papel higiênico Interfolhado - caixa com 12.000 folhas, folha dupla, tamanho 21,6 x 11,00 cm (ref. Inovata ou outro de desempenho e qualidade similar ou superior) | G36: 0 | H36: Caixa | I36: 143.135 | J36: 0 | K36: 0.2577 | L36: 0 | M36: Cotação
C37: 29 | E37: Papel toalha interfolhado, caixa com 2.400 folhas, folha dupla, tamanho 23 x 20 cm (ref. Inovata, Santher ou outro de desempenho e qualidade similar ou superior) | G37: 0 | H37: Caixa | I37: 85.245 | J37: 0 | K37: 0.2577 | L37: 0 | M37: Cotação
C38: 30 | E38: Tela Sanitária floral (Ref. Zupp, Sany Mix ou outro de desempenho e qualidade similar ou superior) | G38: 0 | H38: Caixa de 60 unid | I38: 221.7 | J38: 0 | K38: 0.2577 | L38: 0 | M38: Cotação
C39: 31 | E39: Polidor para Metais (ref. silvo ou similar) | G39: =F39*12 -> 0 | H39: Frasco de 200 ml | I39: 37.07 | J39: =I39*G39 -> 0 | K39: 0.2577 | L39: =ROUND(J39*(1+K39),2) -> 0 | M39: Cotação
C40: 32 | E40: Removedor de alta performance com embalagem tipo Bico de Pato” para uso sanitário (ref. pato Purific - ou outro de desempenho e qualidade similar ou superior) | G40: 0 | H40: Frasco de 500 ml | I40: 13.35 | J40: 0 | K40: 0.2577 | L40: 0 | M40: Cotação
C41: 33 | E41: Removedor para piso impermeabilizado (ref. Jato da Johnson Diversey, Start ou outro de desempenho e qualidade similar ou superior) | G41: 0 | H41: Galão de 5 litros | I41: 39.4 | J41: 0 | K41: 0.2577 | L41: 0 | M41: Cotação
C42: 34 | E42: Restaurador Sistema Metalic HS, Metalic 40 (diluível até ¼) (ref. Indeba, Johnson ou outro de desempenho e qualidade similar ou superior) | G42: 0 | H42: Galão de 5 litros | I42: 138.5 | J42: =I42*G42 -> 0 | K42: 0.2577 | L42: =ROUND(J42*(1+K42),2) -> 0 | M42: Cotação
C43: 35 | E43: Sabão de Coco - 100 g | G43: 0 | H43: Pacote de 5 Unid | I43: 15.665 | J43: =I43*G43 -> 0 | K43: 0.2577 | L43: =ROUND(J43*(1+K43),2) -> 0 | M43: Cotação
C44: 36 | E44: Sabão em pó | G44: 0 | H44: Caixa de 1 Kg | I44: 6.875 | J44: 0 | K44: 0.2577 | L44: 0 | M44: Cotação
C45: 37 | E45: Sabonete líquido Nobla perolizado 5 litros (ref. Johnson, ZAZ ou outro de desempenho e qualidade similar ou superior) | G45: 0 | H45: Galão de 5 litros | I45: 33.415 | J45: 0 | K45: 0.2577 | L45: 0 | M45: Cotação
C46: 38 | E46: Saco de pano para Limpeza – tam 1,00 x 0,60 m (ref. Star Textil ou outro de desempenho e qualidade similar ou superior) | G46: 0 | H46: Unidade | I46: 4.62 | J46: 0 | K46: 0.2577 | L46: 0 | M46: Cotação
C47: 39 | E47: Saco plástico azul p/ lixo 100 litros | G47: 0 | H47: Unidade | I47: 0.824 | J47: 0 | K47: 0.2577 | L47: 0 | M47: Cotação
C48: 40 | E48: Saco plástico leitoso infect. para lixo hospitalar 100 litros | G48: 0 | H48: Unidade | I48: 0.74 | J48: 0 | K48: 0.2577 | L48: 0 | M48: Cotação
C49: 41 | E49: Saco plástico leitoso infect. para lixo hospitalar 40 litros | G49: 0 | H49: Unidade | I49: 0.26 | J49: 0 | K49: 0.2577 | L49: 0 | M49: Cotação
C50: 42 | E50: Saco plástico preto p/ lixo 100 litros | G50: 0 | H50: Unidade | I50: 0.644 | J50: 0 | K50: 0.2577 | L50: 0 | M50: Cotação
C51: 43 | E51: Saco plástico preto p/ lixo 40 litros | G51: 0 | H51: Unidade | I51: 0.205 | J51: =I51*G51 -> 0 | K51: 0.2577 | L51: =ROUND(J51*(1+K51),2) -> 0 | M51: Cotação
C52: 44 | E52: Saco plástico vermelho para lixo 100 litros | G52: 0 | H52: Unidade | I52: 0.824 | J52: =I52*G52 -> 0 | K52: 0.2577 | L52: =ROUND(J52*(1+K52),2) -> 0 | M52: Cotação
C53: 45 | E53: Saco plástico vermelho para lixo 40 litros | G53: 0 | H53: Unidade | I53: 0.255 | J53: 0 | K53: 0.2577 | L53: 0 | M53: Cotação
C54: 46 | E54: Sapólio liquido (ref. Zupp, Bombril ou similar) | G54: 0 | H54: Galão de 5 litros | I54: 59.94 | J54: 0 | K54: 0.2577 | L54: 0 | M54: Cotação
K56: SOMATÓRIO TOTAL MENSAL | L56: =L57/12 -> 0
K57: SOMATÓRIO TOTAL ANUAL | L57: =SUM(L8:L55) -> 0

Sheet Não Rel - Mat Cons Durável (hidden)
B4: MATERIAIS DE CONSUMO PERMANENTE NÃO RELACIONADOS DIRETAMENTE A UM POSTO DE TRABALHO - AQUISIÇÃO SOB DEMANDA
C7: ITEM | D7: CÓDIGO | E7: DESCRIÇÃO | F7: ESTOQUE INICIAL | G7: MÉDIA CONSUMO MENSAL | H7: QTDE. ANUAL | I7: UNIDADE | J7: CUSTO UNITÁRIO | K7: CUSTO TOTAL | L7: BDI (%) | M7: PREÇO TOTAL | N7: FONTE | O7: REFERÊNCIA
C9: 1 | E9: Balde Plástico 12 Litros | G9: 8 | H9: 166 | I9: Unidade | K9: =J9*H9 -> 0 | L9: =BDI!E26 -> 0.2577 | M9: =ROUND(K9*(1+L9),2) -> 0 | N9: Cotação
C10: 2 | E10: Balde plástico 20 litros | G10: 2 | H10: 44 | I10: Unidade | K10: =J10*H10 -> 0 | L10: =L9 -> 0.2577 | M10: =ROUND(K10*(1+L10),2) -> 0 | N10: Cotação
C11: 3 | E11: Balde Plástico 60 Litros | G11: 1 | H11: 16 | I11: Unidade | K11: 0 | L11: =L10 -> 0.2577 | M11: 0 | N11: Cotação
C12: 4 | E12: Capa para chuva com capuz, cor amarela, longa, tamanho G | G12: 2 | H12: 32 | I12: Unidade | K12: 0 | L12: 0.2577 | M12: 0 | N12: Cotação
C13: 5 | E13: Chapéu legionário (com proteção p/ nuca) | G13: 2 | H13: 44 | I13: Unidade | K13: 0 | L13: 0.2577 | M13: 0 | N13: Cotação
C14: 6 | E14: Conjunto completo para limpeza de rodapé (cabo, suporte e fibra) (ref. Braslimpia ST 304 e FP262 ou similar) | G14: 0 | H14: 8 | I14: Unidade | K14: 0 | L14: 0.2577 | M14: 0 | N14: Cotação
C15: 7 | E15: Conjunto completo para Mop pó, com amarração (cabo, armação e cabeleira) (ref. Mop seco Euro CJ 60E ou similar) | G15: 0 | H15: 8 | I15: Unidade | K15: 0 | L15: 0.2577 | M15: 0 | N15: Cotação
C16: 8 | E16: Espátula de aço com cabo de madeira 4" 101x185mm, cabo amarelo (ref. Max Ferramentas ou similar) | G16: 2 | H16: 36 | I16: Unidade | K16: 0 | L16: 0.2577 | M16: 0 | N16: Cotação
C17: 9 | E17: Extensão elétrica com carretel 2 X 2,5mm² X 50,00 m – suporte com carretel injetado em polipropileno com diâmetro de 290mm com 3 tomadas universais | G17: 0 | H17: 10 | I17: Unidade | K17: 0 | L17: 0.2577 | M17: 0 | N17: Cotação
C18: 10 | E18: Fita para isolamento de área zebrada amarelo e preta ultra resistente 7,6cm x 200m | G18: 0 | H18: 10 | I18: Unidade | K18: 0 | L18: 0.2577 | M18: 0 | N18: Cotação
C19: 11 | E19: Macacão de segurança Tipo 6 (ref. SteelgenVicsa, Steelflex ou outro de desempenho e qualidade similar ou superior). | G19: 4 | H19: 60 | I19: Unidade | K19: 0 | L19: 0.2577 | M19: 0 | N19: Cotação
C20: 12 | E20: Mangueira Top cristal Ø3/4”x 250m em PVC flexível, camada em poliester trançado, para pressões de 6 bar (ref. Tramontina Mult Johnson ou outro de desempenho e qualidade similar ou superior) | G20: 0 | H20: 5 | I20: Unidade | K20: 0 | L20: 0.2577 | M20: 0 | N20: Cotação
C21: 13 | E21: Pá para lixo, plástica, com cabo longo 90 cm (ref. 15300 marca Tomki São Bernardo, Madetec Johnson ou outro de desempenho e qualidade similar ou superior) | G21: 2 | H21: 44 | I21: Unidade | K21: 0 | L21: 0.2577 | M21: 0 | N21: Cotação
C22: 14 | E22: Placa de sinalização em vinil para piso molhado | G22: 0 | H22: 40 | I22: Unidade | K22: 0 | L22: 0.2577 | M22: 0 | N22: Cotação
C23: 15 | E23: Pulverizador Costal Simétrico 20L (ref.Guarany, Vulcan,Vonder ou outro de desempenho e qualidade similar ou superior). | G23: 0 | H23: 2 | I23: Unidade | K23: 0 | L23: 0.2577 | M23: 0 | N23: Cotação
C24: 16 | E24: Rodo P/ Pia de Banheiro manual anatômico – (ref. Guirado, Bettani ou Dalcim ou outro de desempenho e qualidade similar ou superior) | G24: 1 | H24: 27 | I24: Unidade | K24: 0 | L24: 0.2577 | M24: 0 | N24: Cotação
C25: 17 | E25: Rodo de 40cm de madeira/plástico (borracha dupla) com cabo 1,50 m – marcas Tomki, Guirado, Bettani, Dalcim ou outro de desempenho e qualidade similar ou superior) | G25: 10 | H25: 200 | I25: Unidade | K25: 0 | L25: 0.2577 | M25: 0 | N25: Cotação
C26: 18 | E26: Rodo de 60cm de madeira/plástico (borracha dupla) com cabo 1,50m (ref. Tomki, Guirado, Bettani, Dalcim ou outro de desempenho e qualidade similar ou superior) | G26: 8 | H26: 131 | I26: Unidade | K26: 0 | L26: 0.2577 | M26: 0 | N26: Cotação
C27: 19 | E27: Rodo de 90cm de madeira/plástico (borracha dupla) com cabo 1,50m (ref. Tomki, Guirado, Bettani, Dalcim ou outro de desempenho e qualidade similar ou superior) | G27: 2 | H27: 39 | I27: Unidade | K27: 0 | L27: 0.2577 | M27: 0 | N27: Cotação
C28: 20 | E28: Saco para aspirador doméstico pequeno descartável (ref. Eletrolux Silent Prof ou Leo da Soteco ou outro de desempenho e qualidade similar ou superior) | G28: 3 | H28: 48 | I28: Unidade | K28: 0 | L28: 0.2577 | M28: 0 | N28: Cotação
C29: 21 | E29: Saco para aspirador industrial água e pó descartável (ref. Karcher A2104 ou Eletrolux GT 3000 Pro ou outro de desempenho e qualidade similar ou superior) | G29: 2 | H29: 28 | I29: Unidade | K29: 0 | L29: 0.2577 | M29: 0 | N29: Cotação
C30: 22 | E30: Suporte para papel higiênico (ref. Santher ou outro de desempenho e qualidade similar ou superior) | G30: 2 | H30: 369 | I30: Unidade | K30: 0 | L30: 0.2577 | M30: 0 | N30: Cotação
C31: 23 | E31: Suporte para papel toalha (ref. Santher ou outro de desempenho e qualidade similar ou superior) | G31: 2 | H31: 409 | I31: Unidade | K31: 0 | L31: 0.2577 | M31: 0 | N31: Cotação
C32: 24 | E32: Suporte para saboneteira (ref. Santher ou outro de desempenho e qualidade similar ou superior) | G32: 2 | H32: 254 | I32: Unidade | K32: 0 | L32: 0.2577 | M32: 0 | N32: Cotação
C33: 25 | E33: Vassoura de Pêlo 40cm nylon com cabo 1,50 m (ref. Tomki, Guirado, Bettani, Dalcim ou outro de desempenho e qualidade similar ou superior) | G33: 2 | H33: 36 | I33: Unidade | K33: 0 | L33: =L31 -> 0.2577 | M33: =ROUND(K33*(1+L33),2) -> 0 | N33: Cotação
C34: 26 | E34: Vassoura Piaçava nº 3 com cabo 1,50m (ref. Guirado, Bettani, Dalcim ou outro de desempenho e qualidade similar ou superior) | G34: 8 | H34: 126 | I34: Unidade | K34: =J34*H34 -> 0 | L34: =L31 -> 0.2577 | M34: 0 | N34: Cotação
C35: 27 | E35: Vassoura para Vaso Sanitário com cabo de madeira (ref. Guirado, Bettani, Dalcim ou outro de desempenho e qualidade similar ou superior) | G35: 10 | H35: 180 | I35: Unidade | K35: 0 | L35: =L32 -> 0.2577 | M35: 0 | N35: Cotação
L37: SOMATÓRIO TOTAL MENSAL | M37: =M38/12 -> 0
L38: SOMATÓRIO TOTAL ANUAL | M38: =SUM(M8:M36) -> 0

Sheet Não Rel - Serviços (hidden)
B3: SERVIÇOS NÃO RELACIONADOS DIRETAMENTE A UM POSTO DE TRABALHO - SOB DEMANDA
C6: ITEM | D6: CÓDIGO | E6: DESCRIÇÃO | F6: QUANT ANUAL | G6: UNIDADE | H6: CUSTO UNITÁRIO | I6: CUSTO TOTAL | J6: BDI (%) | K6: PREÇO TOTAL | L6: FONTE | M6: REFERÊNCIA
C8: 1 | E8: Serviços de desinsetização e desratização em uma área de 59.203 m² | G8: aplicações | H8: 8422.5 | I8: =H8*F8 -> 0 | J8: =BDI!E26 -> 0.2577 | K8: =ROUND(I8*(1+J8),2) -> 0 | L8: Cotação
J10: SOMATÓRIO TOTAL MENSAL | K10: =K11/12 -> 0
J11: SOMATÓRIO TOTAL ANUAL | K11: =SUM(K7:K9) -> 0

Sheet Not. Demanda (hidden)
B3: ADICIONAL NOTURNO SOB DEMANDA
C6: CATEGORIAS | G6: HORAS / MÊS | H6: % NOTURNA
C8: 8 | D8: =HLOOKUP($C8,'Dados Gerais'!$D$5:$BK$10,6) -> RECEPCIONISTA DE FLUXO DE PESSOAS | H8: 0.225
C9: 9 | D9: =HLOOKUP($C9,'Dados Gerais'!$D$5:$BK$10,6) -> RECEPCIONISTA DE FLUXO DE PESSOAS | H9: 0.225
C12: AJUSTE DE HORAS FICTAS | E12: AJUSTE H.NOT | F12: HORA NORMAL | G12: H.FICTAS/MÊS | H12: H.ÚTEIS/MÊS
C14: 8 | D14: =HLOOKUP($C14,'Dados Gerais'!$D$5:$BK$10,6) -> RECEPCIONISTA DE FLUXO DE PESSOAS | E14: 60 | F14: 60 | G14: =G8*(F14/E14) -> 0 | H14: =HLOOKUP(C14,'Dados Gerais'!$D$5:$L$16,12,0) -> 
C15: 9 | D15: =HLOOKUP($C15,'Dados Gerais'!$D$5:$BK$10,6) -> RECEPCIONISTA DE FLUXO DE PESSOAS | E15: 60 | F15: 60 | G15: =G9*(F15/E15) -> 0 | H15: =HLOOKUP(C15,'Dados Gerais'!$D$5:$L$16,12,0) -> 
C18: VALOR DO ADICIONAL NOTURNO | F18: SALÁRIO MÊS | G18: VL.H.NORMAL | H18: ADIC.H.FICTAS
C20: 8 | D20: =HLOOKUP($C20,'Dados Gerais'!$D$5:$BK$10,6) -> RECEPCIONISTA DE FLUXO DE PESSOAS | F20: =HLOOKUP(C20,'Dados Gerais'!$D$5:$L$12,8,0) ->  | G20: =F20/H14 ->  | H20: =G20*(H8) -> 
C21: 9 | D21: =HLOOKUP($C21,'Dados Gerais'!$D$5:$BK$10,6) -> RECEPCIONISTA DE FLUXO DE PESSOAS | F21: =HLOOKUP(C21,'Dados Gerais'!$D$5:$L$12,8,0) ->  | G21: =F21/H15 ->  | H21: =G21*(H9) -> 
C24: RESUMO DO ADICIONAL NOTURNO SOB DEMANDA
C25: TOTAIS MENSAIS | G25: PREÇO MENSAL
C27: 8 | D27: =HLOOKUP($C27,'Dados Gerais'!$D$5:$BK$10,6) -> RECEPCIONISTA DE FLUXO DE PESSOAS | G27: =H20*G14 -> 
C28: 9 | D28: =HLOOKUP($C28,'Dados Gerais'!$D$5:$BK$10,6) -> RECEPCIONISTA DE FLUXO DE PESSOAS | G28: =H21*G15 -> 
F30: SOMATÓRIO TOTAL MENSAL | G30: =SUM(G27:G29) -> 
F31: SOMATÓRIO TOTAL ANUAL | G31: =G30*12 -> 
C34: ENCARGOS SOCIAIS E BDI SOBRE ADICIONAL NOTURNO SOB DEMANDA
C35: TOTAIS MENSAIS | F35: PERCENTUAIS | G35: PREÇO MENSAL
D37: ENCARGOS SOCIAIS | F37: ='Encargos Sociais'!$E$46 -> 0.7266 | G37: =F37*G30 -> 
D38: BDI | F38: =BDI!$E$26 -> 0.2577 | G38: =F38*(G30+G37) -> 
F40: SOMATÓRIO TOTAL MENSAL | G40: =SUM(G37:G39) -> 
F41: SOMATÓRIO TOTAL ANUAL | G41: =G40*12 -> 
C44: VALOR TOTAL ADICIONAL NOTURNO SOB DEMANDA (COM ENCARGOS SOCIAIS E BDI INCLUSOS)
C45: TOTAIS MENSAIS | F45: PERCENTUAIS | G45: PREÇO MENSAL
D47: ENCARGOS SOCIAIS | F47: ='Encargos Sociais'!$E$46 -> 0.7266 | G47: =G27+G37 -> 
D48: BDI | F48: =BDI!$E$26 -> 0.2577 | G48: =G28+G38 -> 
F50: SOMATÓRIO TOTAL MENSAL | G50: =SUM(G47:G49) -> 
F51: SOMATÓRIO TOTAL ANUAL | G51: =G50*12 -> 

Sheet Mat Cons (hidden)
C1: CÂMARA DOS DEPUTADOS
C2: DEPARTAMENTO TÉCNICO
C3: Coordenação de Planejamento e Gestão
C5: Data: | D5: ='Dados Gerais'!#REF! -> 
C6: Processo: | D6: ='Dados Gerais'!#REF! -> 
C7: Objeto: | D7: ='Dados Gerais'!#REF! -> 
B11: MATERIAIS DE CONSUMO RELACIONADOS AO POSTO - AQUISIÇÃO | I11: 1 | K11: =I11+1 -> 2 | M11: =K11+1 -> 3 | O11: =M11+1 -> 4 | Q11: =O11+1 -> 5 | S11: =Q11+1 -> 6 | U11: =S11+1 -> 7 | W11: =U11+1 -> 8 | Y11: =W11+1 -> 9 | AA11: =Y11+1 -> 10 | AC11: =AA11+1 -> 11 | AE11: =AC11+1 -> 12 | AG11: =AE11+1 -> 13 | AI11: =AG11+1 -> 14 | AK11: =AI11+1 -> 15 | AM11: =AK11+1 -> 16 | AO11: =AM11+1 -> 17 | AQ11: =AO11+1 -> 18 | AS11: =AQ11+1 -> 19 | AU11: =AS11+1 -> 20 | AW11: =AU11+1 -> 21 | AY11: =AW11+1 -> 22 | BA11: =AY11+1 -> 23 | BC11: =BA11+1 -> 24 | BE11: =BC11+1 -> 25 | BG11: =BE11+1 -> 26 | BI11: =BG11+1 -> 27 | BK11: =BI11+1 -> 28 | BM11: =BK11+1 -> 29 | BO11: =BM11+1 -> 30 | BQ11: =BO11+1 -> 31 | BS11: =BQ11+1 -> 32 | BU11: =BS11+1 -> 33 | BW11: =BU11+1 -> 34 | BY11: =BW11+1 -> 35 | CA11: =BY11+1 -> 36 | CC11: =CA11+1 -> 37 | CE11: =CC11+1 -> 38 | CG11: =CE11+1 -> 39 | CI11: =CG11+1 -> 40 | CK11: =CI11+1 -> 41 | CM11: =CK11+1 -> 42 | CO11: =CM11+1 -> 43 | CQ11: =CO11+1 -> 44 | CS11: =CQ11+1 -> 45 | CU11: =CS11+1 -> 46 | CW11: =CU11+1 -> 47 | CY11: =CW11+1 -> 48 | DA11: =CY11+1 -> 49 | DC11: =DA11+1 -> 50 | DE11: =DC11+1 -> 51 | DG11: =DE11+1 -> 52 | DI11: =DG11+1 -> 53 | DK11: =DI11+1 -> 54 | DM11: =DK11+1 -> 55 | DO11: =DM11+1 -> 56 | DQ11: =DO11+1 -> 57 | DS11: =DQ11+1 -> 58 | DU11: =DS11+1 -> 59 | DW11: =DU11+1 -> 60
I13: =ROUND(SUM(J12:J65),2) -> 0 | K13: =ROUND(SUM(L12:L65),2) -> 0 | M13: =ROUND(SUM(N12:N65),2) -> 0 | O13: =ROUND(SUM(P12:P65),2) -> 0 | Q13: =ROUND(SUM(R12:R65),2) -> 0 | S13: =ROUND(SUM(T12:T65),2) -> 0 | U13: =ROUND(SUM(V12:V65),2) -> 0 | W13: =ROUND(SUM(X12:X65),2) -> 0 | Y13: =ROUND(SUM(Z12:Z65),2) -> 0 | AA13: =ROUND(SUM(AB12:AB65),2) -> 0 | AC13: =ROUND(SUM(AD12:AD65),2) -> 0 | AE13: =ROUND(SUM(AF12:AF65),2) -> 0 | AG13: =ROUND(SUM(AH12:AH65),2) -> 0 | AI13: =ROUND(SUM(AJ12:AJ65),2) -> 0 | AK13: =ROUND(SUM(AL12:AL65),2) -> 0 | AM13: =ROUND(SUM(AN12:AN65),2) -> 0 | AO13: =ROUND(SUM(AP12:AP65),2) -> 0 | AQ13: =ROUND(SUM(AR12:AR65),2) -> 0 | AS13: =ROUND(SUM(AT12:AT65),2) -> 0 | AU13: =ROUND(SUM(AV12:AV65),2) -> 0 | AW13: =ROUND(SUM(AX12:AX65),2) -> 0 | AY13: =ROUND(SUM(AZ12:AZ65),2) -> 0 | BA13: =ROUND(SUM(BB12:BB65),2) -> 0 | BC13: =ROUND(SUM(BD12:BD65),2) -> 0 | BE13: =ROUND(SUM(BF12:BF65),2) -> 0 | BG13: =ROUND(SUM(BH12:BH65),2) -> 0 | BI13: =ROUND(SUM(BJ12:BJ65),2) -> 0 | BK13: =ROUND(SUM(BL12:BL65),2) -> 0 | BM13: =ROUND(SUM(BN12:BN65),2) -> 0 | BO13: =ROUND(SUM(BP12:BP65),2) -> 0 | BQ13: =ROUND(SUM(BR12:BR65),2) -> 0 | BS13: =ROUND(SUM(BT12:BT65),2) -> 0 | BU13: =ROUND(SUM(BV12:BV65),2) -> 0 | BW13: =ROUND(SUM(BX12:BX65),2) -> 0 | BY13: =ROUND(SUM(BZ12:BZ65),2) -> 0 | CA13: =ROUND(SUM(CB12:CB65),2) -> 0 | CC13: =ROUND(SUM(CD12:CD65),2) -> 0 | CE13: =ROUND(SUM(CF12:CF65),2) -> 0 | CG13: =ROUND(SUM(CH12:CH65),2) -> 0 | CI13: =ROUND(SUM(CJ12:CJ65),2) -> 0 | CK13: =ROUND(SUM(CL12:CL65),2) -> 0 | CM13: =ROUND(SUM(CN12:CN65),2) -> 0 | CO13: =ROUND(SUM(CP12:CP65),2) -> 0 | CQ13: =ROUND(SUM(CR12:CR65),2) -> 0 | CS13: =ROUND(SUM(CT12:CT65),2) -> 0 | CU13: =ROUND(SUM(CV12:CV65),2) -> 0 | CW13: =ROUND(SUM(CX12:CX65),2) -> 0 | CY13: =ROUND(SUM(CZ12:CZ65),2) -> 0 | DA13: =ROUND(SUM(DB12:DB65),2) -> 0 | DC13: =ROUND(SUM(DD12:DD65),2) -> 0 | DE13: =ROUND(SUM(DF12:DF65),2) -> 0 | DG13: =ROUND(SUM(DH12:DH65),2) -> 0 | DI13: =ROUND(SUM(DJ12:DJ65),2) -> 0 | DK13: =ROUND(SUM(DL12:DL65),2) -> 0 | DM13: =ROUND(SUM(DN12:DN65),2) -> 0 | DO13: =ROUND(SUM(DP12:DP65),2) -> 0 | DQ13: =ROUND(SUM(DR12:DR65),2) -> 0 | DS13: =ROUND(SUM(DT12:DT65),2) -> 0 | DU13: =ROUND(SUM(DV12:DV65),2) -> 0 | DW13: =ROUND(SUM(DX12:DX65),2) -> 0
C14: CATEGORIAS | F14: QUANTIDADE
I15: =IF($C15=I$11,1,0) -> 0
I16: 0 | K16: =IF($C16=K$11,1,0) -> 0 | M16: =IF($C16=M$11,1,0) -> 0 | O16: =IF($C16=O$11,1,0) -> 0 | Q16: =IF($C16=Q$11,1,0) -> 0 | S16: =IF($C16=S$11,1,0) -> 0 | U16: =IF($C16=U$11,1,0) -> 0 | W16: =IF($C16=W$11,1,0) -> 0 | Y16: =IF($C16=Y$11,1,0) -> 0 | AA16: =IF($C16=AA$11,1,0) -> 0 | AC16: =IF($C16=AC$11,1,0) -> 0 | AE16: =IF($C16=AE$11,1,0) -> 0 | AG16: =IF($C16=AG$11,1,0) -> 0 | AI16: =IF($C16=AI$11,1,0) -> 0 | AK16: =IF($C16=AK$11,1,0) -> 0 | AM16: =IF($C16=AM$11,1,0) -> 0 | AO16: =IF($C16=AO$11,1,0) -> 0 | AQ16: =IF($C16=AQ$11,1,0) -> 0 | AS16: =IF($C16=AS$11,1,0) -> 0 | AU16: =IF($C16=AU$11,1,0) -> 0 | AW16: =IF($C16=AW$11,1,0) -> 0 | AY16: =IF($C16=AY$11,1,0) -> 0 | BA16: =IF($C16=BA$11,1,0) -> 0 | BC16: =IF($C16=BC$11,1,0) -> 0 | BE16: =IF($C16=BE$11,1,0) -> 0 | BG16: =IF($C16=BG$11,1,0) -> 0 | BI16: =IF($C16=BI$11,1,0) -> 0 | BK16: =IF($C16=BK$11,1,0) -> 0 | BM16: =IF($C16=BM$11,1,0) -> 0 | BO16: =IF($C16=BO$11,1,0) -> 0 | BQ16: =IF($C16=BQ$11,1,0) -> 0 | BS16: =IF($C16=BS$11,1,0) -> 0 | BU16: =IF($C16=BU$11,1,0) -> 0 | BW16: =IF($C16=BW$11,1,0) -> 0 | BY16: =IF($C16=BY$11,1,0) -> 0 | CA16: =IF($C16=CA$11,1,0) -> 0 | CC16: =IF($C16=CC$11,1,0) -> 0 | CE16: =IF($C16=CE$11,1,0) -> 0 | CG16: =IF($C16=CG$11,1,0) -> 0 | CI16: =IF($C16=CI$11,1,0) -> 0 | CK16: =IF($C16=CK$11,1,0) -> 0 | CM16: =IF($C16=CM$11,1,0) -> 0 | CO16: =IF($C16=CO$11,1,0) -> 0 | CQ16: =IF($C16=CQ$11,1,0) -> 0 | CS16: =IF($C16=CS$11,1,0) -> 0 | CU16: =IF($C16=CU$11,1,0) -> 0 | CW16: =IF($C16=CW$11,1,0) -> 0 | CY16: =IF($C16=CY$11,1,0) -> 0 | DA16: =IF($C16=DA$11,1,0) -> 0 | DC16: =IF($C16=DC$11,1,0) -> 0 | DE16: =IF($C16=DE$11,1,0) -> 0 | DG16: =IF($C16=DG$11,1,0) -> 0 | DI16: =IF($C16=DI$11,1,0) -> 0 | DK16: =IF($C16=DK$11,1,0) -> 0 | DM16: =IF($C16=DM$11,1,0) -> 0 | DO16: =IF($C16=DO$11,1,0) -> 0 | DQ16: =IF($C16=DQ$11,1,0) -> 0 | DS16: =IF($C16=DS$11,1,0) -> 0 | DU16: =IF($C16=DU$11,1,0) -> 0 | DW16: =IF($C16=DW$11,1,0) -> 0
I17: 0 | K17: 0 | M17: 0 | O17: 0 | Q17: 0 | S17: 0 | U17: 0 | W17: 0 | Y17: 0 | AA17: 0 | AC17: 0 | AE17: 0 | AG17: 0 | AI17: 0 | AK17: 0 | AM17: 0 | AO17: 0 | AQ17: 0 | AS17: 0 | AU17: 0 | AW17: 0 | AY17: 0 | BA17: 0 | BC17: 0 | BE17: 0 | BG17: 0 | BI17: 0 | BK17: 0 | BM17: 0 | BO17: 0 | BQ17: 0 | BS17: 0 | BU17: 0 | BW17: 0 | BY17: 0 | CA17: 0 | CC17: 0 | CE17: 0 | CG17: 0 | CI17: 0 | CK17: 0 | CM17: 0 | CO17: 0 | CQ17: 0 | CS17: 0 | CU17: 0 | CW17: 0 | CY17: 0 | DA17: 0 | DC17: 0 | DE17: 0 | DG17: 0 | DI17: 0 | DK17: 0 | DM17: 0 | DO17: 0 | DQ17: 0 | DS17: 0 | DU17: 0 | DW17: 0
I18: 0 | K18: 0 | M18: 0 | O18: 0 | Q18: 0 | S18: 0 | U18: 0 | W18: 0 | Y18: 0 | AA18: 0 | AC18: 0 | AE18: 0 | AG18: 0 | AI18: 0 | AK18: 0 | AM18: 0 | AO18: 0 | AQ18: 0 | AS18: 0 | AU18: 0 | AW18: 0 | AY18: 0 | BA18: 0 | BC18: 0 | BE18: 0 | BG18: 0 | BI18: 0 | BK18: 0 | BM18: 0 | BO18: 0 | BQ18: 0 | BS18: 0 | BU18: 0 | BW18: 0 | BY18: 0 | CA18: 0 | CC18: 0 | CE18: 0 | CG18: 0 | CI18: 0 | CK18: 0 | CM18: 0 | CO18: 0 | CQ18: 0 | CS18: 0 | CU18: 0 | CW18: 0 | CY18: 0 | DA18: 0 | DC18: 0 | DE18: 0 | DG18: 0 | DI18: 0 | DK18: 0 | DM18: 0 | DO18: 0 | DQ18: 0 | DS18: 0 | DU18: 0 | DW18: 0
I19: 0 | K19: 0 | M19: 0 | O19: 0 | Q19: 0 | S19: 0 | U19: 0 | W19: 0 | Y19: 0 | AA19: 0 | AC19: 0 | AE19: 0 | AG19: 0 | AI19: 0 | AK19: 0 | AM19: 0 | AO19: 0 | AQ19: 0 | AS19: 0 | AU19: 0 | AW19: 0 | AY19: 0 | BA19: 0 | BC19: 0 | BE19: 0 | BG19: 0 | BI19: 0 | BK19: 0 | BM19: 0 | BO19: 0 | BQ19: 0 | BS19: 0 | BU19: 0 | BW19: 0 | BY19: 0 | CA19: 0 | CC19: 0 | CE19: 0 | CG19: 0 | CI19: 0 | CK19: 0 | CM19: 0 | CO19: 0 | CQ19: 0 | CS19: 0 | CU19: 0 | CW19: 0 | CY19: 0 | DA19: 0 | DC19: 0 | DE19: 0 | DG19: 0 | DI19: 0 | DK19: 0 | DM19: 0 | DO19: 0 | DQ19: 0 | DS19: 0 | DU19: 0 | DW19: 0
I20: 0 | K20: 0 | M20: 0 | O20: 0 | Q20: 0 | S20: 0 | U20: 0 | W20: 0 | Y20: 0 | AA20: 0 | AC20: 0 | AE20: 0 | AG20: 0 | AI20: 0 | AK20: 0 | AM20: 0 | AO20: 0 | AQ20: 0 | AS20: 0 | AU20: 0 | AW20: 0 | AY20: 0 | BA20: 0 | BC20: 0 | BE20: 0 | BG20: 0 | BI20: 0 | BK20: 0 | BM20: 0 | BO20: 0 | BQ20: 0 | BS20: 0 | BU20: 0 | BW20: 0 | BY20: 0 | CA20: 0 | CC20: 0 | CE20: 0 | CG20: 0 | CI20: 0 | CK20: 0 | CM20: 0 | CO20: 0 | CQ20: 0 | CS20: 0 | CU20: 0 | CW20: 0 | CY20: 0 | DA20: 0 | DC20: 0 | DE20: 0 | DG20: 0 | DI20: 0 | DK20: 0 | DM20: 0 | DO20: 0 | DQ20: 0 | DS20: 0 | DU20: 0 | DW20: 0
I21: 0 | K21: 0 | M21: 0 | O21: 0 | Q21: 0 | S21: 0 | U21: 0 | W21: 0 | Y21: 0 | AA21: 0 | AC21: 0 | AE21: 0 | AG21: 0 | AI21: 0 | AK21: 0 | AM21: 0 | AO21: 0 | AQ21: 0 | AS21: 0 | AU21: 0 | AW21: 0 | AY21: 0 | BA21: 0 | BC21: 0 | BE21: 0 | BG21: 0 | BI21: 0 | BK21: 0 | BM21: 0 | BO21: 0 | BQ21: 0 | BS21: 0 | BU21: 0 | BW21: 0 | BY21: 0 | CA21: 0 | CC21: 0 | CE21: 0 | CG21: 0 | CI21: 0 | CK21: 0 | CM21: 0 | CO21: 0 | CQ21: 0 | CS21: 0 | CU21: 0 | CW21: 0 | CY21: 0 | DA21: 0 | DC21: 0 | DE21: 0 | DG21: 0 | DI21: 0 | DK21: 0 | DM21: 0 | DO21: 0 | DQ21: 0 | DS21: 0 | DU21: 0 | DW21: 0
I22: 0
C24: ITEM | D24: DESCRIÇÃO | E24: QUANT ANUAL | F24: VALOR
J25: =IF(SUM(I$15:I$22)>0,$E25*$F25,0) -> 0 | L25: =IF(SUM(K$15:K$22)>0,$E25*$F25,0) -> 0 | N25: =IF(SUM(M$15:M$22)>0,$E25*$F25,0) -> 0 | P25: =IF(SUM(O$15:O$22)>0,$E25*$F25,0) -> 0 | R25: =IF(SUM(Q$15:Q$22)>0,$E25*$F25,0) -> 0 | T25: =IF(SUM(S$15:S$22)>0,$E25*$F25,0) -> 0 | V25: =IF(SUM(U$15:U$22)>0,$E25*$F25,0) -> 0 | X25: =IF(SUM(W$15:W$22)>0,$E25*$F25,0) -> 0 | Z25: =IF(SUM(Y$15:Y$22)>0,$E25*$F25,0) -> 0 | AB25: =IF(SUM(AA$15:AA$22)>0,$E25*$F25,0) -> 0 | AD25: =IF(SUM(AC$15:AC$22)>0,$E25*$F25,0) -> 0 | AF25: =IF(SUM(AE$15:AE$22)>0,$E25*$F25,0) -> 0 | AH25: =IF(SUM(AG$15:AG$22)>0,$E25*$F25,0) -> 0 | AJ25: =IF(SUM(AI$15:AI$22)>0,$E25*$F25,0) -> 0 | AL25: =IF(SUM(AK$15:AK$22)>0,$E25*$F25,0) -> 0 | AN25: =IF(SUM(AM$15:AM$22)>0,$E25*$F25,0) -> 0 | AP25: =IF(SUM(AO$15:AO$22)>0,$E25*$F25,0) -> 0 | AR25: =IF(SUM(AQ$15:AQ$22)>0,$E25*$F25,0) -> 0 | AT25: =IF(SUM(AS$15:AS$22)>0,$E25*$F25,0) -> 0 | AV25: =IF(SUM(AU$15:AU$22)>0,$E25*$F25,0) -> 0 | AX25: =IF(SUM(AW$15:AW$22)>0,$E25*$F25,0) -> 0 | AZ25: =IF(SUM(AY$15:AY$22)>0,$E25*$F25,0) -> 0 | BB25: =IF(SUM(BA$15:BA$22)>0,$E25*$F25,0) -> 0 | BD25: =IF(SUM(BC$15:BC$22)>0,$E25*$F25,0) -> 0 | BF25: =IF(SUM(BE$15:BE$22)>0,$E25*$F25,0) -> 0 | BH25: =IF(SUM(BG$15:BG$22)>0,$E25*$F25,0) -> 0 | BJ25: =IF(SUM(BI$15:BI$22)>0,$E25*$F25,0) -> 0 | BL25: =IF(SUM(BK$15:BK$22)>0,$E25*$F25,0) -> 0 | BN25: =IF(SUM(BM$15:BM$22)>0,$E25*$F25,0) -> 0 | BP25: =IF(SUM(BO$15:BO$22)>0,$E25*$F25,0) -> 0 | BR25: =IF(SUM(BQ$15:BQ$22)>0,$E25*$F25,0) -> 0 | BT25: =IF(SUM(BS$15:BS$22)>0,$E25*$F25,0) -> 0 | BV25: =IF(SUM(BU$15:BU$22)>0,$E25*$F25,0) -> 0 | BX25: =IF(SUM(BW$15:BW$22)>0,$E25*$F25,0) -> 0 | BZ25: =IF(SUM(BY$15:BY$22)>0,$E25*$F25,0) -> 0 | CB25: =IF(SUM(CA$15:CA$22)>0,$E25*$F25,0) -> 0 | CD25: =IF(SUM(CC$15:CC$22)>0,$E25*$F25,0) -> 0 | CF25: =IF(SUM(CE$15:CE$22)>0,$E25*$F25,0) -> 0 | CH25: =IF(SUM(CG$15:CG$22)>0,$E25*$F25,0) -> 0 | CJ25: =IF(SUM(CI$15:CI$22)>0,$E25*$F25,0) -> 0 | CL25: =IF(SUM(CK$15:CK$22)>0,$E25*$F25,0) -> 0 | CN25: =IF(SUM(CM$15:CM$22)>0,$E25*$F25,0) -> 0 | CP25: =IF(SUM(CO$15:CO$22)>0,$E25*$F25,0) -> 0 | CR25: =IF(SUM(CQ$15:CQ$22)>0,$E25*$F25,0) -> 0 | CT25: =IF(SUM(CS$15:CS$22)>0,$E25*$F25,0) -> 0 | CV25: =IF(SUM(CU$15:CU$22)>0,$E25*$F25,0) -> 0 | CX25: =IF(SUM(CW$15:CW$22)>0,$E25*$F25,0) -> 0 | CZ25: =IF(SUM(CY$15:CY$22)>0,$E25*$F25,0) -> 0 | DB25: =IF(SUM(DA$15:DA$22)>0,$E25*$F25,0) -> 0 | DD25: =IF(SUM(DC$15:DC$22)>0,$E25*$F25,0) -> 0 | DF25: =IF(SUM(DE$15:DE$22)>0,$E25*$F25,0) -> 0 | DH25: =IF(SUM(DG$15:DG$22)>0,$E25*$F25,0) -> 0 | DJ25: =IF(SUM(DI$15:DI$22)>0,$E25*$F25,0) -> 0 | DL25: =IF(SUM(DK$15:DK$22)>0,$E25*$F25,0) -> 0 | DN25: =IF(SUM(DM$15:DM$22)>0,$E25*$F25,0) -> 0 | DP25: =IF(SUM(DO$15:DO$22)>0,$E25*$F25,0) -> 0 | DR25: =IF(SUM(DQ$15:DQ$22)>0,$E25*$F25,0) -> 0 | DT25: =IF(SUM(DS$15:DS$22)>0,$E25*$F25,0) -> 0 | DV25: =IF(SUM(DU$15:DU$22)>0,$E25*$F25,0) -> 0 | DX25: =IF(SUM(DW$15:DW$22)>0,$E25*$F25,0) -> 0
J26: =IF(SUM(I$15:I$22)>0,$E26*$F26,0) -> 0 | L26: =IF(SUM(K$15:K$22)>0,$E26*$F26,0) -> 0 | N26: =IF(SUM(M$15:M$22)>0,$E26*$F26,0) -> 0 | P26: =IF(SUM(O$15:O$22)>0,$E26*$F26,0) -> 0 | R26: =IF(SUM(Q$15:Q$22)>0,$E26*$F26,0) -> 0 | T26: =IF(SUM(S$15:S$22)>0,$E26*$F26,0) -> 0 | V26: =IF(SUM(U$15:U$22)>0,$E26*$F26,0) -> 0 | X26: =IF(SUM(W$15:W$22)>0,$E26*$F26,0) -> 0 | Z26: =IF(SUM(Y$15:Y$22)>0,$E26*$F26,0) -> 0 | AB26: =IF(SUM(AA$15:AA$22)>0,$E26*$F26,0) -> 0 | AD26: =IF(SUM(AC$15:AC$22)>0,$E26*$F26,0) -> 0 | AF26: =IF(SUM(AE$15:AE$22)>0,$E26*$F26,0) -> 0 | AH26: =IF(SUM(AG$15:AG$22)>0,$E26*$F26,0) -> 0 | AJ26: =IF(SUM(AI$15:AI$22)>0,$E26*$F26,0) -> 0 | AL26: =IF(SUM(AK$15:AK$22)>0,$E26*$F26,0) -> 0 | AN26: =IF(SUM(AM$15:AM$22)>0,$E26*$F26,0) -> 0 | AP26: =IF(SUM(AO$15:AO$22)>0,$E26*$F26,0) -> 0 | AR26: =IF(SUM(AQ$15:AQ$22)>0,$E26*$F26,0) -> 0 | AT26: =IF(SUM(AS$15:AS$22)>0,$E26*$F26,0) -> 0 | AV26: =IF(SUM(AU$15:AU$22)>0,$E26*$F26,0) -> 0 | AX26: =IF(SUM(AW$15:AW$22)>0,$E26*$F26,0) -> 0 | AZ26: =IF(SUM(AY$15:AY$22)>0,$E26*$F26,0) -> 0 | BB26: =IF(SUM(BA$15:BA$22)>0,$E26*$F26,0) -> 0 | BD26: =IF(SUM(BC$15:BC$22)>0,$E26*$F26,0) -> 0 | BF26: =IF(SUM(BE$15:BE$22)>0,$E26*$F26,0) -> 0 | BH26: =IF(SUM(BG$15:BG$22)>0,$E26*$F26,0) -> 0 | BJ26: =IF(SUM(BI$15:BI$22)>0,$E26*$F26,0) -> 0 | BL26: =IF(SUM(BK$15:BK$22)>0,$E26*$F26,0) -> 0 | BN26: =IF(SUM(BM$15:BM$22)>0,$E26*$F26,0) -> 0 | BP26: =IF(SUM(BO$15:BO$22)>0,$E26*$F26,0) -> 0 | BR26: =IF(SUM(BQ$15:BQ$22)>0,$E26*$F26,0) -> 0 | BT26: =IF(SUM(BS$15:BS$22)>0,$E26*$F26,0) -> 0 | BV26: =IF(SUM(BU$15:BU$22)>0,$E26*$F26,0) -> 0 | BX26: =IF(SUM(BW$15:BW$22)>0,$E26*$F26,0) -> 0 | BZ26: =IF(SUM(BY$15:BY$22)>0,$E26*$F26,0) -> 0 | CB26: =IF(SUM(CA$15:CA$22)>0,$E26*$F26,0) -> 0 | CD26: =IF(SUM(CC$15:CC$22)>0,$E26*$F26,0) -> 0 | CF26: =IF(SUM(CE$15:CE$22)>0,$E26*$F26,0) -> 0 | CH26: =IF(SUM(CG$15:CG$22)>0,$E26*$F26,0) -> 0 | CJ26: =IF(SUM(CI$15:CI$22)>0,$E26*$F26,0) -> 0 | CL26: =IF(SUM(CK$15:CK$22)>0,$E26*$F26,0) -> 0 | CN26: =IF(SUM(CM$15:CM$22)>0,$E26*$F26,0) -> 0 | CP26: =IF(SUM(CO$15:CO$22)>0,$E26*$F26,0) -> 0 | CR26: =IF(SUM(CQ$15:CQ$22)>0,$E26*$F26,0) -> 0 | CT26: =IF(SUM(CS$15:CS$22)>0,$E26*$F26,0) -> 0 | CV26: =IF(SUM(CU$15:CU$22)>0,$E26*$F26,0) -> 0 | CX26: =IF(SUM(CW$15:CW$22)>0,$E26*$F26,0) -> 0 | CZ26: =IF(SUM(CY$15:CY$22)>0,$E26*$F26,0) -> 0 | DB26: =IF(SUM(DA$15:DA$22)>0,$E26*$F26,0) -> 0 | DD26: =IF(SUM(DC$15:DC$22)>0,$E26*$F26,0) -> 0 | DF26: =IF(SUM(DE$15:DE$22)>0,$E26*$F26,0) -> 0 | DH26: =IF(SUM(DG$15:DG$22)>0,$E26*$F26,0) -> 0 | DJ26: =IF(SUM(DI$15:DI$22)>0,$E26*$F26,0) -> 0 | DL26: =IF(SUM(DK$15:DK$22)>0,$E26*$F26,0) -> 0 | DN26: =IF(SUM(DM$15:DM$22)>0,$E26*$F26,0) -> 0 | DP26: =IF(SUM(DO$15:DO$22)>0,$E26*$F26,0) -> 0 | DR26: =IF(SUM(DQ$15:DQ$22)>0,$E26*$F26,0) -> 0 | DT26: =IF(SUM(DS$15:DS$22)>0,$E26*$F26,0) -> 0 | DV26: =IF(SUM(DU$15:DU$22)>0,$E26*$F26,0) -> 0 | DX26: =IF(SUM(DW$15:DW$22)>0,$E26*$F26,0) -> 0
J27: =IF(SUM(I$15:I$22)>0,$E27*$F27,0) -> 0 | L27: =IF(SUM(K$15:K$22)>0,$E27*$F27,0) -> 0 | N27: =IF(SUM(M$15:M$22)>0,$E27*$F27,0) -> 0 | P27: =IF(SUM(O$15:O$22)>0,$E27*$F27,0) -> 0 | R27: =IF(SUM(Q$15:Q$22)>0,$E27*$F27,0) -> 0 | T27: =IF(SUM(S$15:S$22)>0,$E27*$F27,0) -> 0 | V27: =IF(SUM(U$15:U$22)>0,$E27*$F27,0) -> 0 | X27: =IF(SUM(W$15:W$22)>0,$E27*$F27,0) -> 0 | Z27: =IF(SUM(Y$15:Y$22)>0,$E27*$F27,0) -> 0 | AB27: =IF(SUM(AA$15:AA$22)>0,$E27*$F27,0) -> 0 | AD27: =IF(SUM(AC$15:AC$22)>0,$E27*$F27,0) -> 0 | AF27: =IF(SUM(AE$15:AE$22)>0,$E27*$F27,0) -> 0 | AH27: =IF(SUM(AG$15:AG$22)>0,$E27*$F27,0) -> 0 | AJ27: =IF(SUM(AI$15:AI$22)>0,$E27*$F27,0) -> 0 | AL27: =IF(SUM(AK$15:AK$22)>0,$E27*$F27,0) -> 0 | AN27: =IF(SUM(AM$15:AM$22)>0,$E27*$F27,0) -> 0 | AP27: =IF(SUM(AO$15:AO$22)>0,$E27*$F27,0) -> 0 | AR27: =IF(SUM(AQ$15:AQ$22)>0,$E27*$F27,0) -> 0 | AT27: =IF(SUM(AS$15:AS$22)>0,$E27*$F27,0) -> 0 | AV27: =IF(SUM(AU$15:AU$22)>0,$E27*$F27,0) -> 0 | AX27: =IF(SUM(AW$15:AW$22)>0,$E27*$F27,0) -> 0 | AZ27: =IF(SUM(AY$15:AY$22)>0,$E27*$F27,0) -> 0 | BB27: =IF(SUM(BA$15:BA$22)>0,$E27*$F27,0) -> 0 | BD27: =IF(SUM(BC$15:BC$22)>0,$E27*$F27,0) -> 0 | BF27: =IF(SUM(BE$15:BE$22)>0,$E27*$F27,0) -> 0 | BH27: =IF(SUM(BG$15:BG$22)>0,$E27*$F27,0) -> 0 | BJ27: =IF(SUM(BI$15:BI$22)>0,$E27*$F27,0) -> 0 | BL27: =IF(SUM(BK$15:BK$22)>0,$E27*$F27,0) -> 0 | BN27: =IF(SUM(BM$15:BM$22)>0,$E27*$F27,0) -> 0 | BP27: =IF(SUM(BO$15:BO$22)>0,$E27*$F27,0) -> 0 | BR27: =IF(SUM(BQ$15:BQ$22)>0,$E27*$F27,0) -> 0 | BT27: =IF(SUM(BS$15:BS$22)>0,$E27*$F27,0) -> 0 | BV27: =IF(SUM(BU$15:BU$22)>0,$E27*$F27,0) -> 0 | BX27: =IF(SUM(BW$15:BW$22)>0,$E27*$F27,0) -> 0 | BZ27: =IF(SUM(BY$15:BY$22)>0,$E27*$F27,0) -> 0 | CB27: =IF(SUM(CA$15:CA$22)>0,$E27*$F27,0) -> 0 | CD27: =IF(SUM(CC$15:CC$22)>0,$E27*$F27,0) -> 0 | CF27: =IF(SUM(CE$15:CE$22)>0,$E27*$F27,0) -> 0 | CH27: =IF(SUM(CG$15:CG$22)>0,$E27*$F27,0) -> 0 | CJ27: =IF(SUM(CI$15:CI$22)>0,$E27*$F27,0) -> 0 | CL27: =IF(SUM(CK$15:CK$22)>0,$E27*$F27,0) -> 0 | CN27: =IF(SUM(CM$15:CM$22)>0,$E27*$F27,0) -> 0 | CP27: =IF(SUM(CO$15:CO$22)>0,$E27*$F27,0) -> 0 | CR27: =IF(SUM(CQ$15:CQ$22)>0,$E27*$F27,0) -> 0 | CT27: =IF(SUM(CS$15:CS$22)>0,$E27*$F27,0) -> 0 | CV27: =IF(SUM(CU$15:CU$22)>0,$E27*$F27,0) -> 0 | CX27: =IF(SUM(CW$15:CW$22)>0,$E27*$F27,0) -> 0 | CZ27: =IF(SUM(CY$15:CY$22)>0,$E27*$F27,0) -> 0 | DB27: =IF(SUM(DA$15:DA$22)>0,$E27*$F27,0) -> 0 | DD27: =IF(SUM(DC$15:DC$22)>0,$E27*$F27,0) -> 0 | DF27: =IF(SUM(DE$15:DE$22)>0,$E27*$F27,0) -> 0 | DH27: =IF(SUM(DG$15:DG$22)>0,$E27*$F27,0) -> 0 | DJ27: =IF(SUM(DI$15:DI$22)>0,$E27*$F27,0) -> 0 | DL27: =IF(SUM(DK$15:DK$22)>0,$E27*$F27,0) -> 0 | DN27: =IF(SUM(DM$15:DM$22)>0,$E27*$F27,0) -> 0 | DP27: =IF(SUM(DO$15:DO$22)>0,$E27*$F27,0) -> 0 | DR27: =IF(SUM(DQ$15:DQ$22)>0,$E27*$F27,0) -> 0 | DT27: =IF(SUM(DS$15:DS$22)>0,$E27*$F27,0) -> 0 | DV27: =IF(SUM(DU$15:DU$22)>0,$E27*$F27,0) -> 0 | DX27: =IF(SUM(DW$15:DW$22)>0,$E27*$F27,0) -> 0
J28: =IF(SUM(I$15:I$22)>0,$E28*$F28,0) -> 0 | L28: =IF(SUM(K$15:K$22)>0,$E28*$F28,0) -> 0 | N28: =IF(SUM(M$15:M$22)>0,$E28*$F28,0) -> 0 | P28: =IF(SUM(O$15:O$22)>0,$E28*$F28,0) -> 0 | R28: =IF(SUM(Q$15:Q$22)>0,$E28*$F28,0) -> 0 | T28: =IF(SUM(S$15:S$22)>0,$E28*$F28,0) -> 0 | V28: =IF(SUM(U$15:U$22)>0,$E28*$F28,0) -> 0 | X28: =IF(SUM(W$15:W$22)>0,$E28*$F28,0) -> 0 | Z28: =IF(SUM(Y$15:Y$22)>0,$E28*$F28,0) -> 0 | AB28: =IF(SUM(AA$15:AA$22)>0,$E28*$F28,0) -> 0 | AD28: =IF(SUM(AC$15:AC$22)>0,$E28*$F28,0) -> 0 | AF28: =IF(SUM(AE$15:AE$22)>0,$E28*$F28,0) -> 0 | AH28: =IF(SUM(AG$15:AG$22)>0,$E28*$F28,0) -> 0 | AJ28: =IF(SUM(AI$15:AI$22)>0,$E28*$F28,0) -> 0 | AL28: =IF(SUM(AK$15:AK$22)>0,$E28*$F28,0) -> 0 | AN28: =IF(SUM(AM$15:AM$22)>0,$E28*$F28,0) -> 0 | AP28: =IF(SUM(AO$15:AO$22)>0,$E28*$F28,0) -> 0 | AR28: =IF(SUM(AQ$15:AQ$22)>0,$E28*$F28,0) -> 0 | AT28: =IF(SUM(AS$15:AS$22)>0,$E28*$F28,0) -> 0 | AV28: =IF(SUM(AU$15:AU$22)>0,$E28*$F28,0) -> 0 | AX28: =IF(SUM(AW$15:AW$22)>0,$E28*$F28,0) -> 0 | AZ28: =IF(SUM(AY$15:AY$22)>0,$E28*$F28,0) -> 0 | BB28: =IF(SUM(BA$15:BA$22)>0,$E28*$F28,0) -> 0 | BD28: =IF(SUM(BC$15:BC$22)>0,$E28*$F28,0) -> 0 | BF28: =IF(SUM(BE$15:BE$22)>0,$E28*$F28,0) -> 0 | BH28: =IF(SUM(BG$15:BG$22)>0,$E28*$F28,0) -> 0 | BJ28: =IF(SUM(BI$15:BI$22)>0,$E28*$F28,0) -> 0 | BL28: =IF(SUM(BK$15:BK$22)>0,$E28*$F28,0) -> 0 | BN28: =IF(SUM(BM$15:BM$22)>0,$E28*$F28,0) -> 0 | BP28: =IF(SUM(BO$15:BO$22)>0,$E28*$F28,0) -> 0 | BR28: =IF(SUM(BQ$15:BQ$22)>0,$E28*$F28,0) -> 0 | BT28: =IF(SUM(BS$15:BS$22)>0,$E28*$F28,0) -> 0 | BV28: =IF(SUM(BU$15:BU$22)>0,$E28*$F28,0) -> 0 | BX28: =IF(SUM(BW$15:BW$22)>0,$E28*$F28,0) -> 0 | BZ28: =IF(SUM(BY$15:BY$22)>0,$E28*$F28,0) -> 0 | CB28: =IF(SUM(CA$15:CA$22)>0,$E28*$F28,0) -> 0 | CD28: =IF(SUM(CC$15:CC$22)>0,$E28*$F28,0) -> 0 | CF28: =IF(SUM(CE$15:CE$22)>0,$E28*$F28,0) -> 0 | CH28: =IF(SUM(CG$15:CG$22)>0,$E28*$F28,0) -> 0 | CJ28: =IF(SUM(CI$15:CI$22)>0,$E28*$F28,0) -> 0 | CL28: =IF(SUM(CK$15:CK$22)>0,$E28*$F28,0) -> 0 | CN28: =IF(SUM(CM$15:CM$22)>0,$E28*$F28,0) -> 0 | CP28: =IF(SUM(CO$15:CO$22)>0,$E28*$F28,0) -> 0 | CR28: =IF(SUM(CQ$15:CQ$22)>0,$E28*$F28,0) -> 0 | CT28: =IF(SUM(CS$15:CS$22)>0,$E28*$F28,0) -> 0 | CV28: =IF(SUM(CU$15:CU$22)>0,$E28*$F28,0) -> 0 | CX28: =IF(SUM(CW$15:CW$22)>0,$E28*$F28,0) -> 0 | CZ28: =IF(SUM(CY$15:CY$22)>0,$E28*$F28,0) -> 0 | DB28: =IF(SUM(DA$15:DA$22)>0,$E28*$F28,0) -> 0 | DD28: =IF(SUM(DC$15:DC$22)>0,$E28*$F28,0) -> 0 | DF28: =IF(SUM(DE$15:DE$22)>0,$E28*$F28,0) -> 0 | DH28: =IF(SUM(DG$15:DG$22)>0,$E28*$F28,0) -> 0 | DJ28: =IF(SUM(DI$15:DI$22)>0,$E28*$F28,0) -> 0 | DL28: =IF(SUM(DK$15:DK$22)>0,$E28*$F28,0) -> 0 | DN28: =IF(SUM(DM$15:DM$22)>0,$E28*$F28,0) -> 0 | DP28: =IF(SUM(DO$15:DO$22)>0,$E28*$F28,0) -> 0 | DR28: =IF(SUM(DQ$15:DQ$22)>0,$E28*$F28,0) -> 0 | DT28: =IF(SUM(DS$15:DS$22)>0,$E28*$F28,0) -> 0 | DV28: =IF(SUM(DU$15:DU$22)>0,$E28*$F28,0) -> 0 | DX28: =IF(SUM(DW$15:DW$22)>0,$E28*$F28,0) -> 0

Sheet Mat Perm (hidden)
C1: CÂMARA DOS DEPUTADOS
C2: DEPARTAMENTO TÉCNICO
C3: Coordenação de Planejamento e Gestão
C5: Data: | D5: ='Dados Gerais'!#REF! -> 
C6: Processo: | D6: ='Dados Gerais'!#REF! -> 
C7: Objeto: | D7: ='Dados Gerais'!#REF! -> 
B11: MATERIAIS PERMANENTES RELACIONADOS AO POSTO - PAGAMENTO DA DEPRECIAÇÃO / MANUTENÇÃO | Q11: 1 | S11: =Q11+1 -> 2 | U11: =S11+1 -> 3 | W11: =U11+1 -> 4 | Y11: =W11+1 -> 5 | AA11: =Y11+1 -> 6 | AC11: =AA11+1 -> 7 | AE11: =AC11+1 -> 8 | AG11: =AE11+1 -> 9 | AI11: =AG11+1 -> 10 | AK11: =AI11+1 -> 11 | AM11: =AK11+1 -> 12 | AO11: =AM11+1 -> 13 | AQ11: =AO11+1 -> 14 | AS11: =AQ11+1 -> 15 | AU11: =AS11+1 -> 16 | AW11: =AU11+1 -> 17 | AY11: =AW11+1 -> 18 | BA11: =AY11+1 -> 19 | BC11: =BA11+1 -> 20 | BE11: =BC11+1 -> 21 | BG11: =BE11+1 -> 22 | BI11: =BG11+1 -> 23 | BK11: =BI11+1 -> 24 | BM11: =BK11+1 -> 25 | BO11: =BM11+1 -> 26 | BQ11: =BO11+1 -> 27 | BS11: =BQ11+1 -> 28 | BU11: =BS11+1 -> 29 | BW11: =BU11+1 -> 30 | BY11: =BW11+1 -> 31 | CA11: =BY11+1 -> 32 | CC11: =CA11+1 -> 33 | CE11: =CC11+1 -> 34 | CG11: =CE11+1 -> 35 | CI11: =CG11+1 -> 36 | CK11: =CI11+1 -> 37 | CM11: =CK11+1 -> 38 | CO11: =CM11+1 -> 39 | CQ11: =CO11+1 -> 40 | CS11: =CQ11+1 -> 41 | CU11: =CS11+1 -> 42 | CW11: =CU11+1 -> 43 | CY11: =CW11+1 -> 44 | DA11: =CY11+1 -> 45 | DC11: =DA11+1 -> 46 | DE11: =DC11+1 -> 47 | DG11: =DE11+1 -> 48 | DI11: =DG11+1 -> 49 | DK11: =DI11+1 -> 50 | DM11: =DK11+1 -> 51 | DO11: =DM11+1 -> 52 | DQ11: =DO11+1 -> 53 | DS11: =DQ11+1 -> 54 | DU11: =DS11+1 -> 55 | DW11: =DU11+1 -> 56 | DY11: =DW11+1 -> 57 | EA11: =DY11+1 -> 58 | EC11: =EA11+1 -> 59 | EE11: =EC11+1 -> 60
Q13: =SUM(R12:R94) -> 0 | S13: =SUM(T12:T94) -> 0 | U13: =SUM(V12:V94) -> 0 | W13: =SUM(X12:X94) -> 0 | Y13: =SUM(Z12:Z94) -> 0 | AA13: =SUM(AB12:AB94) -> 0 | AC13: =SUM(AD12:AD94) -> 0 | AE13: =SUM(AF12:AF94) -> 0 | AG13: =SUM(AH12:AH94) -> 0 | AI13: =SUM(AJ12:AJ94) -> 0 | AK13: =SUM(AL12:AL94) -> 0 | AM13: =SUM(AN12:AN94) -> 0 | AO13: =SUM(AP12:AP94) -> 0 | AQ13: =SUM(AR12:AR94) -> 0 | AS13: =SUM(AT12:AT94) -> 0 | AU13: =SUM(AV12:AV94) -> 0 | AW13: =SUM(AX12:AX94) -> 0 | AY13: =SUM(AZ12:AZ94) -> 0 | BA13: =SUM(BB12:BB94) -> 0 | BC13: =SUM(BD12:BD94) -> 0 | BE13: =SUM(BF12:BF94) -> 0 | BG13: =SUM(BH12:BH94) -> 0 | BI13: =SUM(BJ12:BJ94) -> 0 | BK13: =SUM(BL12:BL94) -> 0 | BM13: =SUM(BN12:BN94) -> 0 | BO13: =SUM(BP12:BP94) -> 0 | BQ13: =SUM(BR12:BR94) -> 0 | BS13: =SUM(BT12:BT94) -> 0 | BU13: =SUM(BV12:BV94) -> 0 | BW13: =SUM(BX12:BX94) -> 0 | BY13: =SUM(BZ12:BZ94) -> 0 | CA13: =SUM(CB12:CB94) -> 0 | CC13: =SUM(CD12:CD94) -> 0 | CE13: =SUM(CF12:CF94) -> 0 | CG13: =SUM(CH12:CH94) -> 0 | CI13: =SUM(CJ12:CJ94) -> 0 | CK13: =SUM(CL12:CL94) -> 0 | CM13: =SUM(CN12:CN94) -> 0 | CO13: =SUM(CP12:CP94) -> 0 | CQ13: =SUM(CR12:CR94) -> 0 | CS13: =SUM(CT12:CT94) -> 0 | CU13: =SUM(CV12:CV94) -> 0 | CW13: =SUM(CX12:CX94) -> 0 | CY13: =SUM(CZ12:CZ94) -> 0 | DA13: =SUM(DB12:DB94) -> 0 | DC13: =SUM(DD12:DD94) -> 0 | DE13: =SUM(DF12:DF94) -> 0 | DG13: =SUM(DH12:DH94) -> 0 | DI13: =SUM(DJ12:DJ94) -> 0 | DK13: =SUM(DL12:DL94) -> 0 | DM13: =SUM(DN12:DN94) -> 0 | DO13: =SUM(DP12:DP94) -> 0 | DQ13: =SUM(DR12:DR94) -> 0 | DS13: =SUM(DT12:DT94) -> 0 | DU13: =SUM(DV12:DV94) -> 0 | DW13: =SUM(DX12:DX94) -> 0 | DY13: =SUM(DZ12:DZ94) -> 0 | EA13: =SUM(EB12:EB94) -> 0 | EC13: =SUM(ED12:ED94) -> 0 | EE13: =SUM(EF12:EF94) -> 0
C14: CATEGORIAS | E14: QUANTIDADE
Q15: =IF($C15=Q$11,1,0) -> 0 | S15: =IF($C15=S$11,1,0) -> 0 | U15: =IF($C15=U$11,1,0) -> 0 | W15: =IF($C15=W$11,1,0) -> 0 | Y15: =IF($C15=Y$11,1,0) -> 0 | AA15: =IF($C15=AA$11,1,0) -> 0 | AC15: =IF($C15=AC$11,1,0) -> 0 | AE15: =IF($C15=AE$11,1,0) -> 0 | AG15: =IF($C15=AG$11,1,0) -> 0 | AI15: =IF($C15=AI$11,1,0) -> 0 | AK15: =IF($C15=AK$11,1,0) -> 0 | AM15: =IF($C15=AM$11,1,0) -> 0 | AO15: =IF($C15=AO$11,1,0) -> 0 | AQ15: =IF($C15=AQ$11,1,0) -> 0 | AS15: =IF($C15=AS$11,1,0) -> 0 | AU15: =IF($C15=AU$11,1,0) -> 0 | AW15: =IF($C15=AW$11,1,0) -> 0 | AY15: =IF($C15=AY$11,1,0) -> 0 | BA15: =IF($C15=BA$11,1,0) -> 0 | BC15: =IF($C15=BC$11,1,0) -> 0 | BE15: =IF($C15=BE$11,1,0) -> 0 | BG15: =IF($C15=BG$11,1,0) -> 0 | BI15: =IF($C15=BI$11,1,0) -> 0 | BK15: =IF($C15=BK$11,1,0) -> 0 | BM15: =IF($C15=BM$11,1,0) -> 0 | BO15: =IF($C15=BO$11,1,0) -> 0 | BQ15: =IF($C15=BQ$11,1,0) -> 0 | BS15: =IF($C15=BS$11,1,0) -> 0 | BU15: =IF($C15=BU$11,1,0) -> 0 | BW15: =IF($C15=BW$11,1,0) -> 0 | BY15: =IF($C15=BY$11,1,0) -> 0 | CA15: =IF($C15=CA$11,1,0) -> 0 | CC15: =IF($C15=CC$11,1,0) -> 0 | CE15: =IF($C15=CE$11,1,0) -> 0 | CG15: =IF($C15=CG$11,1,0) -> 0 | CI15: =IF($C15=CI$11,1,0) -> 0 | CK15: =IF($C15=CK$11,1,0) -> 0 | CM15: =IF($C15=CM$11,1,0) -> 0 | CO15: =IF($C15=CO$11,1,0) -> 0 | CQ15: =IF($C15=CQ$11,1,0) -> 0 | CS15: =IF($C15=CS$11,1,0) -> 0 | CU15: =IF($C15=CU$11,1,0) -> 0 | CW15: =IF($C15=CW$11,1,0) -> 0 | CY15: =IF($C15=CY$11,1,0) -> 0 | DA15: =IF($C15=DA$11,1,0) -> 0 | DC15: =IF($C15=DC$11,1,0) -> 0 | DE15: =IF($C15=DE$11,1,0) -> 0 | DG15: =IF($C15=DG$11,1,0) -> 0 | DI15: =IF($C15=DI$11,1,0) -> 0 | DK15: =IF($C15=DK$11,1,0) -> 0 | DM15: =IF($C15=DM$11,1,0) -> 0 | DO15: =IF($C15=DO$11,1,0) -> 0 | DQ15: =IF($C15=DQ$11,1,0) -> 0 | DS15: =IF($C15=DS$11,1,0) -> 0 | DU15: =IF($C15=DU$11,1,0) -> 0 | DW15: =IF($C15=DW$11,1,0) -> 0 | DY15: =IF($C15=DY$11,1,0) -> 0 | EA15: =IF($C15=EA$11,1,0) -> 0 | EC15: =IF($C15=EC$11,1,0) -> 0 | EE15: =IF($C15=EE$11,1,0) -> 0
D16: =HLOOKUP($C16,'Dados Gerais'!$D$5:$BK$10,6) ->  | E16: =HLOOKUP($C16,'Dados Gerais'!$D$5:$BK$14,10) ->  | Q16: 0 | S16: 0 | U16: 0 | W16: 0 | Y16: 0 | AA16: 0 | AC16: 0 | AE16: 0 | AG16: 0 | AI16: 0 | AK16: 0 | AM16: 0 | AO16: 0 | AQ16: 0 | AS16: 0 | AU16: 0 | AW16: 0 | AY16: 0 | BA16: 0 | BC16: 0 | BE16: 0 | BG16: 0 | BI16: 0 | BK16: 0 | BM16: 0 | BO16: 0 | BQ16: 0 | BS16: 0 | BU16: 0 | BW16: 0 | BY16: 0 | CA16: 0 | CC16: 0 | CE16: 0 | CG16: 0 | CI16: 0 | CK16: 0 | CM16: 0 | CO16: 0 | CQ16: 0 | CS16: 0 | CU16: 0 | CW16: 0 | CY16: 0 | DA16: 0 | DC16: 0 | DE16: 0 | DG16: 0 | DI16: 0 | DK16: 0 | DM16: 0 | DO16: 0 | DQ16: 0 | DS16: 0 | DU16: 0 | DW16: 0 | DY16: 0 | EA16: 0 | EC16: 0 | EE16: 0
D17: =HLOOKUP($C17,'Dados Gerais'!$D$5:$BK$10,6) ->  | E17: =HLOOKUP($C17,'Dados Gerais'!$D$5:$BK$14,10) ->  | Q17: 0 | S17: 0 | U17: 0 | W17: 0 | Y17: 0 | AA17: 0 | AC17: 0 | AE17: 0 | AG17: 0 | AI17: 0 | AK17: 0 | AM17: 0 | AO17: 0 | AQ17: 0 | AS17: 0 | AU17: 0 | AW17: 0 | AY17: 0 | BA17: 0 | BC17: 0 | BE17: 0 | BG17: 0 | BI17: 0 | BK17: 0 | BM17: 0 | BO17: 0 | BQ17: 0 | BS17: 0 | BU17: 0 | BW17: 0 | BY17: 0 | CA17: 0 | CC17: 0 | CE17: 0 | CG17: 0 | CI17: 0 | CK17: 0 | CM17: 0 | CO17: 0 | CQ17: 0 | CS17: 0 | CU17: 0 | CW17: 0 | CY17: 0 | DA17: 0 | DC17: 0 | DE17: 0 | DG17: 0 | DI17: 0 | DK17: 0 | DM17: 0 | DO17: 0 | DQ17: 0 | DS17: 0 | DU17: 0 | DW17: 0 | DY17: 0 | EA17: 0 | EC17: 0 | EE17: 0
D18: =HLOOKUP($C18,'Dados Gerais'!$D$5:$BK$10,6) ->  | E18: =HLOOKUP($C18,'Dados Gerais'!$D$5:$BK$14,10) ->  | Q18: 0 | S18: 0 | U18: 0 | W18: 0 | Y18: 0 | AA18: 0 | AC18: 0 | AE18: 0 | AG18: 0 | AI18: 0 | AK18: 0 | AM18: 0 | AO18: 0 | AQ18: 0 | AS18: 0 | AU18: 0 | AW18: 0 | AY18: 0 | BA18: 0 | BC18: 0 | BE18: 0 | BG18: 0 | BI18: 0 | BK18: 0 | BM18: 0 | BO18: 0 | BQ18: 0 | BS18: 0 | BU18: 0 | BW18: 0 | BY18: 0 | CA18: 0 | CC18: 0 | CE18: 0 | CG18: 0 | CI18: 0 | CK18: 0 | CM18: 0 | CO18: 0 | CQ18: 0 | CS18: 0 | CU18: 0 | CW18: 0 | CY18: 0 | DA18: 0 | DC18: 0 | DE18: 0 | DG18: 0 | DI18: 0 | DK18: 0 | DM18: 0 | DO18: 0 | DQ18: 0 | DS18: 0 | DU18: 0 | DW18: 0 | DY18: 0 | EA18: 0 | EC18: 0 | EE18: 0
